{"text_format":"1","workbook":"xlsx","n_sheets":36,"sheets":["NAVODILA","VNOS PODATKOV","1A NASLOVNA","1B STROKOVNJAKI","1C NASLOVNA NAČRT","2A IZJAVA DGD","2B IZJAVA PZI","2C IZJAVA VN","2D IZJAVA PREGLED","2E IZJAVA PZO","2F IZJAVA PID","2G IZJAVA PID NR","3 KAZALO","4A SPLOŠNI PODATKI","4B PODATKI OBJEKTI","4C ZEMLJIŠČA","4D ODMERA KMET. ZEMLJIŠČA","8A POGOJI VLOGA","9A MNENJA VLOGA","9B MNENJA VLOGA DMO","11A GD VLOGA","12 GD SPREM","13A PRIP DELA","13B GRADNJA","13D SPREM INVEST","13E PO PRIJAVA","14 UD ZAHTEVA","15B UD IZJAVA 1-ST","15C UD IZJAVA 1-ST BO","15D UD IZJAVA POS OKOL","16A DOPOL VLOGE","16B DOPOL PODALJ","17B PO PODALJ ZAH","21 IZJAVA NR","BAZA PODATKOV","MNENJEDAJALCI"],"not_rendered":{"charts":0,"images":108,"macros":1,"external_links":0,"defined_names":23,"comments":0,"pivot_tables":0},"unopened":[],"bounds":{"document_bytes":16777216,"sheet_cells":100000,"rows_first":2000,"rows_last":500,"rows_between":2000,"halvings":0,"cell_chars":16384,"cell_head_chars":4096},"cells_cut":0,"cells_raw":0,"read":"whole","date_system":"1900"}

{"sheet":"NAVODILA","index":0,"n_rows":68,"n_cols":1,"rows_kept":68,"cut":false,"hidden":false,"merged":[]}
[]
["NAVODILA"]
[]
["Aplikacija za pripravo obrazcev v zvezi z graditvijo objektov je pripomoček za pripravo dokumentacije in zahtevkov, izdelan v skladu s Pravilnikom o projektni in drugi dokumentaciji ter obrazcih pri graditvi objektov (Uradni list RS, št. 30/23). Nova verzija obrazcev glede na prejšnjo uvaja nekaj sprememb, opisanih v nadaljevanju. "]
[]
["Za pravilno delovanje navigacijskih in drugih ukaznih gumbov je potrebno ob odpiranju dokumenta omogočiti uporabo makrov. Uporaba makrov je vezana izključno na delovanje navigacijskih gumbov, na avtomatično generiranje vlog za mnenjedajalce na obrazcih 8 in 9 ter za prenašanje podatkov med datotekami. Vse osnovne funkcionalnosti, torej vnos in izpis podatkov, delujejo tudi brez delovanja makrov. Namesto z uporabo navigacijskih gumbov lahko posamezne liste izbirate v spodnji vrstici aplikacije, za tiskanje in pripravo pdf dokumentov pa uporabite ustrezne ukaze iz menija. Polja z nazivi in naslovi na vlogah za mnenjedajalce na obrazcih 8 in 9 v tem primeru izpolnite ročno. "]
[]
["DATOTEKE"]
[]
["Priloge so razdeljene v več datotek. Vsaka izmed datotek je pripravljena za posamezno skupino uporabnikov (projektanti, izvajalci, mnenjedajalci, upravni organ) tako, da vključuje vse faze posameznega postopka. Sklop za projektante je dodatno razdeljen glede na zahtevnost nameravane gradnje. \nSeznam datotek:\n- projektanti - obrazci za zahtevne in manj zahtevne objekte\n- projektanti - obrazci za nezahtevne objekte\n- projektanti - obrazci za spremembo namembnosti\n- projektanti - manjša rekonstrukcija\n- projektanti - legalizacije\n- projektanti - začasni objekti\n- izvajalci - DZO\n- mnenjedajalci - projektni pogoji in mnenja\n- upravni organ - odločbe\n\nV nadaljevanju so opisana navodila za uporabo obrazcev projektanti - zahtevni in manj zahtevni objekti."]
[]
["ZAŠČITA PODATKOV"]
[]
["Vsi listi v datoteki so odklenjeni. Kljub temu priporočamo, da liste zaklenete tako, da na zavihku Pregled na traku v skupini Spremembe izberete Zaščiti list. Namen te osnovne zaščite je preprečiti nenamerno spreminjanje že izpolnjenih polj. \n\nOPOZORILO:\nPodatke lahko vnašate le v rumeno obarvana okenca, vrstice pa lahko dodajate le tam, kjer je to izrecno navedeno, sicer se podatki morda ne bodo prenesli pravilno!"]
[]
["KAZALO VSEBINE"]
[]
["List za vnos podatkov ima v zgornjem delu kazalo celotne vsebine. Vsebina je razporejena v tabelo, ki je razporejena tako kot je sestavljena vloga v posamezni fazi upravnega postopka. Naslovi delujejo kot povezave na posamezne liste."]
[]
["IZBIRA FAZE PROJEKTIRANJA"]
[]
["Pred pričetkom dela je obvezno potrebno izbrati vrsto postopka oziroma fazo projektiranja, saj je od izbire faze odvisno katere vsebine se bodo prenašale v obrazce."]
[]
["VNAŠANJE PODATKOV"]
[]
["Po izbiri faze sledijo polja za vnos podatkov, ki so smiselno razdeljena na posamezna poglavja in z barvno kodo označena glede na fazo upravnega postopka oziroma fazo projektiranja. Če na primer izberemo fazo DPP, moramo izpolniti vse vsebine, označene z rumeno barvo, če pa izberemo fazo DGD, pa moramo izpolniti vse vsebine, označene z rumeno in rdečo barvo in tako naprej. Polja za vnos so označena s svetlo rumeno barvo. \n\nNekatere vsebine vnašamo s pomočjo spustnih menijev, pri nekaterih vsebinah pa je potrebno označiti izbiro. Pod posameznimi naslovi so opombe z dodatnimi navodili za izpolnjevanje, stolpec A pa je namenjen internim opombam uporabnika."]
[]
["V novi verziji obrazcev se na listu za vnos podatkov vnašajo le tisti podatki, ki imajo vedno samo eno vrednost. Podatki, ki imajo lahko poljubno mnogo vrednosti, kot na primer navajanje zemljiških parcel, pa se vnašajo na ločenih listih, ki se kot priloge uporabijo večkrat. \n\nV ta namen je Priloga 4 - splošni podatki razdeljena na več prilog, pri čemer so v prilogi 4A podatki, ki se prenašajo samodejno iz lista vnos podatkov, v prilogi 4B je seznam zemljiških parcel, v prilogi 4C seznam objektov, v prilogi 4D pa nova vsebina - podatki za odmero odškodnine za kmetijska zemljišča. "]
[]
["PRENAŠANJE PODATKOV MED DATOTEKAMI"]
[]
["Če želimo prenesti že vnešene podatke iz prejšnje verzije, lahko to storimo s pomočjo gumba za prenos podatkov na listu vnos podatkov. Pred prenosom morata biti izvorna in ciljna datoteka odprti. \n\nPoleg gumba za prenos podatkov je na voljo tudi gumb Počisti vnosna polja, s katerim izbrišemo vse vnešene vsebine iz lista vnos podatkov, ne pa tudi vsebin, ki se vnašajo direktno v obrazce."]
[]
["OBRAZCI ZA IZDELAVO PROJEKTNE DOKUMENTACIJE"]
[]
["Obrazci se izpolnijo avtomatično ob vnosu podatkov na listu vnos podatkov, izjema so obrazci 4B, 4C, 4D, 1B ter 3, v katere podatke vpisujemo direktno. "]
[]
["OBRAZCI ZA ZAHTEVKE"]
[]
["Obrazci z vlogami oziroma zahtevki imajo poleg vsebin, ki se prenašajo avtomatično, tudi vsebine, ki so specifične za posamezen zahtevek. Te vsebine je potrebno izpolniti na vsaki posamezni vlogi."]
[]
["DODATNE ZAHTEVE MNENJEDAJALCEV"]
[]
["Če mnenjedajalci zahtevajo dodatne podatke za izdajo projektnih pogojev, smernic, mnenj ali soglasij, in teh podatkov ni mogoče vpisati v obrazce, se zahtevani podatki pripravijo na ločenem listu, ki se priloži vlogi kot priloga, pri čemer se prilogo navede pod rubriko \"druge priloge\"."]
[]
["PRILAGAJANJE VIŠINE VRSTIC"]
[]
["Različne verzije programa na različne načine prikazujejo višino in širino celic, zato se lahko zgodi, da vsebina posameznih polj ni v celoti vidna. V tem primeru lahko višino celice spremenite tako, da na zavihku Osnovno v skupini Poravnava izberete Prelomi besedilo, oziroma ročno spremenite višino vrstice tako, da najprej izberite celotno vrstico v stolpcu z oznakami vrstic (sivi stolpec s številkami vrstic na skrajni levi strani), na zavihku Osnovno v skupini Celice kliknite Oblika, nato pa v razdelku Velikost celice kliknite Samodejno prilagodi višino vrstice oziroma vpišete željeno višino vrstice. Enako velja za prilagajanje širine stolpcev."]
[]
["TISKANJE IN SHRANJEVANJE"]
[]
["Po končanem vnosu podatkov, potrebnih za izpolnjevanje določenega obrazca, lahko obrazec natisnete ali pa shranite kot .pdf dokument. Za tiskanje in pripravo .pdf dokumentov lahko uporabite ukazne gumbe ali pa izberete ustrezen ukaz v meniju. V skladu s pravilnikom mora biti vloga zapisana v formatu PDF/A-2b."]
[]
["TISKANJE IN SHRANJEVANJE ZAHTEVKOV ZA POGOJE IN MNENJA"]
[]
["Če želite lahko uporabite avtomatizirano pripravo zahtevkov za pogoje in mnenja, ki bodo vsebovali različne nazive, naslove in druge specifične podatke za vse navedene mnenjedajalce. To storite z izbiro gumba \"Shrani vse zahtevke\". Zahtevki bodo shranjeni v mapi, v kateri se nahaja izvorna datoteka. Na enak način lahko natisnete vse zahtevke z izbiro gumba \"Natisni vse zahtevke\". Zahtevke za pogoje in mnenja pa lahko pripravite tudi tako, da nazive, naslove in druge specifične podatke izpolnite ročno. Polja, ki jih je v tem primeru potrebno izpolniti ročno, so obarvana svetlo rumeno."]
[]
["PODPISOVANJE VLOG"]
[]
["Vloga se lahko v skladu z ZUP (63. člen) vloži v pisni obliki. Pisna vloga je vloga, ki je napisana ali natisnjena in lastnoročno podpisana (vloga v fizični obliki), ali vloga, ki je v elektronski obliki in je podpisana z varnim elektronskim podpisom s kvalificiranim potrdilom. Pisna vloga se praviloma izroči neposredno organu, pošlje po pošti, po elektronski poti ali preko osebe, ki opravlja posredovanje vlog kot svojo dejavnost (poslovni ponudnik). Vloga v elektronski obliki se vloži tako, da se pošlje po elektronski poti informacijskemu sistemu organa ali enotnemu informacijskemu sistemu za sprejem vlog.\n\nVlogo digitalno podpišete tako, da zahtevek shranite v obliki pdf, nato pa v pregledovalniku pdf datotek izberete ukaz vstavi digitalni podpis, za kar potrebujete kvalificirano potrdilo (npr. SIGEN-CA, ACNLB). Več o podpisovanju pdf datotek s certifikatom najdete na spodnji povezavi."]
["https://helpx.adobe.com/acrobat/using/certificate-based-signatures.html"]
[]
["POPRAVKI V VERZIJI 3.1"]
[]
["- dodan gumb za prenos podatkov iz verzije 3.0\n- odklenjeni vsi obrazci\n- popravljen prenos podatkov v prilogo 9A Mnenja (zahteva namesto naziva mnenja)"]
[]
[]
["NADALJUJ NA VNOS PODATKOV"]

{"sheet":"VNOS PODATKOV","index":1,"n_rows":392,"n_cols":16,"rows_kept":392,"cut":false,"hidden":false,"merged":[[284,2,284,4],[39,2,39,3],[36,9,36,11],[37,9,37,11],[3,7,3,8],[5,7,5,8],[34,2,34,3],[36,3,36,5],[37,3,37,5]]}
[null,null,"VSEBINA DATOTEKE:"]
[null,null,"MANJ ZAHTEVNI IN ZAHTEVNI OBJEKTI"]
[null,null,"OBARVANA POLJA DELUJEJO KOT POVEZAVE NA POSAMEZNE LISTE"]
[null,null,"PRIDOBIVANJE PROJEKTNIH POGOJEV","PRIDOBIVANJE MNENJ","PRIDOBIVANJE GRADBENEGA DOVOLJENJA","SPREMEMBA GRADBENEGA DOVOLJENJA","PRIJAVA PRIPRAVLJALNIH DEL","PRIJAVA ZAČETKA GRADNJE",null,"POSKUSNO OBRATOVANJE","PODALJŠANJE POSKUSNEGA OBRATOVANJA","PRIDOBIVANJE UPORABNEGA DOVOLJENJA","DOPOLNITEV VLOGE","PODALJŠANJE ROKA ZA DOPOLNITEV"]
[null,null,"ZAHTEVKI"]
[null,null,"8A - POGOJI","9A - MNENJA","11A - GRADBENO DOVOLJENJE","12 - SPREMEMBA GRADBENEGA DOVOLJENJA","13A - PRIJAVA PRIPRAVLJALNIH DEL","13B - PRIJAVA ZAČETKA GRADNJE",null,null,"17B - PODALJŠANJE POSKUSNEGA OBRATOVANJA","14 - UPORABNO DOVOLJENJE","16A - DOPOLNITEV VLOGE","16B - ZAHTEVA ZA PODALJŠANJE ROKA ZA DOPOLNITEV"]
[null,null,null,null,"MNENJA","MNENJA",null,null,null,null,null,"MNENJA"]
[null,null,null,null,null,null,null,"13D - PRIJAVA SPREMEMBE INVESTITORSTVA",null,null,null,"15B - IZJAVA NADZORNIKA ENOSTANOVANJSKA STAVBA"]
[null,null,null,null,null,null,null,"9A - MNENJE GLEDE DOPUSTNIH MANJŠIH ODSTOPANJ",null,null,null,"15C - IZJAVA NADZORNIKA ENOSTANOVANJSKA STAVBA BREZ OVOJA"]
[null,null,"PROJEKTNA DOKUMENTACIJA"]
[null,null,"DPP","DGD","DGD","DGD","PZI","PZI","PZO",null,null,"PID"]
[null,null,"ZBIRNI PRIKAZ","ZBIRNI PRIKAZ","ZBIRNI PRIKAZ","ZBIRNI PRIKAZ","ZBIRNI NAČRT","ZBIRNI NAČRT","ZBIRNI NAČRT",null,null,"ZBIRNI NAČRT"]
[null,null,"1A - NASLOVNA STRAN","1A - NASLOVNA STRAN","1A - NASLOVNA STRAN","1A - NASLOVNA STRAN","1A - NASLOVNA STRAN","1A - NASLOVNA STRAN","1A - NASLOVNA STRAN",null,null,"1A - NASLOVNA STRAN"]
[null,null,"1B - UDELEŽENI STROKOVNJAKI","1B - UDELEŽENI STROKOVNJAKI","1B - UDELEŽENI STROKOVNJAKI","1B - UDELEŽENI STROKOVNJAKI","1B - UDELEŽENI STROKOVNJAKI","1B - UDELEŽENI STROKOVNJAKI","1B - UDELEŽENI STROKOVNJAKI",null,null,"1B - UDELEŽENI STROKOVNJAKI"]
[null,null,null,"2A - IZJAVA DGD","2A - IZJAVA DGD","2A - IZJAVA DGD","2B - IZJAVA PZI","2B - IZJAVA PZI","2E - IZJAVA PZI ODSTRANITEV",null,null,"2F - IZJAVA PID"]
[null,null,null,null,null,null,"2D - IZJAVA PZI PREGLED","2D - IZJAVA PZI PREGLED","2D - IZJAVA PZI PREGLED"]
[null,null,null,null,null,null,"21 - IZJAVA NR","21 - IZJAVA NR","21 - IZJAVA NR",null,null,"2G - IZJAVA PID NR"]
[null,null,null,null,null,null,"3 - KAZALO","3 - KAZALO",null,null,null,"3 - KAZALO"]
[null,null,"4A - SPLOŠNI PODATKI","4A - SPLOŠNI PODATKI","4A - SPLOŠNI PODATKI","4A - SPLOŠNI PODATKI","4A - SPLOŠNI PODATKI","4A - SPLOŠNI PODATKI",null,null,null,"4A - SPLOŠNI PODATKI"]
[null,null,"4B - SPLOŠNI PODATKI - OBJEKTI","4B - SPLOŠNI PODATKI - OBJEKTI","4B - SPLOŠNI PODATKI - OBJEKTI","4B - SPLOŠNI PODATKI - OBJEKTI","4B - SPLOŠNI PODATKI - OBJEKTI","4B - SPLOŠNI PODATKI - OBJEKTI",null,null,null,"4B - SPLOŠNI PODATKI - OBJEKTI"]
[null,null,"4C - TABELA ZEMLJIŠČ","4C - TABELA ZEMLJIŠČ","4C - TABELA ZEMLJIŠČ","4C - TABELA ZEMLJIŠČ","4C - TABELA ZEMLJIŠČ","4C - TABELA ZEMLJIŠČ",null,null,null,"4C - TABELA ZEMLJIŠČ"]
[null,null,null,null,"4D - ODMERA KMETIJSKA ZEMLJIŠČA"]
[null,null,null,"TEHNIČNO POROČILO","TEHNIČNO POROČILO","TEHNIČNO POROČILO","ZBIRNO TEHNIČNO POROČILO","ZBIRNO TEHNIČNO POROČILO","TEHNIČNO POROČILO",null,null,"ZBIRNO TEHNIČNO POROČILO (V PRIMERU ODSTOPANJ OD DGD ALI PZI)"]
[null,null,"LOKACIJSKI PRIKAZI","LOKACIJSKI PRIKAZI","LOKACIJSKI PRIKAZI","LOKACIJSKI PRIKAZI","LOKACIJSKI PRIKAZI","LOKACIJSKI PRIKAZI","LOKACIJSKI PRIKAZI",null,null,"LOKACIJSKI PRIKAZI (V PRIMERU ODSTOPANJ OD DGD ALI PZI)"]
[null,null,null,"TEHNIČNI PRIKAZI","TEHNIČNI PRIKAZI","TEHNIČNI PRIKAZI","TEHNIČNI PRIKAZI \n(V PRIMERU ODSTOPANJ OD DGD)","TEHNIČNI PRIKAZI \n(V PRIMERU ODSTOPANJ OD DGD)","TEHNIČNI PRIKAZI"]
[null,null,null,null,null,null,"IZKAZI","IZKAZI"]
[null,null,null,null,null,null,"NAČRTI","NAČRTI",null,null,null,"NAČRTI "]
[null,null,null,null,null,null,"1C - NASLOVNA STRAN NAČRTA","1C - NASLOVNA STRAN NAČRTA",null,null,null,"1C - NASLOVNA STRAN NAČRTA"]
[null,null,null,null,null,null,"2C - IZJAVA PZI NAČRT","2C - IZJAVA PZI NAČRT",null,null,null,"2D - IZJAVA PZI NAČRT"]
[null,null,null,null,null,null,"TEHNIČNO POROČILO","TEHNIČNO POROČILO",null,null,null,"TEHNIČNO POROČILO"]
[null,null,null,null,null,null,"TEHNIČNI PRIKAZI","TEHNIČNI PRIKAZI",null,null,null,"TEHNIČNI PRIKAZI"]
[null,null,null,null,null,null,"PRILOGE","PRILOGE"]
[null,null,null,null,null,null,"ELABORATI, ŠTUDIJE","ELABORATI, ŠTUDIJE"]
[]
[null,null,"IZBIRA FAZE PROJEKTIRANJA"]
[null,null,"označiti fazo projektiranja, na podlagi katere se bodo v obrazce prenesli ustrezni podatki"]
[null,null,null,null,null,null,null,null,null,null,null,null,1]
[null,null,{"$f":"'BAZA PODATKOV'!A3","v":"DPP (projektna dokumentacija za pridobitev projektnih in drugih pogojev)"},{"$f":"'BAZA PODATKOV'!A4","v":"DGD (projektna dokumentacija za pridobivanje mnenj in gradbenega dovoljenja)"},null,null,{"$f":"'BAZA PODATKOV'!A5","v":"PZI v delu, ki se nanaša na pripravljalna dela"},{"$f":"'BAZA PODATKOV'!A6","v":"PZI (projektna dokumentacija za izvedbo gradnje)"},{"$f":"'BAZA PODATKOV'!A7","v":"PZO (projektna dokumentacija za odstranitev)"},{"$f":"'BAZA PODATKOV'!A8","v":"PID (projektna dokumentacija izvedenih del)"}]
[]
["PROSTOR ZA OPOMBE UPORABNIKA",null,"VNOS PODATKOV"]
[]
[null,"A","UDELEŽENCI PRI GRADITVI"]
[null,"A1","INVESTITOR"]
[null,"A1.1","INVESTITOR",null,null,"Pred prenosom morata biti izvorna in ciljna datoteka odprti in shranjeni. Ob javljanju podvojenih imen kliknite Da oziroma Da za vse. Pri vpisu imen datotek ne pozabite na kratico .xlsm"]
[null,null,"INVESTITOR 1",null,null,"Pri prenosu iz prejšnjih verzij je mogoče, da se nastavitev oblike posamezne celice, v kateri so navedene telefonske številke, spremeni tako, da se začetna ničla ne prikazuje. V tem primeru jo je potrebno ponovno nastaviti tako, da za to celico v zavihku Domov na traku v skupini Število izberete Besedilo."]
[null,null,"ime in priimek ali naziv družbe"]
[null,null,"naslov ali poslovni naslov družbe"]
[null,null,"davčna številka"]
[null,null,"INVESTITOR 2"]
[null,null,"ime in priimek ali naziv družbe"]
[null,null,"naslov ali poslovni naslov družbe"]
[null,null,"davčna številka"]
[null,null,"INVESTITOR 3"]
[null,null,"ime in priimek ali naziv družbe"]
[null,null,"naslov ali poslovni naslov družbe"]
[null,null,"davčna številka"]
[null,"A1.2","KONTAKTNA OSEBA"]
[null,null,"ime in priimek"]
[null,null,"telefonska številka"]
[null,null,"elektronski naslov"]
[null,"A1.3","POOBLAŠČENEC"]
[null,null,"podatki se vpišejo, kadar je imenovan pooblaščenec"]
[null,null,"Investitor imenuje pooblaščenca"]
[null,null,"ime in priimek ali naziv družbe"]
[null,null,"naslov ali poslovni naslov družbe"]
[null,null,"kontaktna oseba"]
[null,null,"telefonska številka"]
[null,null,"elektronski naslov"]
[null,"A1.4","DRUGA OSEBA, KI JE LASTNIK STVARNIH PRAVIC NA NEPREMIČNINI"]
[null,null,"ime in priimek ali naziv družbe"]
[null,null,"naslov ali poslovni naslov družbe"]
[null,null,"davčna številka"]
[null,"A1.5","SPREMEMBA INVESTITORJA"]
[null,null,"INVESTITOR 1 (PREJŠNJI)"]
[null,null,"Kadar pride do menjave investitorja, se v zgornja polja vpiše novi investitor, v spodnja pa prejšnji."]
[null,null,"ime in priimek ali naziv družbe"]
[null,null,"naslov ali poslovni naslov družbe"]
[null,null,"INVESTITOR 2 (PREJŠNJI)"]
[null,null,"ime in priimek ali naziv družbe"]
[null,null,"naslov ali poslovni naslov družbe"]
[null,null,"INVESTITOR 3 (PREJŠNJI)"]
[null,null,"ime in priimek ali naziv družbe"]
[null,null,"naslov ali poslovni naslov družbe"]
[null,"A2","PROJEKTANT"]
[null,"A2.1","PROJEKTANT "]
[null,null,"PODATKI O DRUŽBI"]
[null,null,"projektant (naziv družbe)"]
[null,null,"naslov"]
[null,null,"odgovorna oseba projektanta"]
[null,null,"VODJA PROJEKTIRANJA"]
[null,null,"ime in priimek pooblaščenega arhitekta, pooblaščenega inženirja"]
[null,null,"strokovna izobrazba"]
[null,null,"identifikacijska številka"]
[null,"A2.2","IZDELOVALEC OSNOVNEGA NAČRTA ALI PRIKAZA"]
[null,null,"PODATKI O DRUŽBI"]
[null,null,"projektant izdelovalca osnovnega načrta (naziv družbe)"]
[null,null,"naslov"]
[null,null,"IZDELOVALEC"]
[null,null,"ime in priimek pooblaščenega arhitekta, pooblaščenega inženirja"]
[null,null,"strokovna izobrazba"]
[null,null,"identifikacijska številka"]
[null,"A2.3","PROJEKTANT NAČRTA"]
[null,null,"PODATKI O DRUŽBI"]
[null,null,"projektant načrta (naziv družbe)"]
[null,null,"naslov"]
[null,null,"odgovorna oseba projektanta načrta"]
[null,null,"IZDELOVALEC NAČRTA"]
[null,null,"ime in priimek pooblaščenega arhitekta, pooblaščenega inženirja"]
[null,null,"strokovna izobrazba"]
[null,null,"identifikacijska številka"]
[null,"A2.4","IZVAJALEC PREGLEDA PRI NEUPORABI PRIPOROČENE METODE"]
[null,null,"PODATKI O DRUŽBI"]
[null,null,"projektant pregleda (naziv družbe)"]
[null,null,"naslov"]
[null,null,"odgovorna oseba projektanta pregleda"]
[null,null,"IZVAJALEC PREGLEDA"]
[null,null,"izvajalec pregleda je pooblaščeni strokovnjak"]
[null,null,"ime in priimek pooblaščenega arhitekta, pooblaščenega inženirja"]
[null,null,"strokovna izobrazba"]
[null,null,"identifikacijska številka"]
[null,null,"drug strokovnjak ustreznega \nstrokovnega znanja"]
[null,null,"strokovno področje"]
[null,"A2.5","POOBLAŠČENI STROKOVNJAK S PODROČJA GRADBENIŠTVA V IZJAVI ZA NUJNO REKONSTRUKCIJO"]
[null,null,"PODATKI O DRUŽBI"]
[null,null,"naziv družbe"]
[null,null,"naslov"]
[null,null,"POOBLAŠČENI STROKOVNJAK S PODROČJA GRADBENIŠTVA V IZJAVI ZA NUJNO REKONSTRUKCIJO"]
[null,null,"ime in priimek"]
[null,null,"strokovna izobrazba"]
[null,null,"identifikacijska številka"]
[null,"A3","NADZORNIK"]
[null,"A3.1","NADZORNIK"]
[null,null,"imenovanje nadzornika ni obvezno v primeru gradnje nezahtevnega objekta, če jo izvaja izvajalec, ki izpolnjuje pogoje za opravljanje dejavnosti gradbeništva (16. člen GZ-1)"]
[null,null,"imenovan je nadzornik gradnje"]
[null,null,"PODATKI O DRUŽBI"]
[null,null,"naziv družbe"]
[null,null,"poslovni naslov družbe"]
[null,null,"davčna številka za pravne subjekte"]
[null,null,"odgovorna oseba nadzornika"]
[null,null,"VODJA NADZORA"]
[null,null,"vodja nadzora"]
[null,null,"strokovna izobrazba"]
[null,null,"identifikacijska številka"]
[null,"A4","IZVAJALEC"]
[null,"A4.1","IZVAJALEC"]
[null,null,"Navedi izvajalce, ki izpolnjujejo predpisane pogoje ali investitorja, v kolikor dela izvaja sam."]
[null,null,"PODATKI O DRUŽBI"]
[null,null,"naziv družbe"]
[null,null,"poslovni naslov družbe"]
[null,null,"davčna številka za pravne subjekte"]
[null,null,"odgovorna oseba izvajalca"]
[null,null,"VODJA GRADNJE"]
[null,null,"vodja gradnje"]
[null,null,"strokovna izobrazba"]
[null,null,"identifikacijska številka"]
[null,"B","PODATKI O PROJEKTNI DOKUMENTACIJI"]
[null,null,"podatki se vpišejo, če dokumentacijo izdela projektant"]
[null,"B1","PROJEKTNA DOKUMENTACIJA"]
[null,null,"vrsta projektne dokumentacije",{"$f":"'BAZA PODATKOV'!A3","v":"DPP (projektna dokumentacija za pridobitev projektnih in drugih pogojev)"},{"$f":"'BAZA PODATKOV'!A4","v":"DGD (projektna dokumentacija za pridobivanje mnenj in gradbenega dovoljenja)"},{"$f":"'BAZA PODATKOV'!A5","v":"PZI v delu, ki se nanaša na pripravljalna dela"},{"$f":"'BAZA PODATKOV'!A6","v":"PZI (projektna dokumentacija za izvedbo gradnje)"},{"$f":"'BAZA PODATKOV'!A7","v":"PZO (projektna dokumentacija za odstranitev)"},{"$f":"'BAZA PODATKOV'!A8","v":"PID (projektna dokumentacija izvedenih del)"}]
[null,null,"številka projekta"]
[null,null,"datum izdelave"]
[null,null,"datum spremembe"]
[null,"B2","POSAMEZNI NAČRTI"]
[null,null,"strokovno področje načrta"]
[null,null,"naziv načrta"]
[null,null,"številka načrta"]
[null,null,"datum izdelave"]
[null,null,"datum spremembe"]
[null,null,"navedba neuporabljene tehnične smernice, evrokodov oziroma zadnjega stanja gradbene tehnike"]
[null,null,"sprememba dokumentacije"]
[null,null,"vloga se nanaša samo na nezatevni objekt"]
[null,"C","PODATKI O GRADNJI"]
[null,"C1","OSNOVNI PODATKI"]
[null,"C1.1","OPIS GRADNJE"]
[null,null,"naziv gradnje"]
[null,null,"naziv gradnje se določi po namenu glavnega objekta"]
[null,null,"kratek opis gradnje"]
[null,null,"navedba objektov in njihovih značilnosti"]
[null,"C1.2","DOPUSTNA MANJŠA ODSTOPANJA"]
[null,null,"izpolniti v primeru zahteve za izdajo novega mnenja"]
[null,null,"opis dopustnih manjših odstopanj"]
[null,"C1.3","VEČJA ODSTOPANJA"]
[null,null,"izpolniti, če gre za spremembo gradbenega dovoljenja"]
[null,null,"kratek opis spremembe zaradi večjih odstopanj od gradbenega dovoljenja"]
[null,"C1.4","PRIPRAVLJALNA DELA"]
[null,null,"izpolniti, če gre za dokumentacijo, ki se nanaša samo na pripravljalna dela"]
[null,null,"kratek opis pripravljalnih del"]
[null,"C1.5","NAVEDBA OBJEKTOV"]
[null,null,"GLAVNI OBJEKT"]
[null,null,"glavni objekt, če je določen"]
[null,null,"KLASIFIKACIJA PO CC-SI"]
[null,null,"vrsta glavnega objekta"]
[null,null,"CC SI za stavbo"]
[null,null,"CC-SI za gradbeno inženirski objekt"]
[null,null,"PRIPADAJOČI OBJEKTI"]
[null,null,"pripadajoči objekti"]
[null,null,"naštej"]
[null,"C2","VRSTE GRADNJE"]
[null,"C2.1","VRSTE GRADNJE"]
[null,null,"označiti vse ustrezne vrste gradnje"]
[null,null,"NOVOGRADNJA - NOVOZGRAJEN OBJEKT",null,{"$f":"IF($D201=FALSE,\"\",MAX(E$200:E200)+1)","v":""}]
[null,null,"NOVOGRADNJA - PRIZIDAVA",null,{"$f":"IF($D202=FALSE,\"\",MAX(E$200:E201)+1)","v":""}]
[null,null,"REKONSTRUKCIJA",null,{"$f":"IF($D203=FALSE,\"\",MAX(E$200:E202)+1)","v":""}]
[null,null,"SPREMEMBA NAMEMBNOSTI",null,{"$f":"IF($D204=FALSE,\"\",MAX(E$200:E203)+1)","v":""}]
[null,null,"ODSTRANITEV CELOTNEGA OBJEKTA",null,{"$f":"IF($D205=FALSE,\"\",MAX(E$200:E204)+1)","v":""}]
[null,null,"LEGALIZACIJA",null,{"$f":"IF($D206=FALSE,\"\",MAX(E$200:E205)+1)","v":""}]
[null,null,"MANJŠA REKONSTRUKCIJA",null,{"$f":"IF($D207=FALSE,\"\",MAX(E$200:E206)+1)","v":""}]
[null,"C3","POSEBNI PRIMERI"]
[null,"C3.1","OBJEKT DRŽAVNEGA POMENA"]
[null,null,"objekt državnega pomena"]
[null,"C3.2","POROČILO O VPLIVIH NA OKOLJE (PVO)"]
[null,null,"podatki se vpišejo, kadar gre za objekt z vplivi na okolje"]
[null,null,"objekt z vplivi na okolje"]
[null,null,"številka poročila"]
[null,null,"datum izdelave poročila"]
[null,null,"izdelovalec poročila"]
[null,"C3.3","PREDHODNA PRESOJA VPLIVOV NA OKOLJE"]
[null,null,"podatki se vpišejo, če gre za objekt z vplivi na okolje in če je bil izveden predhodni postopek v skladu z zakonom, ki ureja varstvo okolja"]
[null,null,"predhodna presoja vplivov na okolje"]
[null,null,"številka sklepa"]
[null,null,"datum sklepa"]
[null,"C3.4","PODATKI O VODNI PRAVICI"]
[null,null,"navedejo se podatki o vodni pravici, če je bila pridobljena"]
[null,null,"pridobljena je vodna pravica ",null,"okvirček ni uporabljen"]
[null,null,"številka "]
[null,null,"datum izdaje"]
[null,"C3.5","PODATKI O DOVOLJENJU ZA RAZISKAVO PODZEMNIH VODA"]
[null,null,"navedejo se podatki o dovoljenju za raziskavo podzemnih voda, če je bilo pridobljeno"]
[null,null,"številka "]
[null,null,"datum izdaje"]
[null,"C3.6","PODATKI O VODNIH ZEMLJIŠČIH ZARADI USTANOVITEV STVARNE SLUŽNOSTI"]
[null,null,"podatki se navedejo, če se poseg načrtuje na vodnih ali priobalnih zemljiščih v lasti države"]
[null,null,"poseg je načrtovan na vodnih ali priobalnih zemljiščih",null,"okvirček ni uporabljen"]
[null,null,"katastrska občina"]
[null,null,"številka katastrske občine"]
[null,null,"parc. št."]
[null,null,"služnostni upravičenec"]
[null,null,"matična številka"]
[null,null,"davčna številka"]
[null,null,"zakoniti zastopnik"]
[null,"C3.7","PODATKI O OBSTOJEČEM OBJEKTU"]
[null,null,"podatek se vpiše, če se gradnja nanaša na obstoječ objekt (rekonstrukcija, odstranitev, sprememba namembnosti, novogradnja - prizidava)"]
[null,null,"objekt, zgrajen pred 31. 12. 1967"]
[null,null,"gradnja izvedena pred 31. 12. 2022"]
[null,null,"navedba upravnega organa, ki je izdal odločbo"]
[null,null,"številka UD ali odločbe o legalizaciji ali odločbe o objektu daljšega obstoja"]
[null,null,"datum odločbe"]
[null,"C3.8","PODATKI O OBJEKTU NA KATEREM SE IZVAJA NUJNA REKONSTRUKCIJA"]
[null,null,"naziv objekta"]
[null,null,"kratek opis del, ki se bodo izvajala kot nujna rekonstrukcija"]
[null,null,"naslov objekta"]
[null,null,"katastrska občina"]
[null,null,"številka katastrske občine"]
[null,null,"parc. št."]
[null,null,"opis naravne ali druge nesreče"]
[null,null,"datum naravne ali druge nesreče"]
[null,"D","LOKACIJSKI PODATKI"]
[null,"D1","PROSTORSKI AKT"]
[null,"D1.1","PROSTORSKI AKT"]
[null,null,"prostorski akt"]
[null,null,"EUP"]
[null,null,"namenska raba"]
[null,"D2","URBANISTIČNI KAZALCI"]
[null,"D2.1","POVRŠINE GRADBENE PARCELE"]
[null,null,"Samo za stavbe v DGD."]
[null,null,"a) površine pod stavbami"]
[null,null,"b) površine pod pripadajočimi \npomožnimi objekti, ki so stavbe"]
[null,null,"c) utrjene zunanje površine \n(promet, komunala, tehnične površine)"]
[null,null,"d) utrjene zunanje površine \n(bivanje na prostem)"]
[null,null,"e) površine raščenega dela"]
[null,null,"velikost gradbene parcele \n(a + b + c + d + e)",{"$f":"SUM(D266:D270)","v":0}]
[null,null,"zazidana površina"]
[null,null,"bruto tlorisna površina vseh stavb"]
[null,"D2.2","URBANISTIČNI KAZALCI"]
[null,null,"Samo za stavbe v DGD. Faktorji se izračunajo samodejno."]
[null,null,"faktor prekritih površin (FPP)",{"$f":"IFERROR((D266+D267+D268+D269)/D271,\"\")","v":""},"= (a+b+c+d) / gp"]
[null,null,"faktor raščenih površin (FRP)",{"$f":"IFERROR(D270/D271,\"\")","v":""},"= e / gp"]
[null,null,"faktor utrjenih zunanjih površin (FU)",{"$f":"IFERROR((D268+D269)/D271,\"\")","v":""},"= (c+d) / gp"]
[null,null,"faktor utrjenih bivalnih površin (FU-B)",{"$f":"IFERROR(D269/D271,\"\")","v":""},"= d / gp"]
[null,null,"faktor utrjenih prometnih, komunalnih \nin tehničnih površin (FU-P)",{"$f":"IFERROR(D268/D271,\"\")","v":""},"= c / gp"]
[null,null,"faktor zazidanosti (FZ)",{"$f":"IFERROR(D272/D271,\"\")","v":""},"= zp / gp"]
[null,null,"faktor izrabe (FI)",{"$f":"IFERROR(D273/D271,\"\")","v":""},"= btp / gp"]
[null,null,"drugi podatki o gradbeni parceli \nv skladu z zakonom o urejanju prostora",""]
[null,"E","POGOJI IN MNENJA"]
[null,null,"Izpolniti v IZP in DGD, če je za poseg relevantno. V stolpcu B odkljukajte pridobljene pogoje oziroma mnenja, nato pa v stolpec E vpišite oziroma izberite mnenjedajalca. V nekaterih primerih se bo stolpec F z naslovom mnenjedajalca izpolnil avtomatično, sicer pa ga navedite sami. V stolpec G in H navedite podatke o pridobljenih pogojih, v stolpec I in J pa o pridobljenih mnenjih."]
[null,"E1.1","SKLADNOST S PROSTORSKIMI AKTI"]
[null,null,null,null,"MNENJEDAJALEC",null,"PROJEKTNI POGOJI",null,"MNENJE"]
[null,null,"področje","naziv mnenja","navedba mnenjedajalca","naslov mnenjedajalca","številka projektnih pogojev","datum projektnih pogojev","datum podaje zahtevka za mnenje","številka mnenja","datum mnenja"]
[null,false,"OBČINA","SKLADNOST S PROSTORSKIMI AKTI"]
[null,"E1.2","VAROVANA, VARSTVENA IN OGROŽENA OBMOČJA, VODNA IN PRIOBALNA ZEMLJIŠČA"]
[null,null,null,null,"MNENJEDAJALEC",null,"PROJEKTNI POGOJI",null,"MNENJE"]
[null,null,"področje","naziv mnenja","navedba mnenjedajalca","naslov mnenjedajalca","številka projektnih pogojev","datum projektnih pogojev","datum podaje zahtevka za mnenje","številka mnenja","datum mnenja"]
[null,false,"VARSTVO KULTURNE DEDIŠČINE - POSEG","KULTUROVARSTVENO MNENJE ZA POSEG",null,{"$f":"IFERROR(INDEX('BAZA PODATKOV'!$B$213:$B$220,MATCH(E293,'BAZA PODATKOV'!$A$213:$A$220,0),1),\"\")","v":""},null,null,null,null,null,{"$f":"IF($B293=FALSE,\"\",MAX(L$292:L292)+1)","v":""},null,null,null,{"$f":"IFERROR(INDEX($C$293:$K$302,MATCH(ROW()-ROW($P$292),$O$293:$O$302,0),1),\"\")","v":""}]
[null,false,"VARSTVO KULTURNE DEDIŠČINE - RAZISKAVA IN ODSTRANITEV","KULTURNOVARSTVENO MNENJE ZA RAZISKAVO IN ODSTRANITEV",null,{"$f":"IFERROR(INDEX('BAZA PODATKOV'!$B$213:$B$220,MATCH(E294,'BAZA PODATKOV'!$A$213:$A$220,0),1),\"\")","v":""},null,null,null,null,null,{"$f":"IF($B294=FALSE,\"\",MAX(L$292:L293)+1)","v":""},null,null,null,""]
[null,false,"VARSTVO NARAVE","NARAVOVARSTVENO MNENJE",null,{"$f":"IFERROR(INDEX('BAZA PODATKOV'!$B$213:$B$303,MATCH(E295,'BAZA PODATKOV'!$A$213:$A$303,0),1),\"\")","v":""},null,null,null,null,null,{"$f":"IF($B295=FALSE,\"\",MAX(L$292:L294)+1)","v":""},null,null,null,""]
[null,false,"VARSTVO PODZEMNIH JAM","MNENJE ZA POSEG V JAME",null,{"$f":"IFERROR(INDEX('BAZA PODATKOV'!$B$213:$B$303,MATCH(E296,'BAZA PODATKOV'!$A$213:$A$303,0),1),\"\")","v":""},null,null,null,null,null,{"$f":"IF($B296=FALSE,\"\",MAX(L$292:L295)+1)","v":""},null,null,null,""]
[null,false,"VARSTVO VODA","VODNO MNENJE",null,{"$f":"IFERROR(INDEX('BAZA PODATKOV'!$B$213:$B$303,MATCH(E297,'BAZA PODATKOV'!$A$213:$A$303,0),1),\"\")","v":""},null,null,null,null,null,{"$f":"IF($B297=FALSE,\"\",MAX(L$292:L296)+1)","v":""},null,null,null,""]
[null,false,"VARSTVO GOZDOV","MNENJE ZA GRADNJO V GOZDNEM PROSTORU",null,{"$f":"IFERROR(INDEX('BAZA PODATKOV'!$B$213:$B$303,MATCH(E298,'BAZA PODATKOV'!$A$213:$A$303,0),1),\"\")","v":""},null,null,null,null,null,{"$f":"IF($B298=FALSE,\"\",MAX(L$292:L297)+1)","v":""},null,null,null,""]
[null,false,"RIBIŠKI OKOLIŠ","MNENJE ZA GRADNJO IN DRUGE POSEGE NA OBMOČJU RIBIŠKEGA OKOLIŠA",null,"Spodnje Gameljne 61a\n1000 Ljubljana",null,null,null,null,null,{"$f":"IF($B299=FALSE,\"\",MAX(L$292:L298)+1)","v":""},null,null,null,""]
[null,false,"OKOLJE DIVJADI","MNENJE ZA POSEGE V OKOLJE DIVJADI",null,{"$f":"IFERROR(INDEX('BAZA PODATKOV'!$B$213:$B$303,MATCH(E300,'BAZA PODATKOV'!$A$213:$A$303,0),1),\"\")","v":""},null,null,null,null,null,{"$f":"IF($B300=FALSE,\"\",MAX(L$292:L299)+1)","v":""}]
[null,true,"OBMOČJE MEJNEGA PREHODA","MNENJE ZA GRADNJO NA OBMOČJU MEJNEGA PREHODA",null,{"$f":"IFERROR(INDEX('BAZA PODATKOV'!$B$278:$B$286,MATCH(E301,'BAZA PODATKOV'!$A$278:$A$286,0),1),\"\")","v":""},null,null,null,null,null,{"$f":"IF($B301=FALSE,\"\",MAX(L$292:L300)+1)","v":1}]
[null,false,"CARINA","MNENJE ZA GRADNJO OBJEKTOV V PROSTI CONI CARINSKEGA OBMOČJA UNIJE",null,"Šmartinska cesta 55, 1000 Ljubljana",null,null,null,null,null,{"$f":"IF($B302=FALSE,\"\",MAX(L$292:L301)+1)","v":""}]
[null,false,"LETALIŠČA","MNENJE ZA GRADNJO V OBMOČJU IZKLJUČNE, OMEJENE IN NADZOROVANE RABE",null,"Kotnikova 19a, 1000 Ljubljana",null,null,null,null,null,{"$f":"IF($B303=FALSE,\"\",MAX(L$292:L302)+1)","v":""}]
[null,false,"OVIRE ZA ZRAČNI PROMET","MNENJE ZA POSTAVLJANJE OVIR ZA ZRAČNI PROMET",null,null,null,null,null,null,null,{"$f":"IF($B304=FALSE,\"\",MAX(L$292:L303)+1)","v":""}]
[null,false,"VARNOST PLOVBE","MNENJE ZA GRADNJO ALI OBNOVO OBJEKTOV PRISTANIŠKE INFRASTRUKTURE ALI OBJEKTOV, KI LAHKO VPLIVAJO NA VARNOST PLOVBE NA OBALI ALI V MORJU",null,"Ukmarjev trg 2, 6000 Koper",null,null,null,null,null,{"$f":"IF($B305=FALSE,\"\",MAX(L$292:L304)+1)","v":""}]
[null,true,"OBJEKT V MEJAH RUDNIŠKEGA PROSTORA","MNENJE ZA GRADNJO V MEJAH RUDNIŠKEGA PROSTORA",null,"Langusova ulica 4, 1535 Ljubljana",null,null,null,null,null,{"$f":"IF($B306=FALSE,\"\",MAX(L$292:L305)+1)","v":2}]
[null,false,"OBJEKT V VAROVALNEM PASU ŽIČNIŠKE NAPRAVE","MNENJE ZA GRADNJO Z VIDIKA VAROVANJA ŽIČNIC",null,null,null,null,null,null,null,{"$f":"IF($B307=FALSE,\"\",MAX(L$292:L306)+1)","v":""}]
[null,false,"DRUGO (NAVEDI)","MNENJE",null,null,null,null,null,null,null,{"$f":"IF($B308=FALSE,\"\",MAX(L$292:L307)+1)","v":""}]
[null,false,"DRUGO (NAVEDI)","MNENJE",null,null,null,null,null,null,null,{"$f":"IF($B309=FALSE,\"\",MAX(L$292:L308)+1)","v":""}]
[null,false,"DRUGO (NAVEDI)","MNENJE",null,null,null,null,null,null,null,{"$f":"IF($B310=FALSE,\"\",MAX(L$292:L309)+1)","v":""}]
[null,"E1.3","VAROVALNI PASOVI INFRASTRUKTURE"]
[null,null,null,null,"MNENJEDAJALEC",null,"PROJEKTNI POGOJI",null,"MNENJE"]
[null,null,"področje","naziv mnenja","navedba mnenjedajalca","naslov mnenjedajalca","številka projektnih pogojev","datum projektnih pogojev","datum podaje zahtevka za mnenje","številka mnenja","datum mnenja"]
[null,false,"VODOVOD","MNENJE",null,null,null,null,null,null,null,{"$f":"IF($B314=FALSE,\"\",MAX(L$313:L313)+1)","v":""}]
[null,true,"ELEKTRIKA","MNENJE Z VIDIKA VAROVANJA ENERGETSKIH SISTEMOV",null,{"$f":"IFERROR(INDEX('BAZA PODATKOV'!$B$213:$B$303,MATCH(E315,'BAZA PODATKOV'!$A$213:$A$303,0),1),\"\")","v":""},null,null,null,null,null,{"$f":"IF($B315=FALSE,\"\",MAX(L$313:L314)+1)","v":1}]
[null,false,"PLIN","MNENJE Z VIDIKA VAROVANJA ENERGETSKIH SISTEMOV",null,null,null,null,null,null,null,{"$f":"IF($B316=FALSE,\"\",MAX(L$313:L315)+1)","v":""}]
[null,true,"TOPLOVOD","MNENJE",null,null,null,null,null,null,null,{"$f":"IF($B317=FALSE,\"\",MAX(L$313:L316)+1)","v":2}]
[null,false,"FEKALNE VODE","MNENJE",null,null,null,null,null,null,null,{"$f":"IF($B318=FALSE,\"\",MAX(L$313:L317)+1)","v":""}]
[null,false,"METEORNE VODE","MNENJE",null,null,null,null,null,null,null,{"$f":"IF($B319=FALSE,\"\",MAX(L$313:L318)+1)","v":""}]
[null,false,"KOMUNIKACIJSKI VODI","MNENJE",null,null,null,null,null,null,null,{"$f":"IF($B320=FALSE,\"\",MAX(L$313:L319)+1)","v":""}]
[null,false,"JAVNE CESTE","MNENJE ZA GRADNJO Z VIDIKA VAROVANJA JAVNIH CEST",null,null,null,null,null,null,null,{"$f":"IF($B321=FALSE,\"\",MAX(L$313:L320)+1)","v":""}]
[null,false,"ŽELEZNICE - GRADNJA","MNENJE ZA GRADNJO V PRAGOVNEM PASU ŽELEZNICE",null,null,null,null,null,null,null,{"$f":"IF($B322=FALSE,\"\",MAX(L$313:L321)+1)","v":""}]
[null,false,"ŽELEZNICE","MNENJE ZA ZAGOTAVLJANJE INTEROPERABILNOSTI IN VARNOSTI",null,null,null,null,null,null,null,{"$f":"IF($B323=FALSE,\"\",MAX(L$313:L322)+1)","v":""}]
[null,false,"DRUGO (NAVEDI)","MNENJE",null,null,null,null,null,null,null,{"$f":"IF($B324=FALSE,\"\",MAX(L$313:L323)+1)","v":""}]
[null,false,"DRUGO (NAVEDI)","MNENJE",null,null,null,null,null,null,null,{"$f":"IF($B325=FALSE,\"\",MAX(L$313:L324)+1)","v":""}]
[null,false,"DRUGO (NAVEDI)","MNENJE",null,null,null,null,null,null,null,{"$f":"IF($B326=FALSE,\"\",MAX(L$313:L325)+1)","v":""}]
[null,"E1.4","PRIKLJUČEVANJE NA INFRASTRUKTURO"]
[null,null,null,null,"MNENJEDAJALEC",null,"PROJEKTNI POGOJI",null,"MNENJE"]
[null,null,"področje","naziv mnenja","navedba mnenjedajalca","naslov mnenjedajalca","številka projektnih pogojev","datum projektnih pogojev","datum podaje zahtevka za mnenje","številka mnenja","datum mnenja"]
[null,false,"VODOVOD","MNENJE ALI SOGLASJE ZA PRIKLJUČITEV",null,null,null,null,null,null,null,{"$f":"IF($B330=FALSE,\"\",MAX(L$329:L329)+1)","v":""}]
[null,false,"ELEKTRIKA","MNENJE ALI SOGLASJE ZA PRIKLJUČITEV",null,{"$f":"IFERROR(INDEX('BAZA PODATKOV'!$B$213:$B$303,MATCH(E331,'BAZA PODATKOV'!$A$213:$A$303,0),1),\"\")","v":""},null,null,null,null,null,{"$f":"IF($B331=FALSE,\"\",MAX(L$329:L330)+1)","v":""}]
[null,false,"PLIN","MNENJE ALI SOGLASJE ZA PRIKLJUČITEV",null,null,null,null,null,null,null,{"$f":"IF($B332=FALSE,\"\",MAX(L$329:L331)+1)","v":""}]
[null,false,"TOPLOVOD","MNENJE ALI SOGLASJE ZA PRIKLJUČITEV",null,null,null,null,null,null,null,{"$f":"IF($B333=FALSE,\"\",MAX(L$329:L332)+1)","v":""}]
[null,false,"FEKALNE VODE","MNENJE ALI SOGLASJE ZA PRIKLJUČITEV",null,null,null,null,null,null,null,{"$f":"IF($B334=FALSE,\"\",MAX(L$329:L333)+1)","v":""}]
[null,false,"METEORNE VODE","MNENJE ALI SOGLASJE ZA PRIKLJUČITEV",null,null,null,null,null,null,null,{"$f":"IF($B335=FALSE,\"\",MAX(L$329:L334)+1)","v":""}]
[null,false,"DOSTOP","MNENJE ALI SOGLASJE ZA PRIKLJUČITEV",null,null,null,null,null,null,null,{"$f":"IF($B336=FALSE,\"\",MAX(L$329:L335)+1)","v":""}]
[null,false,"KOMUNIKACIJE","MNENJE ALI SOGLASJE ZA PRIKLJUČITEV",null,null,null,null,null,null,null,{"$f":"IF($B337=FALSE,\"\",MAX(L$329:L336)+1)","v":""}]
[null,false,"DRUGO (NAVEDI)","MNENJE",null,null,null,null,null,null,null,{"$f":"IF($B338=FALSE,\"\",MAX(L$329:L337)+1)","v":""}]
[null,false,"DRUGO (NAVEDI)","MNENJE",null,null,null,null,null,null,null,{"$f":"IF($B339=FALSE,\"\",MAX(L$329:L338)+1)","v":""}]
[null,false,"DRUGO (NAVEDI)","MNENJE",null,null,null,null,null,null,null,{"$f":"IF($B340=FALSE,\"\",MAX(L$329:L339)+1)","v":""}]
[null,"E1.5","DRUGA MNENJA"]
[null,null,null,null,"MNENJEDAJALEC",null,"PROJEKTNI POGOJI",null,"MNENJE"]
[null,null,"področje","naziv mnenja","navedba mnenjedajalca","naslov mnenjedajalca","številka projektnih pogojev","datum projektnih pogojev","datum podaje zahtevka za mnenje","številka mnenja","datum mnenja"]
[null,false,"JEDRSKA VARNOST ","MNENJE H GRADNJAM, KI VPLIVAJO NA JEDRSKO VARNOST","Uprava RS za jedrsko varnost","Litostrojska cesta 54, 1000 Ljubljana",null,null,null,null,null,{"$f":"IF($B344=FALSE,\"\",MAX(L$343:L343)+1)","v":""}]
[null,false,"SEVALNA VARNOST ","MNENJE H GRADNJAM, KI VPLIVAJO NA SEVALNO VARNOST","Uprava RS za jedrsko varnost","Litostrojska cesta 54, 1000 Ljubljana",null,null,null,null,null,{"$f":"IF($B345=FALSE,\"\",MAX(L$343:L344)+1)","v":""}]
[null,false,"KMETIJSKO GOSPODARSTVO","MNENJE ZA GRADNJO ALI REKONSTRUKCIJO VELIKEGA OBRATA KMETIJSKEGA GOSPODARSTVA","Ministrstvo za kmetijstvo, gozdarstvo in prehrano","Dunajska 22, 1000 Ljubljana",null,null,null,null,null,{"$f":"IF($B346=FALSE,\"\",MAX(L$343:L345)+1)","v":""}]
[null,false,"VETERINA","MNENJE ZA GRADNJO OBJEKTA POD VETERINARSKIM NADZOROM","Uprava RS za varno hrano, veterinarstvo in varstvo rastlin","Dunajska 22, 1000 Ljubljana",null,null,null,null,null,{"$f":"IF($B347=FALSE,\"\",MAX(L$343:L346)+1)","v":""}]
[null,false,"OBRAMBA","MNENJE ZA GRADNJO NEKATERIH OBJEKTOV Z VIDIKA UPOŠTEVANJA OBRAMBNIH POTREB","Ministrstvo za obrambo","Vojkova cesta 55, 1000 Ljubljana",null,null,null,null,null,{"$f":"IF($B348=FALSE,\"\",MAX(L$343:L347)+1)","v":""}]
[null,false,"DRUGO (NAVEDI)","MNENJE",null,null,null,null,null,null,null,{"$f":"IF($B349=FALSE,\"\",MAX(L$343:L348)+1)","v":""}]
[null,false,"DRUGO (NAVEDI)","MNENJE",null,null,null,null,null,null,null,{"$f":"IF($B350=FALSE,\"\",MAX(L$343:L349)+1)","v":""}]
[null,true,"DRUGO (NAVEDI)","MNENJE","Zavod","Naslov",null,null,null,null,null,{"$f":"IF($B351=FALSE,\"\",MAX(L$343:L350)+1)","v":1}]
[null,"F","UPRAVNI POSTOPKI"]
[null,"F0.1","NAVEDBA ORGANA, PRI KATEREM SE VLAGA ZAHTEVA"]
[null,null,"Vpiše se naziv organa, pristojnega za izdajo GD in UD. Pri avtomatičnem generiranju PDF datotek z zahtevki za pogoje in mnenja se podatki vpišejo avtomatično."]
[null,null,"naziv"]
[null,null,"naslov"]
[null,"F1","GRADBENO DOVOLJENJE"]
[null,"F1.1","PODATKI ZA IZRAČUN UPRAVNE TAKSE"]
[null,null,"Samo v DGD in PID. V DGD se vpiše prva vrednost, v fazi PID pa druga vrednost."]
[null,null,"ocenjena vrednost objekta v EUR brez DDV"]
[null,null,"obračunska vrednost objekta v EUR brez DDV"]
[null,"F1.2","PODATKI O IZDANEM GRADBENEM DOVOLJENJU"]
[null,null,"Navedejo se vsa pridobljena gradbena dovoljenja. Izpolni se za spremembo GD, prijavo pričetka del in pripravljalnih del ter za pridobivanje uporabnega dovoljenja."]
[null,null,"navedba organa"]
[null,null,"številka dovoljenja"]
[null,null,"datum dovoljenja"]
[null,null,"dokončnost"]
[null,null,"pravnomočnost"]
[null,"F1.3","PODATKI O SPREMEMBI GRADBENEGA DOVOLJENJA"]
[null,null,"Navedejo se vsa pridobljena gradbena dovoljenja. Izpolni se za spremembo GD, prijavo pričetka del in pripravljalnih del ter za pridobivanje uporabnega dovoljenja."]
[null,null,"navedba organa"]
[null,null,"številka dovoljenja"]
[null,null,"datum dovoljenja"]
[null,null,"dokončnost"]
[null,null,"pravnomočnost"]
[null,"F2","POSKUSNO OBRATOVANJE"]
[null,"F2.1","PRIJAVA POSKUSNEGA OBRATOVANJA"]
[null,null,"naziv"]
[null,null,"naslov"]
[null,"F2.2","ODLOČBA O POSKUSNEM OBRATOVANJU"]
[null,null,"številka odločbe"]
[null,null,"datum odločbe"]
[null,"F3","UPORABNO DOVOLJENJE"]
[null,"F3.1","PRIJAVA ZAČETKA GRADNJE"]
[null,null,"Navedejo se vse prijave začetka gradnje."]
[null,null,"datum prijave"]
[null,"F3.2","DOKAZILO O ZANESLJIVOSTI OBJEKTA"]
[null,null,"Navedejo se vse vsa dokazila o zanesljivosti objekta."]
[null,null,"izdelano je dokazilo o zanesljivosti"]
[null,null,"številka dokazila o zanesljivosti objekta"]
[null,null,"datum izdelave"]
[null,null,"izvajalec (naziv družbe)"]

{"sheet":"1A NASLOVNA","index":2,"n_rows":42,"n_cols":3,"rows_kept":42,"cut":false,"hidden":false,"merged":[[38,0,38,2],[4,0,4,2],[7,0,7,2],[28,0,28,2],[33,0,33,2],[10,0,10,2],[36,0,36,1]]}
["PRILOGA 1A"]
["NASLOVNA STRAN \nPROJEKTNE DOKUMENTACIJE"]
[]
[{"$f":"'VNOS PODATKOV'!C44","v":"INVESTITOR"}]
[{"$f":"'VNOS PODATKOV'!C45","v":"INVESTITOR 1"}]
[{"$f":"'VNOS PODATKOV'!C46","v":"ime in priimek ali naziv družbe"},null,{"$f":"'VNOS PODATKOV'!D46","v":0}]
[{"$f":"'VNOS PODATKOV'!C47","v":"naslov ali poslovni naslov družbe"},null,{"$f":"'VNOS PODATKOV'!D47","v":0}]
[{"$f":"'VNOS PODATKOV'!C49","v":"INVESTITOR 2"}]
[{"$f":"'VNOS PODATKOV'!C50","v":"ime in priimek ali naziv družbe"},null,{"$f":"'VNOS PODATKOV'!D50","v":0}]
[{"$f":"'VNOS PODATKOV'!C51","v":"naslov ali poslovni naslov družbe"},null,{"$f":"'VNOS PODATKOV'!D51","v":0}]
[{"$f":"'VNOS PODATKOV'!C53","v":"INVESTITOR 3"}]
[{"$f":"'VNOS PODATKOV'!C54","v":"ime in priimek ali naziv družbe"},null,{"$f":"'VNOS PODATKOV'!D54","v":0}]
[{"$f":"'VNOS PODATKOV'!C55","v":"naslov ali poslovni naslov družbe"},null,{"$f":"'VNOS PODATKOV'!D55","v":0}]
[{"$f":"'VNOS PODATKOV'!C172","v":"PODATKI O GRADNJI"}]
[{"$f":"'VNOS PODATKOV'!C175","v":"naziv gradnje"},null,{"$f":"'VNOS PODATKOV'!D175","v":0}]
[{"$f":"'VNOS PODATKOV'!C176","v":"naziv gradnje se določi po namenu glavnega objekta"}]
[{"$f":"'VNOS PODATKOV'!C199","v":"VRSTE GRADNJE"},{"$f":"IF('VNOS PODATKOV'!D201=TRUE,TRUE,FALSE)","v":false},{"$f":"'VNOS PODATKOV'!C201","v":"NOVOGRADNJA - NOVOZGRAJEN OBJEKT"}]
[{"$f":"'VNOS PODATKOV'!C200","v":"označiti vse ustrezne vrste gradnje"},{"$f":"IF('VNOS PODATKOV'!D202=TRUE,TRUE,FALSE)","v":false},{"$f":"'VNOS PODATKOV'!C202","v":"NOVOGRADNJA - PRIZIDAVA"}]
[null,{"$f":"IF('VNOS PODATKOV'!D203=TRUE,TRUE,FALSE)","v":false},{"$f":"'VNOS PODATKOV'!C203","v":"REKONSTRUKCIJA"}]
[null,{"$f":"IF('VNOS PODATKOV'!D204=TRUE,TRUE,FALSE)","v":false},{"$f":"'VNOS PODATKOV'!C204","v":"SPREMEMBA NAMEMBNOSTI"}]
[null,{"$f":"IF('VNOS PODATKOV'!D205=TRUE,TRUE,FALSE)","v":false},{"$f":"'VNOS PODATKOV'!C205","v":"ODSTRANITEV CELOTNEGA OBJEKTA"}]
[null,{"$f":"IF('VNOS PODATKOV'!D206=TRUE,TRUE,FALSE)","v":false},{"$f":"'VNOS PODATKOV'!C206","v":"LEGALIZACIJA"}]
[null,{"$f":"IF('VNOS PODATKOV'!D207=TRUE,TRUE,FALSE)","v":false},{"$f":"'VNOS PODATKOV'!C207","v":"MANJŠA REKONSTRUKCIJA"}]
["PODATKI O PROJEKTNI DOKUMENTACIJI"]
["vrsta dokumentacije (DPP, DGD, PZI, PZO, PID, DL)",null,{"$f":"INDEX('BAZA PODATKOV'!A3:A12,MATCH('VNOS PODATKOV'!M37,'BAZA PODATKOV'!B3:B12,0))","v":"DPP (projektna dokumentacija za pridobitev projektnih in drugih pogojev)"}]
[{"$f":"'VNOS PODATKOV'!C160","v":"številka projekta"},null,{"$f":"IFERROR(HLOOKUP($C$25,'VNOS PODATKOV'!$D$159:$I$161,2, FALSE),\"\")","v":0}]
[{"$f":"'VNOS PODATKOV'!C161","v":"datum izdelave"},null,{"$f":"IFERROR(HLOOKUP($C$25,'VNOS PODATKOV'!$D$159:$I$161,3, FALSE),\"\")","v":"00:00:00"}]
[{"$f":"'VNOS PODATKOV'!C162","v":"datum spremembe"},null,{"$f":"IFERROR(HLOOKUP($C$25,'VNOS PODATKOV'!$D$159:$I$162,4, FALSE),\"\")","v":"00:00:00"}]
["PODATKI O PROJEKTANTU"]
[{"$f":"'VNOS PODATKOV'!C87","v":"projektant (naziv družbe)"},null,{"$f":"'VNOS PODATKOV'!D87","v":0}]
[{"$f":"'VNOS PODATKOV'!C88","v":"naslov"},null,{"$f":"'VNOS PODATKOV'!D88","v":0}]
[{"$f":"'VNOS PODATKOV'!C89","v":"odgovorna oseba projektanta"},null,{"$f":"IF(OR(C$25='BAZA PODATKOV'!$A$10,C$25='BAZA PODATKOV'!$A$11),\"\",'VNOS PODATKOV'!D89)","v":0}]
["podpis odgovorne osebe projektanta"]
["PODATKI O IZDELOVALCU OSNOVNEGA PRIKAZA / NAČRTA"]
["izdelovalec osnovnega prikaza / načrta",null,{"$f":"IF('VNOS PODATKOV'!D99=\"\",\"\",(CONCATENATE('VNOS PODATKOV'!D99,\", \",'VNOS PODATKOV'!D100)))","v":""}]
[{"$f":"'VNOS PODATKOV'!C101","v":"identifikacijska številka"},null,{"$f":"'VNOS PODATKOV'!D101","v":0}]
["projektant izdelovalca osnovnega načrta (naziv družbe)",null,{"$f":"'VNOS PODATKOV'!D96","v":0}]
[{"$f":"'VNOS PODATKOV'!C97","v":"naslov"},null,{"$f":"'VNOS PODATKOV'!D97","v":0}]
["PODATKI O VODJI PROJEKTIRANJA"]
[{"$f":"'VNOS PODATKOV'!C90","v":"VODJA PROJEKTIRANJA"},null,{"$f":"IF(OR(C$25='BAZA PODATKOV'!$A$10,C$25='BAZA PODATKOV'!$A$11),\"\",CONCATENATE('VNOS PODATKOV'!D91,\", \",'VNOS PODATKOV'!D92))","v":", "}]
[{"$f":"'VNOS PODATKOV'!C93","v":"identifikacijska številka"},null,{"$f":"'VNOS PODATKOV'!D93","v":0}]
["podpis vodje projektiranja"]

{"sheet":"1B STROKOVNJAKI","index":3,"n_rows":41,"n_cols":1,"rows_kept":41,"cut":false,"hidden":false,"merged":[[40,0,40,3]]}
["PRILOGA 1B"]
["UDELEŽENI STROKOVNJAKI \nPRI PROJEKTIRANJU"]
[]
["UDELEŽENI STROKOVNJAKI PRI PROJEKTIRANJU"]
["POOBLAŠČENI ARHITEKTI"]
["ime in priimek, strokovna izobrazba, identifikacijska številka"]
["navedba gradiv, ki so jih izdelali"]
["POOBLAŠČENI INŽENIRJI S PODROČJA GRADBENIŠTVA"]
[{"$f":"$A$6","v":"ime in priimek, strokovna izobrazba, identifikacijska številka"}]
[{"$f":"$A$7","v":"navedba gradiv, ki so jih izdelali"}]
["POOBLAŠČENI INŽENIRJI S PODROČJA ELEKTROTEHNIKE"]
[{"$f":"$A$6","v":"ime in priimek, strokovna izobrazba, identifikacijska številka"}]
[{"$f":"$A$7","v":"navedba gradiv, ki so jih izdelali"}]
["POOBLAŠČENI INŽENIRJI S PODROČJA STROJNIŠTVA"]
[{"$f":"$A$6","v":"ime in priimek, strokovna izobrazba, identifikacijska številka"}]
[{"$f":"$A$7","v":"navedba gradiv, ki so jih izdelali"}]
["POOBLAŠČENI INŽENIRJI S PODROČJA TEHNOLOGIJE"]
[{"$f":"$A$6","v":"ime in priimek, strokovna izobrazba, identifikacijska številka"}]
[{"$f":"$A$7","v":"navedba gradiv, ki so jih izdelali"}]
["POOBLAŠČENI INŽENIRJI S PODROČJA POŽARNE VARNOSTI"]
[{"$f":"$A$6","v":"ime in priimek, strokovna izobrazba, identifikacijska številka"}]
[{"$f":"$A$7","v":"navedba gradiv, ki so jih izdelali"}]
["POOBLAŠČENI INŽENIRJI S PODROČJA GEOTEHNOLOGIJE IN RUDARSTVA"]
[{"$f":"$A$6","v":"ime in priimek, strokovna izobrazba, identifikacijska številka"}]
[{"$f":"$A$7","v":"navedba gradiv, ki so jih izdelali"}]
["POOBLAŠČENI INŽENIRJI S PODROČJA GEODEZIJE"]
[{"$f":"$A$6","v":"ime in priimek, strokovna izobrazba, identifikacijska številka"}]
[{"$f":"$A$7","v":"navedba gradiv, ki so jih izdelali"}]
["POOBLAŠČENI INŽENIRJI S PODROČJA PROMETNEGA INŽENIRSTVA"]
[{"$f":"$A$6","v":"ime in priimek, strokovna izobrazba, identifikacijska številka"}]
[{"$f":"$A$7","v":"navedba gradiv, ki so jih izdelali"}]
["POOBLAŠČENI KRAJINSKI ARHITEKTI"]
[{"$f":"$A$6","v":"ime in priimek, strokovna izobrazba, identifikacijska številka"}]
[{"$f":"$A$7","v":"navedba gradiv, ki so jih izdelali"}]
["POOBLAŠČENI PROSTORSKI NAČRTOVALCI"]
[{"$f":"$A$6","v":"ime in priimek, strokovna izobrazba, identifikacijska številka"}]
[{"$f":"$A$7","v":"navedba gradiv, ki so jih izdelali"}]
["STROKOVNJAKI DRUGIH STROK"]
["ime in priimek, strokovna izobrazba"]
[{"$f":"$A$7","v":"navedba gradiv, ki so jih izdelali"}]
["Neustrezno izpustiti ali po potrebi dodati vrstice.\nPri DPP, DGD se kot \"gradiva, ki so jih izdelali\" navedejo kakršna koli gradiva, ki jih vodja projektiranja uporabi pri pripravi zbirnega prikaza (skice, risbe, detajli, izračuni, strokovne podlage, ki jih pred izdelavo zahtevajo področni predpisi, npr. geodetski načrt, geomehansko poročilo), vključno s tehničnimi prikazi; pri PZI, PID se navedejo načrti, pri PZO, DL tehnični prikazi oz. posnetki obstoječega stanja."]

{"sheet":"1C NASLOVNA NAČRT","index":4,"n_rows":31,"n_cols":3,"rows_kept":31,"cut":false,"hidden":false,"merged":[[22,0,22,2],[27,0,27,2]]}
["PRILOGA 1C"]
["NASLOVNA STRAN NAČRTA"]
[null,null,{"$f":"IF(C19=0,\"\",C19)","v":""}]
[{"$f":"'VNOS PODATKOV'!C172","v":"PODATKI O GRADNJI"}]
[{"$f":"'VNOS PODATKOV'!C175","v":"naziv gradnje"},null,{"$f":"'VNOS PODATKOV'!D175","v":0}]
[{"$f":"'VNOS PODATKOV'!C177","v":"kratek opis gradnje"},null,{"$f":"'VNOS PODATKOV'!D177","v":0}]
[{"$f":"'VNOS PODATKOV'!C199","v":"VRSTE GRADNJE"},{"$f":"IF('VNOS PODATKOV'!D201=TRUE,TRUE,FALSE)","v":false},{"$f":"'VNOS PODATKOV'!C201","v":"NOVOGRADNJA - NOVOZGRAJEN OBJEKT"}]
[{"$f":"'VNOS PODATKOV'!C200","v":"označiti vse ustrezne vrste gradnje"},{"$f":"IF('VNOS PODATKOV'!D202=TRUE,TRUE,FALSE)","v":false},{"$f":"'VNOS PODATKOV'!C202","v":"NOVOGRADNJA - PRIZIDAVA"}]
[null,{"$f":"IF('VNOS PODATKOV'!D203=TRUE,TRUE,FALSE)","v":false},{"$f":"'VNOS PODATKOV'!C203","v":"REKONSTRUKCIJA"}]
[null,{"$f":"IF('VNOS PODATKOV'!D204=TRUE,TRUE,FALSE)","v":false},{"$f":"'VNOS PODATKOV'!C204","v":"SPREMEMBA NAMEMBNOSTI"}]
[null,{"$f":"IF('VNOS PODATKOV'!D205=TRUE,TRUE,FALSE)","v":false},{"$f":"'VNOS PODATKOV'!C205","v":"ODSTRANITEV CELOTNEGA OBJEKTA"}]
[null,{"$f":"IF('VNOS PODATKOV'!D206=TRUE,TRUE,FALSE)","v":false},{"$f":"'VNOS PODATKOV'!C206","v":"LEGALIZACIJA"}]
[null,{"$f":"IF('VNOS PODATKOV'!D207=TRUE,TRUE,FALSE)","v":false},{"$f":"'VNOS PODATKOV'!C207","v":"MANJŠA REKONSTRUKCIJA"}]
[{"$f":"'VNOS PODATKOV'!C156","v":"PODATKI O PROJEKTNI DOKUMENTACIJI"}]
["vrsta dokumentacije",null,{"$f":"INDEX('BAZA PODATKOV'!A3:A12,MATCH('VNOS PODATKOV'!M37,'BAZA PODATKOV'!B3:B12,0))","v":"DPP (projektna dokumentacija za pridobitev projektnih in drugih pogojev)"}]
[{"$f":"'VNOS PODATKOV'!C160","v":"številka projekta"},null,{"$f":"IFERROR(HLOOKUP($C$15,'VNOS PODATKOV'!$D$159:$I$161,2, FALSE),\"\")","v":0}]
["PODATKI O NAČRTU"]
[{"$f":"'VNOS PODATKOV'!C164","v":"strokovno področje načrta"},null,{"$f":"IFERROR(HLOOKUP($C$15,'VNOS PODATKOV'!$D$159:$I$168,6, FALSE),\"\")","v":0}]
[{"$f":"'VNOS PODATKOV'!C165","v":"naziv načrta"},null,{"$f":"IFERROR(HLOOKUP($C$15,'VNOS PODATKOV'!$D$159:$I$168,7, FALSE),\"\")","v":0}]
[{"$f":"'VNOS PODATKOV'!C166","v":"številka načrta"},null,{"$f":"IFERROR(HLOOKUP($C$15,'VNOS PODATKOV'!$D$159:$I$168,8, FALSE),\"\")","v":0}]
[{"$f":"'VNOS PODATKOV'!C167","v":"datum izdelave"},null,{"$f":"IFERROR(HLOOKUP($C$15,'VNOS PODATKOV'!$D$159:$I$168,9, FALSE),\"\")","v":"00:00:00"}]
[{"$f":"'VNOS PODATKOV'!C168","v":"datum spremembe"},null,{"$f":"IFERROR(HLOOKUP($C$15,'VNOS PODATKOV'!$D$159:$I$168,10, FALSE),\"\")","v":"00:00:00"}]
["PODATKI O PROJEKTANTU NAČRTA"]
[{"$f":"'VNOS PODATKOV'!C104","v":"projektant načrta (naziv družbe)"},null,{"$f":"'VNOS PODATKOV'!D104","v":0}]
[{"$f":"'VNOS PODATKOV'!C105","v":"naslov"},null,{"$f":"'VNOS PODATKOV'!D105","v":0}]
[{"$f":"'VNOS PODATKOV'!C106","v":"odgovorna oseba projektanta načrta"},null,{"$f":"'VNOS PODATKOV'!D106","v":0}]
["podpis odgovorne osebe \nprojektanta načrta"]
["PODATKI O IZDELOVALCU NAČRTA"]
[{"$f":"'VNOS PODATKOV'!C108","v":"ime in priimek pooblaščenega arhitekta, pooblaščenega inženirja"},null,{"$f":"IF('VNOS PODATKOV'!D108=\"\",\"\",(CONCATENATE('VNOS PODATKOV'!D108,\", \",'VNOS PODATKOV'!D109)))","v":""}]
[{"$f":"'VNOS PODATKOV'!C110","v":"identifikacijska številka"},null,{"$f":"'VNOS PODATKOV'!D110","v":0}]
["podpis pooblaščenega arhitekta, pooblaščenega inženirja"]

{"sheet":"2A IZJAVA DGD","index":5,"n_rows":26,"n_cols":2,"rows_kept":26,"cut":false,"hidden":false,"merged":[[1,0,1,1],[3,0,3,1],[8,0,8,1],[18,0,18,1],[19,0,19,1]]}
["PRILOGA 2A"]
["IZJAVA PROJEKTANTA \nIN VODJE PROJEKTIRANJA V DGD"]
[]
["PROJEKTANT"]
[{"$f":"'VNOS PODATKOV'!C87","v":"projektant (naziv družbe)"},{"$f":"'VNOS PODATKOV'!D87","v":0}]
[{"$f":"'VNOS PODATKOV'!C88","v":"naslov"},{"$f":"'VNOS PODATKOV'!D88","v":0}]
[{"$f":"'VNOS PODATKOV'!C89","v":"odgovorna oseba projektanta"},{"$f":"'VNOS PODATKOV'!D89","v":0}]
[]
["IN VODJA PROJEKTIRANJA"]
["vodja projektiranja",{"$f":"IF('VNOS PODATKOV'!D91=\"\",\"\",(CONCATENATE('VNOS PODATKOV'!D91,\", \",'VNOS PODATKOV'!D92)))","v":""}]
[]
["IZJAVLJAVA:"]
[]
["da je projektna dokumentacija za pridobitev mnenj in gradbenega dovoljenja (DGD):"]
[]
[{"$f":"'VNOS PODATKOV'!C160","v":"številka projekta"},{"$f":"'VNOS PODATKOV'!E160","v":0}]
[{"$f":"'VNOS PODATKOV'!C161","v":"datum izdelave"},{"$f":"'VNOS PODATKOV'!E161","v":"00:00:00"}]
[]
["- skladna z zahtevami prostorskega izvedbenega akta, gradbenimi in drugimi predpisi;\nda omogoča kakovostno izvedbo objekta in racionalnost rešitev v času gradnje in vzdrževanja objekta, in"]
["- da so na ravni obdelave projektne dokumentacije izpolnjene zahteve iz predpisov s področja graditve."]
[]
["vodja projektiranja",{"$f":"IF('VNOS PODATKOV'!D91=\"\",\"\",(CONCATENATE('VNOS PODATKOV'!D91,\", \",'VNOS PODATKOV'!D92)))","v":""}]
[{"$f":"'VNOS PODATKOV'!C93","v":"identifikacijska številka"},{"$f":"'VNOS PODATKOV'!D93","v":0}]
["podpis vodje projektiranja"]
[{"$f":"'VNOS PODATKOV'!C89","v":"odgovorna oseba projektanta"},{"$f":"'VNOS PODATKOV'!D89","v":0}]
["podpis odgovorne osebe projektanta"]

{"sheet":"2B IZJAVA PZI","index":6,"n_rows":27,"n_cols":2,"rows_kept":27,"cut":false,"hidden":false,"merged":[[1,0,1,1],[3,0,3,1],[8,0,8,1],[19,0,19,1]]}
["PRILOGA 2B"]
["IZJAVA PROJEKTANTA \nIN VODJE PROJEKTIRANJA V PZI"]
[]
["PROJEKTANT"]
[{"$f":"'VNOS PODATKOV'!C87","v":"projektant (naziv družbe)"},{"$f":"'VNOS PODATKOV'!D87","v":0}]
[{"$f":"'VNOS PODATKOV'!C88","v":"naslov"},{"$f":"'VNOS PODATKOV'!D88","v":0}]
[{"$f":"'VNOS PODATKOV'!C89","v":"odgovorna oseba projektanta"},{"$f":"'VNOS PODATKOV'!D89","v":0}]
[]
["IN VODJA PROJEKTIRANJA"]
["vodja projektiranja",{"$f":"IF('VNOS PODATKOV'!D91=\"\",\"\",(CONCATENATE('VNOS PODATKOV'!D91,\", \",'VNOS PODATKOV'!D92)))","v":""}]
[]
["IZJAVLJAVA:"]
[]
["da je projektna dokumentacija za izvedbo gradnje (PZI):"]
[]
[{"$f":"'VNOS PODATKOV'!C160","v":"številka projekta"},{"$f":"'VNOS PODATKOV'!G160","v":0}]
[{"$f":"'VNOS PODATKOV'!C161","v":"datum izdelave"},{"$f":"'VNOS PODATKOV'!G161","v":"00:00:00"}]
[]
["- skladna z zahtevami prostorskega izvedbenega akta;"]
["- da so bili v izdelavo projektne dokumentacije vključeni ustrezni pooblaščeni arhitekti, pooblaščeni krajinski arhitekti in pooblaščeni inženirji s področja gradbeništva, elektrotehnike, strojništva, tehnologije, požarne varnosti, geotehnologije in rudarstva, geodezije ali prometnega inženirstva ter strokovnjaki z drugih strokovnih področij, katerih strokovne rešitve so glede na namen in zahtevnost objekta ter namen izdelave projektne dokumentacije potrebni, tako da je ta izdelana celovito in medsebojno usklajena, in"]
["- da je s projektno dokumentacijo v celoti zagotovljeno izpolnjenjevanje bistvenih in drugih zahtev objekta."]
[]
["vodja projektiranja",{"$f":"IF('VNOS PODATKOV'!D91=\"\",\"\",(CONCATENATE('VNOS PODATKOV'!D91,\", \",'VNOS PODATKOV'!D92)))","v":""}]
[{"$f":"'VNOS PODATKOV'!C93","v":"identifikacijska številka"},{"$f":"'VNOS PODATKOV'!D93","v":0}]
["podpis vodje projektiranja"]
[{"$f":"'VNOS PODATKOV'!C89","v":"odgovorna oseba projektanta"},{"$f":"'VNOS PODATKOV'!D89","v":0}]
["podpis odgovorne osebe projektanta"]

{"sheet":"2C IZJAVA VN","index":7,"n_rows":28,"n_cols":2,"rows_kept":28,"cut":false,"hidden":false,"merged":[[1,0,1,1],[3,0,3,1],[8,0,8,1]]}
["PRILOGA 2C"]
["IZJAVA PROJEKTANTA NAČRTA \nIN POOBLAŠČENEGA STOKOVNJAKA, \nKI JE IZDELAL NAČRT V PZI IN PID"]
[]
["PROJEKTANT NAČRTA"]
[{"$f":"'VNOS PODATKOV'!C104","v":"projektant načrta (naziv družbe)"},{"$f":"'VNOS PODATKOV'!D104","v":0}]
[{"$f":"'VNOS PODATKOV'!C105","v":"naslov"},{"$f":"'VNOS PODATKOV'!D105","v":0}]
[{"$f":"'VNOS PODATKOV'!C106","v":"odgovorna oseba projektanta načrta"},{"$f":"'VNOS PODATKOV'!D106","v":0}]
[]
["IN POOBLAŠČENI STROKOVNJAK, KI JE IZDELAL NAČRT"]
["pooblaščeni strokovnjak",{"$f":"IF('VNOS PODATKOV'!D108=\"\",\"\",(CONCATENATE('VNOS PODATKOV'!D108,\", \",'VNOS PODATKOV'!D109)))","v":""}]
[]
["IZJAVLJAVA:"]
[]
["da načrt"]
[]
["vrsta dokumentacije",{"$f":"INDEX('BAZA PODATKOV'!A3:A12,MATCH('VNOS PODATKOV'!M37,'BAZA PODATKOV'!B3:B12,0))","v":"DPP (projektna dokumentacija za pridobitev projektnih in drugih pogojev)"}]
["strokovno področje načrta",{"$f":"IFERROR(HLOOKUP($B$16,'VNOS PODATKOV'!$D$159:$I$167,6, FALSE),\"\")","v":0}]
["naziv načrta",{"$f":"IFERROR(HLOOKUP($B$16,'VNOS PODATKOV'!$D$159:$I$167,7, FALSE),\"\")","v":0}]
["številka načrta",{"$f":"IFERROR(HLOOKUP($B$16,'VNOS PODATKOV'!$D$159:$I$167,8, FALSE),\"\")","v":0}]
["datum izdelave",{"$f":"IFERROR(HLOOKUP($B$16,'VNOS PODATKOV'!$D$159:$I$167,9, FALSE),\"\")","v":"00:00:00"}]
[]
["upošteva relevantne predpise in druge normativne dokumente ter da so upoštevane ustrezne bistvene in druge zahteve."]
[]
["pooblaščeni strokovnjak",{"$f":"IF('VNOS PODATKOV'!D108=\"\",\"\",(CONCATENATE('VNOS PODATKOV'!D108,\", \",'VNOS PODATKOV'!D109)))","v":""}]
[{"$f":"'VNOS PODATKOV'!C93","v":"identifikacijska številka"},{"$f":"'VNOS PODATKOV'!D110","v":0}]
["podpis pooblaščenega strokovnjaka"]
[{"$f":"'VNOS PODATKOV'!C106","v":"odgovorna oseba projektanta načrta"},{"$f":"'VNOS PODATKOV'!D106","v":0}]
["podpis odgovorne osebe projektanta načrta"]

{"sheet":"2D IZJAVA PREGLED","index":8,"n_rows":36,"n_cols":2,"rows_kept":36,"cut":false,"hidden":false,"merged":[[1,0,1,1],[29,0,29,1]]}
["PRILOGA 2D"]
["IZJAVA IZVAJALCA PREGLEDA \nPRI NEUPORABI PRIPOROČENE\nMETODE V PZI"]
[]
["PODATKI O PROJEKTANTU PREGLEDA"]
[{"$f":"'VNOS PODATKOV'!C113","v":"projektant pregleda (naziv družbe)"},{"$f":"'VNOS PODATKOV'!D113","v":0}]
[{"$f":"'VNOS PODATKOV'!C114","v":"naslov"},{"$f":"'VNOS PODATKOV'!D114","v":0}]
[{"$f":"'VNOS PODATKOV'!C115","v":"odgovorna oseba projektanta pregleda"},{"$f":"'VNOS PODATKOV'!D115","v":0}]
[]
["IN IZVAJALEC PREGLEDA"]
["pooblaščeni strokovnjak",{"$f":"IF('VNOS PODATKOV'!D118=\"\",\"\",(CONCATENATE('VNOS PODATKOV'!D118,\", \",'VNOS PODATKOV'!D119)))","v":""}]
["identifikacijska številka",{"$f":"'VNOS PODATKOV'!D120","v":0}]
[]
["ali"]
[]
["drug strokovnjak ustreznega \nstrokovnega znanja",{"$f":"'VNOS PODATKOV'!D121","v":0}]
["strokovno področje",{"$f":"'VNOS PODATKOV'!D122","v":0}]
[]
["IZJAVLJAVA:"]
[]
["da se pri izdelavi projektne dokumentacije za izvedbo gradnje (PZI):"]
[]
[{"$f":"'VNOS PODATKOV'!C160","v":"številka projekta"},{"$f":"'VNOS PODATKOV'!G160","v":0}]
[{"$f":"'VNOS PODATKOV'!C161","v":"datum izdelave"},{"$f":"'VNOS PODATKOV'!G161","v":"00:00:00"}]
[]
["ni uporabila priporočena metoda:"]
[]
[null,{"$f":"'VNOS PODATKOV'!G169","v":0}]
["navedba neuporabljene tehnične smernice, evrokodov oziroma  zadnjega stanja gradbene tehnike"]
[]
["Izvedel se je pregled kontrole brezhibnosti in računske pravilnosti tistih sestavin zgoraj navedene projektne dokumentacije za izvedbo gradnje, s katerimi se dokazuje, da predložena projektna dokumentacija izpolnjuje ustrezno bistveno zahtevo z najmanj enakovredno ravnjo, kot če bi bila uporabljena priporočena metoda."]
["Zgoraj navedena projektna dokumentacija za izvedbo gradnje zagotavlja bistveno zahtevo, ki je bila predmet pregleda."]
[]
["izvajalec pregleda",{"$f":"IF('VNOS PODATKOV'!D117=TRUE,CONCATENATE('VNOS PODATKOV'!D118,\", \",'VNOS PODATKOV'!D119),'VNOS PODATKOV'!D121)","v":0}]
["podpis izvajalca pregleda"]
[{"$f":"'VNOS PODATKOV'!C115","v":"odgovorna oseba projektanta pregleda"},{"$f":"'VNOS PODATKOV'!D115","v":0}]
["podpis odgovorne osebe projektanta pregleda"]

{"sheet":"2E IZJAVA PZO","index":9,"n_rows":27,"n_cols":2,"rows_kept":27,"cut":false,"hidden":false,"merged":[[1,0,1,1],[3,0,3,1],[8,0,8,1],[19,0,19,1],[20,0,20,1]]}
["PRILOGA 2E"]
["IZJAVA PROJEKTANTA \nIN VODJE PROJEKTIRANJA \nV PZO"]
[]
["PROJEKTANT"]
[{"$f":"'VNOS PODATKOV'!C87","v":"projektant (naziv družbe)"},{"$f":"'VNOS PODATKOV'!D87","v":0}]
[{"$f":"'VNOS PODATKOV'!C88","v":"naslov"},{"$f":"'VNOS PODATKOV'!D88","v":0}]
[{"$f":"'VNOS PODATKOV'!C89","v":"odgovorna oseba projektanta"},{"$f":"'VNOS PODATKOV'!D89","v":0}]
[]
["IN VODJA PROJEKTIRANJA"]
["vodja projektiranja",{"$f":"IF('VNOS PODATKOV'!D91=\"\",\"\",(CONCATENATE('VNOS PODATKOV'!D91,\", \",'VNOS PODATKOV'!D92)))","v":""}]
[]
["IZJAVLJAVA:"]
[]
["da je projektna dokumentacija za odstranitev objekta (PZO):"]
[]
[{"$f":"'VNOS PODATKOV'!C160","v":"številka projekta"},{"$f":"'VNOS PODATKOV'!G160","v":0}]
[{"$f":"'VNOS PODATKOV'!C161","v":"datum izdelave"},{"$f":"'VNOS PODATKOV'!G161","v":"00:00:00"}]
[]
["- skladna z gradbenimi in drugimi predpisi, da omogoča kakovostno in racionalno izvedbo odstranitve;"]
["- da so izbrane tehnične rešitve, ki niso v nasprotju z zakonom, ki ureja graditev, z drugimi predpisi, tehničnimi smernicami in pravili stroke, in"]
["- da so bili pri izdelavi projektne dokumentacije vključeni vsi ustrezni pooblaščeni arhitekti, pooblaščeni inženirji ter drugi strokovnjaki, katerih strokovne rešitve so potrebne glede na predvidene vplive in druge značilnosti odstranitve objekta."]
[]
["vodja projektiranja",{"$f":"IF('VNOS PODATKOV'!D91=\"\",\"\",(CONCATENATE('VNOS PODATKOV'!D91,\", \",'VNOS PODATKOV'!D92)))","v":""}]
[{"$f":"'VNOS PODATKOV'!C93","v":"identifikacijska številka"},{"$f":"'VNOS PODATKOV'!D93","v":0}]
["podpis vodje projektiranja"]
[{"$f":"'VNOS PODATKOV'!C89","v":"odgovorna oseba projektanta"},{"$f":"'VNOS PODATKOV'!D89","v":0}]
["podpis odgovorne osebe projektanta"]

{"sheet":"2F IZJAVA PID","index":10,"n_rows":53,"n_cols":2,"rows_kept":53,"cut":false,"hidden":false,"merged":[[1,0,1,1],[30,0,30,1],[3,0,3,1],[8,0,8,1],[35,0,35,1]]}
["PRILOGA 2F"]
["IZJAVA PROJEKTANTA \nIN VODJE PROJEKTIRANJA \nTER NADZORNIKA \nIN VODJE NADZORA V PID"]
[]
["PROJEKTANT"]
[{"$f":"'VNOS PODATKOV'!C87","v":"projektant (naziv družbe)"},{"$f":"'VNOS PODATKOV'!D87","v":0}]
[{"$f":"'VNOS PODATKOV'!C88","v":"naslov"},{"$f":"'VNOS PODATKOV'!D88","v":0}]
[{"$f":"'VNOS PODATKOV'!C89","v":"odgovorna oseba projektanta"},{"$f":"'VNOS PODATKOV'!D89","v":0}]
[]
["IN VODJA PROJEKTIRANJA"]
["vodja projektiranja",{"$f":"IF('VNOS PODATKOV'!D91=\"\",\"\",(CONCATENATE('VNOS PODATKOV'!D91,\", \",'VNOS PODATKOV'!D92)))","v":""}]
[]
["IZJAVLJAVA:"]
[]
["da so dela izvedena skladno z izdanim gradbenim dovoljenjem in dopustnimi manjšimi odstopanji"]
[]
[{"$f":"'VNOS PODATKOV'!C365","v":"številka dovoljenja"},{"$f":" 'VNOS PODATKOV'!D365","v":0}]
["z dne",{"$f":"IF('VNOS PODATKOV'!D366=\"\",\"\",'VNOS PODATKOV'!D366)","v":""}]
[]
["in spremembo gradbenega dovoljenja:"]
[]
[{"$f":"'VNOS PODATKOV'!C372","v":"številka dovoljenja"},{"$f":" 'VNOS PODATKOV'!D372","v":0}]
[{"$f":"'VNOS PODATKOV'!C373","v":"datum dovoljenja"},{"$f":"IF('VNOS PODATKOV'!D373=\"\",\"\",'VNOS PODATKOV'!D373)","v":""}]
[]
["vodja projektiranja",{"$f":"IF('VNOS PODATKOV'!D91=\"\",\"\",(CONCATENATE('VNOS PODATKOV'!D91,\", \",'VNOS PODATKOV'!D92)))","v":""}]
[{"$f":"'VNOS PODATKOV'!C93","v":"identifikacijska številka"},{"$f":"'VNOS PODATKOV'!D93","v":0}]
["podpis vodje projektiranja"]
[{"$f":"'VNOS PODATKOV'!C89","v":"odgovorna oseba projektanta"},{"$f":"'VNOS PODATKOV'!D89","v":0}]
["podpis odgovorne osebe projektanta"]
[]
[]
[{"$f":"'VNOS PODATKOV'!C132","v":"NADZORNIK"}]
["nadzornik",{"$f":"'VNOS PODATKOV'!D136","v":0}]
["naslov",{"$f":"'VNOS PODATKOV'!D137","v":0}]
[{"$f":"'VNOS PODATKOV'!C139","v":"odgovorna oseba nadzornika"},{"$f":"'VNOS PODATKOV'!D139","v":0}]
[]
["IN VODJA NADZORA"]
[{"$f":"'VNOS PODATKOV'!C141","v":"vodja nadzora"},{"$f":"IF('VNOS PODATKOV'!D141=\"\",\"\",(CONCATENATE('VNOS PODATKOV'!D141,\", \",'VNOS PODATKOV'!D142)))","v":""}]
[{"$f":"'VNOS PODATKOV'!C143","v":"identifikacijska številka"},{"$f":"'VNOS PODATKOV'!D143","v":0}]
[]
["IZJAVLJAVA:"]
[]
["da je dokumentacija za pridobitev uporabnega dovoljenja (PID):"]
[]
[{"$f":"'VNOS PODATKOV'!C160","v":"številka projekta"},{"$f":"'VNOS PODATKOV'!I160","v":0}]
[{"$f":"'VNOS PODATKOV'!C161","v":"datum izdelave"},{"$f":"'VNOS PODATKOV'!I161","v":"00:00:00"}]
[]
["ustrezna."]
[]
[{"$f":"'VNOS PODATKOV'!C141","v":"vodja nadzora"},{"$f":"IF('VNOS PODATKOV'!D141=\"\",\"\",(CONCATENATE('VNOS PODATKOV'!D141,\", \",'VNOS PODATKOV'!D142)))","v":""}]
[{"$f":"'VNOS PODATKOV'!C143","v":"identifikacijska številka"},{"$f":"'VNOS PODATKOV'!D143","v":0}]
["podpis vodje nadzora"]
[{"$f":"'VNOS PODATKOV'!C139","v":"odgovorna oseba nadzornika"},{"$f":"'VNOS PODATKOV'!D139","v":0}]
["podpis odgovorne osebe nadzornika"]

{"sheet":"2G IZJAVA PID NR","index":11,"n_rows":25,"n_cols":3,"rows_kept":25,"cut":false,"hidden":false,"merged":[[23,0,23,1],[24,0,24,1],[1,0,1,2],[3,0,3,2],[8,0,8,2],[20,0,20,1],[21,0,21,1],[22,0,22,1]]}
["PRILOGA 2G"]
["IZJAVA PROJEKTANTA IN VODJE \nPROJEKTIRANJA V PID, ČE GRE ZA OBJEKT \nIZ DRUGEGA ODSTAVKA 1. ČLENA \nGZ-1 ALI NUJNO REKONSTRUKCIJO"]
[]
["PROJEKTANT"]
[{"$f":"'VNOS PODATKOV'!C87","v":"projektant (naziv družbe)"},null,{"$f":"'VNOS PODATKOV'!D87","v":0}]
[{"$f":"'VNOS PODATKOV'!C88","v":"naslov"},null,{"$f":"'VNOS PODATKOV'!D88","v":0}]
[{"$f":"'VNOS PODATKOV'!C89","v":"odgovorna oseba projektanta"},null,{"$f":"'VNOS PODATKOV'!D89","v":0}]
[]
["IN VODJA PROJEKTIRANJA"]
["vodja projektiranja",null,{"$f":"IF('VNOS PODATKOV'!D91=\"\",\"\",(CONCATENATE('VNOS PODATKOV'!D91,\", \",'VNOS PODATKOV'!D92)))","v":""}]
[]
["IZJAVLJAVA:"]
[]
["da so dela izvedena v skladu z gradbenimi in drugimi predpisi."]
[]
["Projektna dokumentacija izvedenih del obravnava:"]
["označiti ustrezno"]
[null,null,"objekt, ki ga je bilo treba nemudoma izvesti za odvračanje nevarnosti in povzročitve nadaljnje škode ob neposredni ogroženosti ali nastanku naravnih in drugih nesreč ali vojaško-inženirski objekt, zaklonišče ali drug zaščitni objekt med izrednim ali vojnim stanjem, ki bo postal stalni objekt"]
[null,null,"nujno rekonstrukcijo"]
[]
["vodja projektiranja",null,{"$f":"IF('VNOS PODATKOV'!D91=\"\",\"\",(CONCATENATE('VNOS PODATKOV'!D91,\", \",'VNOS PODATKOV'!D92)))","v":""}]
[{"$f":"'VNOS PODATKOV'!C93","v":"identifikacijska številka"},null,{"$f":"'VNOS PODATKOV'!D93","v":0}]
["podpis vodje projektiranja"]
[{"$f":"'VNOS PODATKOV'!C89","v":"odgovorna oseba projektanta"},null,{"$f":"'VNOS PODATKOV'!D89","v":0}]
["podpis odgovorne osebe projektanta"]

{"sheet":"3 KAZALO","index":12,"n_rows":39,"n_cols":4,"rows_kept":39,"cut":false,"hidden":false,"merged":[[1,0,1,1]]}
["PRILOGA 3"]
["KAZALO VSEBINE PROJEKTA"]
[]
["KAZALO NAČRTOV"]
["PZI",null,"PID"]
["po potrebi dodati vrstice",null,"navesti tiste načrte, ki so dopolnjeni ali izdelani na novo"]
["naziv načrta","številka načrta","naziv načrta","številka načrta"]
[]
[]
[]
[]
[]
[]
[]
[]
[]
[]
[]
[]
[]
[]
[]
[]
[]
[]
[]
["po potrebi dodati vrstice"]
[]
[]
["KAZALO ELABORATOV IN ŠTUDIJ"]
["PZI"]
["po potrebi dodati vrstice"]
["naziv elaborata, študije","št.","naziv elaborata, študije","št."]
[]
[]
[]
[]
[]
["po potrebi dodati vrstice"]

{"sheet":"4A SPLOŠNI PODATKI","index":13,"n_rows":99,"n_cols":2,"rows_kept":99,"cut":false,"hidden":false,"merged":[[78,0,78,1],[90,0,90,1],[40,0,40,1],[43,0,43,1],[3,0,3,1],[39,0,39,1],[63,0,63,1]]}
["PRILOGA 4A"]
["SPLOŠNI PODATKI O GRADNJI"]
[]
[{"$f":"'VNOS PODATKOV'!C172","v":"PODATKI O GRADNJI"}]
[{"$f":"'VNOS PODATKOV'!C175","v":"naziv gradnje"},{"$f":"'VNOS PODATKOV'!D175","v":0}]
[{"$f":"'VNOS PODATKOV'!C177","v":"kratek opis gradnje"},{"$f":"'VNOS PODATKOV'!D177","v":0}]
[{"$f":"'VNOS PODATKOV'!C178","v":"navedba objektov in njihovih značilnosti"}]
[{"$f":"'VNOS PODATKOV'!C190","v":"glavni objekt, če je določen"},{"$f":"'VNOS PODATKOV'!D190","v":0}]
["klasifikacija objekta po CC-SI",{"$f":"IF('VNOS PODATKOV'!D192=\"STAVBA\",'VNOS PODATKOV'!D193,'VNOS PODATKOV'!D194)","v":0}]
[{"$f":"'VNOS PODATKOV'!C196","v":"pripadajoči objekti"},{"$f":"'VNOS PODATKOV'!D196","v":0}]
[{"$f":"'VNOS PODATKOV'!C197","v":"naštej"}]
[{"$f":"'VNOS PODATKOV'!C213","v":"objekt z vplivi na okolje"},{"$f":"IF('1A NASLOVNA'!C25='BAZA PODATKOV'!A10,\"\",IF('VNOS PODATKOV'!D213=TRUE, \"DA\", \"NE\"))","v":"NE"}]
[{"$f":"'VNOS PODATKOV'!C184","v":"kratek opis spremembe zaradi večjih odstopanj od gradbenega dovoljenja"},{"$f":"IF('1A NASLOVNA'!C25='BAZA PODATKOV'!A4,'VNOS PODATKOV'!D184,\"\")","v":""}]
[{"$f":"'VNOS PODATKOV'!C183","v":"izpolniti, če gre za spremembo gradbenega dovoljenja"}]
[{"$f":"'VNOS PODATKOV'!C187","v":"kratek opis pripravljalnih del"},{"$f":"IF('1A NASLOVNA'!C25='BAZA PODATKOV'!A6,'VNOS PODATKOV'!D187,\"\")","v":""}]
[{"$f":"'VNOS PODATKOV'!C186","v":"izpolniti, če gre za dokumentacijo, ki se nanaša samo na pripravljalna dela"}]
[{"$f":"'VNOS PODATKOV'!C259","v":"PROSTORSKI AKT"}]
[{"$f":"'VNOS PODATKOV'!C260","v":"prostorski akt"},{"$f":"'VNOS PODATKOV'!D260","v":0}]
[{"$f":"'VNOS PODATKOV'!C261","v":"EUP"},{"$f":"'VNOS PODATKOV'!D261","v":0}]
[{"$f":"'VNOS PODATKOV'!C262","v":"namenska raba"},{"$f":"'VNOS PODATKOV'!D262","v":0}]
[{"$f":"'VNOS PODATKOV'!C274","v":"URBANISTIČNI KAZALCI"}]
[{"$f":"'VNOS PODATKOV'!C265","v":"Samo za stavbe v DGD."}]
[{"$f":"'VNOS PODATKOV'!C266","v":"a) površine pod stavbami"},{"$f":"IF('1A NASLOVNA'!$C$25='BAZA PODATKOV'!$A$4,'VNOS PODATKOV'!$D266,\"\")","v":""}]
[{"$f":"'VNOS PODATKOV'!C267","v":"b) površine pod pripadajočimi \npomožnimi objekti, ki so stavbe"},{"$f":"IF('1A NASLOVNA'!$C$25='BAZA PODATKOV'!$A$4,'VNOS PODATKOV'!$D267,\"\")","v":""}]
[{"$f":"'VNOS PODATKOV'!C268","v":"c) utrjene zunanje površine \n(promet, komunala, tehnične površine)"},{"$f":"IF('1A NASLOVNA'!$C$25='BAZA PODATKOV'!$A$4,'VNOS PODATKOV'!$D268,\"\")","v":""}]
[{"$f":"'VNOS PODATKOV'!C269","v":"d) utrjene zunanje površine \n(bivanje na prostem)"},{"$f":"IF('1A NASLOVNA'!$C$25='BAZA PODATKOV'!$A$4,'VNOS PODATKOV'!$D269,\"\")","v":""}]
[{"$f":"'VNOS PODATKOV'!C270","v":"e) površine raščenega dela"},{"$f":"IF('1A NASLOVNA'!$C$25='BAZA PODATKOV'!$A$4,'VNOS PODATKOV'!$D270,\"\")","v":""}]
[{"$f":"'VNOS PODATKOV'!C271","v":"velikost gradbene parcele \n(a + b + c + d + e)"},{"$f":"IF('1A NASLOVNA'!$C$25='BAZA PODATKOV'!$A$4,'VNOS PODATKOV'!$D271,\"\")","v":""}]
[{"$f":"'VNOS PODATKOV'!C272","v":"zazidana površina"},{"$f":"IF('1A NASLOVNA'!$C$25='BAZA PODATKOV'!$A$4,'VNOS PODATKOV'!$D272,\"\")","v":""}]
[{"$f":"'VNOS PODATKOV'!C273","v":"bruto tlorisna površina vseh stavb"},{"$f":"IF('1A NASLOVNA'!$C$25='BAZA PODATKOV'!$A$4,'VNOS PODATKOV'!$D273,\"\")","v":""}]
[{"$f":"'VNOS PODATKOV'!C276","v":"faktor prekritih površin (FPP)"},{"$f":"IF('1A NASLOVNA'!$C$25='BAZA PODATKOV'!$A$4,'VNOS PODATKOV'!$D276,\"\")","v":""}]
[{"$f":"'VNOS PODATKOV'!C277","v":"faktor raščenih površin (FRP)"},{"$f":"IF('1A NASLOVNA'!$C$25='BAZA PODATKOV'!$A$4,'VNOS PODATKOV'!$D277,\"\")","v":""}]
[{"$f":"'VNOS PODATKOV'!C278","v":"faktor utrjenih zunanjih površin (FU)"},{"$f":"IF('1A NASLOVNA'!$C$25='BAZA PODATKOV'!$A$4,'VNOS PODATKOV'!$D278,\"\")","v":""}]
[{"$f":"'VNOS PODATKOV'!C279","v":"faktor utrjenih bivalnih površin (FU-B)"},{"$f":"IF('1A NASLOVNA'!$C$25='BAZA PODATKOV'!$A$4,'VNOS PODATKOV'!$D279,\"\")","v":""}]
[{"$f":"'VNOS PODATKOV'!C280","v":"faktor utrjenih prometnih, komunalnih \nin tehničnih površin (FU-P)"},{"$f":"IF('1A NASLOVNA'!$C$25='BAZA PODATKOV'!$A$4,'VNOS PODATKOV'!$D280,\"\")","v":""}]
[{"$f":"'VNOS PODATKOV'!C281","v":"faktor zazidanosti (FZ)"},{"$f":"IF('1A NASLOVNA'!$C$25='BAZA PODATKOV'!$A$4,'VNOS PODATKOV'!$D281,\"\")","v":""}]
[{"$f":"'VNOS PODATKOV'!C282","v":"faktor izrabe (FI)"},{"$f":"IF('1A NASLOVNA'!$C$25='BAZA PODATKOV'!$A$4,'VNOS PODATKOV'!$D282,\"\")","v":""}]
[{"$f":"'VNOS PODATKOV'!C283","v":"drugi podatki o gradbeni parceli \nv skladu z zakonom o urejanju prostora"},{"$f":"IF('1A NASLOVNA'!$C$25='BAZA PODATKOV'!$A$4,'VNOS PODATKOV'!$D283,\"\")","v":""}]
["K DOKUMENTACIJI JE TREBA PRIDOBITI NASLEDNJA MNENJA"]
["izpolniti v DPP, DGD in PZI, če je za poseg relevantno"]
[{"$f":"'VNOS PODATKOV'!C286","v":"SKLADNOST S PROSTORSKIMI AKTI"}]
[{"$f":"IFERROR(IF('1A NASLOVNA'!$C$25='BAZA PODATKOV'!$A$8,\"\",'VNOS PODATKOV'!C289),\"\")","v":"OBČINA"},{"$f":"IFERROR(IF('1A NASLOVNA'!$C$25='BAZA PODATKOV'!$A$8,\"\",'VNOS PODATKOV'!D289),\"\")","v":"SKLADNOST S PROSTORSKIMI AKTI"}]
[]
[{"$f":"'VNOS PODATKOV'!C290","v":"VAROVANA, VARSTVENA IN OGROŽENA OBMOČJA, VODNA IN PRIOBALNA ZEMLJIŠČA"}]
[{"$f":"IFERROR(IF('1A NASLOVNA'!$C$25='BAZA PODATKOV'!$A$8,\"\",(INDEX('VNOS PODATKOV'!$C$293:$K$310,MATCH(ROW()-ROW(A$44),'VNOS PODATKOV'!$L$293:$L$310,0),1))),\"\")","v":"OBMOČJE MEJNEGA PREHODA"},{"$f":"IFERROR(IF('1A NASLOVNA'!$C$25='BAZA PODATKOV'!$A$8,\"\",(INDEX('VNOS PODATKOV'!$C$293:$K$310,MATCH(ROW()-ROW(A$44),'VNOS PODATKOV'!$L$293:$L$310,0),2))),\"\")","v":"MNENJE ZA GRADNJO NA OBMOČJU MEJNEGA PREHODA"}]
[{"$f":"IFERROR(IF('1A NASLOVNA'!$C$25='BAZA PODATKOV'!$A$8,\"\",(INDEX('VNOS PODATKOV'!$C$293:$K$310,MATCH(ROW()-ROW(A$44),'VNOS PODATKOV'!$L$293:$L$310,0),1))),\"\")","v":"OBJEKT V MEJAH RUDNIŠKEGA PROSTORA"},{"$f":"IFERROR(IF('1A NASLOVNA'!$C$25='BAZA PODATKOV'!$A$8,\"\",(INDEX('VNOS PODATKOV'!$C$293:$K$310,MATCH(ROW()-ROW(A$44),'VNOS PODATKOV'!$L$293:$L$310,0),2))),\"\")","v":"MNENJE ZA GRADNJO V MEJAH RUDNIŠKEGA PROSTORA"}]
[{"$f":"IFERROR(IF('1A NASLOVNA'!$C$25='BAZA PODATKOV'!$A$8,\"\",(INDEX('VNOS PODATKOV'!$C$293:$K$310,MATCH(ROW()-ROW(A$44),'VNOS PODATKOV'!$L$293:$L$310,0),1))),\"\")","v":""},{"$f":"IFERROR(IF('1A NASLOVNA'!$C$25='BAZA PODATKOV'!$A$8,\"\",(INDEX('VNOS PODATKOV'!$C$293:$K$310,MATCH(ROW()-ROW(A$44),'VNOS PODATKOV'!$L$293:$L$310,0),2))),\"\")","v":""}]
[{"$f":"IFERROR(IF('1A NASLOVNA'!$C$25='BAZA PODATKOV'!$A$8,\"\",(INDEX('VNOS PODATKOV'!$C$293:$K$310,MATCH(ROW()-ROW(A$44),'VNOS PODATKOV'!$L$293:$L$310,0),1))),\"\")","v":""},{"$f":"IFERROR(IF('1A NASLOVNA'!$C$25='BAZA PODATKOV'!$A$8,\"\",(INDEX('VNOS PODATKOV'!$C$293:$K$310,MATCH(ROW()-ROW(A$44),'VNOS PODATKOV'!$L$293:$L$310,0),2))),\"\")","v":""}]
[{"$f":"IFERROR(IF('1A NASLOVNA'!$C$25='BAZA PODATKOV'!$A$8,\"\",(INDEX('VNOS PODATKOV'!$C$293:$K$310,MATCH(ROW()-ROW(A$44),'VNOS PODATKOV'!$L$293:$L$310,0),1))),\"\")","v":""},{"$f":"IFERROR(IF('1A NASLOVNA'!$C$25='BAZA PODATKOV'!$A$8,\"\",(INDEX('VNOS PODATKOV'!$C$293:$K$310,MATCH(ROW()-ROW(A$44),'VNOS PODATKOV'!$L$293:$L$310,0),2))),\"\")","v":""}]
[{"$f":"IFERROR(IF('1A NASLOVNA'!$C$25='BAZA PODATKOV'!$A$8,\"\",(INDEX('VNOS PODATKOV'!$C$293:$K$310,MATCH(ROW()-ROW(A$44),'VNOS PODATKOV'!$L$293:$L$310,0),1))),\"\")","v":""},{"$f":"IFERROR(IF('1A NASLOVNA'!$C$25='BAZA PODATKOV'!$A$8,\"\",(INDEX('VNOS PODATKOV'!$C$293:$K$310,MATCH(ROW()-ROW(A$44),'VNOS PODATKOV'!$L$293:$L$310,0),2))),\"\")","v":""}]
[{"$f":"IFERROR(IF('1A NASLOVNA'!$C$25='BAZA PODATKOV'!$A$8,\"\",(INDEX('VNOS PODATKOV'!$C$293:$K$310,MATCH(ROW()-ROW(A$44),'VNOS PODATKOV'!$L$293:$L$310,0),1))),\"\")","v":""},{"$f":"IFERROR(IF('1A NASLOVNA'!$C$25='BAZA PODATKOV'!$A$8,\"\",(INDEX('VNOS PODATKOV'!$C$293:$K$310,MATCH(ROW()-ROW(A$44),'VNOS PODATKOV'!$L$293:$L$310,0),2))),\"\")","v":""}]
[{"$f":"IFERROR(IF('1A NASLOVNA'!$C$25='BAZA PODATKOV'!$A$8,\"\",(INDEX('VNOS PODATKOV'!$C$293:$K$310,MATCH(ROW()-ROW(A$44),'VNOS PODATKOV'!$L$293:$L$310,0),1))),\"\")","v":""},{"$f":"IFERROR(IF('1A NASLOVNA'!$C$25='BAZA PODATKOV'!$A$8,\"\",(INDEX('VNOS PODATKOV'!$C$293:$K$310,MATCH(ROW()-ROW(A$44),'VNOS PODATKOV'!$L$293:$L$310,0),2))),\"\")","v":""}]
[{"$f":"IFERROR(IF('1A NASLOVNA'!$C$25='BAZA PODATKOV'!$A$8,\"\",(INDEX('VNOS PODATKOV'!$C$293:$K$310,MATCH(ROW()-ROW(A$44),'VNOS PODATKOV'!$L$293:$L$310,0),1))),\"\")","v":""},{"$f":"IFERROR(IF('1A NASLOVNA'!$C$25='BAZA PODATKOV'!$A$8,\"\",(INDEX('VNOS PODATKOV'!$C$293:$K$310,MATCH(ROW()-ROW(A$44),'VNOS PODATKOV'!$L$293:$L$310,0),2))),\"\")","v":""}]
[{"$f":"IFERROR(IF('1A NASLOVNA'!$C$25='BAZA PODATKOV'!$A$8,\"\",(INDEX('VNOS PODATKOV'!$C$293:$K$310,MATCH(ROW()-ROW(A$44),'VNOS PODATKOV'!$L$293:$L$310,0),1))),\"\")","v":""},{"$f":"IFERROR(IF('1A NASLOVNA'!$C$25='BAZA PODATKOV'!$A$8,\"\",(INDEX('VNOS PODATKOV'!$C$293:$K$310,MATCH(ROW()-ROW(A$44),'VNOS PODATKOV'!$L$293:$L$310,0),2))),\"\")","v":""}]
[{"$f":"IFERROR(IF('1A NASLOVNA'!$C$25='BAZA PODATKOV'!$A$8,\"\",(INDEX('VNOS PODATKOV'!$C$293:$K$310,MATCH(ROW()-ROW(A$44),'VNOS PODATKOV'!$L$293:$L$310,0),1))),\"\")","v":""},{"$f":"IFERROR(IF('1A NASLOVNA'!$C$25='BAZA PODATKOV'!$A$8,\"\",(INDEX('VNOS PODATKOV'!$C$293:$K$310,MATCH(ROW()-ROW(A$44),'VNOS PODATKOV'!$L$293:$L$310,0),2))),\"\")","v":""}]
[{"$f":"IFERROR(IF('1A NASLOVNA'!$C$25='BAZA PODATKOV'!$A$8,\"\",(INDEX('VNOS PODATKOV'!$C$293:$K$310,MATCH(ROW()-ROW(A$44),'VNOS PODATKOV'!$L$293:$L$310,0),1))),\"\")","v":""},{"$f":"IFERROR(IF('1A NASLOVNA'!$C$25='BAZA PODATKOV'!$A$8,\"\",(INDEX('VNOS PODATKOV'!$C$293:$K$310,MATCH(ROW()-ROW(A$44),'VNOS PODATKOV'!$L$293:$L$310,0),2))),\"\")","v":""}]
[{"$f":"IFERROR(IF('1A NASLOVNA'!$C$25='BAZA PODATKOV'!$A$8,\"\",(INDEX('VNOS PODATKOV'!$C$293:$K$310,MATCH(ROW()-ROW(A$44),'VNOS PODATKOV'!$L$293:$L$310,0),1))),\"\")","v":""},{"$f":"IFERROR(IF('1A NASLOVNA'!$C$25='BAZA PODATKOV'!$A$8,\"\",(INDEX('VNOS PODATKOV'!$C$293:$K$310,MATCH(ROW()-ROW(A$44),'VNOS PODATKOV'!$L$293:$L$310,0),2))),\"\")","v":""}]
[{"$f":"IFERROR(IF('1A NASLOVNA'!$C$25='BAZA PODATKOV'!$A$8,\"\",(INDEX('VNOS PODATKOV'!$C$293:$K$310,MATCH(ROW()-ROW(A$44),'VNOS PODATKOV'!$L$293:$L$310,0),1))),\"\")","v":""},{"$f":"IFERROR(IF('1A NASLOVNA'!$C$25='BAZA PODATKOV'!$A$8,\"\",(INDEX('VNOS PODATKOV'!$C$293:$K$310,MATCH(ROW()-ROW(A$44),'VNOS PODATKOV'!$L$293:$L$310,0),2))),\"\")","v":""}]
[{"$f":"IFERROR(IF('1A NASLOVNA'!$C$25='BAZA PODATKOV'!$A$8,\"\",(INDEX('VNOS PODATKOV'!$C$293:$K$310,MATCH(ROW()-ROW(A$44),'VNOS PODATKOV'!$L$293:$L$310,0),1))),\"\")","v":""},{"$f":"IFERROR(IF('1A NASLOVNA'!$C$25='BAZA PODATKOV'!$A$8,\"\",(INDEX('VNOS PODATKOV'!$C$293:$K$310,MATCH(ROW()-ROW(A$44),'VNOS PODATKOV'!$L$293:$L$310,0),2))),\"\")","v":""}]
[{"$f":"IFERROR(IF('1A NASLOVNA'!$C$25='BAZA PODATKOV'!$A$8,\"\",(INDEX('VNOS PODATKOV'!$C$293:$K$310,MATCH(ROW()-ROW(A$44),'VNOS PODATKOV'!$L$293:$L$310,0),1))),\"\")","v":""},{"$f":"IFERROR(IF('1A NASLOVNA'!$C$25='BAZA PODATKOV'!$A$8,\"\",(INDEX('VNOS PODATKOV'!$C$293:$K$310,MATCH(ROW()-ROW(A$44),'VNOS PODATKOV'!$L$293:$L$310,0),2))),\"\")","v":""}]
[{"$f":"IFERROR(IF('1A NASLOVNA'!$C$25='BAZA PODATKOV'!$A$8,\"\",(INDEX('VNOS PODATKOV'!$C$293:$K$310,MATCH(ROW()-ROW(A$44),'VNOS PODATKOV'!$L$293:$L$310,0),1))),\"\")","v":""},{"$f":"IFERROR(IF('1A NASLOVNA'!$C$25='BAZA PODATKOV'!$A$8,\"\",(INDEX('VNOS PODATKOV'!$C$293:$K$310,MATCH(ROW()-ROW(A$44),'VNOS PODATKOV'!$L$293:$L$310,0),2))),\"\")","v":""}]
[{"$f":"IFERROR(IF('1A NASLOVNA'!$C$25='BAZA PODATKOV'!$A$8,\"\",(INDEX('VNOS PODATKOV'!$C$293:$K$310,MATCH(ROW()-ROW(A$44),'VNOS PODATKOV'!$L$293:$L$310,0),1))),\"\")","v":""},{"$f":"IFERROR(IF('1A NASLOVNA'!$C$25='BAZA PODATKOV'!$A$8,\"\",(INDEX('VNOS PODATKOV'!$C$293:$K$310,MATCH(ROW()-ROW(A$44),'VNOS PODATKOV'!$L$293:$L$310,0),2))),\"\")","v":""}]
[{"$f":"IFERROR(INDEX('VNOS PODATKOV'!$C$293:$K$302,MATCH(ROW()-ROW(A$44),'VNOS PODATKOV'!$L$293:$L$302,0),1),\"\")","v":""},{"$f":"IFERROR(INDEX('VNOS PODATKOV'!$C$293:$K$302,MATCH(ROW()-ROW(A$44),'VNOS PODATKOV'!$L$293:$L$302,0),3),\"\")","v":""}]
[{"$f":"'VNOS PODATKOV'!C311","v":"VAROVALNI PASOVI INFRASTRUKTURE"}]
[{"$f":"IFERROR(IF('1A NASLOVNA'!$C$25='BAZA PODATKOV'!$A$8,\"\",(INDEX('VNOS PODATKOV'!$C$314:$K$326,MATCH(ROW()-ROW(B$64),'VNOS PODATKOV'!$L$314:$L$326,0),1))),\"\")","v":"ELEKTRIKA"},{"$f":"IFERROR(IF('1A NASLOVNA'!$C$25='BAZA PODATKOV'!$A$8,\"\",(INDEX('VNOS PODATKOV'!$C$314:$K$326,MATCH(ROW()-ROW(B$64),'VNOS PODATKOV'!$L$314:$L$326,0),2))),\"\")","v":"MNENJE Z VIDIKA VAROVANJA ENERGETSKIH SISTEMOV"}]
[{"$f":"IFERROR(IF('1A NASLOVNA'!$C$25='BAZA PODATKOV'!$A$8,\"\",(INDEX('VNOS PODATKOV'!$C$314:$K$326,MATCH(ROW()-ROW(B$64),'VNOS PODATKOV'!$L$314:$L$326,0),1))),\"\")","v":"TOPLOVOD"},{"$f":"IFERROR(IF('1A NASLOVNA'!$C$25='BAZA PODATKOV'!$A$8,\"\",(INDEX('VNOS PODATKOV'!$C$314:$K$326,MATCH(ROW()-ROW(B$64),'VNOS PODATKOV'!$L$314:$L$326,0),2))),\"\")","v":"MNENJE"}]
[{"$f":"IFERROR(IF('1A NASLOVNA'!$C$25='BAZA PODATKOV'!$A$8,\"\",(INDEX('VNOS PODATKOV'!$C$314:$K$326,MATCH(ROW()-ROW(B$64),'VNOS PODATKOV'!$L$314:$L$326,0),1))),\"\")","v":""},{"$f":"IFERROR(IF('1A NASLOVNA'!$C$25='BAZA PODATKOV'!$A$8,\"\",(INDEX('VNOS PODATKOV'!$C$314:$K$326,MATCH(ROW()-ROW(B$64),'VNOS PODATKOV'!$L$314:$L$326,0),2))),\"\")","v":""}]
[{"$f":"IFERROR(IF('1A NASLOVNA'!$C$25='BAZA PODATKOV'!$A$8,\"\",(INDEX('VNOS PODATKOV'!$C$314:$K$326,MATCH(ROW()-ROW(B$64),'VNOS PODATKOV'!$L$314:$L$326,0),1))),\"\")","v":""},{"$f":"IFERROR(IF('1A NASLOVNA'!$C$25='BAZA PODATKOV'!$A$8,\"\",(INDEX('VNOS PODATKOV'!$C$314:$K$326,MATCH(ROW()-ROW(B$64),'VNOS PODATKOV'!$L$314:$L$326,0),2))),\"\")","v":""}]
[{"$f":"IFERROR(IF('1A NASLOVNA'!$C$25='BAZA PODATKOV'!$A$8,\"\",(INDEX('VNOS PODATKOV'!$C$314:$K$326,MATCH(ROW()-ROW(B$64),'VNOS PODATKOV'!$L$314:$L$326,0),1))),\"\")","v":""},{"$f":"IFERROR(IF('1A NASLOVNA'!$C$25='BAZA PODATKOV'!$A$8,\"\",(INDEX('VNOS PODATKOV'!$C$314:$K$326,MATCH(ROW()-ROW(B$64),'VNOS PODATKOV'!$L$314:$L$326,0),2))),\"\")","v":""}]
[{"$f":"IFERROR(IF('1A NASLOVNA'!$C$25='BAZA PODATKOV'!$A$8,\"\",(INDEX('VNOS PODATKOV'!$C$314:$K$326,MATCH(ROW()-ROW(B$64),'VNOS PODATKOV'!$L$314:$L$326,0),1))),\"\")","v":""},{"$f":"IFERROR(IF('1A NASLOVNA'!$C$25='BAZA PODATKOV'!$A$8,\"\",(INDEX('VNOS PODATKOV'!$C$314:$K$326,MATCH(ROW()-ROW(B$64),'VNOS PODATKOV'!$L$314:$L$326,0),2))),\"\")","v":""}]
[{"$f":"IFERROR(IF('1A NASLOVNA'!$C$25='BAZA PODATKOV'!$A$8,\"\",(INDEX('VNOS PODATKOV'!$C$314:$K$326,MATCH(ROW()-ROW(B$64),'VNOS PODATKOV'!$L$314:$L$326,0),1))),\"\")","v":""},{"$f":"IFERROR(IF('1A NASLOVNA'!$C$25='BAZA PODATKOV'!$A$8,\"\",(INDEX('VNOS PODATKOV'!$C$314:$K$326,MATCH(ROW()-ROW(B$64),'VNOS PODATKOV'!$L$314:$L$326,0),2))),\"\")","v":""}]
[{"$f":"IFERROR(IF('1A NASLOVNA'!$C$25='BAZA PODATKOV'!$A$8,\"\",(INDEX('VNOS PODATKOV'!$C$314:$K$326,MATCH(ROW()-ROW(B$64),'VNOS PODATKOV'!$L$314:$L$326,0),1))),\"\")","v":""},{"$f":"IFERROR(IF('1A NASLOVNA'!$C$25='BAZA PODATKOV'!$A$8,\"\",(INDEX('VNOS PODATKOV'!$C$314:$K$326,MATCH(ROW()-ROW(B$64),'VNOS PODATKOV'!$L$314:$L$326,0),2))),\"\")","v":""}]
[{"$f":"IFERROR(IF('1A NASLOVNA'!$C$25='BAZA PODATKOV'!$A$8,\"\",(INDEX('VNOS PODATKOV'!$C$314:$K$326,MATCH(ROW()-ROW(B$64),'VNOS PODATKOV'!$L$314:$L$326,0),1))),\"\")","v":""},{"$f":"IFERROR(IF('1A NASLOVNA'!$C$25='BAZA PODATKOV'!$A$8,\"\",(INDEX('VNOS PODATKOV'!$C$314:$K$326,MATCH(ROW()-ROW(B$64),'VNOS PODATKOV'!$L$314:$L$326,0),2))),\"\")","v":""}]
[{"$f":"IFERROR(IF('1A NASLOVNA'!$C$25='BAZA PODATKOV'!$A$8,\"\",(INDEX('VNOS PODATKOV'!$C$314:$K$326,MATCH(ROW()-ROW(B$64),'VNOS PODATKOV'!$L$314:$L$326,0),1))),\"\")","v":""},{"$f":"IFERROR(IF('1A NASLOVNA'!$C$25='BAZA PODATKOV'!$A$8,\"\",(INDEX('VNOS PODATKOV'!$C$314:$K$326,MATCH(ROW()-ROW(B$64),'VNOS PODATKOV'!$L$314:$L$326,0),2))),\"\")","v":""}]
[{"$f":"IFERROR(IF('1A NASLOVNA'!$C$25='BAZA PODATKOV'!$A$8,\"\",(INDEX('VNOS PODATKOV'!$C$314:$K$326,MATCH(ROW()-ROW(B$64),'VNOS PODATKOV'!$L$314:$L$326,0),1))),\"\")","v":""},{"$f":"IFERROR(IF('1A NASLOVNA'!$C$25='BAZA PODATKOV'!$A$8,\"\",(INDEX('VNOS PODATKOV'!$C$314:$K$326,MATCH(ROW()-ROW(B$64),'VNOS PODATKOV'!$L$314:$L$326,0),2))),\"\")","v":""}]
[{"$f":"IFERROR(IF('1A NASLOVNA'!$C$25='BAZA PODATKOV'!$A$8,\"\",(INDEX('VNOS PODATKOV'!$C$314:$K$326,MATCH(ROW()-ROW(B$64),'VNOS PODATKOV'!$L$314:$L$326,0),1))),\"\")","v":""},{"$f":"IFERROR(IF('1A NASLOVNA'!$C$25='BAZA PODATKOV'!$A$8,\"\",(INDEX('VNOS PODATKOV'!$C$314:$K$326,MATCH(ROW()-ROW(B$64),'VNOS PODATKOV'!$L$314:$L$326,0),2))),\"\")","v":""}]
[{"$f":"IFERROR(IF('1A NASLOVNA'!$C$25='BAZA PODATKOV'!$A$8,\"\",(INDEX('VNOS PODATKOV'!$C$314:$K$326,MATCH(ROW()-ROW(B$64),'VNOS PODATKOV'!$L$314:$L$326,0),1))),\"\")","v":""},{"$f":"IFERROR(IF('1A NASLOVNA'!$C$25='BAZA PODATKOV'!$A$8,\"\",(INDEX('VNOS PODATKOV'!$C$314:$K$326,MATCH(ROW()-ROW(B$64),'VNOS PODATKOV'!$L$314:$L$326,0),2))),\"\")","v":""}]
[{"$f":"IFERROR(INDEX('VNOS PODATKOV'!$C$293:$K$302,MATCH(ROW()-ROW(A$44),'VNOS PODATKOV'!$L$293:$L$302,0),1),\"\")","v":""},{"$f":"IFERROR(INDEX('VNOS PODATKOV'!$C$293:$K$302,MATCH(ROW()-ROW(A$44),'VNOS PODATKOV'!$L$293:$L$302,0),3),\"\")","v":""}]
[{"$f":"'VNOS PODATKOV'!C327","v":"PRIKLJUČEVANJE NA INFRASTRUKTURO"}]
[{"$f":"IFERROR(IF('1A NASLOVNA'!$C$25='BAZA PODATKOV'!$A$8,\"\",(INDEX('VNOS PODATKOV'!$C$330:$K$340,MATCH(ROW()-ROW(B$79),'VNOS PODATKOV'!$L$330:$L$340,0),1))),\"\")","v":""},{"$f":"IFERROR(IF('1A NASLOVNA'!$C$25='BAZA PODATKOV'!$A$8,\"\",(INDEX('VNOS PODATKOV'!$C$330:$K$340,MATCH(ROW()-ROW(B$79),'VNOS PODATKOV'!$L$330:$L$340,0),2))),\"\")","v":""}]
[{"$f":"IFERROR(IF('1A NASLOVNA'!$C$25='BAZA PODATKOV'!$A$8,\"\",(INDEX('VNOS PODATKOV'!$C$330:$K$340,MATCH(ROW()-ROW(B$79),'VNOS PODATKOV'!$L$330:$L$340,0),1))),\"\")","v":""},{"$f":"IFERROR(IF('1A NASLOVNA'!$C$25='BAZA PODATKOV'!$A$8,\"\",(INDEX('VNOS PODATKOV'!$C$330:$K$340,MATCH(ROW()-ROW(B$79),'VNOS PODATKOV'!$L$330:$L$340,0),2))),\"\")","v":""}]
[{"$f":"IFERROR(IF('1A NASLOVNA'!$C$25='BAZA PODATKOV'!$A$8,\"\",(INDEX('VNOS PODATKOV'!$C$330:$K$340,MATCH(ROW()-ROW(B$79),'VNOS PODATKOV'!$L$330:$L$340,0),1))),\"\")","v":""},{"$f":"IFERROR(IF('1A NASLOVNA'!$C$25='BAZA PODATKOV'!$A$8,\"\",(INDEX('VNOS PODATKOV'!$C$330:$K$340,MATCH(ROW()-ROW(B$79),'VNOS PODATKOV'!$L$330:$L$340,0),2))),\"\")","v":""}]
[{"$f":"IFERROR(IF('1A NASLOVNA'!$C$25='BAZA PODATKOV'!$A$8,\"\",(INDEX('VNOS PODATKOV'!$C$330:$K$340,MATCH(ROW()-ROW(B$79),'VNOS PODATKOV'!$L$330:$L$340,0),1))),\"\")","v":""},{"$f":"IFERROR(IF('1A NASLOVNA'!$C$25='BAZA PODATKOV'!$A$8,\"\",(INDEX('VNOS PODATKOV'!$C$330:$K$340,MATCH(ROW()-ROW(B$79),'VNOS PODATKOV'!$L$330:$L$340,0),2))),\"\")","v":""}]
[{"$f":"IFERROR(IF('1A NASLOVNA'!$C$25='BAZA PODATKOV'!$A$8,\"\",(INDEX('VNOS PODATKOV'!$C$330:$K$340,MATCH(ROW()-ROW(B$79),'VNOS PODATKOV'!$L$330:$L$340,0),1))),\"\")","v":""},{"$f":"IFERROR(IF('1A NASLOVNA'!$C$25='BAZA PODATKOV'!$A$8,\"\",(INDEX('VNOS PODATKOV'!$C$330:$K$340,MATCH(ROW()-ROW(B$79),'VNOS PODATKOV'!$L$330:$L$340,0),2))),\"\")","v":""}]
[{"$f":"IFERROR(IF('1A NASLOVNA'!$C$25='BAZA PODATKOV'!$A$8,\"\",(INDEX('VNOS PODATKOV'!$C$330:$K$340,MATCH(ROW()-ROW(B$79),'VNOS PODATKOV'!$L$330:$L$340,0),1))),\"\")","v":""},{"$f":"IFERROR(IF('1A NASLOVNA'!$C$25='BAZA PODATKOV'!$A$8,\"\",(INDEX('VNOS PODATKOV'!$C$330:$K$340,MATCH(ROW()-ROW(B$79),'VNOS PODATKOV'!$L$330:$L$340,0),2))),\"\")","v":""}]
[{"$f":"IFERROR(IF('1A NASLOVNA'!$C$25='BAZA PODATKOV'!$A$8,\"\",(INDEX('VNOS PODATKOV'!$C$330:$K$340,MATCH(ROW()-ROW(B$79),'VNOS PODATKOV'!$L$330:$L$340,0),1))),\"\")","v":""},{"$f":"IFERROR(IF('1A NASLOVNA'!$C$25='BAZA PODATKOV'!$A$8,\"\",(INDEX('VNOS PODATKOV'!$C$330:$K$340,MATCH(ROW()-ROW(B$79),'VNOS PODATKOV'!$L$330:$L$340,0),2))),\"\")","v":""}]
[{"$f":"IFERROR(IF('1A NASLOVNA'!$C$25='BAZA PODATKOV'!$A$8,\"\",(INDEX('VNOS PODATKOV'!$C$330:$K$340,MATCH(ROW()-ROW(B$79),'VNOS PODATKOV'!$L$330:$L$340,0),1))),\"\")","v":""},{"$f":"IFERROR(IF('1A NASLOVNA'!$C$25='BAZA PODATKOV'!$A$8,\"\",(INDEX('VNOS PODATKOV'!$C$330:$K$340,MATCH(ROW()-ROW(B$79),'VNOS PODATKOV'!$L$330:$L$340,0),2))),\"\")","v":""}]
[{"$f":"IFERROR(IF('1A NASLOVNA'!$C$25='BAZA PODATKOV'!$A$8,\"\",(INDEX('VNOS PODATKOV'!$C$330:$K$340,MATCH(ROW()-ROW(B$79),'VNOS PODATKOV'!$L$330:$L$340,0),1))),\"\")","v":""},{"$f":"IFERROR(IF('1A NASLOVNA'!$C$25='BAZA PODATKOV'!$A$8,\"\",(INDEX('VNOS PODATKOV'!$C$330:$K$340,MATCH(ROW()-ROW(B$79),'VNOS PODATKOV'!$L$330:$L$340,0),2))),\"\")","v":""}]
[{"$f":"IFERROR(IF('1A NASLOVNA'!$C$25='BAZA PODATKOV'!$A$8,\"\",(INDEX('VNOS PODATKOV'!$C$330:$K$340,MATCH(ROW()-ROW(B$79),'VNOS PODATKOV'!$L$330:$L$340,0),1))),\"\")","v":""},{"$f":"IFERROR(IF('1A NASLOVNA'!$C$25='BAZA PODATKOV'!$A$8,\"\",(INDEX('VNOS PODATKOV'!$C$330:$K$340,MATCH(ROW()-ROW(B$79),'VNOS PODATKOV'!$L$330:$L$340,0),2))),\"\")","v":""}]
[{"$f":"IFERROR(IF('1A NASLOVNA'!$C$25='BAZA PODATKOV'!$A$8,\"\",(INDEX('VNOS PODATKOV'!$C$330:$K$340,MATCH(ROW()-ROW(B$79),'VNOS PODATKOV'!$L$330:$L$340,0),1))),\"\")","v":""},{"$f":"IFERROR(IF('1A NASLOVNA'!$C$25='BAZA PODATKOV'!$A$8,\"\",(INDEX('VNOS PODATKOV'!$C$330:$K$340,MATCH(ROW()-ROW(B$79),'VNOS PODATKOV'!$L$330:$L$340,0),2))),\"\")","v":""}]
[{"$f":"'VNOS PODATKOV'!C341","v":"DRUGA MNENJA"}]
[{"$f":"IFERROR(IF('1A NASLOVNA'!$C$25='BAZA PODATKOV'!$A$8,\"\",(INDEX('VNOS PODATKOV'!$C$344:$K$351,MATCH(ROW()-ROW(A$91),'VNOS PODATKOV'!$L$344:$L$351,0),1))),\"\")","v":"DRUGO (NAVEDI)"},{"$f":"IFERROR(IF('1A NASLOVNA'!$C$25='BAZA PODATKOV'!$A$8,\"\",(INDEX('VNOS PODATKOV'!$C$344:$K$351,MATCH(ROW()-ROW(A$91),'VNOS PODATKOV'!$L$344:$L$351,0),2))),\"\")","v":"MNENJE"}]
[{"$f":"IFERROR(IF('1A NASLOVNA'!$C$25='BAZA PODATKOV'!$A$8,\"\",(INDEX('VNOS PODATKOV'!$C$344:$K$351,MATCH(ROW()-ROW(A$91),'VNOS PODATKOV'!$L$344:$L$351,0),1))),\"\")","v":""},{"$f":"IFERROR(IF('1A NASLOVNA'!$C$25='BAZA PODATKOV'!$A$8,\"\",(INDEX('VNOS PODATKOV'!$C$344:$K$351,MATCH(ROW()-ROW(A$91),'VNOS PODATKOV'!$L$344:$L$351,0),2))),\"\")","v":""}]
[{"$f":"IFERROR(IF('1A NASLOVNA'!$C$25='BAZA PODATKOV'!$A$8,\"\",(INDEX('VNOS PODATKOV'!$C$344:$K$351,MATCH(ROW()-ROW(A$91),'VNOS PODATKOV'!$L$344:$L$351,0),1))),\"\")","v":""},{"$f":"IFERROR(IF('1A NASLOVNA'!$C$25='BAZA PODATKOV'!$A$8,\"\",(INDEX('VNOS PODATKOV'!$C$344:$K$351,MATCH(ROW()-ROW(A$91),'VNOS PODATKOV'!$L$344:$L$351,0),2))),\"\")","v":""}]
[{"$f":"IFERROR(IF('1A NASLOVNA'!$C$25='BAZA PODATKOV'!$A$8,\"\",(INDEX('VNOS PODATKOV'!$C$344:$K$351,MATCH(ROW()-ROW(A$91),'VNOS PODATKOV'!$L$344:$L$351,0),1))),\"\")","v":""},{"$f":"IFERROR(IF('1A NASLOVNA'!$C$25='BAZA PODATKOV'!$A$8,\"\",(INDEX('VNOS PODATKOV'!$C$344:$K$351,MATCH(ROW()-ROW(A$91),'VNOS PODATKOV'!$L$344:$L$351,0),2))),\"\")","v":""}]
[{"$f":"IFERROR(IF('1A NASLOVNA'!$C$25='BAZA PODATKOV'!$A$8,\"\",(INDEX('VNOS PODATKOV'!$C$344:$K$351,MATCH(ROW()-ROW(A$91),'VNOS PODATKOV'!$L$344:$L$351,0),1))),\"\")","v":""},{"$f":"IFERROR(IF('1A NASLOVNA'!$C$25='BAZA PODATKOV'!$A$8,\"\",(INDEX('VNOS PODATKOV'!$C$344:$K$351,MATCH(ROW()-ROW(A$91),'VNOS PODATKOV'!$L$344:$L$351,0),2))),\"\")","v":""}]
[{"$f":"IFERROR(IF('1A NASLOVNA'!$C$25='BAZA PODATKOV'!$A$8,\"\",(INDEX('VNOS PODATKOV'!$C$344:$K$351,MATCH(ROW()-ROW(A$91),'VNOS PODATKOV'!$L$344:$L$351,0),1))),\"\")","v":""},{"$f":"IFERROR(IF('1A NASLOVNA'!$C$25='BAZA PODATKOV'!$A$8,\"\",(INDEX('VNOS PODATKOV'!$C$344:$K$351,MATCH(ROW()-ROW(A$91),'VNOS PODATKOV'!$L$344:$L$351,0),2))),\"\")","v":""}]
[{"$f":"IFERROR(IF('1A NASLOVNA'!$C$25='BAZA PODATKOV'!$A$8,\"\",(INDEX('VNOS PODATKOV'!$C$344:$K$351,MATCH(ROW()-ROW(A$91),'VNOS PODATKOV'!$L$344:$L$351,0),1))),\"\")","v":""},{"$f":"IFERROR(IF('1A NASLOVNA'!$C$25='BAZA PODATKOV'!$A$8,\"\",(INDEX('VNOS PODATKOV'!$C$344:$K$351,MATCH(ROW()-ROW(A$91),'VNOS PODATKOV'!$L$344:$L$351,0),2))),\"\")","v":""}]
[{"$f":"IFERROR(IF('1A NASLOVNA'!$C$25='BAZA PODATKOV'!$A$8,\"\",(INDEX('VNOS PODATKOV'!$C$344:$K$351,MATCH(ROW()-ROW(A$91),'VNOS PODATKOV'!$L$344:$L$351,0),1))),\"\")","v":""},{"$f":"IFERROR(IF('1A NASLOVNA'!$C$25='BAZA PODATKOV'!$A$8,\"\",(INDEX('VNOS PODATKOV'!$C$344:$K$351,MATCH(ROW()-ROW(A$91),'VNOS PODATKOV'!$L$344:$L$351,0),2))),\"\")","v":""}]

{"sheet":"4B PODATKI OBJEKTI","index":14,"n_rows":168,"n_cols":4,"rows_kept":168,"cut":false,"hidden":false,"merged":[[119,0,119,1],[36,0,36,1],[37,0,37,1],[38,0,38,1],[52,0,52,1],[29,0,29,1],[30,0,30,1],[31,0,31,1],[32,0,32,1],[102,2,102,3],[1,0,1,1],[160,0,160,3],[3,0,3,3],[12,0,12,3],[13,0,13,3],[26,0,26,2],[27,0,27,2],[33,0,33,2],[15,1,15,2],[16,1,16,2],[35,0,35,1],[17,1,17,2],[18,1,18,2],[19,1,19,2],[28,0,28,1],[11,2,11,3]]}
["PRILOGA 4B"]
["PODATKI O STAVBAH, \nGRADBENO INŽENIRSKIH OBJEKTIH \nIN ZUNANJI UREDITVI"]
[]
["podatki se vpisujejo za vsak objekt posebej, pri čemer se uporabi ustrezna predloga glede na vrsto objekta \n(stavbe, gradbeno inženirski objekti, zunanja ureditev)"]
[]
["STAVBA 1"]
["rubriko dodati za vsako stavbo posebej"]
["OSNOVNI PODATKI O STAVBI"]
["imenovanje objekta"]
["kratek opis objekta"]
["v opisu stavbe se navedejo podatki, pomembni za presojo mnenjedajalcev in upravnega organa"]
["klasifikacija po CC-SI"]
["KLASIFIKACIJA PO CC-SI IN DOLOČITEV DELEŽEV PRI VEČNAMENSKIH STAVBAH"]
["v DPP in DGD je pri večnamenskih stavbah obvezna določitev deleža, določenega s podrazredom po CC-SI, za najmanj 75 % površine posameznih delov, za ostale deleže pa vsaj do ravni skupine po CC-SI"]
["del","klasifikacija po CC-SI",null,"delež %"]
["del 1"]
["del 2 "]
["del 3"]
["del 4"]
["del 5"]
["po potrebi dodati vrstice"]
["glavni ali pripadajoči objekt"]
["vrsta gradnje"]
["zahtevnost objekta"]
["razvrstitev glede na požarno zahtevnost"]
["razvrstitev glede na univerzalno graditev in rabo objektov"]
["VELIKOST STAVBE"]
["GABARITI"]
["zunanje mere na stiku z zemljiščem \n(maksimalna širina x dolžina, premer ali podobno)"]
["najvišja višinska kota (n. v.)"]
["višinska kota pritličja (n. v.)"]
["najnižja višinska kota - kota tlaka najnižje etaže (n. v.)"]
["višina (največja razdalja od kote tlaka najnižje etaže \ndo vrha stavbe do najvišje višinske kote)",null,{"$f":"C30-C32","v":0}]
["POVRŠINE IN PROSTORNINE"]
["se ne izpolnjuje v DPP"]
["površina pod stavbo na stiku z zemljiščem"]
["uporabna površina za stanovanja in poslovne dejavnosti"]
["bruto tlorisna površina"]
["bruto prostornina"]
["ZNAČILNOSTI ZA STAVBE"]
["se ne izpolnjuje v DPP"]
["število stanovanjskih enot (stavbe)"]
["število ležišč, če gre za bolnice, hotele, ipd."]
["etažnost"]
["fasada"]
["oblika strehe"]
["naklon (v stopinjah)"]
["število parkirnih mest v stavbi"]
["število parkirnih mest za vozila oseb z invalidskimi vozički v stavbi "]
["drug podatek, zahtevan v PA"]
["NAVEDBA PODLAG ZA PROJEKTIRANJE"]
["samo v PZI; navede se, ali so bile pri projektiranju uporabljene tehnične smernice oziroma zadnje stanje gradbene tehnike"]
["uporaba evrokodov ali drugih pravil v zvezi z zagotavljanjem mehanske odpornosti in stabilnosti pri projektiranju"]
["požarna varnost v stavbah"]
["nizkonapetostne električne inštalacije"]
["zaščita pred delovanjem strele"]
["učinkovita raba energije"]
["zaščita pred hrupom v stavbah"]
["druge tehnične smernice"]
["GRADBENA PARCELA"]
["se ne izpolnjuje v DPP"]
["velikost gradbene parcele m2",null,{"$f":"+D70+D77+D84","v":0}]
["seštevek območij gradbene parcele (A+B+C)"]
["GRADBENA PARCELA - ENA ALI VEČ PARCEL"]
["k. o. ","parc. št.","parcela m2","območje gradbene parcele m2"]
[]
[]
[]
[]
["po potrebi dodati vrstice in preveriti seštevek",null,null,{"$f":"SUM(D66:D69)","v":0}]
["GRADBENA PARCELA - OBMOČJA STVARNE SLUŽNOSTI"]
["k. o. ","parc. št.","parcela m2","območje gradbene parcele m2"]
[]
[]
[]
[]
["po potrebi dodati vrstice in preveriti seštevek",null,null,{"$f":"SUM(D73:D76)","v":0}]
["GRADBENA PARCELA - OBMOČJA STAVBNIH PRAVIC"]
["k. o. ","parc. št.","parcela m2","območje gradbene parcele m2"]
[]
[]
[]
[]
["po potrebi dodati vrstice in preveriti seštevek",null,null,{"$f":"SUM(D80:D83)","v":0}]
["ODMIKI OD SOSEDNJIH ZEMLJIŠČ"]
["samo v DGD in PZI"]
["k. o. ","parc. št.",null,"odmik v m (0,0)"]
[]
[]
[]
[]
["po potrebi dodati vrstico"]
[]
[]
[]
[]
["GRADBENI INŽENIRSKI OBJEKT 1"]
["rubriko dodati za vsak gradbeno inženirski objekt posebej"]
["OSNOVNI PODATKI O GRADBENO INŽENIRSKEM OBJEKTU"]
["imenovanje objekta"]
["kratek opis objekta"]
["v opisu objekta se navedejo podatki, pomembni za presojo mnenjedajalcev in upravnega organa"]
["klasifikacija po CC-SI"]
["glavni ali pripadajoči objekt"]
["vrsta gradnje"]
["zahtevnost objekta"]
["razvrstitev glede na požarno zahtevnost"]
["razvrstitev glede na univerzalno graditev in rabo objektov"]
["ZNAČILNOSTI ZA GRADBENO INŽENIRSKE OBJEKTE"]
["višina"]
["širina"]
["globina"]
["dolžina"]
["nosilni razpon"]
["bruto tlorisna površina"]
["bruto prostornina"]
["opis zmogljivosti (pretok, tlak, premer, napetost, PE ipd.)"]
["NAVEDBA PODLAG ZA PROJEKTIRANJE"]
["Samo v PZI, navede se ali so bile pri projektiranju uporabljene tehnične smernice oziroma zadnje stanje gradbene tehnike."]
["uporaba evrokodov ali drugih pravil v zvezi z zagotavljanjem mehanske odpornosti in stabilnosti pri projektiranju"]
["druge tehnične smernice"]
["GRADBENA PARCELA"]
["samo v DGD"]
["velikost gradbene parcele m2",null,{"$f":"+D131+D137+D143","v":0}]
["seštevek območij gradbene parcele (A+B+C)"]
["GRADBENA PARCELA - ENA ALI VEČ PARCEL"]
["k. o. ","parc. št.","parcela m2","območje gradbene parcele m2"]
[]
[]
[]
["po potrebi dodati vrstice in posodobiti avtomatično seštevanje",null,null,{"$f":"SUM(D128:D130)","v":0}]
["GRADBENA PARCELA - OBMOČJA STVARNE SLUŽNOSTI"]
["k. o. ","parc. št.","parcela m2","območje gradbene parcele m2"]
[]
[]
[]
["po potrebi dodati vrstice in posodobiti avtomatično seštevanje",null,null,{"$f":"SUM(D134:D136)","v":0}]
["GRADBENA PARCELA - OBMOČJA STAVBNIH PRAVIC"]
["k. o. ","parc. št.","parcela m2","območje gradbene parcele m2"]
[]
[]
[]
["po potrebi dodati vrstice in posodobiti avtomatično seštevanje",null,null,{"$f":"SUM(D140:D142)","v":0}]
["ODMIKI OD SOSEDNJIH ZEMLJIŠČ"]
["samo v DGD in PZI"]
["k. o. ","parc. št.",null,"odmik v m (0,0)"]
[]
[]
[]
[]
["po potrebi dodati vrstico"]
[]
[]
[]
[]
[]
["ZUNANJA UREDITEV STAVB"]
[]
["OSNOVNI PODATKI O OBJEKTU"]
["utrjene zunanje površine (promet, komunala, tehnične površine)"]
["v opisu se navedejo podatki o dostopih, dovozih, številu in vrsti parkirnih mest, površinah za zbiranje komunalnih odpadkov, \npovršinah za intervencijo in evakuacijo ipd."]
["utrjene zunanje površine (bivanje na prostem)"]
["v opisu se navedejo podatki o terasah, igriščih, utrjenih površinah, zelenih strehah ipd."]
["površine raščenega dela"]
["v opisu se navedejo podatki o ureditvah zelenih ali obvodnih površin, krajine in odprtega prostora ipd."]
["ostale ureditve"]
["v opisu se navedejo podatki o urbani opremi, igralih, razsvetljavi ipd."]
["po potrebi dodati vrstico"]

{"sheet":"4C ZEMLJIŠČA","index":15,"n_rows":125,"n_cols":4,"rows_kept":125,"cut":false,"hidden":false,"merged":[[50,1,50,2],[58,1,58,2],[66,1,66,2],[74,1,74,2],[82,1,82,2],[87,1,87,3],[106,1,106,3],[107,1,107,3],[94,1,94,3],[95,1,95,3],[90,1,90,2],[113,1,113,3],[114,0,114,3],[115,0,115,3],[116,0,116,3],[109,0,109,3],[110,0,110,3],[111,1,111,3],[112,1,112,3],[117,1,117,3],[123,1,123,3],[124,0,124,3],[118,1,118,3],[119,0,119,3],[120,0,120,3],[121,0,121,3],[122,1,122,3],[1,0,1,1],[3,0,3,3],[4,1,4,3],[6,0,6,3],[5,1,5,3],[24,0,24,3],[23,0,23,3],[30,1,30,3],[31,1,31,3],[38,1,38,3],[39,1,39,3],[46,1,46,3],[47,1,47,3],[26,1,26,2],[34,1,34,2],[42,1,42,2],[86,1,86,3],[54,1,54,3],[55,1,55,3],[62,1,62,3],[63,1,63,3],[78,1,78,3],[79,1,79,3],[70,1,70,3],[71,1,71,3]]}
["PRILOGA 4C"]
["PODATKI \nO ZEMLJIŠČIH"]
[]
["SEZNAM A: OBJEKTI IN ZUNANJA UREDITEV OBJEKTA (GRADBENA PARCELA)"]
["katastrska občina"]
["parc. št."]
["po potrebi dodati vrstice"]
["velikost gradbene parcele m2",{"$f":"+D13+D18+D23","v":0}]
["GRADBENA PARCELA - ENA ALI VEČ PARCEL"]
["katastrska občina","parc. št.","parcela m2","območje gradbene parcele m2"]
[]
[]
["po potrebi dodati vrstice za vsako parcelo in preveriti seštevek",null,null,{"$f":"SUM(D11:D12)","v":0}]
["GRADBENA PARCELA - OBMOČJA STVARNE SLUŽNOSTI"]
["katastrska občina","parc. št.","parcela m2","območje gradbene parcele m2"]
[]
[]
["po potrebi dodati vrstice za vsako parcelo in preveriti seštevek",null,null,{"$f":"SUM(D16:D17)","v":0}]
["GRADBENA PARCELA - OBMOČJA STAVBNIH PRAVIC"]
["katastrska občina","parc. št.","parcela m2","območje gradbene parcele m2"]
[]
[]
["po potrebi dodati vrstice za vsako parcelo in preveriti seštevek",null,null,{"$f":"SUM(D21:D22)","v":0}]
["SEZNAM B: POTEKI PRIKLJUČKOV NA INFRASTRUKTURO ZARADI ZAGOTAVLJANJA \nKOMUNALNE OSKRBE IN PRIKLJUČEVANJA NA INFRASTRUKTURO"]
["obstoječi priključki, ki se ne spreminjajo, se ne vpisujejo; vpisati potek priključkov od objekta do mesta priključevanja"]
["OSKRBA S PITNO VODO"]
["predvidena komunalna oskrba"]
["kapaciteta, prerez, širina, moč ipd.","način priključevanja","k. o. mesta priključevanja","parc. št. mesta priključevanja"]
[]
["POTEK PRIKLJUČKA"]
["katastrska občina"]
["parc. št."]
["po potrebi dodati vrstice"]
["ELEKTRIKA"]
[{"$f":"A27","v":"predvidena komunalna oskrba"}]
[{"$f":"A28","v":"kapaciteta, prerez, širina, moč ipd."},{"$f":"B28","v":"način priključevanja"},{"$f":"C28","v":"k. o. mesta priključevanja"},{"$f":"D28","v":"parc. št. mesta priključevanja"}]
[]
[{"$f":"A30","v":"POTEK PRIKLJUČKA"}]
["katastrska občina"]
["parc. št."]
["po potrebi dodati vrstice"]
["PLIN"]
[{"$f":"A27","v":"predvidena komunalna oskrba"}]
[{"$f":"A36","v":"kapaciteta, prerez, širina, moč ipd."},{"$f":"B36","v":"način priključevanja"},{"$f":"C36","v":"k. o. mesta priključevanja"},{"$f":"D36","v":"parc. št. mesta priključevanja"}]
[]
[{"$f":"A30","v":"POTEK PRIKLJUČKA"}]
["katastrska občina"]
["parc. št."]
["po potrebi dodati vrstice"]
["TOPLOVOD"]
[{"$f":"A27","v":"predvidena komunalna oskrba"}]
[{"$f":"A44","v":"kapaciteta, prerez, širina, moč ipd."},{"$f":"B44","v":"način priključevanja"},{"$f":"C44","v":"k. o. mesta priključevanja"},{"$f":"D44","v":"parc. št. mesta priključevanja"}]
[]
[{"$f":"A30","v":"POTEK PRIKLJUČKA"}]
["katastrska občina"]
["parc. št."]
["po potrebi dodati vrstice"]
["DRUGA OSKRBA Z ENERGIJO"]
[{"$f":"A27","v":"predvidena komunalna oskrba"}]
[{"$f":"A52","v":"kapaciteta, prerez, širina, moč ipd."},{"$f":"B52","v":"način priključevanja"},{"$f":"C52","v":"k. o. mesta priključevanja"},{"$f":"D52","v":"parc. št. mesta priključevanja"}]
[]
[{"$f":"A30","v":"POTEK PRIKLJUČKA"}]
["katastrska občina"]
["parc. št."]
["po potrebi dodati vrstice"]
["ODVAJANJE FEKALNIH VODA"]
[{"$f":"A27","v":"predvidena komunalna oskrba"}]
[{"$f":"A60","v":"kapaciteta, prerez, širina, moč ipd."},{"$f":"B60","v":"način priključevanja"},{"$f":"C60","v":"k. o. mesta priključevanja"},{"$f":"D60","v":"parc. št. mesta priključevanja"}]
[]
[{"$f":"A30","v":"POTEK PRIKLJUČKA"}]
["katastrska občina"]
["parc. št."]
["po potrebi dodati vrstice"]
["ODVAJANJE METEORNIH VODA"]
[{"$f":"A27","v":"predvidena komunalna oskrba"}]
[{"$f":"A68","v":"kapaciteta, prerez, širina, moč ipd."},{"$f":"B68","v":"način priključevanja"},{"$f":"C68","v":"k. o. mesta priključevanja"},{"$f":"D68","v":"parc. št. mesta priključevanja"}]
[]
[{"$f":"A30","v":"POTEK PRIKLJUČKA"}]
["katastrska občina"]
["parc. št."]
["po potrebi dodati vrstice"]
["KOMUNIKCACIJSKI VODI"]
[{"$f":"A27","v":"predvidena komunalna oskrba"}]
[{"$f":"A76","v":"kapaciteta, prerez, širina, moč ipd."},{"$f":"B76","v":"način priključevanja"},{"$f":"C76","v":"k. o. mesta priključevanja"},{"$f":"D76","v":"parc. št. mesta priključevanja"}]
[]
[{"$f":"A30","v":"POTEK PRIKLJUČKA"}]
["katastrska občina"]
["parc. št."]
["po potrebi dodati vrstice"]
["DOSTOP DO JAVNE POTI ALI CESTE"]
[{"$f":"A27","v":"predvidena komunalna oskrba"}]
[{"$f":"A84","v":"kapaciteta, prerez, širina, moč ipd."},{"$f":"B84","v":"način priključevanja"},{"$f":"C84","v":"k. o. mesta priključevanja"},{"$f":"D84","v":"parc. št. mesta priključevanja"}]
[]
[{"$f":"A30","v":"POTEK PRIKLJUČKA"}]
["katastrska občina"]
["parc. št."]
["po potrebi dodati vrstice"]
["ZBIRANJE KOM. ODPADKOV"]
[{"$f":"A92","v":"kapaciteta, prerez, širina, moč ipd."},null,"k. o. mesta odvzema","parc. št. mesta odvzema"]
[]
["po potrebi dodati vrstice"]
["DRUGO (NAVEDI)"]
[{"$f":"A27","v":"predvidena komunalna oskrba"}]
[{"$f":"A92","v":"kapaciteta, prerez, širina, moč ipd."},{"$f":"B92","v":"način priključevanja"},{"$f":"C92","v":"k. o. mesta priključevanja"},{"$f":"D92","v":"parc. št. mesta priključevanja"}]
[]
[{"$f":"A86","v":"POTEK PRIKLJUČKA"}]
["katastrska občina"]
["parc. št."]
["po potrebi dodati vrstice"]
["SEZNAM C: PRESTAVITVE INFRASTRUKTURNIH OBJEKTOV"]
["navede se samo vrsta infrastrukture, ki se prestavlja, navesti zemljišča prestavljenega voda"]
["vrsta infrastrukture"]
["katastrska občina"]
["parc. št."]
["po potrebi dodati vrstice"]
["SEZNAM D: OBMOČJE GRADBIŠČA IZVEN SEZNAMA A"]
["izpolniti samo v DGD in PZI; zemljišča, na katerih se bo izvajala samo gradnja ali prestavitev infrastrukturnih objektov se ne vpisuje"]
["katastrska občina"]
["parc. št."]
["po potrebi dodati vrstice"]
["SEZNAM E: ZEMLJIŠČA ZA DRUGE UREDITVE"]
["Seznam se izpolni samo v DGD, ne pri nezahtevnih objektih in spremembi namembnosti. Vpišejo se zemljišča za ureditve, ki jih je treba izvesti zaradi nameravane gradnje (npr. nadomestni habtitati)."]
["katastrska občina"]
["parc. št."]
["po potrebi dodati vrstice"]

{"sheet":"4D ODMERA KMET. ZEMLJIŠČA","index":16,"n_rows":23,"n_cols":8,"rows_kept":23,"cut":false,"hidden":false,"merged":[[5,5,5,7],[1,0,1,4]]}
["PRILOGA 4D"]
["PODATKI ZA ODMERO ODŠKODNINE \nZARADI SPREMEMBE NAMEMBNOSTI KMETIJSKEGA ZEMLJIŠČA"]
[]
["PODATKI ZA ODMERO ODŠKODNINE"]
[]
[null,null,null,null,null,"površina gradnje (m2)"]
["katast. občina","parcelna številka","površina \nparcele [m2]","šifra dejanske rabe","bonitet. točke","CC-SI:\n1 stavbe\n23 Industrij. gradbeni kompleksi","parkirišča in zunanja ureditev pri stavbah","CC-SI:\n21 Objekti prometne infrastrukt.\n24 Drugi gradbeno inž. objekti"]
[]
[]
[]
[]
[]
[]
[]
[]
[]
[]
[]
[]
[]
[]
[]
["po potrebi dodati vrstice"]

{"sheet":"8A POGOJI VLOGA","index":17,"n_rows":68,"n_cols":3,"rows_kept":68,"cut":false,"hidden":false,"merged":[[61,0,61,2],[1,0,1,2],[34,0,34,2],[30,0,30,2],[31,0,31,1],[32,0,32,1],[17,0,17,2]]}
["PRILOGA 8A"]
["ZAHTEVA ZA IZDAJO PROJEKTNIH \nIN DRUGIH POGOJEV"]
[]
[{"$f":"'VNOS PODATKOV'!C44","v":"INVESTITOR"}]
[{"$f":"'VNOS PODATKOV'!C45","v":"INVESTITOR 1"}]
[{"$f":"'VNOS PODATKOV'!C46","v":"ime in priimek ali naziv družbe"},null,{"$f":"'VNOS PODATKOV'!D46","v":0}]
[{"$f":"'VNOS PODATKOV'!C47","v":"naslov ali poslovni naslov družbe"},null,{"$f":"'VNOS PODATKOV'!D47","v":0}]
[{"$f":"'VNOS PODATKOV'!C48","v":"davčna številka"},null,{"$f":"'VNOS PODATKOV'!D48","v":0}]
[{"$f":"'VNOS PODATKOV'!C49","v":"INVESTITOR 2"}]
[{"$f":"'VNOS PODATKOV'!C50","v":"ime in priimek ali naziv družbe"},null,{"$f":"'VNOS PODATKOV'!D50","v":0}]
[{"$f":"'VNOS PODATKOV'!C51","v":"naslov ali poslovni naslov družbe"},null,{"$f":"'VNOS PODATKOV'!D51","v":0}]
[{"$f":"'VNOS PODATKOV'!C52","v":"davčna številka"},null,{"$f":"'VNOS PODATKOV'!D52","v":0}]
[{"$f":"'VNOS PODATKOV'!C53","v":"INVESTITOR 3"}]
[{"$f":"'VNOS PODATKOV'!C54","v":"ime in priimek ali naziv družbe"},null,{"$f":"'VNOS PODATKOV'!D54","v":0}]
[{"$f":"'VNOS PODATKOV'!C55","v":"naslov ali poslovni naslov družbe"},null,{"$f":"'VNOS PODATKOV'!D55","v":0}]
[{"$f":"'VNOS PODATKOV'!C56","v":"davčna številka"},null,{"$f":"'VNOS PODATKOV'!D56","v":0}]
[]
[{"$f":"'VNOS PODATKOV'!C57","v":"KONTAKTNA OSEBA"}]
[{"$f":"'VNOS PODATKOV'!C58","v":"ime in priimek"},null,{"$f":"'VNOS PODATKOV'!D58","v":0}]
[{"$f":"'VNOS PODATKOV'!C59","v":"telefonska številka"},null,{"$f":"'VNOS PODATKOV'!D59","v":0}]
[{"$f":"'VNOS PODATKOV'!C60","v":"elektronski naslov"},null,{"$f":"'VNOS PODATKOV'!D60","v":0}]
[]
[{"$f":"'VNOS PODATKOV'!C61","v":"POOBLAŠČENEC"}]
[{"$f":"'VNOS PODATKOV'!C62","v":"podatki se vpišejo, kadar je imenovan pooblaščenec"}]
[{"$f":"'VNOS PODATKOV'!C64","v":"ime in priimek ali naziv družbe"},null,{"$f":"IF('VNOS PODATKOV'!D$63=TRUE,'VNOS PODATKOV'!D64, \"\")","v":""}]
[{"$f":"'VNOS PODATKOV'!C65","v":"naslov ali poslovni naslov družbe"},null,{"$f":"IF('VNOS PODATKOV'!D$63=TRUE,'VNOS PODATKOV'!D65, \"\")","v":""}]
[{"$f":"'VNOS PODATKOV'!C66","v":"kontaktna oseba"},null,{"$f":"IF('VNOS PODATKOV'!D$63=TRUE,'VNOS PODATKOV'!D66, \"\")","v":""}]
[{"$f":"'VNOS PODATKOV'!C67","v":"telefonska številka"},null,{"$f":"IF('VNOS PODATKOV'!D$63=TRUE,'VNOS PODATKOV'!D67, \"\")","v":""}]
[{"$f":"'VNOS PODATKOV'!C68","v":"elektronski naslov"},null,{"$f":"IF('VNOS PODATKOV'!D$63=TRUE,'VNOS PODATKOV'!D68, \"\")","v":""}]
[]
["NAVEDBA ORGANA, PRI KATEREM SE VLAGA ZAHTEVA"]
[{"$f":"'VNOS PODATKOV'!C355","v":"naziv"}]
[{"$f":"'VNOS PODATKOV'!C356","v":"naslov"}]
[]
[{"$f":"'VNOS PODATKOV'!C172","v":"PODATKI O GRADNJI"}]
[{"$f":"'VNOS PODATKOV'!C175","v":"naziv gradnje"},null,{"$f":"'VNOS PODATKOV'!D175","v":0}]
[{"$f":"'VNOS PODATKOV'!C177","v":"kratek opis gradnje"},null,{"$f":"'VNOS PODATKOV'!D177","v":0}]
[null,{"$f":"IF('VNOS PODATKOV'!D213=TRUE,TRUE,FALSE)","v":false},{"$f":"'VNOS PODATKOV'!C213","v":"objekt z vplivi na okolje"}]
[{"$f":"'VNOS PODATKOV'!C199","v":"VRSTE GRADNJE"}]
["navesti vse ustrezne vrste gradnje"]
[null,{"$f":"IF('VNOS PODATKOV'!D201=TRUE,TRUE,FALSE)","v":false},{"$f":"'VNOS PODATKOV'!C201","v":"NOVOGRADNJA - NOVOZGRAJEN OBJEKT"}]
[null,{"$f":"IF('VNOS PODATKOV'!D202=TRUE,TRUE,FALSE)","v":false},{"$f":"'VNOS PODATKOV'!C202","v":"NOVOGRADNJA - PRIZIDAVA"}]
[null,{"$f":"IF('VNOS PODATKOV'!D203=TRUE,TRUE,FALSE)","v":false},{"$f":"'VNOS PODATKOV'!C203","v":"REKONSTRUKCIJA"}]
[null,{"$f":"IF('VNOS PODATKOV'!D204=TRUE,TRUE,FALSE)","v":false},{"$f":"'VNOS PODATKOV'!C204","v":"SPREMEMBA NAMEMBNOSTI"}]
[null,{"$f":"IF('VNOS PODATKOV'!D205=TRUE,TRUE,FALSE)","v":false},{"$f":"'VNOS PODATKOV'!C205","v":"ODSTRANITEV CELOTNEGA OBJEKTA"}]
[null,{"$f":"IF('VNOS PODATKOV'!D206=TRUE,TRUE,FALSE)","v":false},{"$f":"'VNOS PODATKOV'!C206","v":"LEGALIZACIJA"}]
[null,{"$f":"IF('VNOS PODATKOV'!D207=TRUE,TRUE,FALSE)","v":false},{"$f":"'VNOS PODATKOV'!C207","v":"MANJŠA REKONSTRUKCIJA"}]
[]
[{"$f":"'VNOS PODATKOV'!C156","v":"PODATKI O PROJEKTNI DOKUMENTACIJI"}]
[{"$f":"'VNOS PODATKOV'!C157","v":"podatki se vpišejo, če dokumentacijo izdela projektant"}]
[{"$f":"'VNOS PODATKOV'!C159","v":"vrsta projektne dokumentacije"},null,{"$f":"'VNOS PODATKOV'!D159","v":"DPP (projektna dokumentacija za pridobitev projektnih in drugih pogojev)"}]
[{"$f":"'VNOS PODATKOV'!C160","v":"številka projekta"},null,{"$f":"'VNOS PODATKOV'!D160","v":0}]
["datum izdelave projekta",null,{"$f":"'VNOS PODATKOV'!D161","v":"00:00:00"}]
[{"$f":"'VNOS PODATKOV'!C87","v":"projektant (naziv družbe)"},null,{"$f":"'VNOS PODATKOV'!D87","v":0}]
[]
[null,null,"Na podlagi navedenih podatkov vas prosim za določitev projektnih pogojev \nv skladu z vašimi pristojnostmi."]
[]
["datum",null,"podpis vložnika"]
[{"$f":"TODAY()","v":"2023-06-07"}]
[]
[]
["PRILOGE"]
["ustrezno označiti"]
[null,false,"Pooblastilo (če zahteve ne vlaga investitor)"]
[null,false,"Projektna dokumentacija za pridobitev projektnih in drugih pogojev  (DPP)"]
[null,false,"Dokumentacija za pridobitev gradbenega dovoljenja za nezahtevne objekte (DNZO)"]
[null,false,"Dokumentacija za pridobitev gradbenega dovoljenja za spremembo namembnosti (DSN)"]
[null,false,"Druge priloge (navesti, katere):"]

{"sheet":"9A MNENJA VLOGA","index":18,"n_rows":110,"n_cols":3,"rows_kept":110,"cut":false,"hidden":false,"merged":[[78,0,78,2],[55,0,55,2],[73,0,73,2],[100,0,100,2],[1,0,1,2],[71,0,71,1],[62,0,62,2],[67,0,67,2],[64,0,64,1],[40,0,40,2],[69,0,69,1],[30,0,30,2],[17,0,17,2],[3,0,3,2]]}
["PRILOGA 9A"]
["ZAHTEVA ZA IZDAJO MNENJA"]
[]
[{"$f":"'VNOS PODATKOV'!C44","v":"INVESTITOR"}]
[{"$f":"'VNOS PODATKOV'!C45","v":"INVESTITOR 1"}]
[{"$f":"'VNOS PODATKOV'!C46","v":"ime in priimek ali naziv družbe"},null,{"$f":"'VNOS PODATKOV'!D46","v":0}]
[{"$f":"'VNOS PODATKOV'!C47","v":"naslov ali poslovni naslov družbe"},null,{"$f":"'VNOS PODATKOV'!D47","v":0}]
[{"$f":"'VNOS PODATKOV'!C48","v":"davčna številka"},null,{"$f":"'VNOS PODATKOV'!D48","v":0}]
[{"$f":"'VNOS PODATKOV'!C49","v":"INVESTITOR 2"}]
[{"$f":"'VNOS PODATKOV'!C50","v":"ime in priimek ali naziv družbe"},null,{"$f":"'VNOS PODATKOV'!D50","v":0}]
[{"$f":"'VNOS PODATKOV'!C51","v":"naslov ali poslovni naslov družbe"},null,{"$f":"'VNOS PODATKOV'!D51","v":0}]
[{"$f":"'VNOS PODATKOV'!C52","v":"davčna številka"},null,{"$f":"'VNOS PODATKOV'!D52","v":0}]
[{"$f":"'VNOS PODATKOV'!C53","v":"INVESTITOR 3"}]
[{"$f":"'VNOS PODATKOV'!C54","v":"ime in priimek ali naziv družbe"},null,{"$f":"'VNOS PODATKOV'!D54","v":0}]
[{"$f":"'VNOS PODATKOV'!C55","v":"naslov ali poslovni naslov družbe"},null,{"$f":"'VNOS PODATKOV'!D55","v":0}]
[{"$f":"'VNOS PODATKOV'!C56","v":"davčna številka"},null,{"$f":"'VNOS PODATKOV'!D56","v":0}]
[]
[{"$f":"'VNOS PODATKOV'!C57","v":"KONTAKTNA OSEBA"}]
[{"$f":"'VNOS PODATKOV'!C58","v":"ime in priimek"},null,{"$f":"'VNOS PODATKOV'!D58","v":0}]
[{"$f":"'VNOS PODATKOV'!C59","v":"telefonska številka"},null,{"$f":"'VNOS PODATKOV'!D59","v":0}]
[{"$f":"'VNOS PODATKOV'!C60","v":"elektronski naslov"},null,{"$f":"'VNOS PODATKOV'!D60","v":0}]
[]
[{"$f":"'VNOS PODATKOV'!C61","v":"POOBLAŠČENEC"}]
[{"$f":"'VNOS PODATKOV'!C62","v":"podatki se vpišejo, kadar je imenovan pooblaščenec"}]
[{"$f":"'VNOS PODATKOV'!C64","v":"ime in priimek ali naziv družbe"},null,{"$f":"IF('VNOS PODATKOV'!D$63=TRUE,'VNOS PODATKOV'!D64, \"\")","v":""}]
[{"$f":"'VNOS PODATKOV'!C65","v":"naslov ali poslovni naslov družbe"},null,{"$f":"IF('VNOS PODATKOV'!D$63=TRUE,'VNOS PODATKOV'!D65, \"\")","v":""}]
[{"$f":"'VNOS PODATKOV'!C66","v":"kontaktna oseba"},null,{"$f":"IF('VNOS PODATKOV'!D$63=TRUE,'VNOS PODATKOV'!D66, \"\")","v":""}]
[{"$f":"'VNOS PODATKOV'!C67","v":"telefonska številka"},null,{"$f":"IF('VNOS PODATKOV'!D$63=TRUE,'VNOS PODATKOV'!D67, \"\")","v":""}]
[{"$f":"'VNOS PODATKOV'!C68","v":"elektronski naslov"},null,{"$f":"IF('VNOS PODATKOV'!D$63=TRUE,'VNOS PODATKOV'!D68, \"\")","v":""}]
[]
["NAVEDBA ORGANA, PRI KATEREM SE VLAGA ZAHTEVA"]
[{"$f":"'VNOS PODATKOV'!C355","v":"naziv"}]
[{"$f":"'VNOS PODATKOV'!C356","v":"naslov"}]
[{"$f":"'VNOS PODATKOV'!D288","v":"naziv mnenja"},null,"MNENJE"]
[]
["PRIDOBLJENI PROJEKTNI POGOJI"]
["vpišejo se podatki o projektnih pogojih, če so bili pridobljeni"]
[{"$f":"'VNOS PODATKOV'!G288","v":"številka projektnih pogojev"}]
[{"$f":"'VNOS PODATKOV'!H288","v":"datum projektnih pogojev"}]
[]
[{"$f":"'VNOS PODATKOV'!C172","v":"PODATKI O GRADNJI"}]
[{"$f":"'VNOS PODATKOV'!C175","v":"naziv gradnje"},null,{"$f":"'VNOS PODATKOV'!D175","v":0}]
[{"$f":"'VNOS PODATKOV'!C177","v":"kratek opis gradnje"},null,{"$f":"'VNOS PODATKOV'!D177","v":0}]
[null,{"$f":"IF('VNOS PODATKOV'!D213=TRUE,TRUE,FALSE)","v":false},{"$f":"'VNOS PODATKOV'!C213","v":"objekt z vplivi na okolje"}]
[null,{"$f":"IF('VNOS PODATKOV'!D219=TRUE,TRUE,FALSE)","v":false},{"$f":"'VNOS PODATKOV'!C219","v":"predhodna presoja vplivov na okolje"}]
[{"$f":"'VNOS PODATKOV'!C199","v":"VRSTE GRADNJE"}]
["navesti vse ustrezne vrste gradnje"]
[null,{"$f":"IF('VNOS PODATKOV'!D201=TRUE,TRUE,FALSE)","v":false},{"$f":"'VNOS PODATKOV'!C201","v":"NOVOGRADNJA - NOVOZGRAJEN OBJEKT"}]
[null,{"$f":"IF('VNOS PODATKOV'!D202=TRUE,TRUE,FALSE)","v":false},{"$f":"'VNOS PODATKOV'!C202","v":"NOVOGRADNJA - PRIZIDAVA"}]
[null,{"$f":"IF('VNOS PODATKOV'!D203=TRUE,TRUE,FALSE)","v":false},{"$f":"'VNOS PODATKOV'!C203","v":"REKONSTRUKCIJA"}]
[null,{"$f":"IF('VNOS PODATKOV'!D204=TRUE,TRUE,FALSE)","v":false},{"$f":"'VNOS PODATKOV'!C204","v":"SPREMEMBA NAMEMBNOSTI"}]
[null,{"$f":"IF('VNOS PODATKOV'!D205=TRUE,TRUE,FALSE)","v":false},{"$f":"'VNOS PODATKOV'!C205","v":"ODSTRANITEV CELOTNEGA OBJEKTA"}]
[null,{"$f":"IF('VNOS PODATKOV'!D206=TRUE,TRUE,FALSE)","v":false},{"$f":"'VNOS PODATKOV'!C206","v":"LEGALIZACIJA"}]
[null,{"$f":"IF('VNOS PODATKOV'!D207=TRUE,TRUE,FALSE)","v":false},{"$f":"'VNOS PODATKOV'!C207","v":"MANJŠA REKONSTRUKCIJA"}]
[]
["PODATKI O PROJEKTNI DOKUMENTACIJI"]
[{"$f":"'VNOS PODATKOV'!C157","v":"podatki se vpišejo, če dokumentacijo izdela projektant"}]
["vrsta dokumentacije",null,{"$f":"'VNOS PODATKOV'!E159","v":"DGD (projektna dokumentacija za pridobivanje mnenj in gradbenega dovoljenja)"}]
[{"$f":"'VNOS PODATKOV'!C160","v":"številka projekta"},null,{"$f":"'VNOS PODATKOV'!E160","v":0}]
[{"$f":"'VNOS PODATKOV'!C161","v":"datum izdelave"},null,{"$f":"'VNOS PODATKOV'!E161","v":"00:00:00"}]
[{"$f":"'VNOS PODATKOV'!C87","v":"projektant (naziv družbe)"},null,{"$f":"'VNOS PODATKOV'!D87","v":0}]
[]
["PREDHODNA PRESOJA VPLIVOV NA OKOLJE"]
[{"$f":"'VNOS PODATKOV'!C218","v":"podatki se vpišejo, če gre za objekt z vplivi na okolje in če je bil izveden predhodni postopek v skladu z zakonom, ki ureja varstvo okolja"}]
[{"$f":"'VNOS PODATKOV'!C220","v":"številka sklepa"},null,{"$f":"'VNOS PODATKOV'!D220","v":0}]
[{"$f":"'VNOS PODATKOV'!C221","v":"datum sklepa"},null,{"$f":"'VNOS PODATKOV'!D221","v":"00:00:00"}]
[]
["POROČILO O VPLIVIH NA OKOLJE (PVO)"]
[{"$f":"'VNOS PODATKOV'!C212","v":"podatki se vpišejo, kadar gre za objekt z vplivi na okolje"}]
[{"$f":"'VNOS PODATKOV'!C214","v":"številka poročila"},null,{"$f":"'VNOS PODATKOV'!D214","v":0}]
[{"$f":"'VNOS PODATKOV'!C215","v":"datum izdelave poročila"},null,{"$f":"'VNOS PODATKOV'!D215","v":"00:00:00"}]
[{"$f":"'VNOS PODATKOV'!C216","v":"izdelovalec poročila"},null,{"$f":"'VNOS PODATKOV'!D216","v":0}]
[]
[{"$f":"'VNOS PODATKOV'!C222","v":"PODATKI O VODNI PRAVICI"}]
[{"$f":"'VNOS PODATKOV'!C223","v":"navedejo se podatki o vodni pravici, če je bila pridobljena"}]
[{"$f":"'VNOS PODATKOV'!C225","v":"številka "},null,{"$f":"'VNOS PODATKOV'!D225","v":0}]
[{"$f":"'VNOS PODATKOV'!C226","v":"datum izdaje"},null,{"$f":"'VNOS PODATKOV'!D226","v":"00:00:00"}]
[]
[{"$f":"'VNOS PODATKOV'!C227","v":"PODATKI O DOVOLJENJU ZA RAZISKAVO PODZEMNIH VODA"}]
[{"$f":"'VNOS PODATKOV'!C228","v":"navedejo se podatki o dovoljenju za raziskavo podzemnih voda, če je bilo pridobljeno"}]
[{"$f":"'VNOS PODATKOV'!C229","v":"številka "},null,{"$f":"'VNOS PODATKOV'!D229","v":0}]
[{"$f":"'VNOS PODATKOV'!C230","v":"datum izdaje"},null,{"$f":"'VNOS PODATKOV'!D230","v":"00:00:00"}]
[]
[{"$f":"'VNOS PODATKOV'!C231","v":"PODATKI O VODNIH ZEMLJIŠČIH ZARADI USTANOVITEV STVARNE SLUŽNOSTI"}]
[{"$f":"'VNOS PODATKOV'!C232","v":"podatki se navedejo, če se poseg načrtuje na vodnih ali priobalnih zemljiščih v lasti države"}]
[{"$f":"'VNOS PODATKOV'!C234","v":"katastrska občina"},null,{"$f":"'VNOS PODATKOV'!D234","v":0}]
[{"$f":"'VNOS PODATKOV'!C235","v":"številka katastrske občine"},null,{"$f":"'VNOS PODATKOV'!D235","v":0}]
[{"$f":"'VNOS PODATKOV'!C236","v":"parc. št."},null,{"$f":"'VNOS PODATKOV'!D236","v":0}]
[{"$f":"'VNOS PODATKOV'!C237","v":"služnostni upravičenec"},null,{"$f":"'VNOS PODATKOV'!D237","v":0}]
[{"$f":"'VNOS PODATKOV'!C238","v":"matična številka"},null,{"$f":"'VNOS PODATKOV'!D238","v":0}]
[{"$f":"'VNOS PODATKOV'!C239","v":"davčna številka"},null,{"$f":"'VNOS PODATKOV'!D239","v":0}]
[{"$f":"'VNOS PODATKOV'!C240","v":"zakoniti zastopnik"},null,{"$f":"'VNOS PODATKOV'!D240","v":0}]
[]
[]
[null,null,"Na podlagi navedenih podatkov vas prosim za mnenje, ali je priložena dokumentacija skladna s predpisi iz vaše pristojnosti, ter za določitev morebitnih pogojev za izvedbo gradnje in uporabo objekta."]
[]
["datum",null,"podpis vložnika"]
[{"$f":"TODAY()","v":"2023-06-07"}]
[]
[]
["PRILOGE"]
["ustrezno označiti"]
[null,false,"Pooblastilo (če zahteve ne vlaga investitor)"]
[null,false,"Projektna dokumentacija za pridobitev mnenj in gradbenega dovoljenja - DGD (če gre za zahteven ali manj zahteven objekt)"]
[null,false,"Dokumentacija za pridobitev gradbenega dovoljenja za nezahtevne objekte - DNZO"]
[null,false,"Dokumentacija za pridobitev gradbenega dovoljenja za spremembo namembnosti - DSN"]
[null,false,"Dokumentacija za legalizacijo - DL"]
[null,false,"Poročilo o vplivih na okolje (če gre za objekt z vplivi na okolje)"]
[null,false,"Priloga 1 Vloge za izdajo vodnega soglasja, določene na spletni strani Direkcije RS za vode, \nče se poseg načrtuje na vodnih ali priobalnih zemljiščih v lasti države"]
[null,false,"Druge priloge (navesti, katere):"]

{"sheet":"9B MNENJA VLOGA DMO","index":19,"n_rows":58,"n_cols":3,"rows_kept":58,"cut":false,"hidden":false,"merged":[[40,2,40,3],[55,2,55,3],[56,2,56,3],[53,0,53,3],[41,0,41,3],[47,2,47,3],[33,2,33,3],[34,2,34,3],[38,0,38,3],[39,2,39,3],[1,0,1,2],[17,0,17,2],[30,0,30,3],[3,0,3,2],[35,2,35,3],[36,2,36,3]]}
["PRILOGA 9B"]
["ZAHTEVA ZA IZDAJO MNENJA \nGLEDE SKLADNOSTI DOPUSTNIH \nMANJŠIH ODSTOPANJ S PREDPISI \nS PODROČJA MNENJEDAJALCA"]
[]
[{"$f":"'VNOS PODATKOV'!C44","v":"INVESTITOR"}]
[{"$f":"'VNOS PODATKOV'!C45","v":"INVESTITOR 1"}]
[{"$f":"'VNOS PODATKOV'!C46","v":"ime in priimek ali naziv družbe"},null,{"$f":"'VNOS PODATKOV'!D46","v":0}]
[{"$f":"'VNOS PODATKOV'!C47","v":"naslov ali poslovni naslov družbe"},null,{"$f":"'VNOS PODATKOV'!D47","v":0}]
[{"$f":"'VNOS PODATKOV'!C48","v":"davčna številka"},null,{"$f":"'VNOS PODATKOV'!D48","v":0}]
[{"$f":"'VNOS PODATKOV'!C49","v":"INVESTITOR 2"}]
[{"$f":"'VNOS PODATKOV'!C50","v":"ime in priimek ali naziv družbe"},null,{"$f":"'VNOS PODATKOV'!D50","v":0}]
[{"$f":"'VNOS PODATKOV'!C51","v":"naslov ali poslovni naslov družbe"},null,{"$f":"'VNOS PODATKOV'!D51","v":0}]
[{"$f":"'VNOS PODATKOV'!C52","v":"davčna številka"},null,{"$f":"'VNOS PODATKOV'!D52","v":0}]
[{"$f":"'VNOS PODATKOV'!C53","v":"INVESTITOR 3"}]
[{"$f":"'VNOS PODATKOV'!C54","v":"ime in priimek ali naziv družbe"},null,{"$f":"'VNOS PODATKOV'!D54","v":0}]
[{"$f":"'VNOS PODATKOV'!C55","v":"naslov ali poslovni naslov družbe"},null,{"$f":"'VNOS PODATKOV'!D55","v":0}]
[{"$f":"'VNOS PODATKOV'!C56","v":"davčna številka"},null,{"$f":"'VNOS PODATKOV'!D56","v":0}]
[]
[{"$f":"'VNOS PODATKOV'!C57","v":"KONTAKTNA OSEBA"}]
[{"$f":"'VNOS PODATKOV'!C58","v":"ime in priimek"},null,{"$f":"'VNOS PODATKOV'!D58","v":0}]
[{"$f":"'VNOS PODATKOV'!C59","v":"telefonska številka"},null,{"$f":"'VNOS PODATKOV'!D59","v":0}]
[{"$f":"'VNOS PODATKOV'!C60","v":"elektronski naslov"},null,{"$f":"'VNOS PODATKOV'!D60","v":0}]
[]
[{"$f":"'VNOS PODATKOV'!C61","v":"POOBLAŠČENEC"}]
[{"$f":"'VNOS PODATKOV'!C62","v":"podatki se vpišejo, kadar je imenovan pooblaščenec"}]
[{"$f":"'VNOS PODATKOV'!C64","v":"ime in priimek ali naziv družbe"},null,{"$f":"IF('VNOS PODATKOV'!D$63=TRUE,'VNOS PODATKOV'!D64, \"\")","v":""}]
[{"$f":"'VNOS PODATKOV'!C65","v":"naslov ali poslovni naslov družbe"},null,{"$f":"IF('VNOS PODATKOV'!D$63=TRUE,'VNOS PODATKOV'!D65, \"\")","v":""}]
[{"$f":"'VNOS PODATKOV'!C66","v":"kontaktna oseba"},null,{"$f":"IF('VNOS PODATKOV'!D$63=TRUE,'VNOS PODATKOV'!D66, \"\")","v":""}]
[{"$f":"'VNOS PODATKOV'!C67","v":"telefonska številka"},null,{"$f":"IF('VNOS PODATKOV'!D$63=TRUE,'VNOS PODATKOV'!D67, \"\")","v":""}]
[{"$f":"'VNOS PODATKOV'!C68","v":"elektronski naslov"},null,{"$f":"IF('VNOS PODATKOV'!D$63=TRUE,'VNOS PODATKOV'!D68, \"\")","v":""}]
[]
["NAVEDBA ORGANA, PRI KATEREM SE VLAGA ZAHTEVA"]
[{"$f":"'VNOS PODATKOV'!C288","v":"področje"},null,"OBČINA"]
["izberi iz seznama ali vpiši"]
[{"$f":"'VNOS PODATKOV'!C356","v":"naslov"},null,{"$f":"INDEX('VNOS PODATKOV'!$C$289:$K$351,MATCH($C$32,'VNOS PODATKOV'!$C$289:$C$351,0),3)","v":0}]
[{"$f":"'VNOS PODATKOV'!D288","v":"naziv mnenja"},null,{"$f":"INDEX('VNOS PODATKOV'!$C$289:$K$351,MATCH($C$32,'VNOS PODATKOV'!$C$289:$C$351,0),4)","v":0}]
["št. izdanega mnenja",null,{"$f":"INDEX('VNOS PODATKOV'!$C$289:$K$351,MATCH($C$32,'VNOS PODATKOV'!$C$289:$C$351,0),5)","v":0}]
[{"$f":"'VNOS PODATKOV'!K288","v":"datum mnenja"},null,{"$f":"INDEX('VNOS PODATKOV'!$C$289:$K$351,MATCH($C$32,'VNOS PODATKOV'!$C$289:$C$351,0),6)","v":"00:00:00"}]
[]
[{"$f":"'VNOS PODATKOV'!C172","v":"PODATKI O GRADNJI"}]
[{"$f":"'VNOS PODATKOV'!C175","v":"naziv gradnje"},null,{"$f":"'VNOS PODATKOV'!D175","v":0}]
["vsebina zahteve glede dopustnih manjših odstopanj",null,{"$f":"'VNOS PODATKOV'!D181","v":0}]
["PODATKI O PROJEKTNI DOKUMENTACIJI, KI OBRAVNAVA DOPUSTNA MANJŠA ODSTOPANJA"]
[{"$f":"'VNOS PODATKOV'!C157","v":"podatki se vpišejo, če dokumentacijo izdela projektant"}]
[{"$f":"'VNOS PODATKOV'!C160","v":"številka projekta"},null,{"$f":"'VNOS PODATKOV'!E160","v":0}]
[{"$f":"'VNOS PODATKOV'!C161","v":"datum izdelave"},null,{"$f":"'VNOS PODATKOV'!E161","v":"00:00:00"}]
[{"$f":"'VNOS PODATKOV'!C87","v":"projektant (naziv družbe)"},null,{"$f":"'VNOS PODATKOV'!D87","v":0}]
[]
[null,null,"Na podlagi navedenih podatkov vas prosimo za mnenje, ali je priložena dokumentacija skladna s predpisi iz vaše pristojnosti, ter za določitev morebitnih pogojev za izvedbo gradnje in uporabo objekta."]
[]
["datum",null,"podpis vložnika"]
[{"$f":"TODAY()","v":"2023-06-07"}]
[]
[]
["PRILOGE"]
["ustrezno označiti"]
[null,false,"Pooblastilo (če zahteve ne vlaga investitor)"]
[null,false,"Projektna dokumentacija za izvedbo gradnje - PZI"]
[null,false,"Druge priloge (navesti, katere):"]

{"sheet":"11A GD VLOGA","index":20,"n_rows":168,"n_cols":6,"rows_kept":168,"cut":false,"hidden":false,"merged":[[144,0,144,5],[140,2,140,5],[139,2,139,5],[147,2,147,5],[166,2,166,5],[159,2,159,5],[160,2,160,5],[162,2,162,5],[153,0,153,5],[156,2,156,5],[157,2,157,5],[158,2,158,5],[161,2,161,5],[163,2,163,5],[164,2,164,5],[165,2,165,5],[1,0,1,2],[35,2,35,5],[36,2,36,5],[141,2,141,5],[142,2,142,5],[31,0,31,1],[31,2,31,5],[32,0,32,1],[32,2,32,5],[74,0,74,5],[136,2,136,5],[137,2,137,5],[138,2,138,5],[134,2,134,5],[135,2,135,5]]}
["PRILOGA 11A"]
["ZAHTEVA ZA IZDAJO GRADBENEGA DOVOLJENJA"]
[]
[{"$f":"'VNOS PODATKOV'!C44","v":"INVESTITOR"}]
[{"$f":"'VNOS PODATKOV'!C45","v":"INVESTITOR 1"}]
[{"$f":"'VNOS PODATKOV'!C46","v":"ime in priimek ali naziv družbe"},null,{"$f":"'VNOS PODATKOV'!D46","v":0}]
[{"$f":"'VNOS PODATKOV'!C47","v":"naslov ali poslovni naslov družbe"},null,{"$f":"'VNOS PODATKOV'!D47","v":0}]
[{"$f":"'VNOS PODATKOV'!C48","v":"davčna številka"},null,{"$f":"'VNOS PODATKOV'!D48","v":0}]
[{"$f":"'VNOS PODATKOV'!C49","v":"INVESTITOR 2"}]
[{"$f":"'VNOS PODATKOV'!C50","v":"ime in priimek ali naziv družbe"},null,{"$f":"'VNOS PODATKOV'!D50","v":0}]
[{"$f":"'VNOS PODATKOV'!C51","v":"naslov ali poslovni naslov družbe"},null,{"$f":"'VNOS PODATKOV'!D51","v":0}]
[{"$f":"'VNOS PODATKOV'!C52","v":"davčna številka"},null,{"$f":"'VNOS PODATKOV'!D52","v":0}]
[{"$f":"'VNOS PODATKOV'!C53","v":"INVESTITOR 3"}]
[{"$f":"'VNOS PODATKOV'!C54","v":"ime in priimek ali naziv družbe"},null,{"$f":"'VNOS PODATKOV'!D54","v":0}]
[{"$f":"'VNOS PODATKOV'!C55","v":"naslov ali poslovni naslov družbe"},null,{"$f":"'VNOS PODATKOV'!D55","v":0}]
[{"$f":"'VNOS PODATKOV'!C56","v":"davčna številka"},null,{"$f":"'VNOS PODATKOV'!D56","v":0}]
[]
[{"$f":"'VNOS PODATKOV'!C57","v":"KONTAKTNA OSEBA"}]
[{"$f":"'VNOS PODATKOV'!C58","v":"ime in priimek"},null,{"$f":"'VNOS PODATKOV'!D58","v":0}]
[{"$f":"'VNOS PODATKOV'!C59","v":"telefonska številka"},null,{"$f":"'VNOS PODATKOV'!D59","v":0}]
[{"$f":"'VNOS PODATKOV'!C60","v":"elektronski naslov"},null,{"$f":"'VNOS PODATKOV'!D60","v":0}]
[]
[{"$f":"'VNOS PODATKOV'!C61","v":"POOBLAŠČENEC"}]
[{"$f":"'VNOS PODATKOV'!C62","v":"podatki se vpišejo, kadar je imenovan pooblaščenec"}]
[{"$f":"'VNOS PODATKOV'!C64","v":"ime in priimek ali naziv družbe"},null,{"$f":"IF('VNOS PODATKOV'!D$63=TRUE,'VNOS PODATKOV'!D64, \"\")","v":""}]
[{"$f":"'VNOS PODATKOV'!C65","v":"naslov ali poslovni naslov družbe"},null,{"$f":"IF('VNOS PODATKOV'!D$63=TRUE,'VNOS PODATKOV'!D65, \"\")","v":""}]
[{"$f":"'VNOS PODATKOV'!C66","v":"kontaktna oseba"},null,{"$f":"IF('VNOS PODATKOV'!D$63=TRUE,'VNOS PODATKOV'!D66, \"\")","v":""}]
[{"$f":"'VNOS PODATKOV'!C67","v":"telefonska številka"},null,{"$f":"IF('VNOS PODATKOV'!D$63=TRUE,'VNOS PODATKOV'!D67, \"\")","v":""}]
[{"$f":"'VNOS PODATKOV'!C68","v":"elektronski naslov"},null,{"$f":"IF('VNOS PODATKOV'!D$63=TRUE,'VNOS PODATKOV'!D68, \"\")","v":""}]
[]
["NAVEDBA ORGANA, PRI KATEREM SE VLAGA ZAHTEVA"]
["naziv",null,{"$f":"'VNOS PODATKOV'!D355","v":0}]
["naslov",null,{"$f":"'VNOS PODATKOV'!D356","v":0}]
[]
[{"$f":"'VNOS PODATKOV'!C172","v":"PODATKI O GRADNJI"}]
[{"$f":"'VNOS PODATKOV'!C175","v":"naziv gradnje"},null,{"$f":"'VNOS PODATKOV'!D175","v":0}]
[{"$f":"'VNOS PODATKOV'!C177","v":"kratek opis gradnje"},null,{"$f":"'VNOS PODATKOV'!D177","v":0}]
[null,{"$f":"IF('VNOS PODATKOV'!D213=TRUE,TRUE,FALSE)","v":false},{"$f":"'VNOS PODATKOV'!C213","v":"objekt z vplivi na okolje"}]
[null,{"$f":"IF('VNOS PODATKOV'!D219=TRUE,TRUE,FALSE)","v":false},{"$f":"'VNOS PODATKOV'!C219","v":"predhodna presoja vplivov na okolje"}]
[null,{"$f":"IF('VNOS PODATKOV'!D210=TRUE,TRUE,FALSE)","v":false},{"$f":"'VNOS PODATKOV'!C210","v":"objekt državnega pomena"}]
[{"$f":"'VNOS PODATKOV'!C199","v":"VRSTE GRADNJE"}]
["navesti vse ustrezne vrste gradnje"]
[null,{"$f":"IF('VNOS PODATKOV'!D201=TRUE,TRUE,FALSE)","v":false},{"$f":"'VNOS PODATKOV'!C201","v":"NOVOGRADNJA - NOVOZGRAJEN OBJEKT"}]
[null,{"$f":"IF('VNOS PODATKOV'!D202=TRUE,TRUE,FALSE)","v":false},{"$f":"'VNOS PODATKOV'!C202","v":"NOVOGRADNJA - PRIZIDAVA"}]
[null,{"$f":"IF('VNOS PODATKOV'!D203=TRUE,TRUE,FALSE)","v":false},{"$f":"'VNOS PODATKOV'!C203","v":"REKONSTRUKCIJA"}]
[null,{"$f":"IF('VNOS PODATKOV'!D204=TRUE,TRUE,FALSE)","v":false},{"$f":"'VNOS PODATKOV'!C204","v":"SPREMEMBA NAMEMBNOSTI"}]
[null,{"$f":"IF('VNOS PODATKOV'!D205=TRUE,TRUE,FALSE)","v":false},{"$f":"'VNOS PODATKOV'!C205","v":"ODSTRANITEV CELOTNEGA OBJEKTA"}]
[null,{"$f":"IF('VNOS PODATKOV'!D206=TRUE,TRUE,FALSE)","v":false},{"$f":"'VNOS PODATKOV'!C206","v":"LEGALIZACIJA"}]
[null,{"$f":"IF('VNOS PODATKOV'!D207=TRUE,TRUE,FALSE)","v":false},{"$f":"'VNOS PODATKOV'!C207","v":"MANJŠA REKONSTRUKCIJA"}]
[]
["DOVOLJENJA ZA OBSTOJEČI OBJEKT"]
[{"$f":"'VNOS PODATKOV'!C242","v":"podatek se vpiše, če se gradnja nanaša na obstoječ objekt (rekonstrukcija, odstranitev, sprememba namembnosti, novogradnja - prizidava)"}]
[null,{"$f":"IF('VNOS PODATKOV'!D243=TRUE,TRUE,FALSE)","v":false},{"$f":"'VNOS PODATKOV'!C243","v":"objekt, zgrajen pred 31. 12. 1967"}]
[{"$f":"'VNOS PODATKOV'!C246","v":"številka UD ali odločbe o legalizaciji ali odločbe o objektu daljšega obstoja"},null,{"$f":"'VNOS PODATKOV'!D246","v":0}]
[{"$f":"'VNOS PODATKOV'!C245","v":"navedba upravnega organa, ki je izdal odločbo"},null,{"$f":"'VNOS PODATKOV'!D245","v":0}]
[{"$f":"'VNOS PODATKOV'!C247","v":"datum odločbe"},null,{"$f":"'VNOS PODATKOV'!D247","v":"00:00:00"}]
[]
["PODATKI O PROJEKTNI DOKUMENTACIJI"]
[{"$f":"'VNOS PODATKOV'!C160","v":"številka projekta"},null,{"$f":"'VNOS PODATKOV'!E160","v":0}]
[{"$f":"'VNOS PODATKOV'!C161","v":"datum izdelave"},null,{"$f":"'VNOS PODATKOV'!E161","v":"00:00:00"}]
[{"$f":"'VNOS PODATKOV'!C87","v":"projektant (naziv družbe)"},null,{"$f":"'VNOS PODATKOV'!D64","v":0}]
[]
["PREDHODNA PRESOJA VPLIVOV NA OKOLJE"]
[{"$f":"'VNOS PODATKOV'!C218","v":"podatki se vpišejo, če gre za objekt z vplivi na okolje in če je bil izveden predhodni postopek v skladu z zakonom, ki ureja varstvo okolja"}]
[{"$f":"'VNOS PODATKOV'!C220","v":"številka sklepa"},null,{"$f":"'VNOS PODATKOV'!D220","v":0}]
[{"$f":"'VNOS PODATKOV'!C221","v":"datum sklepa"},null,{"$f":"'VNOS PODATKOV'!D221","v":"00:00:00"}]
[]
["POROČILO O VPLIVIH NA OKOLJE (PVO)"]
[{"$f":"'VNOS PODATKOV'!C212","v":"podatki se vpišejo, kadar gre za objekt z vplivi na okolje"}]
[{"$f":"'VNOS PODATKOV'!C214","v":"številka poročila"},null,{"$f":"'VNOS PODATKOV'!D214","v":0}]
[{"$f":"'VNOS PODATKOV'!C215","v":"datum izdelave poročila"},null,{"$f":"'VNOS PODATKOV'!D215","v":"00:00:00"}]
[{"$f":"'VNOS PODATKOV'!C216","v":"izdelovalec poročila"},null,{"$f":"'VNOS PODATKOV'!D216","v":0}]
[]
["MNENJA"]
["vpišejo se podatki za vsa pridobljena mnenja\n"]
[null,null,{"$f":"'VNOS PODATKOV'!E292","v":"navedba mnenjedajalca"},{"$f":"'VNOS PODATKOV'!I288","v":"datum podaje zahtevka za mnenje"},{"$f":"'VNOS PODATKOV'!J292","v":"številka mnenja"},{"$f":"'VNOS PODATKOV'!K292","v":"datum mnenja"}]
[{"$f":"'VNOS PODATKOV'!C286","v":"SKLADNOST S PROSTORSKIMI AKTI"}]
["OBČINA",null,{"$f":"'VNOS PODATKOV'!E289","v":0},{"$f":"'VNOS PODATKOV'!I289","v":"00:00:00"},{"$f":"'VNOS PODATKOV'!J289","v":0},{"$f":"'VNOS PODATKOV'!K289","v":"00:00:00"}]
[{"$f":"'VNOS PODATKOV'!C290","v":"VAROVANA, VARSTVENA IN OGROŽENA OBMOČJA, VODNA IN PRIOBALNA ZEMLJIŠČA"}]
[{"$f":"IFERROR(INDEX('VNOS PODATKOV'!$C$293:$K$310,MATCH(ROW()-ROW(A$79),'VNOS PODATKOV'!$L$293:$L$310,0),1),\"\")","v":"OBMOČJE MEJNEGA PREHODA"},null,{"$f":"IFERROR(INDEX('VNOS PODATKOV'!$C$293:$K$310,MATCH(ROW()-ROW(A$79),'VNOS PODATKOV'!$L$293:$L$310,0),3),\"\")","v":0},{"$f":"IFERROR(INDEX('VNOS PODATKOV'!$C$293:$K$310,MATCH(ROW()-ROW(A$79),'VNOS PODATKOV'!$L$293:$L$310,0),7),\"\")","v":"00:00:00"},{"$f":"IFERROR(INDEX('VNOS PODATKOV'!$C$293:$K$310,MATCH(ROW()-ROW(A$79),'VNOS PODATKOV'!$L$293:$L$310,0),8),\"\")","v":0},{"$f":"IFERROR(INDEX('VNOS PODATKOV'!$C$293:$K$310,MATCH(ROW()-ROW(B$79),'VNOS PODATKOV'!$L$293:$L$310,0),9),\"\")","v":"00:00:00"}]
[{"$f":"IFERROR(INDEX('VNOS PODATKOV'!$C$293:$K$310,MATCH(ROW()-ROW(A$79),'VNOS PODATKOV'!$L$293:$L$310,0),1),\"\")","v":"OBJEKT V MEJAH RUDNIŠKEGA PROSTORA"},null,{"$f":"IFERROR(INDEX('VNOS PODATKOV'!$C$293:$K$310,MATCH(ROW()-ROW(A$79),'VNOS PODATKOV'!$L$293:$L$310,0),3),\"\")","v":0},{"$f":"IFERROR(INDEX('VNOS PODATKOV'!$C$293:$K$310,MATCH(ROW()-ROW(A$79),'VNOS PODATKOV'!$L$293:$L$310,0),7),\"\")","v":"00:00:00"},{"$f":"IFERROR(INDEX('VNOS PODATKOV'!$C$293:$K$310,MATCH(ROW()-ROW(A$79),'VNOS PODATKOV'!$L$293:$L$310,0),8),\"\")","v":0},{"$f":"IFERROR(INDEX('VNOS PODATKOV'!$C$293:$K$310,MATCH(ROW()-ROW(B$79),'VNOS PODATKOV'!$L$293:$L$310,0),9),\"\")","v":"00:00:00"}]
[{"$f":"IFERROR(INDEX('VNOS PODATKOV'!$C$293:$K$310,MATCH(ROW()-ROW(A$79),'VNOS PODATKOV'!$L$293:$L$310,0),1),\"\")","v":""},null,{"$f":"IFERROR(INDEX('VNOS PODATKOV'!$C$293:$K$310,MATCH(ROW()-ROW(A$79),'VNOS PODATKOV'!$L$293:$L$310,0),3),\"\")","v":""},{"$f":"IFERROR(INDEX('VNOS PODATKOV'!$C$293:$K$310,MATCH(ROW()-ROW(A$79),'VNOS PODATKOV'!$L$293:$L$310,0),7),\"\")","v":""},{"$f":"IFERROR(INDEX('VNOS PODATKOV'!$C$293:$K$310,MATCH(ROW()-ROW(A$79),'VNOS PODATKOV'!$L$293:$L$310,0),8),\"\")","v":""},{"$f":"IFERROR(INDEX('VNOS PODATKOV'!$C$293:$K$310,MATCH(ROW()-ROW(B$79),'VNOS PODATKOV'!$L$293:$L$310,0),9),\"\")","v":""}]
[{"$f":"IFERROR(INDEX('VNOS PODATKOV'!$C$293:$K$310,MATCH(ROW()-ROW(A$79),'VNOS PODATKOV'!$L$293:$L$310,0),1),\"\")","v":""},null,{"$f":"IFERROR(INDEX('VNOS PODATKOV'!$C$293:$K$310,MATCH(ROW()-ROW(A$79),'VNOS PODATKOV'!$L$293:$L$310,0),3),\"\")","v":""},{"$f":"IFERROR(INDEX('VNOS PODATKOV'!$C$293:$K$310,MATCH(ROW()-ROW(A$79),'VNOS PODATKOV'!$L$293:$L$310,0),7),\"\")","v":""},{"$f":"IFERROR(INDEX('VNOS PODATKOV'!$C$293:$K$310,MATCH(ROW()-ROW(A$79),'VNOS PODATKOV'!$L$293:$L$310,0),8),\"\")","v":""},{"$f":"IFERROR(INDEX('VNOS PODATKOV'!$C$293:$K$310,MATCH(ROW()-ROW(B$79),'VNOS PODATKOV'!$L$293:$L$310,0),9),\"\")","v":""}]
[{"$f":"IFERROR(INDEX('VNOS PODATKOV'!$C$293:$K$310,MATCH(ROW()-ROW(A$79),'VNOS PODATKOV'!$L$293:$L$310,0),1),\"\")","v":""},null,{"$f":"IFERROR(INDEX('VNOS PODATKOV'!$C$293:$K$310,MATCH(ROW()-ROW(A$79),'VNOS PODATKOV'!$L$293:$L$310,0),3),\"\")","v":""},{"$f":"IFERROR(INDEX('VNOS PODATKOV'!$C$293:$K$310,MATCH(ROW()-ROW(A$79),'VNOS PODATKOV'!$L$293:$L$310,0),7),\"\")","v":""},{"$f":"IFERROR(INDEX('VNOS PODATKOV'!$C$293:$K$310,MATCH(ROW()-ROW(A$79),'VNOS PODATKOV'!$L$293:$L$310,0),8),\"\")","v":""},{"$f":"IFERROR(INDEX('VNOS PODATKOV'!$C$293:$K$310,MATCH(ROW()-ROW(B$79),'VNOS PODATKOV'!$L$293:$L$310,0),9),\"\")","v":""}]
[{"$f":"IFERROR(INDEX('VNOS PODATKOV'!$C$293:$K$310,MATCH(ROW()-ROW(A$79),'VNOS PODATKOV'!$L$293:$L$310,0),1),\"\")","v":""},null,{"$f":"IFERROR(INDEX('VNOS PODATKOV'!$C$293:$K$310,MATCH(ROW()-ROW(A$79),'VNOS PODATKOV'!$L$293:$L$310,0),3),\"\")","v":""},{"$f":"IFERROR(INDEX('VNOS PODATKOV'!$C$293:$K$310,MATCH(ROW()-ROW(A$79),'VNOS PODATKOV'!$L$293:$L$310,0),7),\"\")","v":""},{"$f":"IFERROR(INDEX('VNOS PODATKOV'!$C$293:$K$310,MATCH(ROW()-ROW(A$79),'VNOS PODATKOV'!$L$293:$L$310,0),8),\"\")","v":""},{"$f":"IFERROR(INDEX('VNOS PODATKOV'!$C$293:$K$310,MATCH(ROW()-ROW(B$79),'VNOS PODATKOV'!$L$293:$L$310,0),9),\"\")","v":""}]
[{"$f":"IFERROR(INDEX('VNOS PODATKOV'!$C$293:$K$310,MATCH(ROW()-ROW(A$79),'VNOS PODATKOV'!$L$293:$L$310,0),1),\"\")","v":""},null,{"$f":"IFERROR(INDEX('VNOS PODATKOV'!$C$293:$K$310,MATCH(ROW()-ROW(A$79),'VNOS PODATKOV'!$L$293:$L$310,0),3),\"\")","v":""},{"$f":"IFERROR(INDEX('VNOS PODATKOV'!$C$293:$K$310,MATCH(ROW()-ROW(A$79),'VNOS PODATKOV'!$L$293:$L$310,0),7),\"\")","v":""},{"$f":"IFERROR(INDEX('VNOS PODATKOV'!$C$293:$K$310,MATCH(ROW()-ROW(A$79),'VNOS PODATKOV'!$L$293:$L$310,0),8),\"\")","v":""},{"$f":"IFERROR(INDEX('VNOS PODATKOV'!$C$293:$K$310,MATCH(ROW()-ROW(B$79),'VNOS PODATKOV'!$L$293:$L$310,0),9),\"\")","v":""}]
[{"$f":"IFERROR(INDEX('VNOS PODATKOV'!$C$293:$K$310,MATCH(ROW()-ROW(A$79),'VNOS PODATKOV'!$L$293:$L$310,0),1),\"\")","v":""},null,{"$f":"IFERROR(INDEX('VNOS PODATKOV'!$C$293:$K$310,MATCH(ROW()-ROW(A$79),'VNOS PODATKOV'!$L$293:$L$310,0),3),\"\")","v":""},{"$f":"IFERROR(INDEX('VNOS PODATKOV'!$C$293:$K$310,MATCH(ROW()-ROW(A$79),'VNOS PODATKOV'!$L$293:$L$310,0),7),\"\")","v":""},{"$f":"IFERROR(INDEX('VNOS PODATKOV'!$C$293:$K$310,MATCH(ROW()-ROW(A$79),'VNOS PODATKOV'!$L$293:$L$310,0),8),\"\")","v":""},{"$f":"IFERROR(INDEX('VNOS PODATKOV'!$C$293:$K$310,MATCH(ROW()-ROW(B$79),'VNOS PODATKOV'!$L$293:$L$310,0),9),\"\")","v":""}]
[{"$f":"IFERROR(INDEX('VNOS PODATKOV'!$C$293:$K$310,MATCH(ROW()-ROW(A$79),'VNOS PODATKOV'!$L$293:$L$310,0),1),\"\")","v":""},null,{"$f":"IFERROR(INDEX('VNOS PODATKOV'!$C$293:$K$310,MATCH(ROW()-ROW(A$79),'VNOS PODATKOV'!$L$293:$L$310,0),3),\"\")","v":""},{"$f":"IFERROR(INDEX('VNOS PODATKOV'!$C$293:$K$310,MATCH(ROW()-ROW(A$79),'VNOS PODATKOV'!$L$293:$L$310,0),7),\"\")","v":""},{"$f":"IFERROR(INDEX('VNOS PODATKOV'!$C$293:$K$310,MATCH(ROW()-ROW(A$79),'VNOS PODATKOV'!$L$293:$L$310,0),8),\"\")","v":""},{"$f":"IFERROR(INDEX('VNOS PODATKOV'!$C$293:$K$310,MATCH(ROW()-ROW(B$79),'VNOS PODATKOV'!$L$293:$L$310,0),9),\"\")","v":""}]
[{"$f":"IFERROR(INDEX('VNOS PODATKOV'!$C$293:$K$310,MATCH(ROW()-ROW(A$79),'VNOS PODATKOV'!$L$293:$L$310,0),1),\"\")","v":""},null,{"$f":"IFERROR(INDEX('VNOS PODATKOV'!$C$293:$K$310,MATCH(ROW()-ROW(A$79),'VNOS PODATKOV'!$L$293:$L$310,0),3),\"\")","v":""},{"$f":"IFERROR(INDEX('VNOS PODATKOV'!$C$293:$K$310,MATCH(ROW()-ROW(A$79),'VNOS PODATKOV'!$L$293:$L$310,0),7),\"\")","v":""},{"$f":"IFERROR(INDEX('VNOS PODATKOV'!$C$293:$K$310,MATCH(ROW()-ROW(A$79),'VNOS PODATKOV'!$L$293:$L$310,0),8),\"\")","v":""},{"$f":"IFERROR(INDEX('VNOS PODATKOV'!$C$293:$K$310,MATCH(ROW()-ROW(B$79),'VNOS PODATKOV'!$L$293:$L$310,0),9),\"\")","v":""}]
[{"$f":"IFERROR(INDEX('VNOS PODATKOV'!$C$293:$K$310,MATCH(ROW()-ROW(A$79),'VNOS PODATKOV'!$L$293:$L$310,0),1),\"\")","v":""},null,{"$f":"IFERROR(INDEX('VNOS PODATKOV'!$C$293:$K$310,MATCH(ROW()-ROW(A$79),'VNOS PODATKOV'!$L$293:$L$310,0),3),\"\")","v":""},{"$f":"IFERROR(INDEX('VNOS PODATKOV'!$C$293:$K$310,MATCH(ROW()-ROW(A$79),'VNOS PODATKOV'!$L$293:$L$310,0),7),\"\")","v":""},{"$f":"IFERROR(INDEX('VNOS PODATKOV'!$C$293:$K$310,MATCH(ROW()-ROW(A$79),'VNOS PODATKOV'!$L$293:$L$310,0),8),\"\")","v":""},{"$f":"IFERROR(INDEX('VNOS PODATKOV'!$C$293:$K$310,MATCH(ROW()-ROW(B$79),'VNOS PODATKOV'!$L$293:$L$310,0),9),\"\")","v":""}]
[{"$f":"IFERROR(INDEX('VNOS PODATKOV'!$C$293:$K$310,MATCH(ROW()-ROW(A$79),'VNOS PODATKOV'!$L$293:$L$310,0),1),\"\")","v":""},null,{"$f":"IFERROR(INDEX('VNOS PODATKOV'!$C$293:$K$310,MATCH(ROW()-ROW(A$79),'VNOS PODATKOV'!$L$293:$L$310,0),3),\"\")","v":""},{"$f":"IFERROR(INDEX('VNOS PODATKOV'!$C$293:$K$310,MATCH(ROW()-ROW(A$79),'VNOS PODATKOV'!$L$293:$L$310,0),7),\"\")","v":""},{"$f":"IFERROR(INDEX('VNOS PODATKOV'!$C$293:$K$310,MATCH(ROW()-ROW(A$79),'VNOS PODATKOV'!$L$293:$L$310,0),8),\"\")","v":""},{"$f":"IFERROR(INDEX('VNOS PODATKOV'!$C$293:$K$310,MATCH(ROW()-ROW(B$79),'VNOS PODATKOV'!$L$293:$L$310,0),9),\"\")","v":""}]
[{"$f":"IFERROR(INDEX('VNOS PODATKOV'!$C$293:$K$310,MATCH(ROW()-ROW(A$79),'VNOS PODATKOV'!$L$293:$L$310,0),1),\"\")","v":""},null,{"$f":"IFERROR(INDEX('VNOS PODATKOV'!$C$293:$K$310,MATCH(ROW()-ROW(A$79),'VNOS PODATKOV'!$L$293:$L$310,0),3),\"\")","v":""},{"$f":"IFERROR(INDEX('VNOS PODATKOV'!$C$293:$K$310,MATCH(ROW()-ROW(A$79),'VNOS PODATKOV'!$L$293:$L$310,0),7),\"\")","v":""},{"$f":"IFERROR(INDEX('VNOS PODATKOV'!$C$293:$K$310,MATCH(ROW()-ROW(A$79),'VNOS PODATKOV'!$L$293:$L$310,0),8),\"\")","v":""},{"$f":"IFERROR(INDEX('VNOS PODATKOV'!$C$293:$K$310,MATCH(ROW()-ROW(B$79),'VNOS PODATKOV'!$L$293:$L$310,0),9),\"\")","v":""}]
[{"$f":"IFERROR(INDEX('VNOS PODATKOV'!$C$293:$K$310,MATCH(ROW()-ROW(A$79),'VNOS PODATKOV'!$L$293:$L$310,0),1),\"\")","v":""},null,{"$f":"IFERROR(INDEX('VNOS PODATKOV'!$C$293:$K$310,MATCH(ROW()-ROW(A$79),'VNOS PODATKOV'!$L$293:$L$310,0),3),\"\")","v":""},{"$f":"IFERROR(INDEX('VNOS PODATKOV'!$C$293:$K$310,MATCH(ROW()-ROW(A$79),'VNOS PODATKOV'!$L$293:$L$310,0),7),\"\")","v":""},{"$f":"IFERROR(INDEX('VNOS PODATKOV'!$C$293:$K$310,MATCH(ROW()-ROW(A$79),'VNOS PODATKOV'!$L$293:$L$310,0),8),\"\")","v":""},{"$f":"IFERROR(INDEX('VNOS PODATKOV'!$C$293:$K$310,MATCH(ROW()-ROW(B$79),'VNOS PODATKOV'!$L$293:$L$310,0),9),\"\")","v":""}]
[{"$f":"IFERROR(INDEX('VNOS PODATKOV'!$C$293:$K$310,MATCH(ROW()-ROW(A$79),'VNOS PODATKOV'!$L$293:$L$310,0),1),\"\")","v":""},null,{"$f":"IFERROR(INDEX('VNOS PODATKOV'!$C$293:$K$310,MATCH(ROW()-ROW(A$79),'VNOS PODATKOV'!$L$293:$L$310,0),3),\"\")","v":""},{"$f":"IFERROR(INDEX('VNOS PODATKOV'!$C$293:$K$310,MATCH(ROW()-ROW(A$79),'VNOS PODATKOV'!$L$293:$L$310,0),7),\"\")","v":""},{"$f":"IFERROR(INDEX('VNOS PODATKOV'!$C$293:$K$310,MATCH(ROW()-ROW(A$79),'VNOS PODATKOV'!$L$293:$L$310,0),8),\"\")","v":""},{"$f":"IFERROR(INDEX('VNOS PODATKOV'!$C$293:$K$310,MATCH(ROW()-ROW(B$79),'VNOS PODATKOV'!$L$293:$L$310,0),9),\"\")","v":""}]
[{"$f":"IFERROR(INDEX('VNOS PODATKOV'!$C$293:$K$310,MATCH(ROW()-ROW(A$79),'VNOS PODATKOV'!$L$293:$L$310,0),1),\"\")","v":""},null,{"$f":"IFERROR(INDEX('VNOS PODATKOV'!$C$293:$K$310,MATCH(ROW()-ROW(A$79),'VNOS PODATKOV'!$L$293:$L$310,0),3),\"\")","v":""},{"$f":"IFERROR(INDEX('VNOS PODATKOV'!$C$293:$K$310,MATCH(ROW()-ROW(A$79),'VNOS PODATKOV'!$L$293:$L$310,0),7),\"\")","v":""},{"$f":"IFERROR(INDEX('VNOS PODATKOV'!$C$293:$K$310,MATCH(ROW()-ROW(A$79),'VNOS PODATKOV'!$L$293:$L$310,0),8),\"\")","v":""},{"$f":"IFERROR(INDEX('VNOS PODATKOV'!$C$293:$K$310,MATCH(ROW()-ROW(B$79),'VNOS PODATKOV'!$L$293:$L$310,0),9),\"\")","v":""}]
[{"$f":"IFERROR(INDEX('VNOS PODATKOV'!$C$293:$K$310,MATCH(ROW()-ROW(A$79),'VNOS PODATKOV'!$L$293:$L$310,0),1),\"\")","v":""},null,{"$f":"IFERROR(INDEX('VNOS PODATKOV'!$C$293:$K$310,MATCH(ROW()-ROW(A$79),'VNOS PODATKOV'!$L$293:$L$310,0),3),\"\")","v":""},{"$f":"IFERROR(INDEX('VNOS PODATKOV'!$C$293:$K$310,MATCH(ROW()-ROW(A$79),'VNOS PODATKOV'!$L$293:$L$310,0),7),\"\")","v":""},{"$f":"IFERROR(INDEX('VNOS PODATKOV'!$C$293:$K$310,MATCH(ROW()-ROW(A$79),'VNOS PODATKOV'!$L$293:$L$310,0),8),\"\")","v":""},{"$f":"IFERROR(INDEX('VNOS PODATKOV'!$C$293:$K$310,MATCH(ROW()-ROW(B$79),'VNOS PODATKOV'!$L$293:$L$310,0),9),\"\")","v":""}]
[{"$f":"IFERROR(INDEX('VNOS PODATKOV'!$C$293:$K$310,MATCH(ROW()-ROW(A$79),'VNOS PODATKOV'!$L$293:$L$310,0),1),\"\")","v":""},null,{"$f":"IFERROR(INDEX('VNOS PODATKOV'!$C$293:$K$310,MATCH(ROW()-ROW(A$79),'VNOS PODATKOV'!$L$293:$L$310,0),3),\"\")","v":""},{"$f":"IFERROR(INDEX('VNOS PODATKOV'!$C$293:$K$310,MATCH(ROW()-ROW(A$79),'VNOS PODATKOV'!$L$293:$L$310,0),7),\"\")","v":""},{"$f":"IFERROR(INDEX('VNOS PODATKOV'!$C$293:$K$310,MATCH(ROW()-ROW(A$79),'VNOS PODATKOV'!$L$293:$L$310,0),8),\"\")","v":""},{"$f":"IFERROR(INDEX('VNOS PODATKOV'!$C$293:$K$310,MATCH(ROW()-ROW(B$79),'VNOS PODATKOV'!$L$293:$L$310,0),9),\"\")","v":""}]
[{"$f":"'VNOS PODATKOV'!C311","v":"VAROVALNI PASOVI INFRASTRUKTURE"}]
[{"$f":"IFERROR(INDEX('VNOS PODATKOV'!$C$314:$K$326,MATCH(ROW()-ROW(A$98),'VNOS PODATKOV'!$L$314:$L$326,0),1),\"\")","v":"ELEKTRIKA"},null,{"$f":"IFERROR(INDEX('VNOS PODATKOV'!$C$314:$K$326,MATCH(ROW()-ROW(A$98),'VNOS PODATKOV'!$L$314:$L$326,0),3),\"\")","v":0},{"$f":"IFERROR(INDEX('VNOS PODATKOV'!$C$314:$K$326,MATCH(ROW()-ROW(A$98),'VNOS PODATKOV'!$L$314:$L$326,0),7),\"\")","v":"00:00:00"},{"$f":"IFERROR(INDEX('VNOS PODATKOV'!$C$314:$K$326,MATCH(ROW()-ROW(A$98),'VNOS PODATKOV'!$L$314:$L$326,0),8),\"\")","v":0},{"$f":"IFERROR(INDEX('VNOS PODATKOV'!$C$314:$K$326,MATCH(ROW()-ROW(B$98),'VNOS PODATKOV'!$L$314:$L$326,0),9),\"\")","v":"00:00:00"}]
[{"$f":"IFERROR(INDEX('VNOS PODATKOV'!$C$314:$K$326,MATCH(ROW()-ROW(A$98),'VNOS PODATKOV'!$L$314:$L$326,0),1),\"\")","v":"TOPLOVOD"},null,{"$f":"IFERROR(INDEX('VNOS PODATKOV'!$C$314:$K$326,MATCH(ROW()-ROW(A$98),'VNOS PODATKOV'!$L$314:$L$326,0),3),\"\")","v":0},{"$f":"IFERROR(INDEX('VNOS PODATKOV'!$C$314:$K$326,MATCH(ROW()-ROW(A$98),'VNOS PODATKOV'!$L$314:$L$326,0),7),\"\")","v":"00:00:00"},{"$f":"IFERROR(INDEX('VNOS PODATKOV'!$C$314:$K$326,MATCH(ROW()-ROW(A$98),'VNOS PODATKOV'!$L$314:$L$326,0),8),\"\")","v":0},{"$f":"IFERROR(INDEX('VNOS PODATKOV'!$C$314:$K$326,MATCH(ROW()-ROW(B$98),'VNOS PODATKOV'!$L$314:$L$326,0),9),\"\")","v":"00:00:00"}]
[{"$f":"IFERROR(INDEX('VNOS PODATKOV'!$C$314:$K$326,MATCH(ROW()-ROW(A$98),'VNOS PODATKOV'!$L$314:$L$326,0),1),\"\")","v":""},null,{"$f":"IFERROR(INDEX('VNOS PODATKOV'!$C$314:$K$326,MATCH(ROW()-ROW(A$98),'VNOS PODATKOV'!$L$314:$L$326,0),3),\"\")","v":""},{"$f":"IFERROR(INDEX('VNOS PODATKOV'!$C$314:$K$326,MATCH(ROW()-ROW(A$98),'VNOS PODATKOV'!$L$314:$L$326,0),7),\"\")","v":""},{"$f":"IFERROR(INDEX('VNOS PODATKOV'!$C$314:$K$326,MATCH(ROW()-ROW(A$98),'VNOS PODATKOV'!$L$314:$L$326,0),8),\"\")","v":""},{"$f":"IFERROR(INDEX('VNOS PODATKOV'!$C$314:$K$326,MATCH(ROW()-ROW(B$98),'VNOS PODATKOV'!$L$314:$L$326,0),9),\"\")","v":""}]
[{"$f":"IFERROR(INDEX('VNOS PODATKOV'!$C$314:$K$326,MATCH(ROW()-ROW(A$98),'VNOS PODATKOV'!$L$314:$L$326,0),1),\"\")","v":""},null,{"$f":"IFERROR(INDEX('VNOS PODATKOV'!$C$314:$K$326,MATCH(ROW()-ROW(A$98),'VNOS PODATKOV'!$L$314:$L$326,0),3),\"\")","v":""},{"$f":"IFERROR(INDEX('VNOS PODATKOV'!$C$314:$K$326,MATCH(ROW()-ROW(A$98),'VNOS PODATKOV'!$L$314:$L$326,0),7),\"\")","v":""},{"$f":"IFERROR(INDEX('VNOS PODATKOV'!$C$314:$K$326,MATCH(ROW()-ROW(A$98),'VNOS PODATKOV'!$L$314:$L$326,0),8),\"\")","v":""},{"$f":"IFERROR(INDEX('VNOS PODATKOV'!$C$314:$K$326,MATCH(ROW()-ROW(B$98),'VNOS PODATKOV'!$L$314:$L$326,0),9),\"\")","v":""}]
[{"$f":"IFERROR(INDEX('VNOS PODATKOV'!$C$314:$K$326,MATCH(ROW()-ROW(A$98),'VNOS PODATKOV'!$L$314:$L$326,0),1),\"\")","v":""},null,{"$f":"IFERROR(INDEX('VNOS PODATKOV'!$C$314:$K$326,MATCH(ROW()-ROW(A$98),'VNOS PODATKOV'!$L$314:$L$326,0),3),\"\")","v":""},{"$f":"IFERROR(INDEX('VNOS PODATKOV'!$C$314:$K$326,MATCH(ROW()-ROW(A$98),'VNOS PODATKOV'!$L$314:$L$326,0),7),\"\")","v":""},{"$f":"IFERROR(INDEX('VNOS PODATKOV'!$C$314:$K$326,MATCH(ROW()-ROW(A$98),'VNOS PODATKOV'!$L$314:$L$326,0),8),\"\")","v":""},{"$f":"IFERROR(INDEX('VNOS PODATKOV'!$C$314:$K$326,MATCH(ROW()-ROW(B$98),'VNOS PODATKOV'!$L$314:$L$326,0),9),\"\")","v":""}]
[{"$f":"IFERROR(INDEX('VNOS PODATKOV'!$C$314:$K$326,MATCH(ROW()-ROW(A$98),'VNOS PODATKOV'!$L$314:$L$326,0),1),\"\")","v":""},null,{"$f":"IFERROR(INDEX('VNOS PODATKOV'!$C$314:$K$326,MATCH(ROW()-ROW(A$98),'VNOS PODATKOV'!$L$314:$L$326,0),3),\"\")","v":""},{"$f":"IFERROR(INDEX('VNOS PODATKOV'!$C$314:$K$326,MATCH(ROW()-ROW(A$98),'VNOS PODATKOV'!$L$314:$L$326,0),7),\"\")","v":""},{"$f":"IFERROR(INDEX('VNOS PODATKOV'!$C$314:$K$326,MATCH(ROW()-ROW(A$98),'VNOS PODATKOV'!$L$314:$L$326,0),8),\"\")","v":""},{"$f":"IFERROR(INDEX('VNOS PODATKOV'!$C$314:$K$326,MATCH(ROW()-ROW(B$98),'VNOS PODATKOV'!$L$314:$L$326,0),9),\"\")","v":""}]
[{"$f":"IFERROR(INDEX('VNOS PODATKOV'!$C$314:$K$326,MATCH(ROW()-ROW(A$98),'VNOS PODATKOV'!$L$314:$L$326,0),1),\"\")","v":""},null,{"$f":"IFERROR(INDEX('VNOS PODATKOV'!$C$314:$K$326,MATCH(ROW()-ROW(A$98),'VNOS PODATKOV'!$L$314:$L$326,0),3),\"\")","v":""},{"$f":"IFERROR(INDEX('VNOS PODATKOV'!$C$314:$K$326,MATCH(ROW()-ROW(A$98),'VNOS PODATKOV'!$L$314:$L$326,0),7),\"\")","v":""},{"$f":"IFERROR(INDEX('VNOS PODATKOV'!$C$314:$K$326,MATCH(ROW()-ROW(A$98),'VNOS PODATKOV'!$L$314:$L$326,0),8),\"\")","v":""},{"$f":"IFERROR(INDEX('VNOS PODATKOV'!$C$314:$K$326,MATCH(ROW()-ROW(B$98),'VNOS PODATKOV'!$L$314:$L$326,0),9),\"\")","v":""}]
[{"$f":"IFERROR(INDEX('VNOS PODATKOV'!$C$314:$K$326,MATCH(ROW()-ROW(A$98),'VNOS PODATKOV'!$L$314:$L$326,0),1),\"\")","v":""},null,{"$f":"IFERROR(INDEX('VNOS PODATKOV'!$C$314:$K$326,MATCH(ROW()-ROW(A$98),'VNOS PODATKOV'!$L$314:$L$326,0),3),\"\")","v":""},{"$f":"IFERROR(INDEX('VNOS PODATKOV'!$C$314:$K$326,MATCH(ROW()-ROW(A$98),'VNOS PODATKOV'!$L$314:$L$326,0),7),\"\")","v":""},{"$f":"IFERROR(INDEX('VNOS PODATKOV'!$C$314:$K$326,MATCH(ROW()-ROW(A$98),'VNOS PODATKOV'!$L$314:$L$326,0),8),\"\")","v":""},{"$f":"IFERROR(INDEX('VNOS PODATKOV'!$C$314:$K$326,MATCH(ROW()-ROW(B$98),'VNOS PODATKOV'!$L$314:$L$326,0),9),\"\")","v":""}]
[{"$f":"IFERROR(INDEX('VNOS PODATKOV'!$C$314:$K$326,MATCH(ROW()-ROW(A$98),'VNOS PODATKOV'!$L$314:$L$326,0),1),\"\")","v":""},null,{"$f":"IFERROR(INDEX('VNOS PODATKOV'!$C$314:$K$326,MATCH(ROW()-ROW(A$98),'VNOS PODATKOV'!$L$314:$L$326,0),3),\"\")","v":""},{"$f":"IFERROR(INDEX('VNOS PODATKOV'!$C$314:$K$326,MATCH(ROW()-ROW(A$98),'VNOS PODATKOV'!$L$314:$L$326,0),7),\"\")","v":""},{"$f":"IFERROR(INDEX('VNOS PODATKOV'!$C$314:$K$326,MATCH(ROW()-ROW(A$98),'VNOS PODATKOV'!$L$314:$L$326,0),8),\"\")","v":""},{"$f":"IFERROR(INDEX('VNOS PODATKOV'!$C$314:$K$326,MATCH(ROW()-ROW(B$98),'VNOS PODATKOV'!$L$314:$L$326,0),9),\"\")","v":""}]
[{"$f":"IFERROR(INDEX('VNOS PODATKOV'!$C$314:$K$326,MATCH(ROW()-ROW(A$98),'VNOS PODATKOV'!$L$314:$L$326,0),1),\"\")","v":""},null,{"$f":"IFERROR(INDEX('VNOS PODATKOV'!$C$314:$K$326,MATCH(ROW()-ROW(A$98),'VNOS PODATKOV'!$L$314:$L$326,0),3),\"\")","v":""},{"$f":"IFERROR(INDEX('VNOS PODATKOV'!$C$314:$K$326,MATCH(ROW()-ROW(A$98),'VNOS PODATKOV'!$L$314:$L$326,0),7),\"\")","v":""},{"$f":"IFERROR(INDEX('VNOS PODATKOV'!$C$314:$K$326,MATCH(ROW()-ROW(A$98),'VNOS PODATKOV'!$L$314:$L$326,0),8),\"\")","v":""},{"$f":"IFERROR(INDEX('VNOS PODATKOV'!$C$314:$K$326,MATCH(ROW()-ROW(B$98),'VNOS PODATKOV'!$L$314:$L$326,0),9),\"\")","v":""}]
[{"$f":"IFERROR(INDEX('VNOS PODATKOV'!$C$314:$K$326,MATCH(ROW()-ROW(A$98),'VNOS PODATKOV'!$L$314:$L$326,0),1),\"\")","v":""},null,{"$f":"IFERROR(INDEX('VNOS PODATKOV'!$C$314:$K$326,MATCH(ROW()-ROW(A$98),'VNOS PODATKOV'!$L$314:$L$326,0),3),\"\")","v":""},{"$f":"IFERROR(INDEX('VNOS PODATKOV'!$C$314:$K$326,MATCH(ROW()-ROW(A$98),'VNOS PODATKOV'!$L$314:$L$326,0),7),\"\")","v":""},{"$f":"IFERROR(INDEX('VNOS PODATKOV'!$C$314:$K$326,MATCH(ROW()-ROW(A$98),'VNOS PODATKOV'!$L$314:$L$326,0),8),\"\")","v":""},{"$f":"IFERROR(INDEX('VNOS PODATKOV'!$C$314:$K$326,MATCH(ROW()-ROW(B$98),'VNOS PODATKOV'!$L$314:$L$326,0),9),\"\")","v":""}]
[{"$f":"IFERROR(INDEX('VNOS PODATKOV'!$C$314:$K$326,MATCH(ROW()-ROW(A$98),'VNOS PODATKOV'!$L$314:$L$326,0),1),\"\")","v":""},null,{"$f":"IFERROR(INDEX('VNOS PODATKOV'!$C$314:$K$326,MATCH(ROW()-ROW(A$98),'VNOS PODATKOV'!$L$314:$L$326,0),3),\"\")","v":""},{"$f":"IFERROR(INDEX('VNOS PODATKOV'!$C$314:$K$326,MATCH(ROW()-ROW(A$98),'VNOS PODATKOV'!$L$314:$L$326,0),7),\"\")","v":""},{"$f":"IFERROR(INDEX('VNOS PODATKOV'!$C$314:$K$326,MATCH(ROW()-ROW(A$98),'VNOS PODATKOV'!$L$314:$L$326,0),8),\"\")","v":""},{"$f":"IFERROR(INDEX('VNOS PODATKOV'!$C$314:$K$326,MATCH(ROW()-ROW(B$98),'VNOS PODATKOV'!$L$314:$L$326,0),9),\"\")","v":""}]
[{"$f":"IFERROR(INDEX('VNOS PODATKOV'!$C$314:$K$326,MATCH(ROW()-ROW(A$98),'VNOS PODATKOV'!$L$314:$L$326,0),1),\"\")","v":""},null,{"$f":"IFERROR(INDEX('VNOS PODATKOV'!$C$314:$K$326,MATCH(ROW()-ROW(A$98),'VNOS PODATKOV'!$L$314:$L$326,0),3),\"\")","v":""},{"$f":"IFERROR(INDEX('VNOS PODATKOV'!$C$314:$K$326,MATCH(ROW()-ROW(A$98),'VNOS PODATKOV'!$L$314:$L$326,0),7),\"\")","v":""},{"$f":"IFERROR(INDEX('VNOS PODATKOV'!$C$314:$K$326,MATCH(ROW()-ROW(A$98),'VNOS PODATKOV'!$L$314:$L$326,0),8),\"\")","v":""},{"$f":"IFERROR(INDEX('VNOS PODATKOV'!$C$314:$K$326,MATCH(ROW()-ROW(B$98),'VNOS PODATKOV'!$L$314:$L$326,0),9),\"\")","v":""}]
[{"$f":"'VNOS PODATKOV'!C327","v":"PRIKLJUČEVANJE NA INFRASTRUKTURO"}]
[{"$f":"IFERROR(INDEX('VNOS PODATKOV'!$C$330:$K$340,MATCH(ROW()-ROW(A$112),'VNOS PODATKOV'!$L$330:$L$340,0),1),\"\")","v":""},null,{"$f":"IFERROR(INDEX('VNOS PODATKOV'!$C$330:$K$340,MATCH(ROW()-ROW(A$112),'VNOS PODATKOV'!$L$330:$L$340,0),3),\"\")","v":""},{"$f":"IFERROR(INDEX('VNOS PODATKOV'!$C$330:$K$340,MATCH(ROW()-ROW(A$112),'VNOS PODATKOV'!$L$330:$L$340,0),7),\"\")","v":""},{"$f":"IFERROR(INDEX('VNOS PODATKOV'!$C$330:$K$340,MATCH(ROW()-ROW(A$112),'VNOS PODATKOV'!$L$330:$L$340,0),8),\"\")","v":""},{"$f":"IFERROR(INDEX('VNOS PODATKOV'!$C$330:$K$340,MATCH(ROW()-ROW(A$112),'VNOS PODATKOV'!$L$330:$L$340,0),9),\"\")","v":""}]
[{"$f":"IFERROR(INDEX('VNOS PODATKOV'!$C$330:$K$340,MATCH(ROW()-ROW(A$112),'VNOS PODATKOV'!$L$330:$L$340,0),1),\"\")","v":""},null,{"$f":"IFERROR(INDEX('VNOS PODATKOV'!$C$330:$K$340,MATCH(ROW()-ROW(A$112),'VNOS PODATKOV'!$L$330:$L$340,0),3),\"\")","v":""},{"$f":"IFERROR(INDEX('VNOS PODATKOV'!$C$330:$K$340,MATCH(ROW()-ROW(A$112),'VNOS PODATKOV'!$L$330:$L$340,0),7),\"\")","v":""},{"$f":"IFERROR(INDEX('VNOS PODATKOV'!$C$330:$K$340,MATCH(ROW()-ROW(A$112),'VNOS PODATKOV'!$L$330:$L$340,0),8),\"\")","v":""},{"$f":"IFERROR(INDEX('VNOS PODATKOV'!$C$330:$K$340,MATCH(ROW()-ROW(A$112),'VNOS PODATKOV'!$L$330:$L$340,0),9),\"\")","v":""}]
[{"$f":"IFERROR(INDEX('VNOS PODATKOV'!$C$330:$K$340,MATCH(ROW()-ROW(A$112),'VNOS PODATKOV'!$L$330:$L$340,0),1),\"\")","v":""},null,{"$f":"IFERROR(INDEX('VNOS PODATKOV'!$C$330:$K$340,MATCH(ROW()-ROW(A$112),'VNOS PODATKOV'!$L$330:$L$340,0),3),\"\")","v":""},{"$f":"IFERROR(INDEX('VNOS PODATKOV'!$C$330:$K$340,MATCH(ROW()-ROW(A$112),'VNOS PODATKOV'!$L$330:$L$340,0),7),\"\")","v":""},{"$f":"IFERROR(INDEX('VNOS PODATKOV'!$C$330:$K$340,MATCH(ROW()-ROW(A$112),'VNOS PODATKOV'!$L$330:$L$340,0),8),\"\")","v":""},{"$f":"IFERROR(INDEX('VNOS PODATKOV'!$C$330:$K$340,MATCH(ROW()-ROW(A$112),'VNOS PODATKOV'!$L$330:$L$340,0),9),\"\")","v":""}]
[{"$f":"IFERROR(INDEX('VNOS PODATKOV'!$C$330:$K$340,MATCH(ROW()-ROW(A$112),'VNOS PODATKOV'!$L$330:$L$340,0),1),\"\")","v":""},null,{"$f":"IFERROR(INDEX('VNOS PODATKOV'!$C$330:$K$340,MATCH(ROW()-ROW(A$112),'VNOS PODATKOV'!$L$330:$L$340,0),3),\"\")","v":""},{"$f":"IFERROR(INDEX('VNOS PODATKOV'!$C$330:$K$340,MATCH(ROW()-ROW(A$112),'VNOS PODATKOV'!$L$330:$L$340,0),7),\"\")","v":""},{"$f":"IFERROR(INDEX('VNOS PODATKOV'!$C$330:$K$340,MATCH(ROW()-ROW(A$112),'VNOS PODATKOV'!$L$330:$L$340,0),8),\"\")","v":""},{"$f":"IFERROR(INDEX('VNOS PODATKOV'!$C$330:$K$340,MATCH(ROW()-ROW(A$112),'VNOS PODATKOV'!$L$330:$L$340,0),9),\"\")","v":""}]
[{"$f":"IFERROR(INDEX('VNOS PODATKOV'!$C$330:$K$340,MATCH(ROW()-ROW(A$112),'VNOS PODATKOV'!$L$330:$L$340,0),1),\"\")","v":""},null,{"$f":"IFERROR(INDEX('VNOS PODATKOV'!$C$330:$K$340,MATCH(ROW()-ROW(A$112),'VNOS PODATKOV'!$L$330:$L$340,0),3),\"\")","v":""},{"$f":"IFERROR(INDEX('VNOS PODATKOV'!$C$330:$K$340,MATCH(ROW()-ROW(A$112),'VNOS PODATKOV'!$L$330:$L$340,0),7),\"\")","v":""},{"$f":"IFERROR(INDEX('VNOS PODATKOV'!$C$330:$K$340,MATCH(ROW()-ROW(A$112),'VNOS PODATKOV'!$L$330:$L$340,0),8),\"\")","v":""},{"$f":"IFERROR(INDEX('VNOS PODATKOV'!$C$330:$K$340,MATCH(ROW()-ROW(A$112),'VNOS PODATKOV'!$L$330:$L$340,0),9),\"\")","v":""}]
[{"$f":"IFERROR(INDEX('VNOS PODATKOV'!$C$330:$K$340,MATCH(ROW()-ROW(A$112),'VNOS PODATKOV'!$L$330:$L$340,0),1),\"\")","v":""},null,{"$f":"IFERROR(INDEX('VNOS PODATKOV'!$C$330:$K$340,MATCH(ROW()-ROW(A$112),'VNOS PODATKOV'!$L$330:$L$340,0),3),\"\")","v":""},{"$f":"IFERROR(INDEX('VNOS PODATKOV'!$C$330:$K$340,MATCH(ROW()-ROW(A$112),'VNOS PODATKOV'!$L$330:$L$340,0),7),\"\")","v":""},{"$f":"IFERROR(INDEX('VNOS PODATKOV'!$C$330:$K$340,MATCH(ROW()-ROW(A$112),'VNOS PODATKOV'!$L$330:$L$340,0),8),\"\")","v":""},{"$f":"IFERROR(INDEX('VNOS PODATKOV'!$C$330:$K$340,MATCH(ROW()-ROW(A$112),'VNOS PODATKOV'!$L$330:$L$340,0),9),\"\")","v":""}]
[{"$f":"IFERROR(INDEX('VNOS PODATKOV'!$C$330:$K$340,MATCH(ROW()-ROW(A$112),'VNOS PODATKOV'!$L$330:$L$340,0),1),\"\")","v":""},null,{"$f":"IFERROR(INDEX('VNOS PODATKOV'!$C$330:$K$340,MATCH(ROW()-ROW(A$112),'VNOS PODATKOV'!$L$330:$L$340,0),3),\"\")","v":""},{"$f":"IFERROR(INDEX('VNOS PODATKOV'!$C$330:$K$340,MATCH(ROW()-ROW(A$112),'VNOS PODATKOV'!$L$330:$L$340,0),7),\"\")","v":""},{"$f":"IFERROR(INDEX('VNOS PODATKOV'!$C$330:$K$340,MATCH(ROW()-ROW(A$112),'VNOS PODATKOV'!$L$330:$L$340,0),8),\"\")","v":""},{"$f":"IFERROR(INDEX('VNOS PODATKOV'!$C$330:$K$340,MATCH(ROW()-ROW(A$112),'VNOS PODATKOV'!$L$330:$L$340,0),9),\"\")","v":""}]
[{"$f":"IFERROR(INDEX('VNOS PODATKOV'!$C$330:$K$340,MATCH(ROW()-ROW(A$112),'VNOS PODATKOV'!$L$330:$L$340,0),1),\"\")","v":""},null,{"$f":"IFERROR(INDEX('VNOS PODATKOV'!$C$330:$K$340,MATCH(ROW()-ROW(A$112),'VNOS PODATKOV'!$L$330:$L$340,0),3),\"\")","v":""},{"$f":"IFERROR(INDEX('VNOS PODATKOV'!$C$330:$K$340,MATCH(ROW()-ROW(A$112),'VNOS PODATKOV'!$L$330:$L$340,0),7),\"\")","v":""},{"$f":"IFERROR(INDEX('VNOS PODATKOV'!$C$330:$K$340,MATCH(ROW()-ROW(A$112),'VNOS PODATKOV'!$L$330:$L$340,0),8),\"\")","v":""},{"$f":"IFERROR(INDEX('VNOS PODATKOV'!$C$330:$K$340,MATCH(ROW()-ROW(A$112),'VNOS PODATKOV'!$L$330:$L$340,0),9),\"\")","v":""}]
[{"$f":"IFERROR(INDEX('VNOS PODATKOV'!$C$330:$K$340,MATCH(ROW()-ROW(A$112),'VNOS PODATKOV'!$L$330:$L$340,0),1),\"\")","v":""},null,{"$f":"IFERROR(INDEX('VNOS PODATKOV'!$C$330:$K$340,MATCH(ROW()-ROW(A$112),'VNOS PODATKOV'!$L$330:$L$340,0),3),\"\")","v":""},{"$f":"IFERROR(INDEX('VNOS PODATKOV'!$C$330:$K$340,MATCH(ROW()-ROW(A$112),'VNOS PODATKOV'!$L$330:$L$340,0),7),\"\")","v":""},{"$f":"IFERROR(INDEX('VNOS PODATKOV'!$C$330:$K$340,MATCH(ROW()-ROW(A$112),'VNOS PODATKOV'!$L$330:$L$340,0),8),\"\")","v":""},{"$f":"IFERROR(INDEX('VNOS PODATKOV'!$C$330:$K$340,MATCH(ROW()-ROW(A$112),'VNOS PODATKOV'!$L$330:$L$340,0),9),\"\")","v":""}]
[{"$f":"IFERROR(INDEX('VNOS PODATKOV'!$C$330:$K$340,MATCH(ROW()-ROW(A$112),'VNOS PODATKOV'!$L$330:$L$340,0),1),\"\")","v":""},null,{"$f":"IFERROR(INDEX('VNOS PODATKOV'!$C$330:$K$340,MATCH(ROW()-ROW(A$112),'VNOS PODATKOV'!$L$330:$L$340,0),3),\"\")","v":""},{"$f":"IFERROR(INDEX('VNOS PODATKOV'!$C$330:$K$340,MATCH(ROW()-ROW(A$112),'VNOS PODATKOV'!$L$330:$L$340,0),7),\"\")","v":""},{"$f":"IFERROR(INDEX('VNOS PODATKOV'!$C$330:$K$340,MATCH(ROW()-ROW(A$112),'VNOS PODATKOV'!$L$330:$L$340,0),8),\"\")","v":""},{"$f":"IFERROR(INDEX('VNOS PODATKOV'!$C$330:$K$340,MATCH(ROW()-ROW(A$112),'VNOS PODATKOV'!$L$330:$L$340,0),9),\"\")","v":""}]
[{"$f":"IFERROR(INDEX('VNOS PODATKOV'!$C$330:$K$340,MATCH(ROW()-ROW(A$112),'VNOS PODATKOV'!$L$330:$L$340,0),1),\"\")","v":""},null,{"$f":"IFERROR(INDEX('VNOS PODATKOV'!$C$330:$K$340,MATCH(ROW()-ROW(A$112),'VNOS PODATKOV'!$L$330:$L$340,0),3),\"\")","v":""},{"$f":"IFERROR(INDEX('VNOS PODATKOV'!$C$330:$K$340,MATCH(ROW()-ROW(A$112),'VNOS PODATKOV'!$L$330:$L$340,0),7),\"\")","v":""},{"$f":"IFERROR(INDEX('VNOS PODATKOV'!$C$330:$K$340,MATCH(ROW()-ROW(A$112),'VNOS PODATKOV'!$L$330:$L$340,0),8),\"\")","v":""},{"$f":"IFERROR(INDEX('VNOS PODATKOV'!$C$330:$K$340,MATCH(ROW()-ROW(A$112),'VNOS PODATKOV'!$L$330:$L$340,0),9),\"\")","v":""}]
[{"$f":"'VNOS PODATKOV'!C341","v":"DRUGA MNENJA"}]
[{"$f":"IFERROR(INDEX('VNOS PODATKOV'!$C$344:$K$351,MATCH(ROW()-ROW(A$124),'VNOS PODATKOV'!$L$344:$L$351,0),1),\"\")","v":"DRUGO (NAVEDI)"},null,{"$f":"IFERROR(INDEX('VNOS PODATKOV'!$C$344:$K$351,MATCH(ROW()-ROW(A$124),'VNOS PODATKOV'!$L$344:$L$351,0),3),\"\")","v":"Zavod"},{"$f":"IFERROR(INDEX('VNOS PODATKOV'!$C$344:$K$351,MATCH(ROW()-ROW(C$124),'VNOS PODATKOV'!$L$344:$L$351,0),7),\"\")","v":"00:00:00"},{"$f":"IFERROR(INDEX('VNOS PODATKOV'!$C$344:$K$351,MATCH(ROW()-ROW(C$124),'VNOS PODATKOV'!$L$344:$L$351,0),8),\"\")","v":0},{"$f":"IFERROR(INDEX('VNOS PODATKOV'!$C$344:$K$351,MATCH(ROW()-ROW(C$124),'VNOS PODATKOV'!$L$344:$L$351,0),9),\"\")","v":"00:00:00"}]
[{"$f":"IFERROR(INDEX('VNOS PODATKOV'!$C$344:$K$351,MATCH(ROW()-ROW(A$124),'VNOS PODATKOV'!$L$344:$L$351,0),1),\"\")","v":""},null,{"$f":"IFERROR(INDEX('VNOS PODATKOV'!$C$344:$K$351,MATCH(ROW()-ROW(A$124),'VNOS PODATKOV'!$L$344:$L$351,0),3),\"\")","v":""},{"$f":"IFERROR(INDEX('VNOS PODATKOV'!$C$344:$K$351,MATCH(ROW()-ROW(C$124),'VNOS PODATKOV'!$L$344:$L$351,0),7),\"\")","v":""},{"$f":"IFERROR(INDEX('VNOS PODATKOV'!$C$344:$K$351,MATCH(ROW()-ROW(C$124),'VNOS PODATKOV'!$L$344:$L$351,0),8),\"\")","v":""},{"$f":"IFERROR(INDEX('VNOS PODATKOV'!$C$344:$K$351,MATCH(ROW()-ROW(C$124),'VNOS PODATKOV'!$L$344:$L$351,0),9),\"\")","v":""}]
[{"$f":"IFERROR(INDEX('VNOS PODATKOV'!$C$344:$K$351,MATCH(ROW()-ROW(A$124),'VNOS PODATKOV'!$L$344:$L$351,0),1),\"\")","v":""},null,{"$f":"IFERROR(INDEX('VNOS PODATKOV'!$C$344:$K$351,MATCH(ROW()-ROW(A$124),'VNOS PODATKOV'!$L$344:$L$351,0),3),\"\")","v":""},{"$f":"IFERROR(INDEX('VNOS PODATKOV'!$C$344:$K$351,MATCH(ROW()-ROW(C$124),'VNOS PODATKOV'!$L$344:$L$351,0),7),\"\")","v":""},{"$f":"IFERROR(INDEX('VNOS PODATKOV'!$C$344:$K$351,MATCH(ROW()-ROW(C$124),'VNOS PODATKOV'!$L$344:$L$351,0),8),\"\")","v":""},{"$f":"IFERROR(INDEX('VNOS PODATKOV'!$C$344:$K$351,MATCH(ROW()-ROW(C$124),'VNOS PODATKOV'!$L$344:$L$351,0),9),\"\")","v":""}]
[{"$f":"IFERROR(INDEX('VNOS PODATKOV'!$C$344:$K$351,MATCH(ROW()-ROW(A$124),'VNOS PODATKOV'!$L$344:$L$351,0),1),\"\")","v":""},null,{"$f":"IFERROR(INDEX('VNOS PODATKOV'!$C$344:$K$351,MATCH(ROW()-ROW(A$124),'VNOS PODATKOV'!$L$344:$L$351,0),3),\"\")","v":""},{"$f":"IFERROR(INDEX('VNOS PODATKOV'!$C$344:$K$351,MATCH(ROW()-ROW(C$124),'VNOS PODATKOV'!$L$344:$L$351,0),7),\"\")","v":""},{"$f":"IFERROR(INDEX('VNOS PODATKOV'!$C$344:$K$351,MATCH(ROW()-ROW(C$124),'VNOS PODATKOV'!$L$344:$L$351,0),8),\"\")","v":""},{"$f":"IFERROR(INDEX('VNOS PODATKOV'!$C$344:$K$351,MATCH(ROW()-ROW(C$124),'VNOS PODATKOV'!$L$344:$L$351,0),9),\"\")","v":""}]
[{"$f":"IFERROR(INDEX('VNOS PODATKOV'!$C$344:$K$351,MATCH(ROW()-ROW(A$124),'VNOS PODATKOV'!$L$344:$L$351,0),1),\"\")","v":""},null,{"$f":"IFERROR(INDEX('VNOS PODATKOV'!$C$344:$K$351,MATCH(ROW()-ROW(A$124),'VNOS PODATKOV'!$L$344:$L$351,0),3),\"\")","v":""},{"$f":"IFERROR(INDEX('VNOS PODATKOV'!$C$344:$K$351,MATCH(ROW()-ROW(C$124),'VNOS PODATKOV'!$L$344:$L$351,0),7),\"\")","v":""},{"$f":"IFERROR(INDEX('VNOS PODATKOV'!$C$344:$K$351,MATCH(ROW()-ROW(C$124),'VNOS PODATKOV'!$L$344:$L$351,0),8),\"\")","v":""},{"$f":"IFERROR(INDEX('VNOS PODATKOV'!$C$344:$K$351,MATCH(ROW()-ROW(C$124),'VNOS PODATKOV'!$L$344:$L$351,0),9),\"\")","v":""}]
[{"$f":"IFERROR(INDEX('VNOS PODATKOV'!$C$344:$K$351,MATCH(ROW()-ROW(A$124),'VNOS PODATKOV'!$L$344:$L$351,0),1),\"\")","v":""},null,{"$f":"IFERROR(INDEX('VNOS PODATKOV'!$C$344:$K$351,MATCH(ROW()-ROW(A$124),'VNOS PODATKOV'!$L$344:$L$351,0),3),\"\")","v":""},{"$f":"IFERROR(INDEX('VNOS PODATKOV'!$C$344:$K$351,MATCH(ROW()-ROW(C$124),'VNOS PODATKOV'!$L$344:$L$351,0),7),\"\")","v":""},{"$f":"IFERROR(INDEX('VNOS PODATKOV'!$C$344:$K$351,MATCH(ROW()-ROW(C$124),'VNOS PODATKOV'!$L$344:$L$351,0),8),\"\")","v":""},{"$f":"IFERROR(INDEX('VNOS PODATKOV'!$C$344:$K$351,MATCH(ROW()-ROW(C$124),'VNOS PODATKOV'!$L$344:$L$351,0),9),\"\")","v":""}]
[{"$f":"IFERROR(INDEX('VNOS PODATKOV'!$C$344:$K$351,MATCH(ROW()-ROW(A$124),'VNOS PODATKOV'!$L$344:$L$351,0),1),\"\")","v":""},null,{"$f":"IFERROR(INDEX('VNOS PODATKOV'!$C$344:$K$351,MATCH(ROW()-ROW(A$124),'VNOS PODATKOV'!$L$344:$L$351,0),3),\"\")","v":""},{"$f":"IFERROR(INDEX('VNOS PODATKOV'!$C$344:$K$351,MATCH(ROW()-ROW(C$124),'VNOS PODATKOV'!$L$344:$L$351,0),7),\"\")","v":""},{"$f":"IFERROR(INDEX('VNOS PODATKOV'!$C$344:$K$351,MATCH(ROW()-ROW(C$124),'VNOS PODATKOV'!$L$344:$L$351,0),8),\"\")","v":""},{"$f":"IFERROR(INDEX('VNOS PODATKOV'!$C$344:$K$351,MATCH(ROW()-ROW(C$124),'VNOS PODATKOV'!$L$344:$L$351,0),9),\"\")","v":""}]
[{"$f":"IFERROR(INDEX('VNOS PODATKOV'!$C$344:$K$351,MATCH(ROW()-ROW(A$124),'VNOS PODATKOV'!$L$344:$L$351,0),1),\"\")","v":""},null,{"$f":"IFERROR(INDEX('VNOS PODATKOV'!$C$344:$K$351,MATCH(ROW()-ROW(A$124),'VNOS PODATKOV'!$L$344:$L$351,0),3),\"\")","v":""},{"$f":"IFERROR(INDEX('VNOS PODATKOV'!$C$344:$K$351,MATCH(ROW()-ROW(C$124),'VNOS PODATKOV'!$L$344:$L$351,0),7),\"\")","v":""},{"$f":"IFERROR(INDEX('VNOS PODATKOV'!$C$344:$K$351,MATCH(ROW()-ROW(C$124),'VNOS PODATKOV'!$L$344:$L$351,0),8),\"\")","v":""},{"$f":"IFERROR(INDEX('VNOS PODATKOV'!$C$344:$K$351,MATCH(ROW()-ROW(C$124),'VNOS PODATKOV'!$L$344:$L$351,0),9),\"\")","v":""}]
["IZKAZOVANJE PRAVICE GRADITI"]
["ustrezno označiti"]
[null,null,"Lastninska ali druga stvarna pravica na nepremičninah, na katerih se bo izvajala gradnja, je vpisana v zemljiški knjigi."]
[null,null,"Iz uradnih evidenc je razvidno, da je investitor zakoniti upravljavec nepremičnine, na kateri se bo izvajala gradnja."]
[null,null,"Pravico graditi dokazujem z listinami:"]
[null,null,"notarsko overjena pogodba o pridobitvi lastninske ali druge stvarne pravice na nepremičninah, na katerih se bo izvajala gradnja, ki je predlagana za vpis v zemljiško knjigo;"]
[null,null,"sodna ali upravna odločba, ki investitorju omogoča gradnjo oziroma izvajanje del;"]
[null,null,"sklep o določitvi investitorja kot upravljavca nepremičnine, če gre za nepremičnino v lasti njegovega ustanovitelja;"]
[null,null,"druga listina, ki v skladu z zakonom investitorju omogoča gradnjo oziroma izvajanje del;"]
[null,null,"soglasje upravljavca javne ceste za izvedbo gradnje v cestnem telesu, če gre za gradnjo objekta gospodarske javne infrastrukture, skupaj s priključki, ki se izvaja v cestnem telesu javne ceste;"]
[null,null,"notarsko overjena pogodba o pridobitvi obligacijske pravice, za nepremičnine, na katerih so predvidene začasne ureditve za potrebe gradnje."]
[]
["PODATKI ZA IZRAČUN UPRAVNE TAKSE"]
[{"$f":"'VNOS PODATKOV'!C360","v":"ocenjena vrednost objekta v EUR brez DDV"},null,{"$f":"IFERROR('VNOS PODATKOV'!D360,\"\")","v":0}]
[]
[null,null,"Na podlagi navedenih podatkov in priloženega projekta ter ostalih priloženih listin vas prosim za izdajo gradbenega dovoljenja."]
[]
["datum",null,"podpis vložnika"]
[{"$f":"TODAY()","v":"2023-06-07"}]
[]
[]
["PRILOGE"]
["ustrezno označiti"]
[null,null,"Pooblastilo (če zahteve ne vlaga investitor)"]
[null,null,"Projektna dokumentacija za pridobitev mnenj in gradbenega dovoljenja - DGD"]
[null,null,"Priloga 4C Podatki o zemljiščih za gradnjo (izpolnjena v okviru zahtevka)"]
[null,null,"Sklep predhodne presoje vplivov na okolje (če gre za objekt z vplivi na okolje in če je bil pridobljen)"]
[null,null,"Poročilo o vplivih na okolje"]
[null,null,"Mnenja (če so pridobljena) ali dokazilo o podani zahtevi za mnenje, ki ni bilo izdano \nv predpisanem roku"]
[null,null,"Listine, ki izkazujejo pravico graditi, če lastninska ali druga stvarna pravica ni vpisana v zemljiško knjigo ali če iz uradnih evidenc ni razvidno, da je investitor zakoniti upravljavec nepremičnin"]
[null,null,"Pisne izjave strank, da se strinjajo z nameravano gradnjo, če so pridobljene"]
[null,null,"Dokazilo o obstoju objekta pred 31. 12. 1967"]
[null,null,"Priloga 19A Zahteva za izdajo odločbe o legalizaciji z ustreznimi prilogami, če se zahteva za izdajo gradbenega dovoljenja nanaša na rekonstrukcijo, prizidavo ali spremembo namembnosti že zgrajenega nelegalnega objekta"]
[null,null,"Priloga 19D Zahteva za dovoljenje za objekt daljšega obstoja brez gradbenega dovoljenja z ustreznimi prilogami, če se zahteva za izdajo gradbenega dovoljenja nanaša na rekonstrukcijo, prizidavo ali spremembo namembnosti že zgrajenega nelegalnega objekta"]
[null,null,"Projektna dokumentacija za legalizacijo (DL), če DGD nima vsebin, ki se nanašajo na legalizacijo"]
[null,null,"Druge priloge (navesti, katere):"]

{"sheet":"12 GD SPREM","index":21,"n_rows":168,"n_cols":6,"rows_kept":168,"cut":false,"hidden":false,"merged":[[47,2,47,5],[52,0,52,5],[71,0,71,5],[53,0,53,5],[149,2,149,5],[78,0,78,5],[145,0,145,5],[140,2,140,5],[141,2,141,5],[142,2,142,5],[143,2,143,5],[135,2,135,5],[136,2,136,5],[137,2,137,5],[138,2,138,5],[139,2,139,5],[1,0,1,2],[31,2,31,5],[45,0,45,5],[32,2,32,5],[46,2,46,5],[17,0,17,2],[3,0,3,2],[68,0,68,1],[73,0,73,1],[75,0,75,1],[168,2,168,5],[169,2,169,5],[167,2,167,5],[162,2,162,5],[165,2,165,5],[155,0,155,5],[166,2,166,5],[164,2,164,5],[161,2,161,5]]}
["PRILOGA 12"]
["ZAHTEVA ZA SPREMEMBO \nGRADBENEGA DOVOLJENJA"]
[]
[{"$f":"'VNOS PODATKOV'!C44","v":"INVESTITOR"}]
[{"$f":"'VNOS PODATKOV'!C45","v":"INVESTITOR 1"}]
[{"$f":"'VNOS PODATKOV'!C46","v":"ime in priimek ali naziv družbe"},null,{"$f":"'VNOS PODATKOV'!D46","v":0}]
[{"$f":"'VNOS PODATKOV'!C47","v":"naslov ali poslovni naslov družbe"},null,{"$f":"'VNOS PODATKOV'!D47","v":0}]
[{"$f":"'VNOS PODATKOV'!C48","v":"davčna številka"},null,{"$f":"'VNOS PODATKOV'!D48","v":0}]
[{"$f":"'VNOS PODATKOV'!C49","v":"INVESTITOR 2"}]
[{"$f":"'VNOS PODATKOV'!C50","v":"ime in priimek ali naziv družbe"},null,{"$f":"'VNOS PODATKOV'!D50","v":0}]
[{"$f":"'VNOS PODATKOV'!C51","v":"naslov ali poslovni naslov družbe"},null,{"$f":"'VNOS PODATKOV'!D51","v":0}]
[{"$f":"'VNOS PODATKOV'!C52","v":"davčna številka"},null,{"$f":"'VNOS PODATKOV'!D52","v":0}]
[{"$f":"'VNOS PODATKOV'!C53","v":"INVESTITOR 3"}]
[{"$f":"'VNOS PODATKOV'!C54","v":"ime in priimek ali naziv družbe"},null,{"$f":"'VNOS PODATKOV'!D54","v":0}]
[{"$f":"'VNOS PODATKOV'!C55","v":"naslov ali poslovni naslov družbe"},null,{"$f":"'VNOS PODATKOV'!D55","v":0}]
[{"$f":"'VNOS PODATKOV'!C56","v":"davčna številka"},null,{"$f":"'VNOS PODATKOV'!D56","v":0}]
[]
[{"$f":"'VNOS PODATKOV'!C57","v":"KONTAKTNA OSEBA"}]
[{"$f":"'VNOS PODATKOV'!C58","v":"ime in priimek"},null,{"$f":"'VNOS PODATKOV'!D58","v":0}]
[{"$f":"'VNOS PODATKOV'!C59","v":"telefonska številka"},null,{"$f":"'VNOS PODATKOV'!D59","v":0}]
[{"$f":"'VNOS PODATKOV'!C60","v":"elektronski naslov"},null,{"$f":"'VNOS PODATKOV'!D60","v":0}]
[]
[{"$f":"'VNOS PODATKOV'!C61","v":"POOBLAŠČENEC"}]
[{"$f":"'VNOS PODATKOV'!C62","v":"podatki se vpišejo, kadar je imenovan pooblaščenec"}]
[{"$f":"'VNOS PODATKOV'!C64","v":"ime in priimek ali naziv družbe"},null,{"$f":"IF('VNOS PODATKOV'!D$63=TRUE,'VNOS PODATKOV'!D64, \"\")","v":""}]
[{"$f":"'VNOS PODATKOV'!C65","v":"naslov ali poslovni naslov družbe"},null,{"$f":"IF('VNOS PODATKOV'!D$63=TRUE,'VNOS PODATKOV'!D65, \"\")","v":""}]
[{"$f":"'VNOS PODATKOV'!C66","v":"kontaktna oseba"},null,{"$f":"IF('VNOS PODATKOV'!D$63=TRUE,'VNOS PODATKOV'!D66, \"\")","v":""}]
[{"$f":"'VNOS PODATKOV'!C67","v":"telefonska številka"},null,{"$f":"IF('VNOS PODATKOV'!D$63=TRUE,'VNOS PODATKOV'!D67, \"\")","v":""}]
[{"$f":"'VNOS PODATKOV'!C68","v":"elektronski naslov"},null,{"$f":"IF('VNOS PODATKOV'!D$63=TRUE,'VNOS PODATKOV'!D68, \"\")","v":""}]
[]
["NAVEDBA ORGANA, PRI KATEREM SE VLAGA ZAHTEVA"]
["naziv",null,{"$f":"'VNOS PODATKOV'!D355","v":0}]
["naslov",null,{"$f":"'VNOS PODATKOV'!D356","v":0}]
[]
[{"$f":"'VNOS PODATKOV'!C362","v":"PODATKI O IZDANEM GRADBENEM DOVOLJENJU"}]
[{"$f":"'VNOS PODATKOV'!C364","v":"navedba organa"},null,{"$f":"'VNOS PODATKOV'!D364","v":0}]
[{"$f":"'VNOS PODATKOV'!C365","v":"številka dovoljenja"},null,{"$f":"'VNOS PODATKOV'!D365","v":0}]
[{"$f":"'VNOS PODATKOV'!C366","v":"datum dovoljenja"},null,{"$f":"'VNOS PODATKOV'!D366","v":"00:00:00"}]
[{"$f":"'VNOS PODATKOV'!C368","v":"pravnomočnost"},null,{"$f":"'VNOS PODATKOV'!D368","v":"00:00:00"}]
[]
[{"$f":"'VNOS PODATKOV'!C369","v":"PODATKI O SPREMEMBI GRADBENEGA DOVOLJENJA"}]
[{"$f":"'VNOS PODATKOV'!C371","v":"navedba organa"},null,{"$f":"'VNOS PODATKOV'!D371","v":0}]
[{"$f":"'VNOS PODATKOV'!C372","v":"številka dovoljenja"},null,{"$f":"'VNOS PODATKOV'!D372","v":0}]
[{"$f":"'VNOS PODATKOV'!C373","v":"datum dovoljenja"},null,{"$f":"'VNOS PODATKOV'!D373","v":"00:00:00"}]
[{"$f":"'VNOS PODATKOV'!C375","v":"pravnomočnost"},null,{"$f":"'VNOS PODATKOV'!D375","v":"00:00:00"}]
[{"$f":"'VNOS PODATKOV'!C172","v":"PODATKI O GRADNJI"}]
[{"$f":"'VNOS PODATKOV'!C175","v":"naziv gradnje"},null,{"$f":"'VNOS PODATKOV'!D175","v":0}]
["vsebina zahteve oz. opis, na kaj se spremembe nanašajo"]
[null,{"$f":"IF('VNOS PODATKOV'!D213=TRUE,TRUE,FALSE)","v":false},{"$f":"'VNOS PODATKOV'!C213","v":"objekt z vplivi na okolje"}]
[null,{"$f":"IF('VNOS PODATKOV'!D219=TRUE,TRUE,FALSE)","v":false},{"$f":"'VNOS PODATKOV'!C219","v":"predhodna presoja vplivov na okolje"}]
[null,{"$f":"IF('VNOS PODATKOV'!D171=TRUE,TRUE,FALSE)","v":false},{"$f":"'VNOS PODATKOV'!C171","v":"vloga se nanaša samo na nezatevni objekt"}]
[]
["ZEMLJIŠČA ZA GRADNJO",true]
["podatki se vpišejo, če se zaradi spremembe DGD posega na druga zemljišča\n"]
["številka katastrske občine"]
["katastrska občina"]
["parc. št."]
[]
["PODATKI O PROJEKTNI DOKUMENTACIJI ZA SPREMEMBO GRADBENEGA DOVOLJENJA"]
[{"$f":"'VNOS PODATKOV'!C157","v":"podatki se vpišejo, če dokumentacijo izdela projektant"}]
["vrsta dokumentacije",null,{"$f":"'VNOS PODATKOV'!E159","v":"DGD (projektna dokumentacija za pridobivanje mnenj in gradbenega dovoljenja)"}]
[{"$f":"'VNOS PODATKOV'!C160","v":"številka projekta"},null,{"$f":"'VNOS PODATKOV'!E160","v":0}]
[{"$f":"'VNOS PODATKOV'!C161","v":"datum izdelave"},null,{"$f":"'VNOS PODATKOV'!E161","v":"00:00:00"}]
[{"$f":"'VNOS PODATKOV'!C87","v":"projektant (naziv družbe)"},null,{"$f":"'VNOS PODATKOV'!D87","v":0}]
[{"$f":"'VNOS PODATKOV'!C88","v":"naslov"},null,{"$f":"'VNOS PODATKOV'!D88","v":0}]
[]
["PREDHODNA PRESOJA VPLIVOV NA OKOLJE"]
[{"$f":"'VNOS PODATKOV'!C218","v":"podatki se vpišejo, če gre za objekt z vplivi na okolje in če je bil izveden predhodni postopek v skladu z zakonom, ki ureja varstvo okolja"}]
[{"$f":"'VNOS PODATKOV'!C220","v":"številka sklepa"},null,{"$f":"'VNOS PODATKOV'!D220","v":0}]
[{"$f":"'VNOS PODATKOV'!C221","v":"datum sklepa"},null,{"$f":"'VNOS PODATKOV'!D221","v":"00:00:00"}]
[]
["POROČILO O VPLIVIH NA OKOLJE (PVO)"]
[{"$f":"'VNOS PODATKOV'!C212","v":"podatki se vpišejo, kadar gre za objekt z vplivi na okolje"}]
[{"$f":"'VNOS PODATKOV'!C214","v":"številka poročila"},null,{"$f":"'VNOS PODATKOV'!D214","v":0}]
[{"$f":"'VNOS PODATKOV'!C215","v":"datum izdelave poročila"},null,{"$f":"'VNOS PODATKOV'!D215","v":"00:00:00"}]
[{"$f":"'VNOS PODATKOV'!C216","v":"izdelovalec poročila"},null,{"$f":"'VNOS PODATKOV'!D216","v":0}]
[]
["MNENJA"]
["vpišejo se podatki za vsa pridobljena mnenja k spremembi DGD, če spremembe vplivajo na že pridobljena mnenja\n"]
[null,null,{"$f":"'VNOS PODATKOV'!E292","v":"navedba mnenjedajalca"},{"$f":"'VNOS PODATKOV'!I288","v":"datum podaje zahtevka za mnenje"},{"$f":"'VNOS PODATKOV'!J292","v":"številka mnenja"},{"$f":"'VNOS PODATKOV'!K292","v":"datum mnenja"}]
[{"$f":"'VNOS PODATKOV'!C286","v":"SKLADNOST S PROSTORSKIMI AKTI"}]
["OBČINA",null,{"$f":"'VNOS PODATKOV'!E289","v":0},{"$f":"'VNOS PODATKOV'!I289","v":"00:00:00"},{"$f":"'VNOS PODATKOV'!J289","v":0},{"$f":"'VNOS PODATKOV'!K289","v":"00:00:00"}]
[{"$f":"'VNOS PODATKOV'!C290","v":"VAROVANA, VARSTVENA IN OGROŽENA OBMOČJA, VODNA IN PRIOBALNA ZEMLJIŠČA"}]
[{"$f":"IFERROR(INDEX('VNOS PODATKOV'!$C$293:$K$310,MATCH(ROW()-ROW(A$83),'VNOS PODATKOV'!$L$293:$L$310,0),1),\"\")","v":"OBMOČJE MEJNEGA PREHODA"},null,{"$f":"IFERROR(INDEX('VNOS PODATKOV'!$C$293:$K$310,MATCH(ROW()-ROW(A$83),'VNOS PODATKOV'!$L$293:$L$310,0),3),\"\")","v":0},{"$f":"IFERROR(INDEX('VNOS PODATKOV'!$C$293:$K$310,MATCH(ROW()-ROW(A$83),'VNOS PODATKOV'!$L$293:$L$310,0),7),\"\")","v":"00:00:00"},{"$f":"IFERROR(INDEX('VNOS PODATKOV'!$C$293:$K$310,MATCH(ROW()-ROW(A$83),'VNOS PODATKOV'!$L$293:$L$310,0),8),\"\")","v":0},{"$f":"IFERROR(INDEX('VNOS PODATKOV'!$C$293:$K$310,MATCH(ROW()-ROW(B$83),'VNOS PODATKOV'!$L$293:$L$310,0),9),\"\")","v":"00:00:00"}]
[{"$f":"IFERROR(INDEX('VNOS PODATKOV'!$C$293:$K$310,MATCH(ROW()-ROW(A$83),'VNOS PODATKOV'!$L$293:$L$310,0),1),\"\")","v":"OBJEKT V MEJAH RUDNIŠKEGA PROSTORA"},null,{"$f":"IFERROR(INDEX('VNOS PODATKOV'!$C$293:$K$310,MATCH(ROW()-ROW(A$83),'VNOS PODATKOV'!$L$293:$L$310,0),3),\"\")","v":0},{"$f":"IFERROR(INDEX('VNOS PODATKOV'!$C$293:$K$310,MATCH(ROW()-ROW(A$83),'VNOS PODATKOV'!$L$293:$L$310,0),7),\"\")","v":"00:00:00"},{"$f":"IFERROR(INDEX('VNOS PODATKOV'!$C$293:$K$310,MATCH(ROW()-ROW(A$83),'VNOS PODATKOV'!$L$293:$L$310,0),8),\"\")","v":0},{"$f":"IFERROR(INDEX('VNOS PODATKOV'!$C$293:$K$310,MATCH(ROW()-ROW(B$83),'VNOS PODATKOV'!$L$293:$L$310,0),9),\"\")","v":"00:00:00"}]
[{"$f":"IFERROR(INDEX('VNOS PODATKOV'!$C$293:$K$310,MATCH(ROW()-ROW(A$83),'VNOS PODATKOV'!$L$293:$L$310,0),1),\"\")","v":""},null,{"$f":"IFERROR(INDEX('VNOS PODATKOV'!$C$293:$K$310,MATCH(ROW()-ROW(A$83),'VNOS PODATKOV'!$L$293:$L$310,0),3),\"\")","v":""},{"$f":"IFERROR(INDEX('VNOS PODATKOV'!$C$293:$K$310,MATCH(ROW()-ROW(A$83),'VNOS PODATKOV'!$L$293:$L$310,0),7),\"\")","v":""},{"$f":"IFERROR(INDEX('VNOS PODATKOV'!$C$293:$K$310,MATCH(ROW()-ROW(A$83),'VNOS PODATKOV'!$L$293:$L$310,0),8),\"\")","v":""},{"$f":"IFERROR(INDEX('VNOS PODATKOV'!$C$293:$K$310,MATCH(ROW()-ROW(B$83),'VNOS PODATKOV'!$L$293:$L$310,0),9),\"\")","v":""}]
[{"$f":"IFERROR(INDEX('VNOS PODATKOV'!$C$293:$K$310,MATCH(ROW()-ROW(A$83),'VNOS PODATKOV'!$L$293:$L$310,0),1),\"\")","v":""},null,{"$f":"IFERROR(INDEX('VNOS PODATKOV'!$C$293:$K$310,MATCH(ROW()-ROW(A$83),'VNOS PODATKOV'!$L$293:$L$310,0),3),\"\")","v":""},{"$f":"IFERROR(INDEX('VNOS PODATKOV'!$C$293:$K$310,MATCH(ROW()-ROW(A$83),'VNOS PODATKOV'!$L$293:$L$310,0),7),\"\")","v":""},{"$f":"IFERROR(INDEX('VNOS PODATKOV'!$C$293:$K$310,MATCH(ROW()-ROW(A$83),'VNOS PODATKOV'!$L$293:$L$310,0),8),\"\")","v":""},{"$f":"IFERROR(INDEX('VNOS PODATKOV'!$C$293:$K$310,MATCH(ROW()-ROW(B$83),'VNOS PODATKOV'!$L$293:$L$310,0),9),\"\")","v":""}]
[{"$f":"IFERROR(INDEX('VNOS PODATKOV'!$C$293:$K$310,MATCH(ROW()-ROW(A$83),'VNOS PODATKOV'!$L$293:$L$310,0),1),\"\")","v":""},null,{"$f":"IFERROR(INDEX('VNOS PODATKOV'!$C$293:$K$310,MATCH(ROW()-ROW(A$83),'VNOS PODATKOV'!$L$293:$L$310,0),3),\"\")","v":""},{"$f":"IFERROR(INDEX('VNOS PODATKOV'!$C$293:$K$310,MATCH(ROW()-ROW(A$83),'VNOS PODATKOV'!$L$293:$L$310,0),7),\"\")","v":""},{"$f":"IFERROR(INDEX('VNOS PODATKOV'!$C$293:$K$310,MATCH(ROW()-ROW(A$83),'VNOS PODATKOV'!$L$293:$L$310,0),8),\"\")","v":""},{"$f":"IFERROR(INDEX('VNOS PODATKOV'!$C$293:$K$310,MATCH(ROW()-ROW(B$83),'VNOS PODATKOV'!$L$293:$L$310,0),9),\"\")","v":""}]
[{"$f":"IFERROR(INDEX('VNOS PODATKOV'!$C$293:$K$310,MATCH(ROW()-ROW(A$83),'VNOS PODATKOV'!$L$293:$L$310,0),1),\"\")","v":""},null,{"$f":"IFERROR(INDEX('VNOS PODATKOV'!$C$293:$K$310,MATCH(ROW()-ROW(A$83),'VNOS PODATKOV'!$L$293:$L$310,0),3),\"\")","v":""},{"$f":"IFERROR(INDEX('VNOS PODATKOV'!$C$293:$K$310,MATCH(ROW()-ROW(A$83),'VNOS PODATKOV'!$L$293:$L$310,0),7),\"\")","v":""},{"$f":"IFERROR(INDEX('VNOS PODATKOV'!$C$293:$K$310,MATCH(ROW()-ROW(A$83),'VNOS PODATKOV'!$L$293:$L$310,0),8),\"\")","v":""},{"$f":"IFERROR(INDEX('VNOS PODATKOV'!$C$293:$K$310,MATCH(ROW()-ROW(B$83),'VNOS PODATKOV'!$L$293:$L$310,0),9),\"\")","v":""}]
[{"$f":"IFERROR(INDEX('VNOS PODATKOV'!$C$293:$K$310,MATCH(ROW()-ROW(A$83),'VNOS PODATKOV'!$L$293:$L$310,0),1),\"\")","v":""},null,{"$f":"IFERROR(INDEX('VNOS PODATKOV'!$C$293:$K$310,MATCH(ROW()-ROW(A$83),'VNOS PODATKOV'!$L$293:$L$310,0),3),\"\")","v":""},{"$f":"IFERROR(INDEX('VNOS PODATKOV'!$C$293:$K$310,MATCH(ROW()-ROW(A$83),'VNOS PODATKOV'!$L$293:$L$310,0),7),\"\")","v":""},{"$f":"IFERROR(INDEX('VNOS PODATKOV'!$C$293:$K$310,MATCH(ROW()-ROW(A$83),'VNOS PODATKOV'!$L$293:$L$310,0),8),\"\")","v":""},{"$f":"IFERROR(INDEX('VNOS PODATKOV'!$C$293:$K$310,MATCH(ROW()-ROW(B$83),'VNOS PODATKOV'!$L$293:$L$310,0),9),\"\")","v":""}]
[{"$f":"IFERROR(INDEX('VNOS PODATKOV'!$C$293:$K$310,MATCH(ROW()-ROW(A$83),'VNOS PODATKOV'!$L$293:$L$310,0),1),\"\")","v":""},null,{"$f":"IFERROR(INDEX('VNOS PODATKOV'!$C$293:$K$310,MATCH(ROW()-ROW(A$83),'VNOS PODATKOV'!$L$293:$L$310,0),3),\"\")","v":""},{"$f":"IFERROR(INDEX('VNOS PODATKOV'!$C$293:$K$310,MATCH(ROW()-ROW(A$83),'VNOS PODATKOV'!$L$293:$L$310,0),7),\"\")","v":""},{"$f":"IFERROR(INDEX('VNOS PODATKOV'!$C$293:$K$310,MATCH(ROW()-ROW(A$83),'VNOS PODATKOV'!$L$293:$L$310,0),8),\"\")","v":""},{"$f":"IFERROR(INDEX('VNOS PODATKOV'!$C$293:$K$310,MATCH(ROW()-ROW(B$83),'VNOS PODATKOV'!$L$293:$L$310,0),9),\"\")","v":""}]
[{"$f":"IFERROR(INDEX('VNOS PODATKOV'!$C$293:$K$310,MATCH(ROW()-ROW(A$83),'VNOS PODATKOV'!$L$293:$L$310,0),1),\"\")","v":""},null,{"$f":"IFERROR(INDEX('VNOS PODATKOV'!$C$293:$K$310,MATCH(ROW()-ROW(A$83),'VNOS PODATKOV'!$L$293:$L$310,0),3),\"\")","v":""},{"$f":"IFERROR(INDEX('VNOS PODATKOV'!$C$293:$K$310,MATCH(ROW()-ROW(A$83),'VNOS PODATKOV'!$L$293:$L$310,0),7),\"\")","v":""},{"$f":"IFERROR(INDEX('VNOS PODATKOV'!$C$293:$K$310,MATCH(ROW()-ROW(A$83),'VNOS PODATKOV'!$L$293:$L$310,0),8),\"\")","v":""},{"$f":"IFERROR(INDEX('VNOS PODATKOV'!$C$293:$K$310,MATCH(ROW()-ROW(B$83),'VNOS PODATKOV'!$L$293:$L$310,0),9),\"\")","v":""}]
[{"$f":"IFERROR(INDEX('VNOS PODATKOV'!$C$293:$K$310,MATCH(ROW()-ROW(A$83),'VNOS PODATKOV'!$L$293:$L$310,0),1),\"\")","v":""},null,{"$f":"IFERROR(INDEX('VNOS PODATKOV'!$C$293:$K$310,MATCH(ROW()-ROW(A$83),'VNOS PODATKOV'!$L$293:$L$310,0),3),\"\")","v":""},{"$f":"IFERROR(INDEX('VNOS PODATKOV'!$C$293:$K$310,MATCH(ROW()-ROW(A$83),'VNOS PODATKOV'!$L$293:$L$310,0),7),\"\")","v":""},{"$f":"IFERROR(INDEX('VNOS PODATKOV'!$C$293:$K$310,MATCH(ROW()-ROW(A$83),'VNOS PODATKOV'!$L$293:$L$310,0),8),\"\")","v":""},{"$f":"IFERROR(INDEX('VNOS PODATKOV'!$C$293:$K$310,MATCH(ROW()-ROW(B$83),'VNOS PODATKOV'!$L$293:$L$310,0),9),\"\")","v":""}]
[{"$f":"IFERROR(INDEX('VNOS PODATKOV'!$C$293:$K$310,MATCH(ROW()-ROW(A$83),'VNOS PODATKOV'!$L$293:$L$310,0),1),\"\")","v":""},null,{"$f":"IFERROR(INDEX('VNOS PODATKOV'!$C$293:$K$310,MATCH(ROW()-ROW(A$83),'VNOS PODATKOV'!$L$293:$L$310,0),3),\"\")","v":""},{"$f":"IFERROR(INDEX('VNOS PODATKOV'!$C$293:$K$310,MATCH(ROW()-ROW(A$83),'VNOS PODATKOV'!$L$293:$L$310,0),7),\"\")","v":""},{"$f":"IFERROR(INDEX('VNOS PODATKOV'!$C$293:$K$310,MATCH(ROW()-ROW(A$83),'VNOS PODATKOV'!$L$293:$L$310,0),8),\"\")","v":""},{"$f":"IFERROR(INDEX('VNOS PODATKOV'!$C$293:$K$310,MATCH(ROW()-ROW(B$83),'VNOS PODATKOV'!$L$293:$L$310,0),9),\"\")","v":""}]
[{"$f":"IFERROR(INDEX('VNOS PODATKOV'!$C$293:$K$310,MATCH(ROW()-ROW(A$83),'VNOS PODATKOV'!$L$293:$L$310,0),1),\"\")","v":""},null,{"$f":"IFERROR(INDEX('VNOS PODATKOV'!$C$293:$K$310,MATCH(ROW()-ROW(A$83),'VNOS PODATKOV'!$L$293:$L$310,0),3),\"\")","v":""},{"$f":"IFERROR(INDEX('VNOS PODATKOV'!$C$293:$K$310,MATCH(ROW()-ROW(A$83),'VNOS PODATKOV'!$L$293:$L$310,0),7),\"\")","v":""},{"$f":"IFERROR(INDEX('VNOS PODATKOV'!$C$293:$K$310,MATCH(ROW()-ROW(A$83),'VNOS PODATKOV'!$L$293:$L$310,0),8),\"\")","v":""},{"$f":"IFERROR(INDEX('VNOS PODATKOV'!$C$293:$K$310,MATCH(ROW()-ROW(B$83),'VNOS PODATKOV'!$L$293:$L$310,0),9),\"\")","v":""}]
[{"$f":"IFERROR(INDEX('VNOS PODATKOV'!$C$293:$K$310,MATCH(ROW()-ROW(A$83),'VNOS PODATKOV'!$L$293:$L$310,0),1),\"\")","v":""},null,{"$f":"IFERROR(INDEX('VNOS PODATKOV'!$C$293:$K$310,MATCH(ROW()-ROW(A$83),'VNOS PODATKOV'!$L$293:$L$310,0),3),\"\")","v":""},{"$f":"IFERROR(INDEX('VNOS PODATKOV'!$C$293:$K$310,MATCH(ROW()-ROW(A$83),'VNOS PODATKOV'!$L$293:$L$310,0),7),\"\")","v":""},{"$f":"IFERROR(INDEX('VNOS PODATKOV'!$C$293:$K$310,MATCH(ROW()-ROW(A$83),'VNOS PODATKOV'!$L$293:$L$310,0),8),\"\")","v":""},{"$f":"IFERROR(INDEX('VNOS PODATKOV'!$C$293:$K$310,MATCH(ROW()-ROW(B$83),'VNOS PODATKOV'!$L$293:$L$310,0),9),\"\")","v":""}]
[{"$f":"IFERROR(INDEX('VNOS PODATKOV'!$C$293:$K$310,MATCH(ROW()-ROW(A$83),'VNOS PODATKOV'!$L$293:$L$310,0),1),\"\")","v":""},null,{"$f":"IFERROR(INDEX('VNOS PODATKOV'!$C$293:$K$310,MATCH(ROW()-ROW(A$83),'VNOS PODATKOV'!$L$293:$L$310,0),3),\"\")","v":""},{"$f":"IFERROR(INDEX('VNOS PODATKOV'!$C$293:$K$310,MATCH(ROW()-ROW(A$83),'VNOS PODATKOV'!$L$293:$L$310,0),7),\"\")","v":""},{"$f":"IFERROR(INDEX('VNOS PODATKOV'!$C$293:$K$310,MATCH(ROW()-ROW(A$83),'VNOS PODATKOV'!$L$293:$L$310,0),8),\"\")","v":""},{"$f":"IFERROR(INDEX('VNOS PODATKOV'!$C$293:$K$310,MATCH(ROW()-ROW(B$83),'VNOS PODATKOV'!$L$293:$L$310,0),9),\"\")","v":""}]
[{"$f":"IFERROR(INDEX('VNOS PODATKOV'!$C$293:$K$310,MATCH(ROW()-ROW(A$83),'VNOS PODATKOV'!$L$293:$L$310,0),1),\"\")","v":""},null,{"$f":"IFERROR(INDEX('VNOS PODATKOV'!$C$293:$K$310,MATCH(ROW()-ROW(A$83),'VNOS PODATKOV'!$L$293:$L$310,0),3),\"\")","v":""},{"$f":"IFERROR(INDEX('VNOS PODATKOV'!$C$293:$K$310,MATCH(ROW()-ROW(A$83),'VNOS PODATKOV'!$L$293:$L$310,0),7),\"\")","v":""},{"$f":"IFERROR(INDEX('VNOS PODATKOV'!$C$293:$K$310,MATCH(ROW()-ROW(A$83),'VNOS PODATKOV'!$L$293:$L$310,0),8),\"\")","v":""},{"$f":"IFERROR(INDEX('VNOS PODATKOV'!$C$293:$K$310,MATCH(ROW()-ROW(B$83),'VNOS PODATKOV'!$L$293:$L$310,0),9),\"\")","v":""}]
[{"$f":"'VNOS PODATKOV'!C311","v":"VAROVALNI PASOVI INFRASTRUKTURE"}]
[{"$f":"IFERROR(INDEX('VNOS PODATKOV'!$C$314:$K$326,MATCH(ROW()-ROW(A$99),'VNOS PODATKOV'!$L$314:$L$326,0),1),\"\")","v":"ELEKTRIKA"},null,{"$f":"IFERROR(INDEX('VNOS PODATKOV'!$C$314:$K$326,MATCH(ROW()-ROW(A$99),'VNOS PODATKOV'!$L$314:$L$326,0),3),\"\")","v":0},{"$f":"IFERROR(INDEX('VNOS PODATKOV'!$C$314:$K$326,MATCH(ROW()-ROW(A$99),'VNOS PODATKOV'!$L$314:$L$326,0),7),\"\")","v":"00:00:00"},{"$f":"IFERROR(INDEX('VNOS PODATKOV'!$C$314:$K$326,MATCH(ROW()-ROW(A$99),'VNOS PODATKOV'!$L$314:$L$326,0),8),\"\")","v":0},{"$f":"IFERROR(INDEX('VNOS PODATKOV'!$C$314:$K$326,MATCH(ROW()-ROW(B$99),'VNOS PODATKOV'!$L$314:$L$326,0),9),\"\")","v":"00:00:00"}]
[{"$f":"IFERROR(INDEX('VNOS PODATKOV'!$C$314:$K$326,MATCH(ROW()-ROW(A$99),'VNOS PODATKOV'!$L$314:$L$326,0),1),\"\")","v":"TOPLOVOD"},null,{"$f":"IFERROR(INDEX('VNOS PODATKOV'!$C$314:$K$326,MATCH(ROW()-ROW(A$99),'VNOS PODATKOV'!$L$314:$L$326,0),3),\"\")","v":0},{"$f":"IFERROR(INDEX('VNOS PODATKOV'!$C$314:$K$326,MATCH(ROW()-ROW(A$99),'VNOS PODATKOV'!$L$314:$L$326,0),7),\"\")","v":"00:00:00"},{"$f":"IFERROR(INDEX('VNOS PODATKOV'!$C$314:$K$326,MATCH(ROW()-ROW(A$99),'VNOS PODATKOV'!$L$314:$L$326,0),8),\"\")","v":0},{"$f":"IFERROR(INDEX('VNOS PODATKOV'!$C$314:$K$326,MATCH(ROW()-ROW(B$99),'VNOS PODATKOV'!$L$314:$L$326,0),9),\"\")","v":"00:00:00"}]
[{"$f":"IFERROR(INDEX('VNOS PODATKOV'!$C$314:$K$326,MATCH(ROW()-ROW(A$99),'VNOS PODATKOV'!$L$314:$L$326,0),1),\"\")","v":""},null,{"$f":"IFERROR(INDEX('VNOS PODATKOV'!$C$314:$K$326,MATCH(ROW()-ROW(A$99),'VNOS PODATKOV'!$L$314:$L$326,0),3),\"\")","v":""},{"$f":"IFERROR(INDEX('VNOS PODATKOV'!$C$314:$K$326,MATCH(ROW()-ROW(A$99),'VNOS PODATKOV'!$L$314:$L$326,0),7),\"\")","v":""},{"$f":"IFERROR(INDEX('VNOS PODATKOV'!$C$314:$K$326,MATCH(ROW()-ROW(A$99),'VNOS PODATKOV'!$L$314:$L$326,0),8),\"\")","v":""},{"$f":"IFERROR(INDEX('VNOS PODATKOV'!$C$314:$K$326,MATCH(ROW()-ROW(B$99),'VNOS PODATKOV'!$L$314:$L$326,0),9),\"\")","v":""}]
[{"$f":"IFERROR(INDEX('VNOS PODATKOV'!$C$314:$K$326,MATCH(ROW()-ROW(A$99),'VNOS PODATKOV'!$L$314:$L$326,0),1),\"\")","v":""},null,{"$f":"IFERROR(INDEX('VNOS PODATKOV'!$C$314:$K$326,MATCH(ROW()-ROW(A$99),'VNOS PODATKOV'!$L$314:$L$326,0),3),\"\")","v":""},{"$f":"IFERROR(INDEX('VNOS PODATKOV'!$C$314:$K$326,MATCH(ROW()-ROW(A$99),'VNOS PODATKOV'!$L$314:$L$326,0),7),\"\")","v":""},{"$f":"IFERROR(INDEX('VNOS PODATKOV'!$C$314:$K$326,MATCH(ROW()-ROW(A$99),'VNOS PODATKOV'!$L$314:$L$326,0),8),\"\")","v":""},{"$f":"IFERROR(INDEX('VNOS PODATKOV'!$C$314:$K$326,MATCH(ROW()-ROW(B$99),'VNOS PODATKOV'!$L$314:$L$326,0),9),\"\")","v":""}]
[{"$f":"IFERROR(INDEX('VNOS PODATKOV'!$C$314:$K$326,MATCH(ROW()-ROW(A$99),'VNOS PODATKOV'!$L$314:$L$326,0),1),\"\")","v":""},null,{"$f":"IFERROR(INDEX('VNOS PODATKOV'!$C$314:$K$326,MATCH(ROW()-ROW(A$99),'VNOS PODATKOV'!$L$314:$L$326,0),3),\"\")","v":""},{"$f":"IFERROR(INDEX('VNOS PODATKOV'!$C$314:$K$326,MATCH(ROW()-ROW(A$99),'VNOS PODATKOV'!$L$314:$L$326,0),7),\"\")","v":""},{"$f":"IFERROR(INDEX('VNOS PODATKOV'!$C$314:$K$326,MATCH(ROW()-ROW(A$99),'VNOS PODATKOV'!$L$314:$L$326,0),8),\"\")","v":""},{"$f":"IFERROR(INDEX('VNOS PODATKOV'!$C$314:$K$326,MATCH(ROW()-ROW(B$99),'VNOS PODATKOV'!$L$314:$L$326,0),9),\"\")","v":""}]
[{"$f":"IFERROR(INDEX('VNOS PODATKOV'!$C$314:$K$326,MATCH(ROW()-ROW(A$99),'VNOS PODATKOV'!$L$314:$L$326,0),1),\"\")","v":""},null,{"$f":"IFERROR(INDEX('VNOS PODATKOV'!$C$314:$K$326,MATCH(ROW()-ROW(A$99),'VNOS PODATKOV'!$L$314:$L$326,0),3),\"\")","v":""},{"$f":"IFERROR(INDEX('VNOS PODATKOV'!$C$314:$K$326,MATCH(ROW()-ROW(A$99),'VNOS PODATKOV'!$L$314:$L$326,0),7),\"\")","v":""},{"$f":"IFERROR(INDEX('VNOS PODATKOV'!$C$314:$K$326,MATCH(ROW()-ROW(A$99),'VNOS PODATKOV'!$L$314:$L$326,0),8),\"\")","v":""},{"$f":"IFERROR(INDEX('VNOS PODATKOV'!$C$314:$K$326,MATCH(ROW()-ROW(B$99),'VNOS PODATKOV'!$L$314:$L$326,0),9),\"\")","v":""}]
[{"$f":"IFERROR(INDEX('VNOS PODATKOV'!$C$314:$K$326,MATCH(ROW()-ROW(A$99),'VNOS PODATKOV'!$L$314:$L$326,0),1),\"\")","v":""},null,{"$f":"IFERROR(INDEX('VNOS PODATKOV'!$C$314:$K$326,MATCH(ROW()-ROW(A$99),'VNOS PODATKOV'!$L$314:$L$326,0),3),\"\")","v":""},{"$f":"IFERROR(INDEX('VNOS PODATKOV'!$C$314:$K$326,MATCH(ROW()-ROW(A$99),'VNOS PODATKOV'!$L$314:$L$326,0),7),\"\")","v":""},{"$f":"IFERROR(INDEX('VNOS PODATKOV'!$C$314:$K$326,MATCH(ROW()-ROW(A$99),'VNOS PODATKOV'!$L$314:$L$326,0),8),\"\")","v":""},{"$f":"IFERROR(INDEX('VNOS PODATKOV'!$C$314:$K$326,MATCH(ROW()-ROW(B$99),'VNOS PODATKOV'!$L$314:$L$326,0),9),\"\")","v":""}]
[{"$f":"IFERROR(INDEX('VNOS PODATKOV'!$C$314:$K$326,MATCH(ROW()-ROW(A$99),'VNOS PODATKOV'!$L$314:$L$326,0),1),\"\")","v":""},null,{"$f":"IFERROR(INDEX('VNOS PODATKOV'!$C$314:$K$326,MATCH(ROW()-ROW(A$99),'VNOS PODATKOV'!$L$314:$L$326,0),3),\"\")","v":""},{"$f":"IFERROR(INDEX('VNOS PODATKOV'!$C$314:$K$326,MATCH(ROW()-ROW(A$99),'VNOS PODATKOV'!$L$314:$L$326,0),7),\"\")","v":""},{"$f":"IFERROR(INDEX('VNOS PODATKOV'!$C$314:$K$326,MATCH(ROW()-ROW(A$99),'VNOS PODATKOV'!$L$314:$L$326,0),8),\"\")","v":""},{"$f":"IFERROR(INDEX('VNOS PODATKOV'!$C$314:$K$326,MATCH(ROW()-ROW(B$99),'VNOS PODATKOV'!$L$314:$L$326,0),9),\"\")","v":""}]
[{"$f":"IFERROR(INDEX('VNOS PODATKOV'!$C$314:$K$326,MATCH(ROW()-ROW(A$99),'VNOS PODATKOV'!$L$314:$L$326,0),1),\"\")","v":""},null,{"$f":"IFERROR(INDEX('VNOS PODATKOV'!$C$314:$K$326,MATCH(ROW()-ROW(A$99),'VNOS PODATKOV'!$L$314:$L$326,0),3),\"\")","v":""},{"$f":"IFERROR(INDEX('VNOS PODATKOV'!$C$314:$K$326,MATCH(ROW()-ROW(A$99),'VNOS PODATKOV'!$L$314:$L$326,0),7),\"\")","v":""},{"$f":"IFERROR(INDEX('VNOS PODATKOV'!$C$314:$K$326,MATCH(ROW()-ROW(A$99),'VNOS PODATKOV'!$L$314:$L$326,0),8),\"\")","v":""},{"$f":"IFERROR(INDEX('VNOS PODATKOV'!$C$314:$K$326,MATCH(ROW()-ROW(B$99),'VNOS PODATKOV'!$L$314:$L$326,0),9),\"\")","v":""}]
[{"$f":"IFERROR(INDEX('VNOS PODATKOV'!$C$314:$K$326,MATCH(ROW()-ROW(A$99),'VNOS PODATKOV'!$L$314:$L$326,0),1),\"\")","v":""},null,{"$f":"IFERROR(INDEX('VNOS PODATKOV'!$C$314:$K$326,MATCH(ROW()-ROW(A$99),'VNOS PODATKOV'!$L$314:$L$326,0),3),\"\")","v":""},{"$f":"IFERROR(INDEX('VNOS PODATKOV'!$C$314:$K$326,MATCH(ROW()-ROW(A$99),'VNOS PODATKOV'!$L$314:$L$326,0),7),\"\")","v":""},{"$f":"IFERROR(INDEX('VNOS PODATKOV'!$C$314:$K$326,MATCH(ROW()-ROW(A$99),'VNOS PODATKOV'!$L$314:$L$326,0),8),\"\")","v":""},{"$f":"IFERROR(INDEX('VNOS PODATKOV'!$C$314:$K$326,MATCH(ROW()-ROW(B$99),'VNOS PODATKOV'!$L$314:$L$326,0),9),\"\")","v":""}]
[{"$f":"IFERROR(INDEX('VNOS PODATKOV'!$C$314:$K$326,MATCH(ROW()-ROW(A$99),'VNOS PODATKOV'!$L$314:$L$326,0),1),\"\")","v":""},null,{"$f":"IFERROR(INDEX('VNOS PODATKOV'!$C$314:$K$326,MATCH(ROW()-ROW(A$99),'VNOS PODATKOV'!$L$314:$L$326,0),3),\"\")","v":""},{"$f":"IFERROR(INDEX('VNOS PODATKOV'!$C$314:$K$326,MATCH(ROW()-ROW(A$99),'VNOS PODATKOV'!$L$314:$L$326,0),7),\"\")","v":""},{"$f":"IFERROR(INDEX('VNOS PODATKOV'!$C$314:$K$326,MATCH(ROW()-ROW(A$99),'VNOS PODATKOV'!$L$314:$L$326,0),8),\"\")","v":""},{"$f":"IFERROR(INDEX('VNOS PODATKOV'!$C$314:$K$326,MATCH(ROW()-ROW(B$99),'VNOS PODATKOV'!$L$314:$L$326,0),9),\"\")","v":""}]
[{"$f":"IFERROR(INDEX('VNOS PODATKOV'!$C$314:$K$326,MATCH(ROW()-ROW(A$99),'VNOS PODATKOV'!$L$314:$L$326,0),1),\"\")","v":""},null,{"$f":"IFERROR(INDEX('VNOS PODATKOV'!$C$314:$K$326,MATCH(ROW()-ROW(A$99),'VNOS PODATKOV'!$L$314:$L$326,0),3),\"\")","v":""},{"$f":"IFERROR(INDEX('VNOS PODATKOV'!$C$314:$K$326,MATCH(ROW()-ROW(A$99),'VNOS PODATKOV'!$L$314:$L$326,0),7),\"\")","v":""},{"$f":"IFERROR(INDEX('VNOS PODATKOV'!$C$314:$K$326,MATCH(ROW()-ROW(A$99),'VNOS PODATKOV'!$L$314:$L$326,0),8),\"\")","v":""},{"$f":"IFERROR(INDEX('VNOS PODATKOV'!$C$314:$K$326,MATCH(ROW()-ROW(B$99),'VNOS PODATKOV'!$L$314:$L$326,0),9),\"\")","v":""}]
[{"$f":"IFERROR(INDEX('VNOS PODATKOV'!$C$314:$K$326,MATCH(ROW()-ROW(A$99),'VNOS PODATKOV'!$L$314:$L$326,0),1),\"\")","v":""},null,{"$f":"IFERROR(INDEX('VNOS PODATKOV'!$C$314:$K$326,MATCH(ROW()-ROW(A$99),'VNOS PODATKOV'!$L$314:$L$326,0),3),\"\")","v":""},{"$f":"IFERROR(INDEX('VNOS PODATKOV'!$C$314:$K$326,MATCH(ROW()-ROW(A$99),'VNOS PODATKOV'!$L$314:$L$326,0),7),\"\")","v":""},{"$f":"IFERROR(INDEX('VNOS PODATKOV'!$C$314:$K$326,MATCH(ROW()-ROW(A$99),'VNOS PODATKOV'!$L$314:$L$326,0),8),\"\")","v":""},{"$f":"IFERROR(INDEX('VNOS PODATKOV'!$C$314:$K$326,MATCH(ROW()-ROW(B$99),'VNOS PODATKOV'!$L$314:$L$326,0),9),\"\")","v":""}]
[{"$f":"'VNOS PODATKOV'!C327","v":"PRIKLJUČEVANJE NA INFRASTRUKTURO"}]
[{"$f":"IFERROR(INDEX('VNOS PODATKOV'!$C$330:$K$340,MATCH(ROW()-ROW(A$113),'VNOS PODATKOV'!$L$330:$L$340,0),1),\"\")","v":""},null,{"$f":"IFERROR(INDEX('VNOS PODATKOV'!$C$330:$K$340,MATCH(ROW()-ROW(A$113),'VNOS PODATKOV'!$L$330:$L$340,0),3),\"\")","v":""},{"$f":"IFERROR(INDEX('VNOS PODATKOV'!$C$330:$K$340,MATCH(ROW()-ROW(A$113),'VNOS PODATKOV'!$L$330:$L$340,0),7),\"\")","v":""},{"$f":"IFERROR(INDEX('VNOS PODATKOV'!$C$330:$K$340,MATCH(ROW()-ROW(A$113),'VNOS PODATKOV'!$L$330:$L$340,0),8),\"\")","v":""},{"$f":"IFERROR(INDEX('VNOS PODATKOV'!$C$330:$K$340,MATCH(ROW()-ROW(A$113),'VNOS PODATKOV'!$L$330:$L$340,0),9),\"\")","v":""}]
[{"$f":"IFERROR(INDEX('VNOS PODATKOV'!$C$330:$K$340,MATCH(ROW()-ROW(A$113),'VNOS PODATKOV'!$L$330:$L$340,0),1),\"\")","v":""},null,{"$f":"IFERROR(INDEX('VNOS PODATKOV'!$C$330:$K$340,MATCH(ROW()-ROW(A$113),'VNOS PODATKOV'!$L$330:$L$340,0),3),\"\")","v":""},{"$f":"IFERROR(INDEX('VNOS PODATKOV'!$C$330:$K$340,MATCH(ROW()-ROW(A$113),'VNOS PODATKOV'!$L$330:$L$340,0),7),\"\")","v":""},{"$f":"IFERROR(INDEX('VNOS PODATKOV'!$C$330:$K$340,MATCH(ROW()-ROW(A$113),'VNOS PODATKOV'!$L$330:$L$340,0),8),\"\")","v":""},{"$f":"IFERROR(INDEX('VNOS PODATKOV'!$C$330:$K$340,MATCH(ROW()-ROW(A$113),'VNOS PODATKOV'!$L$330:$L$340,0),9),\"\")","v":""}]
[{"$f":"IFERROR(INDEX('VNOS PODATKOV'!$C$330:$K$340,MATCH(ROW()-ROW(A$113),'VNOS PODATKOV'!$L$330:$L$340,0),1),\"\")","v":""},null,{"$f":"IFERROR(INDEX('VNOS PODATKOV'!$C$330:$K$340,MATCH(ROW()-ROW(A$113),'VNOS PODATKOV'!$L$330:$L$340,0),3),\"\")","v":""},{"$f":"IFERROR(INDEX('VNOS PODATKOV'!$C$330:$K$340,MATCH(ROW()-ROW(A$113),'VNOS PODATKOV'!$L$330:$L$340,0),7),\"\")","v":""},{"$f":"IFERROR(INDEX('VNOS PODATKOV'!$C$330:$K$340,MATCH(ROW()-ROW(A$113),'VNOS PODATKOV'!$L$330:$L$340,0),8),\"\")","v":""},{"$f":"IFERROR(INDEX('VNOS PODATKOV'!$C$330:$K$340,MATCH(ROW()-ROW(A$113),'VNOS PODATKOV'!$L$330:$L$340,0),9),\"\")","v":""}]
[{"$f":"IFERROR(INDEX('VNOS PODATKOV'!$C$330:$K$340,MATCH(ROW()-ROW(A$113),'VNOS PODATKOV'!$L$330:$L$340,0),1),\"\")","v":""},null,{"$f":"IFERROR(INDEX('VNOS PODATKOV'!$C$330:$K$340,MATCH(ROW()-ROW(A$113),'VNOS PODATKOV'!$L$330:$L$340,0),3),\"\")","v":""},{"$f":"IFERROR(INDEX('VNOS PODATKOV'!$C$330:$K$340,MATCH(ROW()-ROW(A$113),'VNOS PODATKOV'!$L$330:$L$340,0),7),\"\")","v":""},{"$f":"IFERROR(INDEX('VNOS PODATKOV'!$C$330:$K$340,MATCH(ROW()-ROW(A$113),'VNOS PODATKOV'!$L$330:$L$340,0),8),\"\")","v":""},{"$f":"IFERROR(INDEX('VNOS PODATKOV'!$C$330:$K$340,MATCH(ROW()-ROW(A$113),'VNOS PODATKOV'!$L$330:$L$340,0),9),\"\")","v":""}]
[{"$f":"IFERROR(INDEX('VNOS PODATKOV'!$C$330:$K$340,MATCH(ROW()-ROW(A$113),'VNOS PODATKOV'!$L$330:$L$340,0),1),\"\")","v":""},null,{"$f":"IFERROR(INDEX('VNOS PODATKOV'!$C$330:$K$340,MATCH(ROW()-ROW(A$113),'VNOS PODATKOV'!$L$330:$L$340,0),3),\"\")","v":""},{"$f":"IFERROR(INDEX('VNOS PODATKOV'!$C$330:$K$340,MATCH(ROW()-ROW(A$113),'VNOS PODATKOV'!$L$330:$L$340,0),7),\"\")","v":""},{"$f":"IFERROR(INDEX('VNOS PODATKOV'!$C$330:$K$340,MATCH(ROW()-ROW(A$113),'VNOS PODATKOV'!$L$330:$L$340,0),8),\"\")","v":""},{"$f":"IFERROR(INDEX('VNOS PODATKOV'!$C$330:$K$340,MATCH(ROW()-ROW(A$113),'VNOS PODATKOV'!$L$330:$L$340,0),9),\"\")","v":""}]
[{"$f":"IFERROR(INDEX('VNOS PODATKOV'!$C$330:$K$340,MATCH(ROW()-ROW(A$113),'VNOS PODATKOV'!$L$330:$L$340,0),1),\"\")","v":""},null,{"$f":"IFERROR(INDEX('VNOS PODATKOV'!$C$330:$K$340,MATCH(ROW()-ROW(A$113),'VNOS PODATKOV'!$L$330:$L$340,0),3),\"\")","v":""},{"$f":"IFERROR(INDEX('VNOS PODATKOV'!$C$330:$K$340,MATCH(ROW()-ROW(A$113),'VNOS PODATKOV'!$L$330:$L$340,0),7),\"\")","v":""},{"$f":"IFERROR(INDEX('VNOS PODATKOV'!$C$330:$K$340,MATCH(ROW()-ROW(A$113),'VNOS PODATKOV'!$L$330:$L$340,0),8),\"\")","v":""},{"$f":"IFERROR(INDEX('VNOS PODATKOV'!$C$330:$K$340,MATCH(ROW()-ROW(A$113),'VNOS PODATKOV'!$L$330:$L$340,0),9),\"\")","v":""}]
[{"$f":"IFERROR(INDEX('VNOS PODATKOV'!$C$330:$K$340,MATCH(ROW()-ROW(A$113),'VNOS PODATKOV'!$L$330:$L$340,0),1),\"\")","v":""},null,{"$f":"IFERROR(INDEX('VNOS PODATKOV'!$C$330:$K$340,MATCH(ROW()-ROW(A$113),'VNOS PODATKOV'!$L$330:$L$340,0),3),\"\")","v":""},{"$f":"IFERROR(INDEX('VNOS PODATKOV'!$C$330:$K$340,MATCH(ROW()-ROW(A$113),'VNOS PODATKOV'!$L$330:$L$340,0),7),\"\")","v":""},{"$f":"IFERROR(INDEX('VNOS PODATKOV'!$C$330:$K$340,MATCH(ROW()-ROW(A$113),'VNOS PODATKOV'!$L$330:$L$340,0),8),\"\")","v":""},{"$f":"IFERROR(INDEX('VNOS PODATKOV'!$C$330:$K$340,MATCH(ROW()-ROW(A$113),'VNOS PODATKOV'!$L$330:$L$340,0),9),\"\")","v":""}]
[{"$f":"IFERROR(INDEX('VNOS PODATKOV'!$C$330:$K$340,MATCH(ROW()-ROW(A$113),'VNOS PODATKOV'!$L$330:$L$340,0),1),\"\")","v":""},null,{"$f":"IFERROR(INDEX('VNOS PODATKOV'!$C$330:$K$340,MATCH(ROW()-ROW(A$113),'VNOS PODATKOV'!$L$330:$L$340,0),3),\"\")","v":""},{"$f":"IFERROR(INDEX('VNOS PODATKOV'!$C$330:$K$340,MATCH(ROW()-ROW(A$113),'VNOS PODATKOV'!$L$330:$L$340,0),7),\"\")","v":""},{"$f":"IFERROR(INDEX('VNOS PODATKOV'!$C$330:$K$340,MATCH(ROW()-ROW(A$113),'VNOS PODATKOV'!$L$330:$L$340,0),8),\"\")","v":""},{"$f":"IFERROR(INDEX('VNOS PODATKOV'!$C$330:$K$340,MATCH(ROW()-ROW(A$113),'VNOS PODATKOV'!$L$330:$L$340,0),9),\"\")","v":""}]
[{"$f":"IFERROR(INDEX('VNOS PODATKOV'!$C$330:$K$340,MATCH(ROW()-ROW(A$113),'VNOS PODATKOV'!$L$330:$L$340,0),1),\"\")","v":""},null,{"$f":"IFERROR(INDEX('VNOS PODATKOV'!$C$330:$K$340,MATCH(ROW()-ROW(A$113),'VNOS PODATKOV'!$L$330:$L$340,0),3),\"\")","v":""},{"$f":"IFERROR(INDEX('VNOS PODATKOV'!$C$330:$K$340,MATCH(ROW()-ROW(A$113),'VNOS PODATKOV'!$L$330:$L$340,0),7),\"\")","v":""},{"$f":"IFERROR(INDEX('VNOS PODATKOV'!$C$330:$K$340,MATCH(ROW()-ROW(A$113),'VNOS PODATKOV'!$L$330:$L$340,0),8),\"\")","v":""},{"$f":"IFERROR(INDEX('VNOS PODATKOV'!$C$330:$K$340,MATCH(ROW()-ROW(A$113),'VNOS PODATKOV'!$L$330:$L$340,0),9),\"\")","v":""}]
[{"$f":"IFERROR(INDEX('VNOS PODATKOV'!$C$330:$K$340,MATCH(ROW()-ROW(A$113),'VNOS PODATKOV'!$L$330:$L$340,0),1),\"\")","v":""},null,{"$f":"IFERROR(INDEX('VNOS PODATKOV'!$C$330:$K$340,MATCH(ROW()-ROW(A$113),'VNOS PODATKOV'!$L$330:$L$340,0),3),\"\")","v":""},{"$f":"IFERROR(INDEX('VNOS PODATKOV'!$C$330:$K$340,MATCH(ROW()-ROW(A$113),'VNOS PODATKOV'!$L$330:$L$340,0),7),\"\")","v":""},{"$f":"IFERROR(INDEX('VNOS PODATKOV'!$C$330:$K$340,MATCH(ROW()-ROW(A$113),'VNOS PODATKOV'!$L$330:$L$340,0),8),\"\")","v":""},{"$f":"IFERROR(INDEX('VNOS PODATKOV'!$C$330:$K$340,MATCH(ROW()-ROW(A$113),'VNOS PODATKOV'!$L$330:$L$340,0),9),\"\")","v":""}]
[{"$f":"IFERROR(INDEX('VNOS PODATKOV'!$C$330:$K$340,MATCH(ROW()-ROW(A$113),'VNOS PODATKOV'!$L$330:$L$340,0),1),\"\")","v":""},null,{"$f":"IFERROR(INDEX('VNOS PODATKOV'!$C$330:$K$340,MATCH(ROW()-ROW(A$113),'VNOS PODATKOV'!$L$330:$L$340,0),3),\"\")","v":""},{"$f":"IFERROR(INDEX('VNOS PODATKOV'!$C$330:$K$340,MATCH(ROW()-ROW(A$113),'VNOS PODATKOV'!$L$330:$L$340,0),7),\"\")","v":""},{"$f":"IFERROR(INDEX('VNOS PODATKOV'!$C$330:$K$340,MATCH(ROW()-ROW(A$113),'VNOS PODATKOV'!$L$330:$L$340,0),8),\"\")","v":""},{"$f":"IFERROR(INDEX('VNOS PODATKOV'!$C$330:$K$340,MATCH(ROW()-ROW(A$113),'VNOS PODATKOV'!$L$330:$L$340,0),9),\"\")","v":""}]
[{"$f":"'VNOS PODATKOV'!C341","v":"DRUGA MNENJA"}]
[{"$f":"IFERROR(INDEX('VNOS PODATKOV'!$C$344:$K$351,MATCH(ROW()-ROW(A$125),'VNOS PODATKOV'!$L$344:$L$351,0),1),\"\")","v":"DRUGO (NAVEDI)"},null,{"$f":"IFERROR(INDEX('VNOS PODATKOV'!$C$344:$K$351,MATCH(ROW()-ROW(A$125),'VNOS PODATKOV'!$L$344:$L$351,0),3),\"\")","v":"Zavod"},{"$f":"IFERROR(INDEX('VNOS PODATKOV'!$C$344:$K$351,MATCH(ROW()-ROW(C$125),'VNOS PODATKOV'!$L$344:$L$351,0),7),\"\")","v":"00:00:00"},{"$f":"IFERROR(INDEX('VNOS PODATKOV'!$C$344:$K$351,MATCH(ROW()-ROW(C$125),'VNOS PODATKOV'!$L$344:$L$351,0),8),\"\")","v":0},{"$f":"IFERROR(INDEX('VNOS PODATKOV'!$C$344:$K$351,MATCH(ROW()-ROW(C$125),'VNOS PODATKOV'!$L$344:$L$351,0),9),\"\")","v":"00:00:00"}]
[{"$f":"IFERROR(INDEX('VNOS PODATKOV'!$C$344:$K$351,MATCH(ROW()-ROW(A$125),'VNOS PODATKOV'!$L$344:$L$351,0),1),\"\")","v":""},null,{"$f":"IFERROR(INDEX('VNOS PODATKOV'!$C$344:$K$351,MATCH(ROW()-ROW(A$125),'VNOS PODATKOV'!$L$344:$L$351,0),3),\"\")","v":""},{"$f":"IFERROR(INDEX('VNOS PODATKOV'!$C$344:$K$351,MATCH(ROW()-ROW(C$125),'VNOS PODATKOV'!$L$344:$L$351,0),7),\"\")","v":""},{"$f":"IFERROR(INDEX('VNOS PODATKOV'!$C$344:$K$351,MATCH(ROW()-ROW(C$125),'VNOS PODATKOV'!$L$344:$L$351,0),8),\"\")","v":""},{"$f":"IFERROR(INDEX('VNOS PODATKOV'!$C$344:$K$351,MATCH(ROW()-ROW(C$125),'VNOS PODATKOV'!$L$344:$L$351,0),9),\"\")","v":""}]
[{"$f":"IFERROR(INDEX('VNOS PODATKOV'!$C$344:$K$351,MATCH(ROW()-ROW(A$125),'VNOS PODATKOV'!$L$344:$L$351,0),1),\"\")","v":""},null,{"$f":"IFERROR(INDEX('VNOS PODATKOV'!$C$344:$K$351,MATCH(ROW()-ROW(A$125),'VNOS PODATKOV'!$L$344:$L$351,0),3),\"\")","v":""},{"$f":"IFERROR(INDEX('VNOS PODATKOV'!$C$344:$K$351,MATCH(ROW()-ROW(C$125),'VNOS PODATKOV'!$L$344:$L$351,0),7),\"\")","v":""},{"$f":"IFERROR(INDEX('VNOS PODATKOV'!$C$344:$K$351,MATCH(ROW()-ROW(C$125),'VNOS PODATKOV'!$L$344:$L$351,0),8),\"\")","v":""},{"$f":"IFERROR(INDEX('VNOS PODATKOV'!$C$344:$K$351,MATCH(ROW()-ROW(C$125),'VNOS PODATKOV'!$L$344:$L$351,0),9),\"\")","v":""}]
[{"$f":"IFERROR(INDEX('VNOS PODATKOV'!$C$344:$K$351,MATCH(ROW()-ROW(A$125),'VNOS PODATKOV'!$L$344:$L$351,0),1),\"\")","v":""},null,{"$f":"IFERROR(INDEX('VNOS PODATKOV'!$C$344:$K$351,MATCH(ROW()-ROW(A$125),'VNOS PODATKOV'!$L$344:$L$351,0),3),\"\")","v":""},{"$f":"IFERROR(INDEX('VNOS PODATKOV'!$C$344:$K$351,MATCH(ROW()-ROW(C$125),'VNOS PODATKOV'!$L$344:$L$351,0),7),\"\")","v":""},{"$f":"IFERROR(INDEX('VNOS PODATKOV'!$C$344:$K$351,MATCH(ROW()-ROW(C$125),'VNOS PODATKOV'!$L$344:$L$351,0),8),\"\")","v":""},{"$f":"IFERROR(INDEX('VNOS PODATKOV'!$C$344:$K$351,MATCH(ROW()-ROW(C$125),'VNOS PODATKOV'!$L$344:$L$351,0),9),\"\")","v":""}]
[{"$f":"IFERROR(INDEX('VNOS PODATKOV'!$C$344:$K$351,MATCH(ROW()-ROW(A$125),'VNOS PODATKOV'!$L$344:$L$351,0),1),\"\")","v":""},null,{"$f":"IFERROR(INDEX('VNOS PODATKOV'!$C$344:$K$351,MATCH(ROW()-ROW(A$125),'VNOS PODATKOV'!$L$344:$L$351,0),3),\"\")","v":""},{"$f":"IFERROR(INDEX('VNOS PODATKOV'!$C$344:$K$351,MATCH(ROW()-ROW(C$125),'VNOS PODATKOV'!$L$344:$L$351,0),7),\"\")","v":""},{"$f":"IFERROR(INDEX('VNOS PODATKOV'!$C$344:$K$351,MATCH(ROW()-ROW(C$125),'VNOS PODATKOV'!$L$344:$L$351,0),8),\"\")","v":""},{"$f":"IFERROR(INDEX('VNOS PODATKOV'!$C$344:$K$351,MATCH(ROW()-ROW(C$125),'VNOS PODATKOV'!$L$344:$L$351,0),9),\"\")","v":""}]
[{"$f":"IFERROR(INDEX('VNOS PODATKOV'!$C$344:$K$351,MATCH(ROW()-ROW(A$125),'VNOS PODATKOV'!$L$344:$L$351,0),1),\"\")","v":""},null,{"$f":"IFERROR(INDEX('VNOS PODATKOV'!$C$344:$K$351,MATCH(ROW()-ROW(A$125),'VNOS PODATKOV'!$L$344:$L$351,0),3),\"\")","v":""},{"$f":"IFERROR(INDEX('VNOS PODATKOV'!$C$344:$K$351,MATCH(ROW()-ROW(C$125),'VNOS PODATKOV'!$L$344:$L$351,0),7),\"\")","v":""},{"$f":"IFERROR(INDEX('VNOS PODATKOV'!$C$344:$K$351,MATCH(ROW()-ROW(C$125),'VNOS PODATKOV'!$L$344:$L$351,0),8),\"\")","v":""},{"$f":"IFERROR(INDEX('VNOS PODATKOV'!$C$344:$K$351,MATCH(ROW()-ROW(C$125),'VNOS PODATKOV'!$L$344:$L$351,0),9),\"\")","v":""}]
[{"$f":"IFERROR(INDEX('VNOS PODATKOV'!$C$344:$K$351,MATCH(ROW()-ROW(A$125),'VNOS PODATKOV'!$L$344:$L$351,0),1),\"\")","v":""},null,{"$f":"IFERROR(INDEX('VNOS PODATKOV'!$C$344:$K$351,MATCH(ROW()-ROW(A$125),'VNOS PODATKOV'!$L$344:$L$351,0),3),\"\")","v":""},{"$f":"IFERROR(INDEX('VNOS PODATKOV'!$C$344:$K$351,MATCH(ROW()-ROW(C$125),'VNOS PODATKOV'!$L$344:$L$351,0),7),\"\")","v":""},{"$f":"IFERROR(INDEX('VNOS PODATKOV'!$C$344:$K$351,MATCH(ROW()-ROW(C$125),'VNOS PODATKOV'!$L$344:$L$351,0),8),\"\")","v":""},{"$f":"IFERROR(INDEX('VNOS PODATKOV'!$C$344:$K$351,MATCH(ROW()-ROW(C$125),'VNOS PODATKOV'!$L$344:$L$351,0),9),\"\")","v":""}]
[{"$f":"IFERROR(INDEX('VNOS PODATKOV'!$C$344:$K$351,MATCH(ROW()-ROW(A$125),'VNOS PODATKOV'!$L$344:$L$351,0),1),\"\")","v":""},null,{"$f":"IFERROR(INDEX('VNOS PODATKOV'!$C$344:$K$351,MATCH(ROW()-ROW(A$125),'VNOS PODATKOV'!$L$344:$L$351,0),3),\"\")","v":""},{"$f":"IFERROR(INDEX('VNOS PODATKOV'!$C$344:$K$351,MATCH(ROW()-ROW(C$125),'VNOS PODATKOV'!$L$344:$L$351,0),7),\"\")","v":""},{"$f":"IFERROR(INDEX('VNOS PODATKOV'!$C$344:$K$351,MATCH(ROW()-ROW(C$125),'VNOS PODATKOV'!$L$344:$L$351,0),8),\"\")","v":""},{"$f":"IFERROR(INDEX('VNOS PODATKOV'!$C$344:$K$351,MATCH(ROW()-ROW(C$125),'VNOS PODATKOV'!$L$344:$L$351,0),9),\"\")","v":""}]
["IZKAZOVANJE PRAVICE GRADITI"]
["ustrezno označiti"]
[null,false,"Lastninska ali druga stvarna pravica na nepremičninah, na katerih se bo izvajala gradnja, je vpisana v zemljiški knjigi."]
[null,false,"Iz uradnih evidenc je razvidno, da je investitor zakoniti upravljavec nepremičnine, na kateri se bo izvajala gradnja."]
[null,null,"Pravico graditi dokazujem z listinami:"]
[null,false,"notarsko overjena pogodba o pridobitvi lastninske ali druge stvarne pravice na nepremičninah, na katerih se bo izvajala gradnja, ki je predlagana za vpis v zemljiško knjigo;"]
[null,false,"sodna ali upravna odločba, ki investitorju omogoča gradnjo oziroma izvajanje del;"]
[null,false,"sklep o določitvi investitorja kot upravljavca nepremičnine, če gre za nepremičnino v lasti njegovega ustanovitelja;"]
[null,false,"druga listina, ki v skladu z zakonom investitorju omogoča gradnjo oziroma izvajanje del;"]
[null,false,"soglasje upravljavca javne ceste za izvedbo gradnje v cestnem telesu, če gre za gradnjo objekta gospodarske javne infrastrukture, skupaj s priključki, ki se izvaja v cestnem telesu javne ceste;"]
[null,false,"notarsko overjena pogodba o pridobitvi obligacijske pravice, za nepremičnine, na katerih so predvidene začasne ureditve za potrebe gradnje."]
[]
["PODATKI ZA IZRAČUN UPRAVNE TAKSE"]
["podatek se ne vpiše, če se vloga nanaša samo na nezahtevni objekt"]
["Ocenjena vrednost objekta v EUR brez DDV",null,{"$f":"'VNOS PODATKOV'!D360","v":0}]
[]
[null,null,"Na podlagi navedenih podatkov in priloženega projekta ter ostalih priloženih listin vas prosim za spremembo gradbenega dovoljenja."]
[]
["datum",null,"podpis vložnika"]
[{"$f":"TODAY()","v":"2023-06-07"}]
[]
[]
["PRILOGE"]
["ustrezno označiti"]
[null,false,"Pooblastilo (če zahteve ne vlaga investitor)"]
[null,false,"Projektna dokumentacija za spremembo GD ali sprememba DNZO ali DSN"]
[null,false,"Sprememba projekta DGD, DNZO ali DSN"]
[null,false,"Nov projekt DGD, DNZO ali DSN"]
[null,null,"Priloga 4C Podatki o zemljiščih za gradnjo (izpolnjena v okviru zahtevka, v kolikor se posega na druga zemljišča)"]
[null,false,"Sklep predhodne presoje vplivov na okolje (če gre za objekt z vplivi na okolje in če je bila pridobljena)"]
[null,false,"Poročilo o vplivih na okolje"]
[null,false,"Mnenja (če so pridobljena) ali dokazilo o predloženi zahtevi za mnenje, ki ni bilo izdano \nv predpisanem roku"]
[null,false,"Listine, ki izkazujejo pravico graditi, če lastninska ali druga stvarna pravica ni vpisana v zemljiško knjigo ali če iz uradnih evidenc ni razvidno, da je investitor zakoniti upravljavec nepremičnin (če spremembe vplivajo na že izkazano pravico graditi)"]
[null,null,"Pisne izjave strank, da se strinjajo z nameravano gradnjo, če so pridobljene"]
[null,null,"Druge priloge"]

{"sheet":"13A PRIP DELA","index":22,"n_rows":92,"n_cols":3,"rows_kept":92,"cut":false,"hidden":false,"merged":[[3,0,3,2],[79,0,79,2],[30,0,30,2],[35,0,35,1],[36,0,36,1],[17,0,17,2],[66,0,66,2]]}
["PRILOGA 13A"]
["PRIJAVA \nPRIPRAVLJALNIH DEL"]
[]
[{"$f":"'VNOS PODATKOV'!C44","v":"INVESTITOR"}]
[{"$f":"'VNOS PODATKOV'!C45","v":"INVESTITOR 1"}]
[{"$f":"'VNOS PODATKOV'!C46","v":"ime in priimek ali naziv družbe"},null,{"$f":"'VNOS PODATKOV'!D46","v":0}]
[{"$f":"'VNOS PODATKOV'!C47","v":"naslov ali poslovni naslov družbe"},null,{"$f":"'VNOS PODATKOV'!D47","v":0}]
[{"$f":"'VNOS PODATKOV'!C48","v":"davčna številka"},null,{"$f":"'VNOS PODATKOV'!D48","v":0}]
[{"$f":"'VNOS PODATKOV'!C49","v":"INVESTITOR 2"}]
[{"$f":"'VNOS PODATKOV'!C50","v":"ime in priimek ali naziv družbe"},null,{"$f":"'VNOS PODATKOV'!D50","v":0}]
[{"$f":"'VNOS PODATKOV'!C51","v":"naslov ali poslovni naslov družbe"},null,{"$f":"'VNOS PODATKOV'!D51","v":0}]
[{"$f":"'VNOS PODATKOV'!C52","v":"davčna številka"},null,{"$f":"'VNOS PODATKOV'!D52","v":0}]
[{"$f":"'VNOS PODATKOV'!C53","v":"INVESTITOR 3"}]
[{"$f":"'VNOS PODATKOV'!C54","v":"ime in priimek ali naziv družbe"},null,{"$f":"'VNOS PODATKOV'!D54","v":0}]
[{"$f":"'VNOS PODATKOV'!C55","v":"naslov ali poslovni naslov družbe"},null,{"$f":"'VNOS PODATKOV'!D55","v":0}]
[{"$f":"'VNOS PODATKOV'!C56","v":"davčna številka"},null,{"$f":"'VNOS PODATKOV'!D56","v":0}]
[]
[{"$f":"'VNOS PODATKOV'!C57","v":"KONTAKTNA OSEBA"}]
[{"$f":"'VNOS PODATKOV'!C58","v":"ime in priimek"},null,{"$f":"'VNOS PODATKOV'!D58","v":0}]
[{"$f":"'VNOS PODATKOV'!C59","v":"telefonska številka"},null,{"$f":"'VNOS PODATKOV'!D59","v":0}]
[{"$f":"'VNOS PODATKOV'!C60","v":"elektronski naslov"},null,{"$f":"'VNOS PODATKOV'!D60","v":0}]
[]
[{"$f":"'VNOS PODATKOV'!C61","v":"POOBLAŠČENEC"}]
[{"$f":"'VNOS PODATKOV'!C62","v":"podatki se vpišejo, kadar je imenovan pooblaščenec"}]
[{"$f":"'VNOS PODATKOV'!C64","v":"ime in priimek ali naziv družbe"},null,{"$f":"IF('VNOS PODATKOV'!D$63=TRUE,'VNOS PODATKOV'!D64, \"\")","v":""}]
[{"$f":"'VNOS PODATKOV'!C65","v":"naslov ali poslovni naslov družbe"},null,{"$f":"IF('VNOS PODATKOV'!D$63=TRUE,'VNOS PODATKOV'!D65, \"\")","v":""}]
[{"$f":"'VNOS PODATKOV'!C66","v":"kontaktna oseba"},null,{"$f":"IF('VNOS PODATKOV'!D$63=TRUE,'VNOS PODATKOV'!D66, \"\")","v":""}]
[{"$f":"'VNOS PODATKOV'!C67","v":"telefonska številka"},null,{"$f":"IF('VNOS PODATKOV'!D$63=TRUE,'VNOS PODATKOV'!D67, \"\")","v":""}]
[{"$f":"'VNOS PODATKOV'!C68","v":"elektronski naslov"},null,{"$f":"IF('VNOS PODATKOV'!D$63=TRUE,'VNOS PODATKOV'!D68, \"\")","v":""}]
[]
[{"$f":"'VNOS PODATKOV'!C172","v":"PODATKI O GRADNJI"}]
[{"$f":"'VNOS PODATKOV'!C175","v":"naziv gradnje"},null,{"$f":"'VNOS PODATKOV'!D175","v":0}]
[{"$f":"'VNOS PODATKOV'!C177","v":"kratek opis gradnje"},null,{"$f":"'VNOS PODATKOV'!D177","v":0}]
[]
["NAVEDBA ORGANA, PRI KATEREM SE VLAGA ZAHTEVA"]
["naziv",null,{"$f":"'VNOS PODATKOV'!D355","v":0}]
["naslov",null,{"$f":"'VNOS PODATKOV'!D356","v":0}]
[]
[{"$f":"'VNOS PODATKOV'!C362","v":"PODATKI O IZDANEM GRADBENEM DOVOLJENJU"}]
[{"$f":"'VNOS PODATKOV'!C365","v":"številka dovoljenja"},null,{"$f":"'VNOS PODATKOV'!D365","v":0}]
[{"$f":"'VNOS PODATKOV'!C366","v":"datum dovoljenja"},null,{"$f":"IF(ISBLANK('VNOS PODATKOV'!D366),\"\",'VNOS PODATKOV'!D366)","v":""}]
[{"$f":"'VNOS PODATKOV'!C367","v":"dokončnost"},null,{"$f":"IF(ISBLANK('VNOS PODATKOV'!D367),\"\",'VNOS PODATKOV'!D367)","v":""}]
[{"$f":"'VNOS PODATKOV'!C368","v":"pravnomočnost"},null,{"$f":"IF(ISBLANK('VNOS PODATKOV'!D368),\"\",'VNOS PODATKOV'!D368)","v":""}]
[]
[{"$f":"'VNOS PODATKOV'!C369","v":"PODATKI O SPREMEMBI GRADBENEGA DOVOLJENJA"}]
[{"$f":"'VNOS PODATKOV'!C372","v":"številka dovoljenja"},null,{"$f":"'VNOS PODATKOV'!D372","v":0}]
[{"$f":"'VNOS PODATKOV'!C373","v":"datum dovoljenja"},null,{"$f":"'VNOS PODATKOV'!D373","v":"00:00:00"}]
[{"$f":"'VNOS PODATKOV'!C374","v":"dokončnost"},null,{"$f":"'VNOS PODATKOV'!D374","v":"00:00:00"}]
[{"$f":"'VNOS PODATKOV'!C375","v":"pravnomočnost"},null,{"$f":"'VNOS PODATKOV'!D375","v":"00:00:00"}]
[]
["PREDMET PRIJAVE ZAČETKA PRIPRAVLJALNIH DEL"]
[]
[null,null,"Prijava začetka gradnje objekta Z GRADBENIM DOVOLJENJEM se nanaša na:"]
[null,false,"novogradnjo ali rekonstrukcijo zahtevnega ali manj zahtevnega objekta"]
[null,false,"novogradnjo ali rekonstrukcijo nezahtevnega objekta"]
[null,false,"odstranitev zahtevnega ali manj zahtevnega objekta, ki se dotika objekta na tuji sosednji nepremičnini ali je od njega oddaljen manj kot en meter"]
[null,null,"Prijava začetka gradnje objekta BREZ GRADBENEGA DOVOLJENJA se nanaša na:"]
[null,false,"odstranitev zahtevnega ali manj zahtevnega objekta, ki se ne dotika objekta na tuji sosednji nepremičnini oziroma je od njega oddaljen več kot en meter"]
[null,false,"nujno rekonstrukcijo"]
[]
["PROJEKT ZA IZVEDBO V DELU, KI SE NANAŠA NA PRIPRAVLJALNA DELA"]
[{"$f":"'VNOS PODATKOV'!C160","v":"številka projekta"},null,{"$f":"'VNOS PODATKOV'!F160","v":0}]
[{"$f":"'VNOS PODATKOV'!C161","v":"datum izdelave"},null,{"$f":"'VNOS PODATKOV'!F161","v":"00:00:00"}]
[{"$f":"'VNOS PODATKOV'!C87","v":"projektant (naziv družbe)"},null,{"$f":"'VNOS PODATKOV'!D87","v":0}]
[]
[{"$f":"'VNOS PODATKOV'!C132","v":"NADZORNIK"}]
[{"$f":"'VNOS PODATKOV'!C133","v":"imenovanje nadzornika ni obvezno v primeru gradnje nezahtevnega objekta, če jo izvaja izvajalec, ki izpolnjuje pogoje za opravljanje dejavnosti gradbeništva (16. člen GZ-1)"}]
[null,{"$f":"IF('VNOS PODATKOV'!D134=TRUE,TRUE,FALSE)","v":false},{"$f":"'VNOS PODATKOV'!C134","v":"imenovan je nadzornik gradnje"}]
[{"$f":"'VNOS PODATKOV'!C136","v":"naziv družbe"},null,{"$f":"'VNOS PODATKOV'!D136","v":0}]
[{"$f":"'VNOS PODATKOV'!C137","v":"poslovni naslov družbe"},null,{"$f":"'VNOS PODATKOV'!D137","v":0}]
[{"$f":"'VNOS PODATKOV'!C138","v":"davčna številka za pravne subjekte"},null,{"$f":"'VNOS PODATKOV'!D138","v":0}]
[{"$f":"'VNOS PODATKOV'!C139","v":"odgovorna oseba nadzornika"},null,{"$f":"'VNOS PODATKOV'!D139","v":0}]
[{"$f":"'VNOS PODATKOV'!C141","v":"vodja nadzora"},null,{"$f":"CONCATENATE('VNOS PODATKOV'!D141,\", \",'VNOS PODATKOV'!D142)","v":", "}]
[{"$f":"'VNOS PODATKOV'!C143","v":"identifikacijska številka"},null,{"$f":"'VNOS PODATKOV'!D143","v":0}]
[]
["datum",null,"podpis vložnika"]
[{"$f":"TODAY()","v":"2023-06-07"}]
[]
[]
["PRILOGE"]
["ustrezno označi, vse priloge morajo biti izdelane v obsegu, ki se nanašajo na pripravljalna dela"]
[null,false,"Pooblastilo (če zahteve ne vlaga investitor)"]
[null,false,"Zakoličbeni zapisnik"]
[null,false,"Projektna dokumentacija za izvedbo gradnje (PZI) v delu, ki se nanaša na pripravljalna dela"]
[null,false,"Projektna dokumentacija za odstranitev zahtevnega in manj zahtevnega objekta (PZO)"]
[null,false,"Priloga 4C Podatki o zemljiščih (izpolnjena v okviru prijave)"]
[null,false,"Načrt organizacije gradbišča"]
[null,false,"Priloga 10A Mnenje organizacije, pristojne za ohranjanje narave, da so izpolnjeni pogoji za delovanje izravnalnih ukrepov, če so bili ti zaradi prevlade javne koristi določeni v gradbenem dovoljenju in morajo biti izvedeni pred začetkom gradnje"]
[null,false,"Pravnomočno okoljevarstveno dovoljenje, če tako določa zakon, ki ureja varstvo okolja"]
[null,false,"Posnetek dejanskega stanja in kulturnovarstveno soglasje za odstranitev dediščine \n(če gre za odstranitev objekta kulturne dediščine)"]
[null,false,"Priloga 21 Izjava pooblaščenega strokovnjaka s področja gradbeništva pri nujni rekonstrukciji, da stanje obstoječega objekta dopušča izvedbo del, ki so nujna za zmanjšanje ali odpravo posledic naravnih in drugih nesreč in s katerimi se vzpostavi prejšnje stanje"]
[null,false,"Druge priloge (navesti, katere):"]

{"sheet":"13B GRADNJA","index":23,"n_rows":98,"n_cols":3,"rows_kept":98,"cut":false,"hidden":false,"merged":[[1,0,1,2],[83,0,83,2],[35,0,35,1],[36,0,36,1],[30,0,30,2],[17,0,17,2],[70,0,70,2],[3,0,3,2]]}
["PRILOGA 13B"]
["PRIJAVA ZAČETKA GRADNJE"]
[]
[{"$f":"'VNOS PODATKOV'!C44","v":"INVESTITOR"}]
[{"$f":"'VNOS PODATKOV'!C45","v":"INVESTITOR 1"}]
[{"$f":"'VNOS PODATKOV'!C46","v":"ime in priimek ali naziv družbe"},null,{"$f":"'VNOS PODATKOV'!D46","v":0}]
[{"$f":"'VNOS PODATKOV'!C47","v":"naslov ali poslovni naslov družbe"},null,{"$f":"'VNOS PODATKOV'!D47","v":0}]
[{"$f":"'VNOS PODATKOV'!C48","v":"davčna številka"},null,{"$f":"'VNOS PODATKOV'!D48","v":0}]
[{"$f":"'VNOS PODATKOV'!C49","v":"INVESTITOR 2"}]
[{"$f":"'VNOS PODATKOV'!C50","v":"ime in priimek ali naziv družbe"},null,{"$f":"'VNOS PODATKOV'!D50","v":0}]
[{"$f":"'VNOS PODATKOV'!C51","v":"naslov ali poslovni naslov družbe"},null,{"$f":"'VNOS PODATKOV'!D51","v":0}]
[{"$f":"'VNOS PODATKOV'!C52","v":"davčna številka"},null,{"$f":"'VNOS PODATKOV'!D52","v":0}]
[{"$f":"'VNOS PODATKOV'!C53","v":"INVESTITOR 3"}]
[{"$f":"'VNOS PODATKOV'!C54","v":"ime in priimek ali naziv družbe"},null,{"$f":"'VNOS PODATKOV'!D54","v":0}]
[{"$f":"'VNOS PODATKOV'!C55","v":"naslov ali poslovni naslov družbe"},null,{"$f":"'VNOS PODATKOV'!D55","v":0}]
[{"$f":"'VNOS PODATKOV'!C56","v":"davčna številka"},null,{"$f":"'VNOS PODATKOV'!D56","v":0}]
[]
[{"$f":"'VNOS PODATKOV'!C57","v":"KONTAKTNA OSEBA"}]
[{"$f":"'VNOS PODATKOV'!C58","v":"ime in priimek"},null,{"$f":"'VNOS PODATKOV'!D58","v":0}]
[{"$f":"'VNOS PODATKOV'!C59","v":"telefonska številka"},null,{"$f":"'VNOS PODATKOV'!D59","v":0}]
[{"$f":"'VNOS PODATKOV'!C60","v":"elektronski naslov"},null,{"$f":"'VNOS PODATKOV'!D60","v":0}]
[]
[{"$f":"'VNOS PODATKOV'!C61","v":"POOBLAŠČENEC"}]
[{"$f":"'VNOS PODATKOV'!C62","v":"podatki se vpišejo, kadar je imenovan pooblaščenec"}]
[{"$f":"'VNOS PODATKOV'!C64","v":"ime in priimek ali naziv družbe"},null,{"$f":"IF('VNOS PODATKOV'!D$63=TRUE,'VNOS PODATKOV'!D64, \"\")","v":""}]
[{"$f":"'VNOS PODATKOV'!C65","v":"naslov ali poslovni naslov družbe"},null,{"$f":"IF('VNOS PODATKOV'!D$63=TRUE,'VNOS PODATKOV'!D65, \"\")","v":""}]
[{"$f":"'VNOS PODATKOV'!C66","v":"kontaktna oseba"},null,{"$f":"IF('VNOS PODATKOV'!D$63=TRUE,'VNOS PODATKOV'!D66, \"\")","v":""}]
[{"$f":"'VNOS PODATKOV'!C67","v":"telefonska številka"},null,{"$f":"IF('VNOS PODATKOV'!D$63=TRUE,'VNOS PODATKOV'!D67, \"\")","v":""}]
[{"$f":"'VNOS PODATKOV'!C68","v":"elektronski naslov"},null,{"$f":"IF('VNOS PODATKOV'!D$63=TRUE,'VNOS PODATKOV'!D68, \"\")","v":""}]
[]
[{"$f":"'VNOS PODATKOV'!C172","v":"PODATKI O GRADNJI"}]
[{"$f":"'VNOS PODATKOV'!C175","v":"naziv gradnje"},null,{"$f":"'VNOS PODATKOV'!D175","v":0}]
[{"$f":"'VNOS PODATKOV'!C177","v":"kratek opis gradnje"},null,{"$f":"'VNOS PODATKOV'!D177","v":0}]
[]
["NAVEDBA ORGANA, PRI KATEREM SE VLAGA ZAHTEVA"]
["naziv",null,{"$f":"'VNOS PODATKOV'!D355","v":0}]
["naslov",null,{"$f":"'VNOS PODATKOV'!D356","v":0}]
[]
[{"$f":"'VNOS PODATKOV'!C362","v":"PODATKI O IZDANEM GRADBENEM DOVOLJENJU"}]
[{"$f":"'VNOS PODATKOV'!C364","v":"navedba organa"},null,{"$f":"'VNOS PODATKOV'!D364","v":0}]
[{"$f":"'VNOS PODATKOV'!C365","v":"številka dovoljenja"},null,{"$f":"'VNOS PODATKOV'!D365","v":0}]
[{"$f":"'VNOS PODATKOV'!C366","v":"datum dovoljenja"},null,{"$f":"IF(ISBLANK('VNOS PODATKOV'!D366),\"\",'VNOS PODATKOV'!D366)","v":""}]
[{"$f":"'VNOS PODATKOV'!C367","v":"dokončnost"},null,{"$f":"IF(ISBLANK('VNOS PODATKOV'!D367),\"\",'VNOS PODATKOV'!D367)","v":""}]
[{"$f":"'VNOS PODATKOV'!C368","v":"pravnomočnost"},null,{"$f":"IF(ISBLANK('VNOS PODATKOV'!D368),\"\",'VNOS PODATKOV'!D368)","v":""}]
[{"$f":"'VNOS PODATKOV'!C369","v":"PODATKI O SPREMEMBI GRADBENEGA DOVOLJENJA"}]
[{"$f":"'VNOS PODATKOV'!C372","v":"številka dovoljenja"},null,{"$f":"'VNOS PODATKOV'!D372","v":0}]
[{"$f":"'VNOS PODATKOV'!C373","v":"datum dovoljenja"},null,{"$f":"IF(ISBLANK('VNOS PODATKOV'!D373),\"\",'VNOS PODATKOV'!D373)","v":""}]
[{"$f":"'VNOS PODATKOV'!C374","v":"dokončnost"},null,{"$f":"IF(ISBLANK('VNOS PODATKOV'!D374),\"\",'VNOS PODATKOV'!D374)","v":""}]
[{"$f":"'VNOS PODATKOV'!C375","v":"pravnomočnost"},null,{"$f":"IF(ISBLANK('VNOS PODATKOV'!D375),\"\",'VNOS PODATKOV'!D375)","v":""}]
[]
["PREDMET PRIJAVE ZAČETKA GRADNJE OBJEKTA"]
[]
[null,null,"Prijava začetka gradnje objekta Z GRADBENIM DOVOLJENJEM se nanaša na:"]
[null,false,"prijava se nanaša na vse objekte iz GD"]
[null,false,"prijava se nanaša na del objektov iz GD - naštej:"]
[]
[null,false,"novogradnjo ali rekonstrukcijo zahtevnega ali manj zahtevnega objekta"]
[null,false,"novogradnjo ali rekonstrukcijo nezahtevnega objekta"]
[null,false,"odstranitev zahtevnega ali manj zahtevnega objekta, ki se dotika objekta na tuji sosednji nepremičnini ali je od njega oddaljen manj kot en meter"]
[null,null,"Prijava začetka gradnje objekta BREZ GRADBENEGA DOVOLJENJA se nanaša na:"]
[null,false,"odstranitev zahtevnega ali manj zahtevnega objekta, ki se ne dotika objekta na tuji sosednji nepremičnini oziroma je od njega oddaljen več kot en meter"]
[null,false,"nujno rekonstrukcijo"]
[]
["PROJEKT ZA IZVEDBO"]
["ni obvezno pri gradnji nezahtevnega objekta"]
[{"$f":"'VNOS PODATKOV'!C160","v":"številka projekta"},null,{"$f":"'VNOS PODATKOV'!G160","v":0}]
[{"$f":"'VNOS PODATKOV'!C161","v":"datum izdelave"},null,{"$f":"'VNOS PODATKOV'!G161","v":"00:00:00"}]
[{"$f":"'VNOS PODATKOV'!C87","v":"projektant (naziv družbe)"},null,{"$f":"'VNOS PODATKOV'!D87","v":0}]
[]
[{"$f":"'VNOS PODATKOV'!C132","v":"NADZORNIK"}]
[{"$f":"'VNOS PODATKOV'!C133","v":"imenovanje nadzornika ni obvezno v primeru gradnje nezahtevnega objekta, če jo izvaja izvajalec, ki izpolnjuje pogoje za opravljanje dejavnosti gradbeništva (16. člen GZ-1)"}]
[null,{"$f":"IF('VNOS PODATKOV'!D134=TRUE,TRUE,FALSE)","v":false},{"$f":"'VNOS PODATKOV'!C134","v":"imenovan je nadzornik gradnje"}]
[{"$f":"'VNOS PODATKOV'!C136","v":"naziv družbe"},null,{"$f":"IF('VNOS PODATKOV'!$D$134=TRUE,'VNOS PODATKOV'!D136,\"\")","v":""}]
[{"$f":"'VNOS PODATKOV'!C137","v":"poslovni naslov družbe"},null,{"$f":"IF('VNOS PODATKOV'!$D$134=TRUE,'VNOS PODATKOV'!D137,\"\")","v":""}]
[{"$f":"'VNOS PODATKOV'!C139","v":"odgovorna oseba nadzornika"},null,{"$f":"IF('VNOS PODATKOV'!$D$134=TRUE,'VNOS PODATKOV'!D139,\"\")","v":""}]
[{"$f":"'VNOS PODATKOV'!C141","v":"vodja nadzora"},null,{"$f":"IF('VNOS PODATKOV'!$D$134=TRUE,'VNOS PODATKOV'!D141,\"\")","v":""}]
[{"$f":"'VNOS PODATKOV'!C142","v":"strokovna izobrazba"},null,{"$f":"IF('VNOS PODATKOV'!$D$134=TRUE,'VNOS PODATKOV'!D142,\"\")","v":""}]
[{"$f":"'VNOS PODATKOV'!C143","v":"identifikacijska številka"},null,{"$f":"IF('VNOS PODATKOV'!$D$134=TRUE,'VNOS PODATKOV'!D143,\"\")","v":""}]
[]
["datum",null,"podpis vložnika"]
[{"$f":"TODAY()","v":"2023-06-07"}]
[]
[]
["PRILOGE"]
["ustrezno označiti"]
[null,false,"Pooblastilo (če zahteve ne vlaga investitor)"]
[null,false,"Zakoličbeni zapisnik"]
[null,false,"Projektna dokumentacija za izvedbo gradnje (PZI)"]
[null,false,"Projektna dokumentacija za odstranitev zahtevnega in manj zahtevnega objekta - PZO"]
[null,false,"Priloga 2C Izjava izvajalca pregleda pri neuporabi priporočene metode"]
[null,false,"Priloga 4C Podatki o zemljiščih za gradnjo (izpolnjena v okviru prijave)"]
[null,false,"Načrt organizacije gradbišča"]
[null,false,"Potrdilo občine o plačanem komunalnem prispevku, če tako določa zakon, \nki ureja prostor (po 1. 1. 2024)"]
[null,false,"Priloga 10A Mnenje organizacije, pristojne za ohranjanje narave, da so izpolnjeni pogoji za delovanje izravnalnih ukrepov, če so bili ti zaradi prevlade javne koristi določeni v gradbenem dovoljenju in morajo biti izvedeni pred začetkom gradnje"]
[null,false,"Pravnomočno okoljevarstveno dovoljenje, če tako določa zakon, ki ureja varstvo okolja"]
[null,false,"Posnetek dejanskega stanja in kulturnovarstveno soglasje za odstranitev dediščine \n(če gre za odstranitev objekta kulturne dediščine)"]
[null,false,"Priloga 21 Izjava pooblaščenega strokovnjaka s področja gradbeništva, da stanje obstoječega objekta dopušča izvedbo del, ki so nujna za zmanjšanje ali odpravo posledic naravnih in drugih nesreč in s katerimi se vzpostavi prejšnje stanje (nujna rekonstrukcija)"]
[null,false,"Druge priloge (navesti, katere):"]

{"sheet":"13D SPREM INVEST","index":24,"n_rows":43,"n_cols":4,"rows_kept":43,"cut":false,"hidden":false,"merged":[[1,0,1,2],[31,0,31,1],[32,0,32,1]]}
["PRILOGA 13D"]
["PRIJAVA \nSPREMEMBE INVESTITORSTVA"]
[]
["INVESTITOR",null," V GRADBENEM DOVOLJENJU","NOV"]
["INVESTITOR 1"]
[{"$f":"'VNOS PODATKOV'!C76","v":"ime in priimek ali naziv družbe"},null,{"$f":"'VNOS PODATKOV'!D76","v":0},{"$f":"'VNOS PODATKOV'!D46","v":0}]
[{"$f":"'VNOS PODATKOV'!C77","v":"naslov ali poslovni naslov družbe"},null,{"$f":"'VNOS PODATKOV'!D77","v":0},{"$f":"'VNOS PODATKOV'!D47","v":0}]
[{"$f":"'VNOS PODATKOV'!C48","v":"davčna številka"},null,null,{"$f":"'VNOS PODATKOV'!D48","v":0}]
["INVESTITOR 2"]
[{"$f":"'VNOS PODATKOV'!C79","v":"ime in priimek ali naziv družbe"},null,{"$f":"'VNOS PODATKOV'!D79","v":0},{"$f":"'VNOS PODATKOV'!D50","v":0}]
[{"$f":"'VNOS PODATKOV'!C80","v":"naslov ali poslovni naslov družbe"},null,{"$f":"'VNOS PODATKOV'!D80","v":0},{"$f":"'VNOS PODATKOV'!D51","v":0}]
[{"$f":"'VNOS PODATKOV'!C52","v":"davčna številka"},null,null,{"$f":"'VNOS PODATKOV'!D52","v":0}]
["INVESTITOR 3"]
[{"$f":"'VNOS PODATKOV'!C82","v":"ime in priimek ali naziv družbe"},null,{"$f":"'VNOS PODATKOV'!D82","v":0},{"$f":"'VNOS PODATKOV'!D54","v":0}]
[{"$f":"'VNOS PODATKOV'!C83","v":"naslov ali poslovni naslov družbe"},null,{"$f":"'VNOS PODATKOV'!D83","v":0},{"$f":"'VNOS PODATKOV'!D55","v":0}]
[{"$f":"'VNOS PODATKOV'!C56","v":"davčna številka"},null,null,{"$f":"'VNOS PODATKOV'!D56","v":0}]
[]
[{"$f":"'VNOS PODATKOV'!C57","v":"KONTAKTNA OSEBA"}]
[{"$f":"'VNOS PODATKOV'!C58","v":"ime in priimek"},null,{"$f":"'VNOS PODATKOV'!D58","v":0}]
[{"$f":"'VNOS PODATKOV'!C59","v":"telefonska številka"},null,{"$f":"'VNOS PODATKOV'!D59","v":0}]
[{"$f":"'VNOS PODATKOV'!C60","v":"elektronski naslov"},null,{"$f":"'VNOS PODATKOV'!D60","v":0}]
[]
[{"$f":"'VNOS PODATKOV'!C61","v":"POOBLAŠČENEC"}]
[{"$f":"'VNOS PODATKOV'!C62","v":"podatki se vpišejo, kadar je imenovan pooblaščenec"}]
[{"$f":"'VNOS PODATKOV'!C64","v":"ime in priimek ali naziv družbe"},null,{"$f":"IF('VNOS PODATKOV'!D$63=TRUE,'VNOS PODATKOV'!D64, \"\")","v":""}]
[{"$f":"'VNOS PODATKOV'!C65","v":"naslov ali poslovni naslov družbe"},null,{"$f":"IF('VNOS PODATKOV'!D$63=TRUE,'VNOS PODATKOV'!D65, \"\")","v":""}]
[{"$f":"'VNOS PODATKOV'!C66","v":"kontaktna oseba"},null,{"$f":"IF('VNOS PODATKOV'!D$63=TRUE,'VNOS PODATKOV'!D66, \"\")","v":""}]
[{"$f":"'VNOS PODATKOV'!C67","v":"telefonska številka"},null,{"$f":"IF('VNOS PODATKOV'!D$63=TRUE,'VNOS PODATKOV'!D67, \"\")","v":""}]
[{"$f":"'VNOS PODATKOV'!C68","v":"elektronski naslov"},null,{"$f":"IF('VNOS PODATKOV'!D$63=TRUE,'VNOS PODATKOV'!D68, \"\")","v":""}]
[]
["NAVEDBA ORGANA, PRI KATEREM SE VLAGA ZAHTEVA"]
["naziv",null,{"$f":"'VNOS PODATKOV'!D355","v":0}]
["naslov",null,{"$f":"'VNOS PODATKOV'!D356","v":0}]
[]
[null,null,{"$f":"'VNOS PODATKOV'!C362","v":"PODATKI O IZDANEM GRADBENEM DOVOLJENJU"},{"$f":"'VNOS PODATKOV'!C369","v":"PODATKI O SPREMEMBI GRADBENEGA DOVOLJENJA"}]
[{"$f":"'VNOS PODATKOV'!C365","v":"številka dovoljenja"},null,{"$f":"'VNOS PODATKOV'!D365","v":0},{"$f":"'VNOS PODATKOV'!D372","v":0}]
[{"$f":"'VNOS PODATKOV'!C366","v":"datum dovoljenja"},null,{"$f":"IF(ISBLANK('VNOS PODATKOV'!D366),\"\",'VNOS PODATKOV'!D366)","v":""},{"$f":"'VNOS PODATKOV'!D373","v":"00:00:00"}]
[{"$f":"'VNOS PODATKOV'!C367","v":"dokončnost"},null,{"$f":"IF(ISBLANK('VNOS PODATKOV'!D367),\"\",'VNOS PODATKOV'!D367)","v":""},{"$f":"'VNOS PODATKOV'!D374","v":"00:00:00"}]
[{"$f":"'VNOS PODATKOV'!C368","v":"pravnomočnost"},null,{"$f":"IF(ISBLANK('VNOS PODATKOV'!D368),\"\",'VNOS PODATKOV'!D368)","v":""},{"$f":"'VNOS PODATKOV'!D375","v":"00:00:00"}]
[]
[]
["datum",null,"podpis vložnika"]
[{"$f":"TODAY()","v":"2023-06-07"}]

{"sheet":"13E PO PRIJAVA","index":25,"n_rows":46,"n_cols":3,"rows_kept":46,"cut":false,"hidden":false,"merged":[[1,0,1,2]]}
["PRILOGA 13E"]
["PRIJAVA \nPOSKUSNEGA OBRATOVANJA"]
[]
[{"$f":"'VNOS PODATKOV'!C44","v":"INVESTITOR"}]
[{"$f":"'VNOS PODATKOV'!C45","v":"INVESTITOR 1"}]
[{"$f":"'VNOS PODATKOV'!C46","v":"ime in priimek ali naziv družbe"},null,{"$f":"'VNOS PODATKOV'!D46","v":0}]
[{"$f":"'VNOS PODATKOV'!C47","v":"naslov ali poslovni naslov družbe"},null,{"$f":"'VNOS PODATKOV'!D47","v":0}]
[{"$f":"'VNOS PODATKOV'!C48","v":"davčna številka"},null,{"$f":"'VNOS PODATKOV'!D48","v":0}]
[{"$f":"'VNOS PODATKOV'!C49","v":"INVESTITOR 2"}]
[{"$f":"'VNOS PODATKOV'!C50","v":"ime in priimek ali naziv družbe"},null,{"$f":"'VNOS PODATKOV'!D50","v":0}]
[{"$f":"'VNOS PODATKOV'!C51","v":"naslov ali poslovni naslov družbe"},null,{"$f":"'VNOS PODATKOV'!D51","v":0}]
[{"$f":"'VNOS PODATKOV'!C52","v":"davčna številka"},null,{"$f":"'VNOS PODATKOV'!D52","v":0}]
[{"$f":"'VNOS PODATKOV'!C53","v":"INVESTITOR 3"}]
[{"$f":"'VNOS PODATKOV'!C54","v":"ime in priimek ali naziv družbe"},null,{"$f":"'VNOS PODATKOV'!D54","v":0}]
[{"$f":"'VNOS PODATKOV'!C55","v":"naslov ali poslovni naslov družbe"},null,{"$f":"'VNOS PODATKOV'!D55","v":0}]
[{"$f":"'VNOS PODATKOV'!C56","v":"davčna številka"},null,{"$f":"'VNOS PODATKOV'!D56","v":0}]
[]
[{"$f":"'VNOS PODATKOV'!C57","v":"KONTAKTNA OSEBA"}]
[{"$f":"'VNOS PODATKOV'!C58","v":"ime in priimek"},null,{"$f":"'VNOS PODATKOV'!D58","v":0}]
[{"$f":"'VNOS PODATKOV'!C59","v":"telefonska številka"},null,{"$f":"'VNOS PODATKOV'!D59","v":0}]
[{"$f":"'VNOS PODATKOV'!C60","v":"elektronski naslov"},null,{"$f":"'VNOS PODATKOV'!D60","v":0}]
[]
[{"$f":"'VNOS PODATKOV'!C61","v":"POOBLAŠČENEC"}]
[{"$f":"'VNOS PODATKOV'!C62","v":"podatki se vpišejo, kadar je imenovan pooblaščenec"}]
[{"$f":"'VNOS PODATKOV'!C64","v":"ime in priimek ali naziv družbe"},null,{"$f":"IF('VNOS PODATKOV'!D$63=TRUE,'VNOS PODATKOV'!D64, \"\")","v":""}]
[{"$f":"'VNOS PODATKOV'!C65","v":"naslov ali poslovni naslov družbe"},null,{"$f":"IF('VNOS PODATKOV'!D$63=TRUE,'VNOS PODATKOV'!D65, \"\")","v":""}]
[{"$f":"'VNOS PODATKOV'!C66","v":"kontaktna oseba"},null,{"$f":"IF('VNOS PODATKOV'!D$63=TRUE,'VNOS PODATKOV'!D66, \"\")","v":""}]
[{"$f":"'VNOS PODATKOV'!C67","v":"telefonska številka"},null,{"$f":"IF('VNOS PODATKOV'!D$63=TRUE,'VNOS PODATKOV'!D67, \"\")","v":""}]
[{"$f":"'VNOS PODATKOV'!C68","v":"elektronski naslov"},null,{"$f":"IF('VNOS PODATKOV'!D$63=TRUE,'VNOS PODATKOV'!D68, \"\")","v":""}]
[]
["NAVEDBA ORGANA, PRI KATEREM SE VLAGA ZAHTEVA"]
["naziv",null,{"$f":"'VNOS PODATKOV'!D378","v":0}]
["naslov",null,{"$f":"'VNOS PODATKOV'!D379","v":0}]
[]
["PODATKI O IZDANI ODLOČBI O POSKUSNEM OBRATOVANJU"]
[{"$f":"'VNOS PODATKOV'!C381","v":"številka odločbe"},null,{"$f":"'VNOS PODATKOV'!D381","v":0}]
[{"$f":"'VNOS PODATKOV'!C382","v":"datum odločbe"},null,{"$f":"'VNOS PODATKOV'!D382","v":"00:00:00"}]
[]
["datum",null,"podpis vložnika"]
[{"$f":"TODAY()","v":"2023-06-07"}]
[]
[]
["PRILOGE"]
["ustrezno označiti"]
[null,false,"Pooblastilo (če zahteve ne vlaga investitor)"]
[null,false,"Druge priloge (navesti, katere):"]

{"sheet":"14 UD ZAHTEVA","index":26,"n_rows":118,"n_cols":3,"rows_kept":118,"cut":false,"hidden":false,"merged":[[1,0,1,2],[3,0,3,2],[79,0,79,2],[98,0,98,2],[85,0,85,2],[39,0,39,1],[40,0,40,1],[86,0,86,1]]}
["PRILOGA 14"]
["ZAHTEVA ZA IZDAJO \nUPORABNEGA DOVOLJENJA"]
[]
["VLAGATELJ"]
[4,null,"investitor"]
[{"$f":"'VNOS PODATKOV'!C45","v":"INVESTITOR 1"}]
[{"$f":"'VNOS PODATKOV'!C46","v":"ime in priimek ali naziv družbe"},null,{"$f":"IF($A$5=1,'VNOS PODATKOV'!D46,\"\")","v":""}]
[{"$f":"'VNOS PODATKOV'!C47","v":"naslov ali poslovni naslov družbe"},null,{"$f":"IF($A$5=1,'VNOS PODATKOV'!D47,\"\")","v":""}]
[{"$f":"'VNOS PODATKOV'!C48","v":"davčna številka"},null,{"$f":"IF($A$5=1,'VNOS PODATKOV'!D48,\"\")","v":""}]
[{"$f":"'VNOS PODATKOV'!C49","v":"INVESTITOR 2"}]
[{"$f":"'VNOS PODATKOV'!C50","v":"ime in priimek ali naziv družbe"},null,{"$f":"IF($A$5=1,'VNOS PODATKOV'!D50,\"\")","v":""}]
[{"$f":"'VNOS PODATKOV'!C51","v":"naslov ali poslovni naslov družbe"},null,{"$f":"IF($A$5=1,'VNOS PODATKOV'!D51,\"\")","v":""}]
[{"$f":"'VNOS PODATKOV'!C52","v":"davčna številka"},null,{"$f":"IF($A$5=1,'VNOS PODATKOV'!D52,\"\")","v":""}]
[{"$f":"'VNOS PODATKOV'!C53","v":"INVESTITOR 3"}]
[{"$f":"'VNOS PODATKOV'!C54","v":"ime in priimek ali naziv družbe"},null,{"$f":"IF($A$5=1,'VNOS PODATKOV'!D54,\"\")","v":""}]
[{"$f":"'VNOS PODATKOV'!C55","v":"naslov ali poslovni naslov družbe"},null,{"$f":"IF($A$5=1,'VNOS PODATKOV'!D55,\"\")","v":""}]
[{"$f":"'VNOS PODATKOV'!C56","v":"davčna številka"},null,{"$f":"IF($A$5=1,'VNOS PODATKOV'!D56,\"\")","v":""}]
[null,null,"izvajalec"]
[null,null,"nadzornik"]
[null,null,"druga oseba, ki je lastnik ali imetnik stvarnih pravic na nepremičnini"]
[{"$f":"IF($A$5=2,'VNOS PODATKOV'!C144,IF($A$5=3,'VNOS PODATKOV'!C131,IF($A$5=4,'VNOS PODATKOV'!C69,\"\")))","v":"DRUGA OSEBA, KI JE LASTNIK STVARNIH PRAVIC NA NEPREMIČNINI"}]
[{"$f":"'VNOS PODATKOV'!C46","v":"ime in priimek ali naziv družbe"},null,{"$f":"IF($A$5=2,'VNOS PODATKOV'!D148,IF($A$5=3,'VNOS PODATKOV'!D136,IF($A$5=4,'VNOS PODATKOV'!D70,\"\")))","v":0}]
[{"$f":"'VNOS PODATKOV'!C47","v":"naslov ali poslovni naslov družbe"},null,{"$f":"IF($A$5=2,'VNOS PODATKOV'!D149,IF($A$5=3,'VNOS PODATKOV'!D137,IF($A$5=4,'VNOS PODATKOV'!D71,\"\")))","v":0}]
[{"$f":"'VNOS PODATKOV'!C48","v":"davčna številka"},null,{"$f":"IF($A$5=2,'VNOS PODATKOV'!D150,IF($A$5=3,'VNOS PODATKOV'!D138,IF($A$5=4,'VNOS PODATKOV'!D72,\"\")))","v":0}]
[]
[{"$f":"'VNOS PODATKOV'!C57","v":"KONTAKTNA OSEBA"}]
[{"$f":"'VNOS PODATKOV'!C58","v":"ime in priimek"},null,{"$f":"'VNOS PODATKOV'!D58","v":0}]
[{"$f":"'VNOS PODATKOV'!C59","v":"telefonska številka"},null,{"$f":"'VNOS PODATKOV'!D59","v":0}]
[{"$f":"'VNOS PODATKOV'!C60","v":"elektronski naslov"},null,{"$f":"'VNOS PODATKOV'!D60","v":0}]
[]
[{"$f":"'VNOS PODATKOV'!C61","v":"POOBLAŠČENEC"}]
[{"$f":"'VNOS PODATKOV'!C62","v":"podatki se vpišejo, kadar je imenovan pooblaščenec"}]
[{"$f":"'VNOS PODATKOV'!C64","v":"ime in priimek ali naziv družbe"},null,{"$f":"IF('VNOS PODATKOV'!D$63=TRUE,'VNOS PODATKOV'!D64, \"\")","v":""}]
[{"$f":"'VNOS PODATKOV'!C65","v":"naslov ali poslovni naslov družbe"},null,{"$f":"IF('VNOS PODATKOV'!D$63=TRUE,'VNOS PODATKOV'!D65, \"\")","v":""}]
[{"$f":"'VNOS PODATKOV'!C66","v":"kontaktna oseba"},null,{"$f":"IF('VNOS PODATKOV'!D$63=TRUE,'VNOS PODATKOV'!D66, \"\")","v":""}]
[{"$f":"'VNOS PODATKOV'!C67","v":"telefonska številka"},null,{"$f":"IF('VNOS PODATKOV'!D$63=TRUE,'VNOS PODATKOV'!D67, \"\")","v":""}]
[{"$f":"'VNOS PODATKOV'!C68","v":"elektronski naslov"},null,{"$f":"IF('VNOS PODATKOV'!D$63=TRUE,'VNOS PODATKOV'!D68, \"\")","v":""}]
[]
["NAVEDBA ORGANA, PRI KATEREM SE VLAGA ZAHTEVA"]
["naziv",null,{"$f":"'VNOS PODATKOV'!D355","v":0}]
["naslov",null,{"$f":"'VNOS PODATKOV'!D356","v":0}]
[{"$f":"'VNOS PODATKOV'!C172","v":"PODATKI O GRADNJI"}]
[{"$f":"'VNOS PODATKOV'!C175","v":"naziv gradnje"},null,{"$f":"'VNOS PODATKOV'!D175","v":0}]
[null,{"$f":"IF('VNOS PODATKOV'!D213=TRUE,TRUE,FALSE)","v":false},{"$f":"'VNOS PODATKOV'!C213","v":"objekt z vplivi na okolje"}]
[null,{"$f":"IF('VNOS PODATKOV'!D244=TRUE,TRUE,FALSE)","v":false},{"$f":"'VNOS PODATKOV'!C244","v":"gradnja izvedena pred 31. 12. 2022"}]
[]
["VSEBINA ZAHTEVKA"]
[null,false,"zahtevek se nanaša na vse objekte iz GD"]
[null,false,"zahtevek se nanaša na del objektov iz GD - naštej:"]
[]
[null,null,"zahtevnost objekta:"]
[]
[null,false,"zahteva se nanaša na enostanovanjsko stavbo"]
[null,false,"zahteva se nanaša na enostanovanjsko stavbo brez dokončanega ovoja"]
[null,false,"zahteva se nanaša na objekt iz drugega odstavka 1. člena Gradbenega zakona (GZ-1), zgrajen brez gradbenega dovoljenja, ki bo postal stalni objekt"]
[null,false,"zahteva se nanaša na nujno rekonstrukcijo"]
[]
[{"$f":"'VNOS PODATKOV'!C362","v":"PODATKI O IZDANEM GRADBENEM DOVOLJENJU"}]
[{"$f":"'VNOS PODATKOV'!C364","v":"navedba organa"},null,{"$f":"'VNOS PODATKOV'!D364","v":0}]
[{"$f":"'VNOS PODATKOV'!C365","v":"številka dovoljenja"},null,{"$f":"'VNOS PODATKOV'!D365","v":0}]
[{"$f":"'VNOS PODATKOV'!C366","v":"datum dovoljenja"},null,{"$f":"IF(ISBLANK('VNOS PODATKOV'!D366),\"\",'VNOS PODATKOV'!D366)","v":""}]
[{"$f":"'VNOS PODATKOV'!C368","v":"pravnomočnost"},null,{"$f":"IF(ISBLANK('VNOS PODATKOV'!D368),\"\",'VNOS PODATKOV'!D368)","v":""}]
[]
[{"$f":"'VNOS PODATKOV'!C369","v":"PODATKI O SPREMEMBI GRADBENEGA DOVOLJENJA"}]
[{"$f":"'VNOS PODATKOV'!C371","v":"navedba organa"},null,{"$f":"'VNOS PODATKOV'!D371","v":0}]
[{"$f":"'VNOS PODATKOV'!C372","v":"številka dovoljenja"},null,{"$f":"'VNOS PODATKOV'!D372","v":0}]
[{"$f":"'VNOS PODATKOV'!C373","v":"datum dovoljenja"},null,{"$f":"'VNOS PODATKOV'!D373","v":"00:00:00"}]
[{"$f":"'VNOS PODATKOV'!C375","v":"pravnomočnost"},null,{"$f":"'VNOS PODATKOV'!D375","v":"00:00:00"}]
[]
[{"$f":"'VNOS PODATKOV'!C384","v":"PRIJAVA ZAČETKA GRADNJE"}]
[{"$f":"'VNOS PODATKOV'!C386","v":"datum prijave"},null,{"$f":"IF(ISBLANK('VNOS PODATKOV'!D386),\"\",'VNOS PODATKOV'!D386)","v":""}]
[]
["PROJEKT IZVEDENIH DEL"]
["se ne izpolni, ko gre za spremembo namembnostI"]
[{"$f":"'VNOS PODATKOV'!C160","v":"številka projekta"},null,{"$f":"'VNOS PODATKOV'!I160","v":0}]
[{"$f":"'VNOS PODATKOV'!C161","v":"datum izdelave"},null,{"$f":"'VNOS PODATKOV'!I161","v":"00:00:00"}]
[{"$f":"'VNOS PODATKOV'!C87","v":"projektant (naziv družbe)"},null,{"$f":"'VNOS PODATKOV'!D87","v":0}]
[]
[{"$f":"'VNOS PODATKOV'!C387","v":"DOKAZILO O ZANESLJIVOSTI OBJEKTA"}]
["se ne izpolni, ko gre za spremembo namembnosti ali če je priložena izjava projektanta, nadzornika ali izvajalca, ki v posebnih okoliščinah nadomešča DZO"]
[null,{"$f":"IF('VNOS PODATKOV'!D389=TRUE,TRUE,FALSE)","v":false},{"$f":"'VNOS PODATKOV'!C389","v":"izdelano je dokazilo o zanesljivosti"}]
[{"$f":"'VNOS PODATKOV'!C390","v":"številka dokazila o zanesljivosti objekta"},null,{"$f":"IF(OR('VNOS PODATKOV'!$D$201=TRUE,'VNOS PODATKOV'!$D$202=TRUE,'VNOS PODATKOV'!$D$203=TRUE),'VNOS PODATKOV'!D390,\"\")","v":""}]
[{"$f":"'VNOS PODATKOV'!C391","v":"datum izdelave"},null,{"$f":"IF(ISBLANK('VNOS PODATKOV'!D391),\"\",IF(OR('VNOS PODATKOV'!$D$201=TRUE,'VNOS PODATKOV'!$D$202=TRUE,'VNOS PODATKOV'!$D$203=TRUE),'VNOS PODATKOV'!D391,\"\"))","v":""}]
[{"$f":"'VNOS PODATKOV'!C392","v":"izvajalec (naziv družbe)"},null,{"$f":"IF(OR('VNOS PODATKOV'!$D$201=TRUE,'VNOS PODATKOV'!$D$202=TRUE,'VNOS PODATKOV'!$D$203=TRUE),'VNOS PODATKOV'!D392,\"\")","v":""}]
[]
["PODATKI ZA IZRAČUN UPRAVNE TAKSE"]
[{"$f":"'VNOS PODATKOV'!C361","v":"obračunska vrednost objekta v EUR brez DDV"},null,{"$f":"'VNOS PODATKOV'!D361","v":0}]
[]
[]
[null,false,"Zahtevam, da se uporabno dovoljenje izda v posebnem ugotovitvenem postopku na podlagi opravljenega tehničnega pregleda."]
[null,null," (neobvezno, če gre za manj zahteven objekt)"]
[]
[null,null,"Na podlagi navedenih podatkov in priloženega projekta ter drugih priloženih listin vas prosim za izdajo uporabnega dovoljenja."]
[]
["datum",null,"podpis vložnika"]
[{"$f":"TODAY()","v":"2023-06-07"}]
[]
[]
["PRILOGE"]
["ustrezno označiti"]
[null,false,"Pooblastilo, če zahteve ne vlaga investitor"]
[null,false,"Projekt izvedenih del (PID) (ni obvezno, če gre samo za spremembo namembnosti, ki se izvaja samostojno ali hkrati z vzdrževanjem)"]
[null,false,"Priloga 4C Podatki o zemljiščih (izpolnjena v okviru zahtevka)"]
[null,false,"Priloga 10B Mnenje pristojnega mnenjedajalca glede skladnosti dopustnih manjših odstopanj z izdanim mnenjem s predpisi iz svoje pristojnosti, če se dopustna manjša odstopanja nanašajo na njegova predhodna izdana mnenja mnenjedajalcev"]
[null,false,"Dokazilo o zanesljivosti objekta (DZO) (ni obvezno, če gre samo za spremembo namembnosti)"]
[null,false,"Priloga 15 A Izjava nadzornika in vodje nadzora ob vlogi za izdajo uporabnega dovoljenja za spremembo namembnosti, da je sprememba namembnosti izvedena skladno z gradbenim dovoljenjem in da se izpolnjevanje bistvenih zahtev objekta z izvedenimi deli ni poslabšalo"]
[null,false,"Priloga 15B Izjava nadzornika in vodje nadzora ob zahtevi za izdajo uporabnega dovoljenja za enostanovanjsko stavbo, da so dela dokončana v skladu z izdanim gradbenim dovoljenjem in projektno dokumentacijo za izvedbo gradnje ter da objekt izpolnjuje bistvene zahteve (enostanovanjske stavbe)"]
[null,false,"Priloga 15C Izjava nadzornika in vodje nadzora ob zahtevi za izdajo uporabnega dovoljenja za enostanovanjsko stavbo brez dokončanega ovoja, da so dela dokončana v skladu z izdanim gradbenim dovoljenjem in projektno dokumentacijo za izvedbo gradnje ter da objekt izpolnjuje bistvene zahteve, razen v delu, ki se nanaša na izvedbo ovoja stavbe (enostanovanjske stavbe)"]
[null,false,"Dokumentacija, izdelana v skladu z drugim odstavkom 148. člena"]
[null,false,"Priloga 15D Izjava projektanta, nadzornika ali izvajalca, ki v posebnih okoliščinah nadomešča DZO"]
[null,false,"Opis izvedbe omilitvenih in izravnalnih ukrepov in mnenje organizacije, pristojne za ohranjanje narave, o njihovem delovanju, če so bili v gradbenem dovoljenju določeni izravnalni ukrepi"]
[null,false,"Program prvih meritev, če gre za objekt z vplivi na okolje"]
[null,false,"Soglasje organa, pristojnega za jedrsko varnost, za začetek poskusnega obratovanja, \nkot ga določa predpis, ki ureja varstvo pred ionizirajočimi sevanji in jedrsko varnost, \nče gre za jedrske ali sevalne objekte"]
[null,false,"Dokazilo o vloženi zahtevi za vpis objekta v kataster nepremičnin oziroma v kataster gospodarske javne infrastrukture, če je to določeno s predpisom"]
[null,false,"Potrdilo občine o plačanem komunalnem prispevku v primeru spremembe namembnosti, če tako določa zakon, ki ureja prostor"]
[null,false,"Projekt izvedenih del (PID) z izjavo projektanta in vodje projektiranja, če gre za objekt, zgrajen brez GD, v skladu z določbami drugega odstavka 1. člena GZ ali za nujno rekonstrukcijo"]
[null,false,"Okoljevarstveno oziroma naravovarstveno soglasje"]
[null,false,"Druge priloge (navesti, katere):"]

{"sheet":"15B UD IZJAVA 1-ST","index":27,"n_rows":26,"n_cols":3,"rows_kept":26,"cut":false,"hidden":false,"merged":[[1,0,1,2],[3,0,3,2],[7,0,7,2]]}
["PRILOGA 15B"]
["IZJAVA NADZORNIKA IN VODJE NADZORA \nOB VLOGI ZA IZDAJO UPORABNEGA \nDOVOLJENJA ZA ENOSTANOVANJSKO STAVBO"]
[]
[{"$f":"'VNOS PODATKOV'!C132","v":"NADZORNIK"}]
[{"$f":"'VNOS PODATKOV'!C136","v":"naziv družbe"},null,{"$f":"'VNOS PODATKOV'!D136","v":0}]
[{"$f":"'VNOS PODATKOV'!C137","v":"poslovni naslov družbe"},null,{"$f":"'VNOS PODATKOV'!D137","v":0}]
[{"$f":"'VNOS PODATKOV'!C139","v":"odgovorna oseba nadzornika"},null,{"$f":"'VNOS PODATKOV'!D139","v":0}]
[{"$f":"'VNOS PODATKOV'!C140","v":"VODJA NADZORA"}]
[{"$f":"'VNOS PODATKOV'!C141","v":"vodja nadzora"},null,{"$f":"IF('VNOS PODATKOV'!D141=\"\",\"\",(CONCATENATE('VNOS PODATKOV'!D141,\", \",'VNOS PODATKOV'!D142)))","v":""}]
[]
[null,null,"IZJAVLJAVA:"]
[null,null,"da je gradnja izvedena skladno z izdanim gradbenim dovoljenjem in dopustnimi manjšimi odstopanji:"]
[{"$f":"'VNOS PODATKOV'!C365","v":"številka dovoljenja"},null,{"$f":" 'VNOS PODATKOV'!D365","v":0}]
["z dne",null,{"$f":" 'VNOS PODATKOV'!D366","v":"00:00:00"}]
[null,null,"in spremembo gradbenega dovoljenja:"]
[{"$f":"'VNOS PODATKOV'!C372","v":"številka dovoljenja"},null,{"$f":"'VNOS PODATKOV'!D372","v":0}]
["z dne",null,{"$f":"'VNOS PODATKOV'!D373","v":"00:00:00"}]
[null,null,"in projektno dokumentacijo za izvedbo gradnje (PZI):"]
[{"$f":"'VNOS PODATKOV'!C160","v":"številka projekta"},null,{"$f":"'VNOS PODATKOV'!G160","v":0}]
[{"$f":"'VNOS PODATKOV'!C161","v":"datum izdelave"},null,{"$f":"'VNOS PODATKOV'!G161","v":"00:00:00"}]
[null,null,"Objekt izpolnjuje bistvene zahteve."]
[{"$f":"'VNOS PODATKOV'!C141","v":"vodja nadzora"},null,{"$f":"IF('VNOS PODATKOV'!D141=\"\",\"\",(CONCATENATE('VNOS PODATKOV'!D141,\", \",'VNOS PODATKOV'!D142)))","v":""}]
[{"$f":"'VNOS PODATKOV'!C143","v":"identifikacijska številka"},null,{"$f":"'VNOS PODATKOV'!D143","v":0}]
["podpis vodje nadzora"]
[{"$f":"'VNOS PODATKOV'!C139","v":"odgovorna oseba nadzornika"},null,{"$f":"'VNOS PODATKOV'!D139","v":0}]
["podpis odgovorne osebe nadzornika"]

{"sheet":"15C UD IZJAVA 1-ST BO","index":28,"n_rows":26,"n_cols":3,"rows_kept":26,"cut":false,"hidden":false,"merged":[[3,0,3,2],[1,0,1,2]]}
["PRILOGA 15C"]
["IZJAVA NADZORNIKA IN VODJE NADZORA \nOB VLOGI ZA IZDAJO UPORABNEGA \nDOVOLJENJA ZA ENOSTANOVANJSKO STAVBO \nBREZ DOKONČANEGA OVOJA"]
[]
[{"$f":"'VNOS PODATKOV'!C132","v":"NADZORNIK"}]
[{"$f":"'VNOS PODATKOV'!C136","v":"naziv družbe"},null,{"$f":"'VNOS PODATKOV'!D136","v":0}]
[{"$f":"'VNOS PODATKOV'!C137","v":"poslovni naslov družbe"},null,{"$f":"'VNOS PODATKOV'!D137","v":0}]
[{"$f":"'VNOS PODATKOV'!C139","v":"odgovorna oseba nadzornika"},null,{"$f":"'VNOS PODATKOV'!D139","v":0}]
[{"$f":"'VNOS PODATKOV'!C140","v":"VODJA NADZORA"}]
[{"$f":"'VNOS PODATKOV'!C141","v":"vodja nadzora"},null,{"$f":"IF('VNOS PODATKOV'!D141=\"\",\"\",(CONCATENATE('VNOS PODATKOV'!D141,\", \",'VNOS PODATKOV'!D142)))","v":""}]
[]
[null,null,"IZJAVLJAVA:"]
[null,null,"da je gradnja izvedena skladno z izdanim gradbenim dovoljenjem \nin dopustnimi manjšimi odstopanji:"]
[{"$f":"'VNOS PODATKOV'!C365","v":"številka dovoljenja"},null,{"$f":" 'VNOS PODATKOV'!D365","v":0}]
["z dne",null,{"$f":" 'VNOS PODATKOV'!D366","v":"00:00:00"}]
[null,null,"in spremembo gradbenega dovoljenja:"]
[{"$f":"'VNOS PODATKOV'!C372","v":"številka dovoljenja"},null,{"$f":"'VNOS PODATKOV'!D372","v":0}]
["z dne",null,{"$f":"'VNOS PODATKOV'!D373","v":"00:00:00"}]
[null,null,"in projektno dokumentacijo za izvedbo gradnje (PZI):"]
[{"$f":"'VNOS PODATKOV'!C160","v":"številka projekta"},null,{"$f":"'VNOS PODATKOV'!G160","v":0}]
[{"$f":"'VNOS PODATKOV'!C161","v":"datum izdelave"},null,{"$f":"'VNOS PODATKOV'!G161","v":"00:00:00"}]
[null,null,"Objekt izpolnjuje bistvene zahteve razen v delu, ki se nanaša na izvedbo ovoja stavbe."]
[{"$f":"'VNOS PODATKOV'!C141","v":"vodja nadzora"},null,{"$f":"IF('VNOS PODATKOV'!D141=\"\",\"\",(CONCATENATE('VNOS PODATKOV'!D141,\", \",'VNOS PODATKOV'!D142)))","v":""}]
[{"$f":"'VNOS PODATKOV'!C143","v":"identifikacijska številka"},null,{"$f":"'VNOS PODATKOV'!D143","v":0}]
["podpis vodje nadzora"]
[{"$f":"'VNOS PODATKOV'!C139","v":"odgovorna oseba nadzornika"},null,{"$f":"'VNOS PODATKOV'!D139","v":0}]
["podpis odgovorne osebe nadzornika"]

{"sheet":"15D UD IZJAVA POS OKOL","index":29,"n_rows":59,"n_cols":6,"rows_kept":59,"cut":false,"hidden":false,"merged":[[16,2,16,5],[27,2,27,5],[28,2,28,5],[46,0,46,5],[1,0,1,2],[37,2,37,5]]}
["PRILOGA 15D"]
["IZJAVA PROJEKTANTA, NADZORNIKA ALI IZVAJALCA V POSEBNIH OKOLIŠČINAH"]
[]
[1,1,"projektant"]
[null,null,"izvajalec"]
[null,null,"nadzornik"]
[]
[{"$f":"IF($A$4=1,'VNOS PODATKOV'!C84,IF($A$4=2,'VNOS PODATKOV'!C144,IF($A$4=3,'VNOS PODATKOV'!C131,\"\")))","v":"PROJEKTANT"}]
["naziv družbe",null,{"$f":"IF($A$4=1,'VNOS PODATKOV'!D87,IF($A$4=2,'VNOS PODATKOV'!D148,IF($A$4=3,'VNOS PODATKOV'!D136,\"\")))","v":0}]
["poslovni naslov družbe",null,{"$f":"IF($A$4=1,'VNOS PODATKOV'!D88,IF($A$4=2,'VNOS PODATKOV'!D149,IF($A$4=3,'VNOS PODATKOV'!D137,\"\")))","v":0}]
["odgovorna oseba",null,{"$f":"IF($A$4=1,'VNOS PODATKOV'!D89,IF($A$4=2,'VNOS PODATKOV'!D151,IF($A$4=3,'VNOS PODATKOV'!D139,\"\")))","v":0}]
["pooblaščeni arhitekt ali inženir",null,{"$f":"IF($A$4=1,'VNOS PODATKOV'!D91,IF($A$4=2,'VNOS PODATKOV'!D153,IF($A$4=3,'VNOS PODATKOV'!D141,\"\")))","v":0}]
[{"$f":"'VNOS PODATKOV'!C172","v":"PODATKI O GRADNJI"}]
[{"$f":"'VNOS PODATKOV'!C175","v":"naziv gradnje"},null,{"$f":"'VNOS PODATKOV'!D175","v":0}]
[]
[null,null,"IZJAVLJAVA:"]
[null,null,"- da zaradi smrti udeležencev pri graditivi, starosti objekta, prenehanja poslovanja, stečaja ali drugih okoliščin ni mogoče predložiti dokazila o zanesljivosti objekta ter"]
[null,null,"- da so dela dokončana in skladna z izdanim gradbenim dovoljenjem:"]
[]
[{"$f":"'VNOS PODATKOV'!C365","v":"številka dovoljenja"},null,{"$f":" 'VNOS PODATKOV'!D365","v":0}]
["z dne",null,{"$f":" 'VNOS PODATKOV'!D366","v":"00:00:00"}]
[]
[null,null,"in spremembo gradbenega dovoljenja:"]
[]
[{"$f":"'VNOS PODATKOV'!C372","v":"številka dovoljenja"},null,{"$f":"'VNOS PODATKOV'!D372","v":0}]
["z dne",null,{"$f":"'VNOS PODATKOV'!D373","v":"00:00:00"}]
[]
[null,null,"Na podlagi ogleda objekta, seznanitve z vso znano dokumentacijo, drugimi preverljivimi okoliščinami in izvedenimi dodatnimi raziskavami izjavljava, da objekt izpolnjuje danes ali v času začetka gradnje predpisane bistvene in druge zahteve."]
[null,null,"Objekt je varovan na podlagi predpisov s področja varstva kulturne dediščine. \nIzvedene rešitve ne dosegajo v celoti predpisanih bistvenih in drugih zahtev, kar izhaja iz mnenja oziroma pogojev pristojnega mnenjedajalca za področje kulturne dediščine:"]
[]
["številka mnenja",null,{"$f":"'VNOS PODATKOV'!J293","v":0}]
["z dne",null,{"$f":"'VNOS PODATKOV'!K293","v":"00:00:00"}]
[]
[null,null,"Izjava nadomešča dokazilo o zanesljivosti objekta v celoti."]
[null,null,"Izjava nadomešča dokazilo o zanesljivosti objekta v delu, ki se nanaša na"]
[]
[]
[null,null,"Z odstopanji niso neposredno ogroženi varnost objekta, življenje in zdravje ljudi, sosednje nepremičnine ali okolje."]
[]
[]
["odgovorna oseba projektanta, nadzornika ali izvajalca"]
["podpis odgovorne osebe"]
["pooblaščeni arhitekt ali inženir"]
["podpis pooblaščenega arhitekta \nali inženirja"]
[]
["TABELARIČNO KAZALO DOKAZIL (če obstajajo)"]
["(tabelarični seznam posameznih dokazil glede gradbenih del na objektu, pripravljalnih del, inštalacij, zaključnih gradbenih del, krovstva in drugih specializiranih gradbenih del z izkazi, poročili, zapisniki ali ostalimi izvedenimi meritvami in pregledi z oštevilčenjem, kot si sledijo v mapi s prilogami)"]
["zap. \nšt.",null,"ime dokazila oz. \nna kaj se dokazilo nanaša","izdajatelj","št. dokazila","datum"]
[1]
[2]
[3]
[4]
[5]
[6]
[7]
[8]
[9]
[10]
["po potrebi dodati vrstice"]

{"sheet":"16A DOPOL VLOGE","index":30,"n_rows":50,"n_cols":3,"rows_kept":50,"cut":false,"hidden":false,"merged":[[48,0,48,2],[1,0,1,2]]}
["PRILOGA 16A"]
["DOPOLNITEV VLOGE"]
[]
[{"$f":"'VNOS PODATKOV'!C44","v":"INVESTITOR"}]
[{"$f":"'VNOS PODATKOV'!C45","v":"INVESTITOR 1"}]
[{"$f":"'VNOS PODATKOV'!C46","v":"ime in priimek ali naziv družbe"},null,{"$f":"'VNOS PODATKOV'!D46","v":0}]
[{"$f":"'VNOS PODATKOV'!C47","v":"naslov ali poslovni naslov družbe"},null,{"$f":"'VNOS PODATKOV'!D47","v":0}]
[{"$f":"'VNOS PODATKOV'!C49","v":"INVESTITOR 2"}]
[{"$f":"'VNOS PODATKOV'!C50","v":"ime in priimek ali naziv družbe"},null,{"$f":"'VNOS PODATKOV'!D50","v":0}]
[{"$f":"'VNOS PODATKOV'!C51","v":"naslov ali poslovni naslov družbe"},null,{"$f":"'VNOS PODATKOV'!D51","v":0}]
[{"$f":"'VNOS PODATKOV'!C53","v":"INVESTITOR 3"}]
[{"$f":"'VNOS PODATKOV'!C54","v":"ime in priimek ali naziv družbe"},null,{"$f":"'VNOS PODATKOV'!D54","v":0}]
[{"$f":"'VNOS PODATKOV'!C55","v":"naslov ali poslovni naslov družbe"},null,{"$f":"'VNOS PODATKOV'!D55","v":0}]
[]
[{"$f":"'VNOS PODATKOV'!C57","v":"KONTAKTNA OSEBA"}]
[{"$f":"'VNOS PODATKOV'!C58","v":"ime in priimek"},null,{"$f":"'VNOS PODATKOV'!D58","v":0}]
[{"$f":"'VNOS PODATKOV'!C59","v":"telefonska številka"},null,{"$f":"'VNOS PODATKOV'!D59","v":0}]
[{"$f":"'VNOS PODATKOV'!C60","v":"elektronski naslov"},null,{"$f":"'VNOS PODATKOV'!D60","v":0}]
[]
[{"$f":"'VNOS PODATKOV'!C61","v":"POOBLAŠČENEC"}]
[{"$f":"'VNOS PODATKOV'!C62","v":"podatki se vpišejo, kadar je imenovan pooblaščenec"}]
[{"$f":"'VNOS PODATKOV'!C64","v":"ime in priimek ali naziv družbe"},null,{"$f":"IF('VNOS PODATKOV'!D$63=TRUE,'VNOS PODATKOV'!D64, \"\")","v":""}]
[{"$f":"'VNOS PODATKOV'!C65","v":"naslov ali poslovni naslov družbe"},null,{"$f":"IF('VNOS PODATKOV'!D$63=TRUE,'VNOS PODATKOV'!D65, \"\")","v":""}]
[]
["NAVEDBA ORGANA, PRI KATEREM SE VLAGA DOPOLNITEV"]
["naziv"]
["naslov"]
[]
["PODATKI O ZADEVI, KI SE VODI PRI UPRAVNEM ORGANU"]
["številka zadeve"]
["številka dopolnitve"]
["dopolnitev zahteve se nanaša na"]
[null,false,"zahtevo za izdajo projektnih in drugih pogojev"]
[null,false,"zahtevo za izdajo mnenja"]
[null,false,"zahtevo za izdajo gradbenega dovoljenja"]
[null,false,"zahtevo za izdajo gradbenega dovoljenja za nezahtevni objekt"]
[null,false,"zahtevo za izdajo gradbenega dovoljenja za spremembo namembnosti"]
[null,false,"zahtevo za izdajo uporabnega dovoljenja"]
[null,false,"zahtevo za legalizacijo ali uporabno dovoljenje za obstoječe objekte"]
[null,false,"drugo zahtevo"]
["vsebina dopolnitve"]
[]
[null,null,"Na podlagi navedenih podatkov in drugih priloženih listin dopolnjujem zahtevo."]
[]
["datum",null,"podpis vložnika"]
[{"$f":"TODAY()","v":"2023-06-07"}]
[]
[]
["PRILOGE"]
["navesti, katere"]

{"sheet":"16B DOPOL PODALJ","index":31,"n_rows":44,"n_cols":3,"rows_kept":44,"cut":false,"hidden":false,"merged":[[1,0,1,2]]}
["PRILOGA 16B"]
["ZAHTEVA ZA PODALJŠANJE ROKA \nZA DOPOLNITEV VLOGE"]
[]
[{"$f":"'VNOS PODATKOV'!C44","v":"INVESTITOR"}]
[{"$f":"'VNOS PODATKOV'!C45","v":"INVESTITOR 1"}]
[{"$f":"'VNOS PODATKOV'!C46","v":"ime in priimek ali naziv družbe"},null,{"$f":"'VNOS PODATKOV'!D46","v":0}]
[{"$f":"'VNOS PODATKOV'!C47","v":"naslov ali poslovni naslov družbe"},null,{"$f":"'VNOS PODATKOV'!D47","v":0}]
[{"$f":"'VNOS PODATKOV'!C49","v":"INVESTITOR 2"}]
[{"$f":"'VNOS PODATKOV'!C50","v":"ime in priimek ali naziv družbe"},null,{"$f":"'VNOS PODATKOV'!D50","v":0}]
[{"$f":"'VNOS PODATKOV'!C51","v":"naslov ali poslovni naslov družbe"},null,{"$f":"'VNOS PODATKOV'!D51","v":0}]
[{"$f":"'VNOS PODATKOV'!C53","v":"INVESTITOR 3"}]
[{"$f":"'VNOS PODATKOV'!C54","v":"ime in priimek ali naziv družbe"},null,{"$f":"'VNOS PODATKOV'!D54","v":0}]
[{"$f":"'VNOS PODATKOV'!C55","v":"naslov ali poslovni naslov družbe"},null,{"$f":"'VNOS PODATKOV'!D55","v":0}]
[]
[{"$f":"'VNOS PODATKOV'!C57","v":"KONTAKTNA OSEBA"}]
[{"$f":"'VNOS PODATKOV'!C58","v":"ime in priimek"},null,{"$f":"'VNOS PODATKOV'!D58","v":0}]
[{"$f":"'VNOS PODATKOV'!C59","v":"telefonska številka"},null,{"$f":"'VNOS PODATKOV'!D59","v":0}]
[{"$f":"'VNOS PODATKOV'!C60","v":"elektronski naslov"},null,{"$f":"'VNOS PODATKOV'!D60","v":0}]
[]
[{"$f":"'VNOS PODATKOV'!C61","v":"POOBLAŠČENEC"}]
[{"$f":"'VNOS PODATKOV'!C62","v":"podatki se vpišejo, kadar je imenovan pooblaščenec"}]
[{"$f":"'VNOS PODATKOV'!C64","v":"ime in priimek ali naziv družbe"},null,{"$f":"IF('VNOS PODATKOV'!D$63=TRUE,'VNOS PODATKOV'!D64, \"\")","v":""}]
[{"$f":"'VNOS PODATKOV'!C65","v":"naslov ali poslovni naslov družbe"},null,{"$f":"IF('VNOS PODATKOV'!D$63=TRUE,'VNOS PODATKOV'!D65, \"\")","v":""}]
[]
["NAVEDBA ORGANA, PRI KATEREM SE VLAGA ZAHTEVA"]
["naziv"]
["naslov"]
[]
["PODATKI O ZADEVI, KI SE VODI PRI UPRAVNEM ORGANU"]
["številka zadeve"]
[{"$f":"'VNOS PODATKOV'!C175","v":"naziv gradnje"},null,{"$f":"'VNOS PODATKOV'!D175","v":0}]
["navedba dokumenta, s katerim je bil določen rok"]
[]
["ČAS PODALJŠANJA ROKA"]
[null,false,"15 dni"]
[null,false,"1 mesec"]
[null,false,"2 meseca"]
[]
["navedba razlogov za podaljšanje roka"]
[]
[null,null,"Na podlagi navedenih podatkov prosim za podaljšanje roka za dopolnitev vloge."]
[]
["datum",null,"podpis vložnika"]
[{"$f":"TODAY()","v":"2023-06-07"}]

{"sheet":"17B PO PODALJ ZAH","index":32,"n_rows":41,"n_cols":3,"rows_kept":41,"cut":false,"hidden":false,"merged":[[3,0,3,2]]}
["PRILOGA 17B"]
["ZAHTEVA ZA PODALJŠANJE  \nPOSKUSNEGA OBRATOVANJA"]
[]
[{"$f":"'VNOS PODATKOV'!C44","v":"INVESTITOR"}]
[{"$f":"'VNOS PODATKOV'!C45","v":"INVESTITOR 1"}]
[{"$f":"'VNOS PODATKOV'!C46","v":"ime in priimek ali naziv družbe"},null,{"$f":"'VNOS PODATKOV'!D46","v":0}]
[{"$f":"'VNOS PODATKOV'!C47","v":"naslov ali poslovni naslov družbe"},null,{"$f":"'VNOS PODATKOV'!D47","v":0}]
[{"$f":"'VNOS PODATKOV'!C49","v":"INVESTITOR 2"}]
[{"$f":"'VNOS PODATKOV'!C50","v":"ime in priimek ali naziv družbe"},null,{"$f":"'VNOS PODATKOV'!D50","v":0}]
[{"$f":"'VNOS PODATKOV'!C51","v":"naslov ali poslovni naslov družbe"},null,{"$f":"'VNOS PODATKOV'!D51","v":0}]
[{"$f":"'VNOS PODATKOV'!C53","v":"INVESTITOR 3"}]
[{"$f":"'VNOS PODATKOV'!C54","v":"ime in priimek ali naziv družbe"},null,{"$f":"'VNOS PODATKOV'!D54","v":0}]
[{"$f":"'VNOS PODATKOV'!C55","v":"naslov ali poslovni naslov družbe"},null,{"$f":"'VNOS PODATKOV'!D55","v":0}]
[]
[{"$f":"'VNOS PODATKOV'!C57","v":"KONTAKTNA OSEBA"}]
[{"$f":"'VNOS PODATKOV'!C58","v":"ime in priimek"},null,{"$f":"'VNOS PODATKOV'!D58","v":0}]
[{"$f":"'VNOS PODATKOV'!C59","v":"telefonska številka"},null,{"$f":"'VNOS PODATKOV'!D59","v":0}]
[{"$f":"'VNOS PODATKOV'!C60","v":"elektronski naslov"},null,{"$f":"'VNOS PODATKOV'!D60","v":0}]
[]
[{"$f":"'VNOS PODATKOV'!C61","v":"POOBLAŠČENEC"}]
[{"$f":"'VNOS PODATKOV'!C62","v":"podatki se vpišejo, kadar je imenovan pooblaščenec"}]
[{"$f":"'VNOS PODATKOV'!C64","v":"ime in priimek ali naziv družbe"},null,{"$f":"IF('VNOS PODATKOV'!D$63=TRUE,'VNOS PODATKOV'!D64, \"\")","v":""}]
[{"$f":"'VNOS PODATKOV'!C65","v":"naslov ali poslovni naslov družbe"},null,{"$f":"IF('VNOS PODATKOV'!D$63=TRUE,'VNOS PODATKOV'!D65, \"\")","v":""}]
[{"$f":"'VNOS PODATKOV'!C66","v":"kontaktna oseba"},null,{"$f":"IF('VNOS PODATKOV'!D$63=TRUE,'VNOS PODATKOV'!D66, \"\")","v":""}]
[{"$f":"'VNOS PODATKOV'!C67","v":"telefonska številka"},null,{"$f":"IF('VNOS PODATKOV'!D$63=TRUE,'VNOS PODATKOV'!D67, \"\")","v":""}]
[{"$f":"'VNOS PODATKOV'!C68","v":"elektronski naslov"},null,{"$f":"IF('VNOS PODATKOV'!D$63=TRUE,'VNOS PODATKOV'!D68, \"\")","v":""}]
[]
["NAVEDBA ORGANA, PRI KATEREM SE VLAGA ZAHTEVA"]
["naziv",null,{"$f":"'VNOS PODATKOV'!D378","v":0}]
["naslov",null,{"$f":"'VNOS PODATKOV'!D379","v":0}]
[]
["PODATKI O ODLOČBI O POSKUSNEM OBRATOVANJU"]
[{"$f":"'VNOS PODATKOV'!C381","v":"številka odločbe"},null,{"$f":"'VNOS PODATKOV'!D381","v":0}]
[{"$f":"'VNOS PODATKOV'!C382","v":"datum odločbe"},null,{"$f":"'VNOS PODATKOV'!D382","v":"00:00:00"}]
["navedba razlogov za podaljšanje roka"]
["predlagan rok za podaljšanje"]
[]
[null,null,"Na podlagi navedenih podatkov prosim za podaljšanje roka za poskusno obratovanje."]
[]
["datum",null,"podpis vložnika"]
[{"$f":"TODAY()","v":"2023-06-07"}]

{"sheet":"21 IZJAVA NR","index":33,"n_rows":26,"n_cols":2,"rows_kept":26,"cut":false,"hidden":false,"merged":[[1,0,1,1],[15,0,15,1],[21,0,21,1]]}
["PRILOGA 21"]
["IZJAVA POOBLAŠČENEGA\nSTROKOVNJAKA PRI \nNUJNI REKONSTRUKCIJI"]
[]
["PODATKI O INVESTITORJU, OBJEKTU IN ZEMLJIŠČIH"]
[{"$f":"'VNOS PODATKOV'!C46","v":"ime in priimek ali naziv družbe"},{"$f":"'VNOS PODATKOV'!D46","v":0}]
[{"$f":"'VNOS PODATKOV'!C47","v":"naslov ali poslovni naslov družbe"},{"$f":"'VNOS PODATKOV'!D47","v":0}]
[{"$f":"'VNOS PODATKOV'!C249","v":"naziv objekta"},{"$f":"'VNOS PODATKOV'!D249","v":0}]
[{"$f":"'VNOS PODATKOV'!C250","v":"kratek opis del, ki se bodo izvajala kot nujna rekonstrukcija"},{"$f":"'VNOS PODATKOV'!D250","v":0}]
[{"$f":"'VNOS PODATKOV'!C251","v":"naslov objekta"},{"$f":"'VNOS PODATKOV'!D251","v":0}]
["katastrska občina",{"$f":"'VNOS PODATKOV'!D252","v":0}]
["številka katastrske občine",{"$f":"'VNOS PODATKOV'!D253","v":0}]
["parc. št.",{"$f":"'VNOS PODATKOV'!D254","v":0}]
[{"$f":"'VNOS PODATKOV'!C255","v":"opis naravne ali druge nesreče"},{"$f":"'VNOS PODATKOV'!D255","v":0}]
[{"$f":"'VNOS PODATKOV'!C256","v":"datum naravne ali druge nesreče"},{"$f":"'VNOS PODATKOV'!D256","v":"00:00:00"}]
[]
["POOBLAŠČENI STROKOVNJAK S PODROČJA GRADBENIŠTVA"]
[{"$f":"'VNOS PODATKOV'!C128","v":"ime in priimek"},{"$f":"IF('VNOS PODATKOV'!D128=\"\",\"\",(CONCATENATE('VNOS PODATKOV'!D128,\", \",'VNOS PODATKOV'!D129)))","v":""}]
[{"$f":"'VNOS PODATKOV'!C130","v":"identifikacijska številka"},{"$f":"'VNOS PODATKOV'!D130","v":0}]
[{"$f":"'VNOS PODATKOV'!C125","v":"naziv družbe"},{"$f":"'VNOS PODATKOV'!D125","v":0}]
[]
["PO PREGLEDU OBJEKTA IZJAVLJAM"]
["- da stanje obstoječega objekta dopušča izvedbo del, ki so nujna za zmanjšanje ali odpravo posledic \nnaravne ali druge nesreče in s katerimi se bo vzpostavilo prejšnje stanje, in"]
["- da se lega, gabariti, namembnost in zunanjost objekta s to rekonstrukcijo ne bodo spremenili."]
[]
["datum",{"$f":"TODAY()","v":"2023-06-07"}]
["podpis pooblaščenega \nstrokovnjaka s področja gradbeništva"]

{"sheet":"BAZA PODATKOV","index":34,"n_rows":376,"n_cols":3,"rows_kept":376,"cut":false,"hidden":false,"merged":[]}
["VRSTE PROJEKTNE DOKUMENTACIJE"]
[]
["DPP (projektna dokumentacija za pridobitev projektnih in drugih pogojev)",1]
["DGD (projektna dokumentacija za pridobivanje mnenj in gradbenega dovoljenja)",2]
["PZI v delu, ki se nanaša na pripravljalna dela",3]
["PZI (projektna dokumentacija za izvedbo gradnje)",4]
["PZO (projektna dokumentacija za odstranitev)",5]
["PID (projektna dokumentacija izvedenih del)",6]
["DL (dokumentacija za legalizacijo)",7]
["DNZO (dokumentacija za pridobitev gradbenega dovoljenja za nezahtevne objekte)",8]
["DSN (dokumentacija za pridobitev gradbenega dovoljenja za spremembo namembnosti)",9]
["DOZ (dokazilo o zanesljivosti)",10]
[]
["FAZA PROJEKTA"]
[]
["DPP",1]
["DGD",2]
["PZI",3]
["PID",4]
[]
["VRSTE NAČRTOV"]
[]
["1 Načrt s področja arhitekture",1]
["2 Načrt s področja gradbeništva",2]
["3 Načrt s področja elektrotehnike",3]
["4 Načrt s področja strojništva",4]
["5 Načrt s področja tehnologije",5]
["6 Načrt s področja požarne varnosti",6]
["7 Načrt s področja geotehnologije in rudarstva",7]
["8 Načrt s področja geodezije",8]
["9 Načrt s področja prometnega inženirstva",9]
["10 Načrt s področja krajinske arhitekture",10]
[]
["IZKAZI"]
[]
["izkaz energijskih karakteristik prezračevanja stavbe"]
["izkaz toplotnih karakteristik stavbe"]
["izkaz požarne varnosti"]
["izkaz zaščite pred hrupom"]
[]
["ZAGOTAVLJANJE MINIMALNE KOMUNALNE OSKRBE"]
[]
["priključevanje ni predvideno"]
["nov priključek"]
["obstoječ priključek"]
["lastni vir"]
[]
["ODVAJANJE FEKALNIH VODA"]
[]
["nov priključek"]
["obstoječ priključek"]
["pretočna greznica"]
["čistilna naprava"]
[]
["ODVAJANJE METEORNIH VODA"]
[]
["nov priključek"]
["obstoječ priključek"]
["odvajanje v vodotok"]
["razpršeno odvajanje"]
["ponikovalnica"]
[]
["DRUGA OSKRBA Z ENERGIJO"]
[]
["lastni vir"]
[]
["lokacija priključitve"]
[]
["obstoječa merilna omarica"]
["nova merilna omarica"]
[]
["obstoječ vodomerni jašek"]
["nov vodomerni jašek"]
[]
["obstoječa merilna omarica"]
["nova merilna omarica"]
["lastni plinohram"]
[]
["PROSTORSKI AKTI"]
[]
["OPN"]
["DLN"]
["PUP"]
["ZN"]
[]
["VRSTE GRADNJE"]
[]
["novogradnja - novozgrajen objekt"]
["novogradnja - prizidava"]
["rekonstrukcija"]
["odstranitev"]
["sprememba namembnosti"]
[]
["ZAHTEVNOST OBJEKTOV"]
[]
["zahteven"]
["manj zahteven"]
["nezahteven"]
["enostaven"]
[]
["POŽARNA ZAHTEVNOST OBJEKTOV"]
[]
["požarno zahteven objekt"]
["požarno manj zahteven objekt"]
[]
["DA/NE"]
[]
["DA"]
["NE"]
[]
["VRSTA OBJEKTA"]
[]
["STAVBA"]
["GRADBENI INŽENIRSKI OBJEKT"]
[]
[]
["GLAVNI ALI PRIPADAJOČI"]
[]
["glavni objekt"]
["pripadajoči objekt"]
[]
[]
["CC-SI STAVBE"]
[]
["11100 Enostanovanjske stavbe"]
["11210 Dvostanovanjske stavbe"]
["11220 Tri- in večstanovanjske stavbe"]
["11301 Stanovanjske stavbe z oskrbovanimi stanovanji"]
["11302 Stanovanjske stavbe za druge posebne družbene skupine"]
["12111 Hotelske in podobne stavbe za kratkotrajno nastanitev"]
["12112 Gostilne, restavracije in točilnice"]
["12121 Druge gostinske stavbe za kratkotrajno nastanitev"]
["12122 Stavbe za kratkotrajno nastanitev na drevesu"]
["12201 Stavbe javne uprave"]
["12202 Stavbe bank, pošt, zavarovalnic"]
["12203 Druge poslovne stavbe"]
["12204 Konferenčne in kongresne stavbe"]
["12301 Trgovske stavbe"]
["12302 Sejemske dvorane, razstavišča"]
["12303 Oskrbne postaje"]
["12304 Stavbe za storitvene dejavnosti"]
["12410 Postajna poslopja, terminali, stavbe za izvajanje komunikacij ter z njimi povezane stavbe"]
["12420 Garažne stavbe"]
["12510 Industrijske stavbe"]
["12520 Rezervoarji, silosi in skladiščne stavbe"]
["12610 Stavbe za kulturo in razvedrilo"]
["12620 Muzeji, arhivi in knjižnice"]
["12630 Stavbe za izobraževanje in znanstvenoraziskovalno delo"]
["12640 Stavbe za zdravstveno oskrbo"]
["12650 Stavbe za šport"]
["12711 Stavbe za rastlinsko pridelavo"]
["12712 Stavbe za rejo živali"]
["12713 Stavbe za skladiščenje pridelka"]
["12714 Druge nestanovanjske kmetijske stavbe"]
["12721 Stavbe za opravljanje verskih obredov"]
["12722 Pokopališke stavbe"]
["12730 Kulturna dediščina, ki se ne uporablja za druge namene"]
["12741 Vojašnice in stavbe za nastanitev policistov"]
["12742 Stavbe sil za zaščito, reševanje in pomoč, gasilski domovi"]
["12743 Zaklonišča"]
["12744 Sanitarije"]
["12745 Stavbe za funkcionalno dopolnitev"]
["12746 Druge stavbe, ki niso uvrščene drugje"]
[]
["CC-SI GRADBENI INŽENIRSKI OBJEKTI"]
[]
["21111 Avtoceste, hitre ceste in glavne ceste (daljinske ceste)"]
["21112 Regionalne ceste"]
["21121 Lokalne ceste in javne poti, nekategorizirane ceste in gozdne ceste"]
["21122 Parkirišča izven vozišča"]
["21210 Glavne in regionalne železniške proge"]
["21220 Mestne železniške proge"]
["21301 Letališke steze in ploščadi"]
["21302 Letalski radio-navigacijski objekti"]
["21410 Mostovi, viadukti, nadvozi, nadhodi"]
["21421 Predori"]
["21422 Podhodi"]
["21423 Pokriti vkopi in galerije"]
["21510 Pristanišča in plovbne poti"]
["21520 Jezovi, vodne pregrade in drugi vodni objekti"]
["21530 Sistem za namakanje in osuševanje, akvadukti"]
["22110 Naftovodi in daljinski (prenosni) plinovodi"]
["22121 Daljinski (transportni) vodovodi"]
["22122 Objekti za črpanje, filtriranje in zajem vode"]
["22130 Daljinsko (hrbtenično) komunikacijsko omrežje"]
["22140 Daljinski (prenosni) elektroenergetski vodi"]
["22210 Lokalni (distribucijski) plinovodi"]
["22221 Lokalni vodovodi za pitno vodo in cevovodi za tehnološko vodo"]
["22222 Lokalni cevovodi za toplo vodo, paro in stisnjen zrak"]
["22223 Vodni stolpi in vodnjaki"]
["22231 Cevovodi za odpadno vodo (kanalizacija)"]
["22232 Čistilne naprave"]
["22241 Lokalni (distribucijski) elektroenergetski vodi"]
["22242 Lokalna (dostopovna) komunikacijska omrežja"]
["23010 Objekti za pridobivanje in izkoriščanje mineralnih surovin"]
["23021 Elektrarne in drugi energetski objekti"]
["23022 Hranilniki električne energije"]
["23030 Objekti kemične industrije"]
["23040 Objekti industrije, ki niso uvrščeni drugje"]
["24110 Športna igrišča"]
["24121 Marine"]
["24122 Drugi gradbeni inženirski objekti za šport, rekreacijo in prosti čas"]
["24201 Obrambni objekti"]
["24202 Drugi kmetijski gradbeni inženirski objekti"]
["24203 Objekti za ravnanje z odpadki"]
["24204 Pokopališča"]
["24205 Objekti za preprečitev zdrsa in ograditev"]
["24206 Odprta skladišča in odprte prodajne površine"]
["24207 Nepokrita prezentirana arheološka najdišča in ruševine"]
["24208 Drugi gradbeni inženirski objekti, ki niso uvrščeni drugje"]
[]
["ZVKDS"]
[]
["ZVKDS, Območna enota Celje","Glavni trg 1, 3000 Celje","tajnistvo.ce@zvkds.si"]
["ZVKDS, Območna enota Kranj","Tomšičeva ulica 7, 4000 Kranj","tajnistvo.kr@zvkds.si"]
["ZVKDS, Območna enota Ljubljana","Tržaška cesta 4, 1000 Ljubljana","tajnistvo.lj@zvkds.si"]
["ZVKDS, Območna enota Maribor","Slomškov trg 6, 2000 Maribor","tajnistvo.mb@zvkds.si"]
["ZVKDS, Območna enota Nova Gorica","Delpinova ulica 16, 5000 Nova Gorica","tajnistvo.ng@zvkds.si"]
["ZVKDS, Območna enota Novo mesto","Skalickega ulica 1, 8000 Novo mesto","tajnistvo.nm@zvkds.si"]
["ZVKDS, Območna enota Piran","Trg bratstva 1, 6330 Piran/Pirano","tajnistvo.pi@zvkds.si"]
[]
["Zavod RS za varstvo narave"]
[]
["Zavod RS za varstvo narave, OE Celje","Vodnikova ulica 3, 3000 Celje","zrsvn.oece@zrsvn.si"]
["Zavod RS za varstvo narave, OE Kranj","PC Planina 3, 4000 Kranj","zrsvn.oekr@zrsvn.si"]
["Zavod RS za varstvo narave, OE Ljubljana","Cankarjeva 10, 1000 Ljubljana","zrsvn.oelj@zrsvn.si"]
["Zavod RS za varstvo narave, OE Maribor","Pobreška cesta 20a, 2000 Maribor","zrsvn.oemb@zrsvn.si"]
["Zavod RS za varstvo narave, OE Nova Gorica","Delpinova 16, 5000 Nova Gorica","zrsvn.oeng@zrsvn.si"]
["Zavod RS za varstvo narave, OE Novo mesto","Adamičeva ul. 2, 8000 Novo mesto","zrsvn.oenm@zrsvn.si"]
["Zavod RS za varstvo narave, OE Piran","Trg Etbina Kristana1, 6310 Izola","zrsvn.oepi@zrsvn.si"]
["Zavod RS za varstvo narave, Osrednja enota v Ljubljani","Tobačna ulica 5, 1000 Ljubljana","zrsvn.oe@zrsvn.si"]
[]
["Direkcija RS za vode"]
[]
["Direkcija Republike Slovenije za vode","Hajdrihova ulica 28c, 1000 Ljubljana","gp.drsv@gov.si"]
["Direkcija RS za vode, Sektor območja zgornje Save","Ulica Mirka Vadnova 5, 4000 Kranj","gp.drsv-kr@gov.si"]
["Direkcija RS za vode, Sektor območja srednje Save","Vojkova cesta 52, 1000 Ljubljana","gp.drsv-lj@gov.si"]
["Direkcija RS za vode, Sektor območja spodnje Save","Novi trg 9, 8000 Novo mesto","gp.drsv-nm@gov.si"]
["Direkcija RS za vode, Sektor območja jadranskih rek z morjem","Pristaniška ulica 12, 6000 Koper","gp.drsv-kp@gov.si"]
["Direkcija RS za vode, Sektor območja Soče","Cankarjeva ulica 62, 5000 Nova Gorica","gp.drsv-ng@gov.si"]
["Direkcija RS za vode, Sektor območja Savinje","Mariborska cesta 88, 3000 Celje","gp.drsv-ce@gov.si"]
["Direkcija RS za vode, Sektor območja Drave","Krekova ulica 17, 2000 Maribor","gp.drsv-mb@gov.si"]
["Direkcija RS za vode, Sektor območja Mure","Slovenska ulica 2, 9000 Murska Sobota","gp.drsv-ms@gov.si"]
[]
["Zavod za gozdove Slovenije"]
[]
["Zavod za gozdove Slovenije, Centralna enota Ljubljana","Večna pot 2, 1001 Ljubljana","zgs.tajnistvo@zgs.si"]
["ZGS, Območna enota Tolmin","Tumov drevored 17, 5220 Tolmin","OETolmin@zgs.si"]
["ZGS, Območna enota Ljubljana","Tržaška c. 2, 1000 Ljubljana","OELjubljana@zgs.si"]
["ZGS, Območna enota Novo mesto","Gubčeva 15, 8000 Novo mesto","OENovomesto@zgs.si"]
["ZGS, Območna enota Nazarje","Savinjska cesta 4, 3331 Nazarje","OENazarje@zgs.si"]
["ZGS, Območna enota Murska Sobota","Arh. Novaka 17, 9000 Murska Sobota","OEMurskaSobota@zgs.si"]
["Zavod za gozdove Slovenije, Območna enota Bled","Ljubljanska cesta 19, 4260 Bled","OEBled@zgs.si"]
["Zavod za gozdove Slovenije, Območna enota Postojna","Vojkova 9, 6230 Postojna","OEPostojna@zgs.si"]
["Zavod za gozdove Slovenije, Območna enota Brežice","C. bratov Milavcev 61, 8250 Brežice","OEBrezice@zgs.si"]
["Zavod za gozdove Slovenije, Območna enota Slovenj Gradec","Vorančev trg 1, 2380 Slovenj gradec","OESlovenjGradec@zgs.si"]
["Zavod za gozdove Slovenije, Območna enota Sežana","Partizanska 49, 6210 Sežana","OESezana@zgs.si"]
["Zavod za gozdove Slovenije, Območna enota Kranj","C. Staneta Žagarja 27b, 4000 Kranj","OEKranj@zgs.si"]
["Zavod za gozdove Slovenije, Območna enota Kočevje","Rožna ul. 39, 1330 Kočevje","OEKocevje@zgs.si"]
["Zavod za gozdove Slovenije, Območna enota Celje","Ljubljanska 13, 3000 Celje","OECelje@zgs.si"]
["Zavod za gozdove Slovenije, Območna enota Maribor","Tyrševa 15, 2000 Maribor","OEMaribor@zgs.si"]
[]
["Upravljavec javne ceste"]
[]
["Direkcija RS za infrastrukturo","Tržaška cesta 19, 1000 Ljubljana","gp.drsi@gov.si"]
["Družba za avtoceste RS ","Ulica XIV. divizije 4, 3000 Celje"]
[]
["Elektro"]
[]
["Elektro Celje","Vrunčeva 2a, 3000 Celje","info@elektro-celje.si"]
["Elektro Gorenjska","Ul. Mirka Vadnova 3a, 4000 Kranj","info@elektro-gorenjska.si"]
["Elektro Ljubljana","Slovenska cesta 58, 1516 Ljubljana","info@elektro-ljubljana.si"]
["Elektro Maribor","Vetrinjska ulica 2, 2000 Maribor","info@elektro-maribor.si"]
["Elektro Primorska","Erjavčeva ulica 22, 5000 Nova Gorica","info@elektro-primorska.si"]
["ELES","Hajdrihova 2, SI-1000 Ljubljana","info@eles.si"]
[]
["POLICIJSKA UPRAVA"]
[]
["Policijska uprava Celje ","Ljubljanska cesta 12 , 3000 Celje "]
["Policijska uprava Koper","Ukmarjev trg 6, 6000 Koper"]
["Policijska uprava Kranj","Bleiweisova cesta 3, 4000 Kranj "]
["Policijska uprava Ljubljana","Prešernova cesta 18, 1001 Ljubljana"]
["Policijska uprava Maribor","Maistrova ulica 2, 2001 Maribor"]
["Policijska uprava Murska Sobota","Ulica arhitekta Novaka 5. 9000 Murska Sobota"]
["Policijska uprava Nova Gorica ","Sedejeva ulica 11, 5000 Nova Gorica"]
["Policijska uprava Novo mesto","Ljubljanska cesta 30, 8000 Novo mesto "]
[]
["PODLAGE ZA PROJEKTIRANJE"]
[]
["TSG požarna varnost v stavbah"]
["zadnje stanje gradbene tehnike"]
[]
["TSG nizkonapetostne električne inštalacije"]
["zadnje stanje gradbene tehnike"]
[]
["TSG zaščita pred delovanjem strele"]
["zadnje stanje gradbene tehnike"]
[]
["TSG učinkovita raba energije"]
[]
["TSG zaščita pred hrupom v stavbah"]
["zadnje stanje gradbene tehnike"]
[]
["uporaba evrokodov"]
["uporaba drugih pravil"]
["brez uporabe pravil"]
[]
["MNENJA"]
[]
["OBČINA"]
[]
["VAROVANA OBMOČJA"]
["VARSTVO KULTURNE DEDIŠČINE - POSEG"]
["VARSTVO KULTURNE DEDIŠČINE - RAZISKAVA IN ODSTRANITEV"]
["VARSTVO NARAVE"]
["VARSTVO PODZEMNIH JAM"]
["VARSTVO VODA"]
["VARSTVO GOZDOV"]
["RIBIŠKI OKOLIŠ"]
["OKOLJE DIVJADI"]
["OBMOČJE MEJNEGA PREHODA"]
["CARINA"]
["LETALIŠČA"]
["OVIRE ZA ZRAČNI PROMET"]
["VARNOST PLOVBE"]
["OBJEKT V MEJAH RUDNIŠKEGA PROSTORA"]
["OBJEKT V VAROVALNEM PASU ŽIČNIŠKE NAPRAVE"]
[]
["VAROVALNI PASOVI INFRASTRUKTURE"]
["VODOVOD"]
["ELEKTRIKA"]
["PLIN"]
["TOPLOVOD"]
["FEKALNE VODE"]
["METEORNE VODE"]
["KOMUNIKACIJSKI VODI"]
["JAVNE CESTE"]
["ŽELEZNICE - GRADNJA"]
["ŽELEZNICE"]
[]
["PRIKLJUČEVANJE NA INFRASTRUKTURO"]
["VODOVOD"]
["ELEKTRIKA"]
["PLIN"]
["TOPLOVOD"]
["FEKALNE VODE"]
["METEORNE VODE"]
["DOSTOP"]
["KOMUNIKACIJE"]
[]
["DRUGA MNENJA"]
["JEDRSKA VARNOST "]
["SEVALNA VARNOST "]
["KMETIJSKO GOSPODARSTVO"]
["VETERINA"]
["OBRAMBA"]
[]
["bonitetni razred"]
["DRUGI OBJEKTI"]
["35-50",2]
["51-60",4]
["61-75",12]
["76-100",20]
["PROMET IN DRUGI GIO"]
["35-50",0.5]
["51-60",1]
["61-75",3]
["76-100",5]
[]
[]
["razvrstitev glede na univerzalno graditev in rabo objektov"]
[]
["objekt dostopen vsem ljudem - stavba z 10 stanovanji in več"]
["objekt dostopen vsem ljudem - objekt v javni rabi"]
["prilagodljiv objekt"]
["določbe glede univerzalne graditve in rabe objektov niso merodajne"]

{"sheet":"MNENJEDAJALCI","index":35,"n_rows":55,"n_cols":4,"rows_kept":55,"cut":false,"hidden":false,"merged":[[1,0,1,3]]}
["PRIPOMOČEK ZA DOLOČANJE POTREBNIH MNENJ"]
["Pripomoček je še v izdelavi."]
["SKLADNOST S PROSTORSKIMI AKTI"]
[]
["področje","naziv mnenja","pravna podlaga","mnenjedajalec"]
["OBČINA","SKLADNOST S PROSTORSKIMI AKTI"]
["VAROVANA OBMOČJA"]
[]
["področje","naziv mnenja","pravna podlaga","mnenjedajalec"]
["VARSTVO KULTURNE DEDIŠČINE","KULTUROVARSTVENO MNENJE","Zakon o varstvu kulturne dediščine\n28. do 30. člen\n31. člen","Pristojna organizacijska enota Zavoda za varstvo kulturne dediščine Slovenije (priloga X)"]
["VARSTVO KULTURNE DEDIŠČINE","KULTURNOVARSTVENO MNENJE ZA RAZISKAVO IN ODSTRANITEV DEDIŠČINE"]
["VARSTVO NARAVE","NARAVOVARSTVENO MNENJE","Zakon o ohranjanju narave 105. in 105. a člen","Pristojna organizacijska enota Zavoda RS za varstvo narave (priloga 1)"]
["VARSTVO VODA","VODNO MNENJE","Zakon o vodah 150. do 153.a člen (vodno soglasje)","Direkcija RS za vode (Priloga 1)"]
["VARSTVO GOZDOV","MNENJE ZA GRADNJO V GOZDNEM PROSTORU","Zakon o gozdovih \n21. in 24. člen","Pristojna organizacijska enota Zavoda za gozdove Slovenije (Priloga 1)"]
["RIBIŠKI OKOLIŠ","MNENJE ZA GRADNJO IN DRUGE POSEGE NA OBMOČJU RIBIŠKEGA OKOLIŠA","Zakon o sladkovodnem ribištvu \n19. člen\n","Zavod za ribištvo Slovenije\nSpodnje Gameljne 61a\n1000 Ljubljana"]
["OKOLJE DIVJADI","MNENJE ZA POSEGE V OKOLJE DIVJADI","Zakon o divjadi in lovstvu \n30. člen","Pristojna organizacijska enota Zavoda za gozdove Slovenije (Priloga 1)"]
["OBMOČJE MEJNEGA PREHODA","MNENJE ZA GRADNJO NA OBMOČJU MEJNEGA PREHODA","Zakon o nadzoru državne meje \n25. člen","Pristojna policijska uprava\nin\nFinančna uprava Republike Slovenije"]
["CARINA","MNENJE ZA GRADNJO OBJEKTOV V PROSTI CONI CARINSKEGA OBMOČJA UNIJE","Zakon o izvajanju carinske zakonodaje Evropske unije \n38. člen","Finančna uprava Republike Slovenije"]
[]
["VAROVALNI PASOVI INFRASTRUKTURE"]
[]
["področje","naziv mnenja","pravna podlaga","mnenjedajalec"]
["VODOVOD","MNENJE","Gradbeni zakon\n31. člen","Občina ali nosilec javnega pooblastila (gl. seznam občinskih soglasodajalcev)"]
["ELEKTRIKA","MNENJE Z VIDIKA VAROVANJA ENERGETSKIH SISTEMOV","Energetski zakon \n468. člen (varovalni pas sistemov elektrike)","Operaterji/distributerji\n(gl. seznam občinskih soglasodajalcev)"]
["PLIN","MNENJE Z VIDIKA VAROVANJA ENERGETSKIH SISTEMOV","Energetski zakon \n469. člen (varovalni in varnostni pas sistemov zemeljskega plina)","Operaterji/distributerji\n(gl. seznam občinskih soglasodajalcev)"]
["TOPLOVOD","MNENJE"]
["FEKALNE VODE","MNENJE","Gradbeni zakon\n31. člen","Občina ali nosilec javnega pooblastila (gl. seznam občinskih soglasodajalcev)"]
["METEORNE VODE","MNENJE","Gradbeni zakon\n31. člen","Občina ali nosilec javnega pooblastila (gl. seznam občinskih soglasodajalcev)"]
["TELEFONIJA","MNENJE",null,"Nosilec javnega pooblastila (gl. seznam občinskih soglasodajalcev)"]
["KABELSKA TV","MNENJE",null,"Nosilec javnega pooblastila (gl. seznam občinskih soglasodajalcev)"]
["JAVNE CESTE","SOGLASJE ZA GRADNJO Z VIDIKA VAROVANJA JAVNIH CEST","Zakon o cestah\n24. člen (gradnja žičniških naprav čez javne ceste),\n26. člen (omejitve izvajanja del zunaj varovalnega pasu ceste),\n50. člen (poseg v cestno telo obstoječe državne ceste, prestavitev)\n66. člen (gradnja v varovalnem pasu državne ceste)\n67. člen (gradnja gospodarske javne infrastrukture v območju državne ceste)\n68. člen (posegi v državno cesto zaradi vzdrževanja druge gospodarske javne infrastrukture)\n70. člen (priključki na državno cesto)\n97. člen (gradnja v varovalnem pasu občinske ceste)\n99. člen (priključki na občinsko cesto)","Upravljavec javne ceste\nDržavne ceste:\nDirekcija RS za infrastrukturo\nTržaška cesta 19\n1000 Ljubljana\navtoceste:\nDružba za avtoceste RS \nUlica XIV. divizije 4\n3000 Celje\nObčinske ceste:\nobčina ali občinski koncesionar\n(gl. seznam občinskih soglasodajalcev)"]
["ŽELEZNICE","SOGLASJE ZA GRADNJO Z VIDIKA VAROVANJA ŽELEZNIC","Zakon o varnosti v železniškem prometu\n45. člen (soglasje za gradnjo v progovnem pasu)\n46. člen (soglasje za gradnjo v varovalnem progovnem pasu)\n \n16. člen (soglasja pri gradnji infrastrukture)\n- 3. odstavek 16. člena: soglasje k projektni dokumentaciji za pridobitev gradbenega dovoljenja\n- 5. odstavek 16. člena: soglasje v primeru izdaje novega obratovalnega dovoljenja\n- 10. odstavek 16. člena: vzdrževalna dela v javno korist na drugi javni infrastrukturi v progovnem pasu ali pri križanju z železniško progo","upravljavec železniške infrastrukture:\nSlovenske železnice -Infrastruktura d.o.o.\nKolodvorska 11\n1000 Ljubljana\n\nvarnostni organ: \nJavna agencija za železniški promet Slovenije\nKopitarjeva 5\n2000 Maribor"]
["LETALIŠČA","SOGLASJE ZA GRADNJO Z VIDIKA VAROVANJA LETALIŠČ","Zakon o letalstvu  \n97. člen (soglasje za gradnjo v območju izključne rabe letališča) – razen če je investitor Republika Slovenija\n98. (soglasje za gradnjo v območju omejene in nadzorovane rabe)\n101. (soglasje za lokacijo, gradnjo, razširitev in opustitev vojaškega letališča)\n114. (soglasje za postavitev in delovanje naprav ali sistemov v coni letališča, ki bi utegnile povzročati elektromagnetne, svetlobne ali druge motnje na napravah za vodenje zrakoplovov)\n119. člen (soglasje glede lokacije in za graditev ali postavitev infrastrukturnih objektov, naprav in sistemov navigacijskih služb zračnega prometa ter drugih objektov in naprav na vplivnih območjih teh sredstev) – razen, če je investitor Republika Slovenija\n112. (soglasje za postavitev ali povečanje ovir v coni letališča)","Javna agencija za civilno letalstvo Slovenije\nKotnikova ulica 19A\n1000 Ljubljana\n \nMinistrstvo za obrambo (če gre za vojaško letališče)\nVojkova cesta 55\n1000 Ljubljana"]
["VARNOST PLOVBE","SOGLASJE ZA GRADNJO ALI OBNOVO OBJEKTOV PRISTANIŠKE INFRASTRUKTURE ALI OBJEKTOV, KI LAHKO VPLIVAJO NA VARNOST PLOVBE NA OBALI ALI V MORJU","Pomorski zakonik \n64. člen (soglasje za gradnjo ali obnovo objektov pristaniške infrastrukture ali objektov, ki lahko vplivajo na varnost plovbe na obali ali v morju)\n \nZakon o plovbi po celinskih vodah \n10. člen (soglasje za gradnjo ali obnovo objektov, ki lahko vplivajo na varnost plovbe, na obali ali v vodi)","Uprava RS za pomorstvo\nUkmarjev trg 2\n6000 Koper\n\n"]
["OBJEKT V MEJAH RUDNIŠKEGA PROSTORA","SOGLASJE ZA GRADNJO V MEJAH RUDNIŠKEGA PROSTORA","Zakon o rudarstvu \n65. člen (soglasje za gradnjo v območju rudarskega prostora v javno korist)","Ministrstvo za infrastrukturo\nLangusova ulica 4\n1535 Ljubljana"]
["OBJEKT V VAROVALNEM PASU ŽIČNIŠKE NAPRAVE","SOGLASJE ZA GRADNJO Z VIDIKA VAROVANJA ŽIČNIC","Zakon o žičniških napravah za prevoz oseb \ntretji odstavek 61. člena\n","Upravljavec žičniške naprave"]
["PRIKLJUČEVANJE NA INFRASTRUKTURO"]
[]
[null,"naziv mnenja","pravna podlaga","mnenjedajalec"]
["VODOVOD","SOGLASJE ZA PRIKLJUČITEV NA VODOVOD","Gradbeni zakon\n31. člen","Občina ali nosilec javnega pooblastila (gl. seznam občinskih soglasodajalcev)"]
["ELEKTRIKA","SOGLASJE ZA PRIKLJUČITEV OBJEKTOV NA ELEKTROENERGETSKI SISTEM","Energetski zakon \n147. člen (soglasje za priključitev na prenosni ali distribucijski elektroenergetski sistem ali njeno spremembo)","Operaterji distribucijskega omrežja\nElektro Celje d.d., Elektro Gorenjska d.d., Elektro Ljubljana d.d., Elektro Maribor d.d. in Elektro Primorska d.d. \nSistemski operater prenosnega omrežja – ELES d.o.o."]
["PLIN","SOGLASJE ZA PRIKLJUČITEV OBJEKTOV NA SISTEM ZEMELJSKEGA PLINA","Energetski zakon \n270. člen (soglasje za priključitev na prenosni ali distribucijski sistem zemeljskega plina ali njegovo spremembo)","Prenosni sistem:\nSistemski operater prenosnega omrežja - Plinovodi d.o.o.\nCesta Ljubljanske brigade 11b, p.p. 3720\n1001 Ljubljana"]
["TOPLOVOD","SOGLASJE ZA PRIKLJUČITEV OBJEKTOV NA SISTEM TOPLOTE IN DRUGIH ENERGETSKIH PLINOV IZ ZAKLJUČENIH DISTRIBUCIJSKIH SISTEMOV","Energetski zakon \n306. člen (priključitev na sistem toplote in drugih energetskih plinov iz zaključenih distribucijskih sistemov ali spremembo parametrov priključitve)\n \n310. člen (soglasje lokalne skupnosti za priključitev na lastniški distribucijski sistem)","Lokalna skupnost oziroma distributerji, ki izvaja gospodarsko javno službo \n(gl. seznam občinskih soglasodajalcev)"]
["FEKALNE VODE","MNENJE","Gradbeni zakon\n31. člen","Občina ali nosilec javnega pooblastila (gl. seznam občinskih soglasodajalcev)"]
["METEORNE VODE","MNENJE","Gradbeni zakon\n31. člen","Občina ali nosilec javnega pooblastila (gl. seznam občinskih soglasodajalcev)"]
["DOSTOP","MNENJE"]
["DRUGA MNENJA"]
[]
["področje","naziv mnenja","pravna podlaga","soglasodajalec"]
["JEDRSKA VARNOST ","MNENJE H GRADNJAM, KI VPLIVAJO NA JEDRSKO VARNOST","Zakona o varstvu pred ionizirajočimi sevanji in jedrski varnosti \n97. člen ","Uprava RS za jedrsko varnost \nLitostrojska cesta 54\n1000 Ljubljana"]
["SEVALNA VARNOST ","MNENJE H GRADNJAM, KI VPLIVAJO NA SEVALNO VARNOST","Zakona o varstvu pred ionizirajočimi sevanji in jedrski varnosti \n97. člen ","Uprava RS za jedrsko varnost \nLitostrojska cesta 54\n1000 Ljubljana"]
["KMETIJSKO GOSPODARSTVO","SOGLASJE ZA GRADNJO ALI REKONSTRUKCIJO VELIKEGA OBRATA KMETIJSKEGA GOSPODARSTVA","Zakon o živinoreji \n17. člen","Ministrstvo za kmetijstvo\nDunajska 22 \n1000 Ljubljana"]
["VETERINA","SOGLASJE ZA GRADNJO OBJEKTA POD VETERINARSKIM NADZOROM","Zakon o veterinarskih merilih skladnosti \n78. člen, 25. točka","Uprava RS za varno hrano, veterinarstvo in varstvo rastlin\nDunajska 22\n1000 Ljubljana"]
["OBRAMBA","SOGLASJE ZA GRADNJO NEKATERIH OBJEKTOV Z VIDIKA UPOŠTEVANJA OBRAMBNIH POTREB","Zakon o obrambi \n28. in 29. člen","Ministrstvo za obrambo\nVojkova cesta 55\n1000 Ljubljana "]
["METEOROLOŠKA DEJAVNOST","IZDAJANJE PROJEKTNIH POGOJEV Z VIDIKA VARSTVA IZVAJANJA METEOROLOŠKE DEJAVNOSTI","Zakon o meteorološki dejavnosti\n32. člen (projektni pogoji za gradnjo nekaterih objektov – op: določenih v 20. členu zakona z vidika upoštevanja vremena in podnebja ter postavitev meteorološke postaje)\n20. člen (obvezno zagotavljanje meteoroloških storitev)\n1. avtocesta, hitra cesta, glavna in regionalna cesta I. reda po predpisih o cestah,\n2. pristanišče po predpisih o pomorstvu,\n3. visoka pregrada po predpisih o graditvi objektov in\n4. objekt ali naprava, za katero je treba po predpisih o varstvu pred naravnimi in drugimi nesrečami ali po predpisih o varstvu pred ionizirajočimi sevanji in jedrski varnosti izvajati meteorološke meritve, ali za katero je treba po predpisih o varstvu okolja v okviru obratovalnega monitoringa izvajati meritve meteoroloških veličin.\n","Izvajalec državne meteorološke službe - ARSO"]